Workbook

Sheet Database
B1: Table 1 - Precast Product Data
B3: Description | C3: Cell | D3: Unit | E3: Hand Set | F3: Flat Wall | G3: Manhole | H3: Manhole | I3: Manhole | J3: Manhole | K3: Manhole | L3: Manhole | M3: Manhole | N3: Manhole | O3: Manhole | P3: Manhole | Q3: Riser Section | R3: Riser Section | S3: Riser Section | T3: Riser Section | U3: Riser Section | V3: Riser Section | W3: Riser Section | X3: Riser Section | Y3: Riser Section | Z3: 8" Flat Wall | AA3: 8" Flat Wall | AB3: 8" Flat Wall | AC3: 8" Flat Wall | AD3: 8" Flat Wall | AE3: 8" Flat Wall | AF3: 8" Flat Wall | AG3: 8" Flat Wall | AH3: 8" Flat Wall | AI3: 8" Flat Wall | AJ3: 8" Flat Wall | AK3: 8" Flat Wall | AL3: 8" Flat Wall | AM3: 8" Flat Wall | AN3: 8" Flat Wall | AO3: 8" Flat Wall | AP3: 8" Flat Wall | AQ3: 8" Flat Wall | AR3: 8" Flat Wall | AS3: 8" Flat Wall | AT3: 8" Flat Wall | AU3: 8" Flat Wall | AV3: 8" Flat Wall | AW3: 8" Flat Wall | AX3: 8" Flat Wall | AY3: 8" Flat Wall | AZ3: 8" Flat Wall | BA3: 8" Flat Wall | BB3: 8" Flat Wall | BC3: 8" Flat Wall | BD3: 8" Flat Wall | BE3: 8" Flat Wall | BF3: 8" Flat Wall | BG3: 8" Flat Wall | BH3: 8" Flat Wall | BI3: 8" Flat Wall | BJ3: 8" Flat Wall | BK3: 8" Flat Wall | BL3: 10" Flat Wall | BM3: 8" Flat Wall | BN3: 8" Flat Wall | BO3: 8" Flat Wall | BP3: 8" Flat Wall | BQ3: 8" Flat Wall | BR3: 8" Flat Wall | BS3: 8" Flat Wall | BT3: 8" Flat Wall | BU3: 8" Flat Wall | BV3: 6" Flat Wall | BW3: 6" Flat Wall | BX3: 6" Flat Wall | BY3: 6" Flat Wall | BZ3: 6" Panel Form | CA3: 6" Flat Wall | CB3: 6" Flat Wall | CC3: 6" Panel Form | CD3: 6" Flat Wall | CE3: 6" Panel Form | CF3: 6" Panel Form | CG3: 6" Panel Form | CH3: 6" Panel Form | CI3: 6" Flat Wall | CJ3: 6" Flat Wall | CK3: 6" Flat Wall | CL3: 6" Flat Wall | CM3: 6" Flat Wall | CN3: 6" Flat Wall | CO3: 6" Flat Wall | CP3: 6" Flat Wall | CQ3: 6" Flat Wall | CR3: 6" Flat Wall | CS3: 6" Flat Wall | CT3: 6" Flat Wall | CU3: 6" Flat Wall | CV3: 6" Flat Wall | CW3: 6" Flat Wall | CX3: 6" Flat Wall | CY3: 6" Flat Wall | CZ3: 6" Flat Wall | DA3: 6" Flat Wall | DB3: 6" Flat Wall | DC3: 6" Flat Wall TDOT | DD3: 8" Flat Wall TDOT | DE3: 8" Flat Wall TDOT | DF3: 8" Flat Wall TDOT | DG3: 8" Flat Wall TDOT | DH3: 8" Flat Wall TDOT | DI3: 8" Flat Wall TDOT | DJ3: 9" Flat Wall TDOT | DK3: 8" Flat Wall TDOT | DL3: 8" Flat Wall TDOT | DM3: 8" Flat Wall TDOT | DN3: 9" Flat Wall INDOT | DO3: 9" Flat Wall INDOT | DP3: 9" Flat Wall INDOT | DQ3: 9" Flat Wall INDOT | DR3: 9" Flat Wall INDOT | DS3: 9" Flat Wall INDOT | DT3: KO Manhole | DU3: KO Manhole | DV3: KO Manhole | DW3: KO Manhole | DX3: KO Manhole | DY3: KO Manhole | DZ3: KO 8"-10" Wall Taper | EA3: KO 8" Wall | EB3: KO 8" Wall | EC3: KO 8" Wall | ED3: KO 8" Wall | EE3: KO 8" Wall | EF3: KO 6" Wall | EG3: KO 6" Wall | EH3: KO 6" Wall | EI3: KO 6" Wall
B4: Structure Size | C4: Reference | E4: Panel Form Structure | F4: Standard GT or Tank | G4: 36" Dia. | H4: 48" Dia. | I4: 60" Dia. | J4: 66" Dia. | K4: 72" Dia. | L4: 84" Dia. | M4: 96" Dia. | N4: 108" Dia. | O4: 120" Dia. | P4: 144" Dia. | Q4: 36" Dia. (Component Only) | R4: 48" Dia. (Component Only) | S4: 60" Dia. (Component Only) | T4: 66" Dia. (Component Only) | U4: 72" Dia. (Component Only) | V4: 96" Dia. (Component Only) | W4: 108" Dia. (Component Only) | X4: 120" Dia. (Component Only) | Y4: 144" Dia. (Component Only) | Z4: 24"x24" (8"W) | AA4: 15"x27" (8"W Panel Form) | AB4: 18"x30" (8"W Panel Form) | AC4: 24"x30" (8"W) | AD4: 18"x36" (8"W Panel Form) | AE4: 24"x36" (8"W) | AF4: 32"x32" (8"W) | AG4: 36"x36" (8"W) | AH4: 24"x40" (8"W Panel Form) | AI4: 24"x48" (8"W Panel Form) | AJ4: 36"x48" (8"W) | AK4: 48"x48" (8"W) | AL4: 24"x54" (8"W Panel Form) | AM4: 30"x54" (8"W Panel Form) | AN4: 36"x54" (8"W Panel Form) | AO4: 48"x54" (8"W Panel Form) | AP4: 54"x54" (8"W Panel Form) | AQ4: 16"x60" (8"W Panel Form) | AR4: 24"x60" (8"W Panel Form) | AS4: 30"x60" (8"W Panel Form) | AT4: 36"x60" (8"W Panel Form) | AU4: 48"x60" (8"W Panel Form) | AV4: 54"x60" (8"W Panel Form) | AW4: 60"x60" (8"W Panel Form) | AX4: 24"x72" (8"W) | AY4: 48"x72" (8"W Panel Form) | AZ4: 60"x72" (8"W Panel Form) | BA4: 72"x72" (8"W Panel Form) | BB4: 36"x84" (8"W Panel Form) | BC4: 84"x84" (8"W Panel Form) | BD4: 30"x96" (8"W Panel Form) | BE4: 36"x96" (8"W Panel Form) | BF4: 48"x96" (8"W Panel Form) | BG4: 72"x96" (8"W Panel Form) | BH4: 96"x96" (8"W Panel Form) | BI4: 24"x120" (8"W Panel Form) | BJ4: 36"x120" (8"W Panel Form) | BK4: 48"x120" (8"W Panel Form) | BL4: 108"x108" (10"W Panel Form) | BM4: 48"x48" (8"W/12"F KY TY C MH) | BN4: 48"x54" (8"W/12"F KY TY C MH) | BO4: 48"x60" (8"W/12"F KY TY C MH) | BP4: 48"x66" (8"W/12"F KY TY C MH) | BQ4: 48"x72" (8"W/12"F KY TY C MH) | BR4: 72"x72" (8"W/12"F KY TY C MH) | BS4: 48"x90" (8"W/12"F KY TY C MH) | BT4: 48"x96" (8"W/12"F KY TY C MH) | BU4: 48"x108" (8"W/12"F KY TY C MH) | BV4: 18"x18" (6"W) | BW4: 24"x24" (6"W) | BX4: 28"x28" (6"W) | BY4: 30"x30" (6"W) | BZ4: 30"x30" (6"W/8"F Panel Form) | CA4: 18"x36" (6"W ODOT Panel Form) | CB4: 24"x36" (6"W) | CC4: 24"x36" (6"W/8"F Panel Form) | CD4: 36"x36" (6"W Panel Form) | CE4: 24"x46" (6"W/8"F Panel Form) | CF4: 30"x46" (6"W/8"F) | CG4: 24"x48" (6"W Panel Form) | CH4: 30"x48" (6"W/8"F Panel Form) | CI4: 36"x48" (6"W Panel Form) | CJ4: 48"x48" (6"W Panel Form) | CK4: 27"x57" (6"W ODOT Panel Form) | CL4: 30"x60" (6"W Panel Form) | CM4: 36"x60" (6"W Panel Form) | CN4: 48"x60" (6"W Panel Form) | CO4: 60"x60" (6"W Panel Form) | CP4: 15"x61" (6"W/8"F INDOT Panel Form) | CQ4: 28"x64" (6"W) | CR4: 32"x64" (6"W ODOT Panel Form) | CS4: 24"x72" (6"W Panel Form) | CT4: 36"x72" (6"W Panel Form) | CU4: 48"x72" (6"W Panel Form) | CV4: 60"x72" (6"W Panel Form) | CW4: 72"x72" (6"W Panel Form) | CX4: 28"x97" (6"W) | CY4: 28"x98" (6"W) | CZ4: 72"x96" (6"W) | DA4: 60"x120" (6"W) | DB4: 72"x144" (6"W) | DC4: 36"x96" (6"W TDOT Panel Form) | DD4: 26"x32" (8"W TDOT Panel Form) | DE4: 32"x32" (8"W TDOT) | DF4: 36"x48" (8"W TDOT) | DG4: 48"x48" (8"W TDOT) | DH4: 62"x62" (8"W TDOT Panel Form) | DI4: 32"x80" (8"W TDOT Panel Form) | DJ4: 84"x84" (9"W TDOT Panel Form) | DK4: 36"x96" (8"W TDOT Panel Form) | DL4: 48"x96" (8"W TDOT Panel Form) | DM4: 62"x96" (8"W TDOT Panel Form) | DN4: 24"x40" (9"W INDOT Panel Form) | DO4: 24"x87" (9"W INDOT Panel Form) | DP4: 72"x57" (9"W INDOT Panel Form) | DQ4: 72"x78" (9"W INDOT Panel Form) | DR4: 72"x106" (9"W INDOT Panel Form) | DS4: 72"x134" (9"W INDOT Panel Form) | DT4: KO 48" Dia. x 2' (3-Way) | DU4: KO 48" Dia. x 2' (4-Way) | DV4: KO 48" Dia. x 3' (3-Way) | DW4: KO 48" Dia. x 3' (4-Way) | DX4: KO 60" Dia. x 4.5' (3-Way) | DY4: KO 72" Dia. x 5' (3-Way) | DZ4: KO 24"x24" x 3' (9"W Taper) | EA4: KO 24"x24" x 2.5' (8"W) | EB4: KO 24"x30" x 3' (8"W) | EC4: KO 24"x36" x 3' (8"W) | ED4: KO 36"x36" x 3.5' (8"W) | EE4: KO 48"x48" x 4.5' (8"W) | EF4: KO 18"x18" x 2' (6"W) | EG4: KO 24"x24" x 2.5' (6"W) | EH4: KO 24"x36" x 3.5' (6"W) | EI4: KO 30"x30" x 3.5' (6"W)
B5: Structure Diamater | C5: Dia (inches) | D5: Inch | G5: 36 | H5: 48 | I5: 60 | J5: 66 | K5: 72 | L5: 84 | M5: 96 | N5: 108 | O5: 120 | P5: 144 | Q5: 36 | R5: 48 | S5: 60 | T5: 66 | U5: 72 | V5: 96 | W5: 108 | X5: 120 | Y5: 144 | DT5: 48 | DU5: 48 | DV5: 48 | DW5: 48 | DX5: 60 | DY5: 72
B6: Structure Width | C6: Width (inches) | D6: Inch | Z6: 24 | AA6: 15 | AB6: 18 | AC6: 24 | AD6: 18 | AE6: 24 | AF6: 32 | AG6: 36 | AH6: 24 | AI6: 24 | AJ6: 36 | AK6: 48 | AL6: 24 | AM6: 30 | AN6: 36 | AO6: 48 | AP6: 54 | AQ6: 16 | AR6: 24 | AS6: 30 | AT6: 36 | AU6: 48 | AV6: 54 | AW6: 60 | AX6: 24 | AY6: 48 | AZ6: 60 | BA6: 72 | BB6: 36 | BC6: 84 | BD6: 30 | BE6: 36 | BF6: 48 | BG6: 72 | BH6: 96 | BI6: 24 | BJ6: 36 | BK6: 48 | BL6: 108 | BM6: 48 | BN6: 48 | BO6: 48 | BP6: 48 | BQ6: 48 | BR6: 72 | BS6: 48 | BT6: 48 | BU6: 48 | BV6: 18 | BW6: 24 | BX6: 28 | BY6: 30 | BZ6: 30 | CA6: 18 | CB6: 24 | CC6: 24 | CD6: 36 | CE6: 24 | CF6: 30 | CG6: 24 | CH6: 30 | CI6: 36 | CJ6: 48 | CK6: 27 | CL6: 30 | CM6: 36 | CN6: 48 | CO6: 60 | CP6: 15 | CQ6: 28 | CR6: 32 | CS6: 24 | CT6: 36 | CU6: 48 | CV6: 48 | CW6: 72 | CX6: 28 | CY6: 28 | CZ6: 72 | DA6: 60 | DB6: 72 | DC6: 72 | DD6: 26 | DE6: 32 | DF6: 36 | DG6: 48 | DH6: 62 | DI6: 32 | DJ6: 84 | DK6: 36 | DL6: 48 | DM6: 62 | DN6: 24 | DO6: 24 | DP6: 72 | DQ6: 72 | DR6: 72 | DS6: 72 | DZ6: 24 | EA6: 24 | EB6: 24 | EC6: 24 | ED6: 36 | EE6: 48 | EF6: 18 | EG6: 24 | EH6: 24 | EI6: 30
B7: Structure Length | C7: Length (inches) | D7: Inch | Z7: 24 | AA7: 27 | AB7: 30 | AC7: 30 | AD7: 36 | AE7: 36 | AF7: 32 | AG7: 36 | AH7: 40 | AI7: 48 | AJ7: 48 | AK7: 48 | AL7: 54 | AM7: 54 | AN7: 54 | AO7: 54 | AP7: 54 | AQ7: 60 | AR7: 60 | AS7: 60 | AT7: 60 | AU7: 60 | AV7: 60 | AW7: 60 | AX7: 72 | AY7: 72 | AZ7: 72 | BA7: 72 | BB7: 84 | BC7: 84 | BD7: 96 | BE7: 96 | BF7: 96 | BG7: 96 | BH7: 96 | BI7: 120 | BJ7: 120 | BK7: 120 | BL7: 108 | BM7: 48 | BN7: 48 | BO7: 60 | BP7: 66 | BQ7: 72 | BR7: 72 | BS7: 90 | BT7: 96 | BU7: 108 | BV7: 18 | BW7: 24 | BX7: 28 | BY7: 30 | BZ7: 30 | CA7: 36 | CB7: 36 | CC7: 36 | CD7: 36 | CE7: 46 | CF7: 46 | CG7: 48 | CH7: 48 | CI7: 48 | CJ7: 48 | CK7: 57 | CL7: 60 | CM7: 60 | CN7: 60 | CO7: 60 | CP7: 61 | CQ7: 64 | CR7: 64 | CS7: 72 | CT7: 72 | CU7: 72 | CV7: 72 | CW7: 72 | CX7: 97 | CY7: 98 | CZ7: 96 | DA7: 120 | DB7: 144 | DC7: 96 | DD7: 32 | DE7: 32 | DF7: 48 | DG7: 48 | DH7: 62 | DI7: 80 | DJ7: 84 | DK7: 96 | DL7: 96 | DM7: 96 | DN7: 40 | DO7: 87 | DP7: 57 | DQ7: 78 | DR7: 106 | DS7: 134 | DZ7: 24 | EA7: 24 | EB7: 30 | EC7: 36 | ED7: 36 | EE7: 48 | EF7: 18 | EG7: 24 | EH7: 36 | EI7: 30
B8: Standard Base Thickness | C8: Base | D8: Inch | G8: 6 | H8: 6 | I8: 8 | J8: 8 | K8: 8 | L8: 8 | M8: 18 | N8: 12 | O8: 18 | P8: 14 | Z8: 8 | AA8: 8 | AB8: 8 | AC8: 8 | AD8: 8 | AE8: 8 | AF8: 8 | AG8: 8 | AH8: 8 | AI8: 8 | AJ8: 8 | AK8: 8 | AL8: 8 | AM8: 8 | AN8: 8 | AO8: 8 | AP8: 8 | AQ8: 8 | AR8: 8 | AS8: 8 | AT8: 8 | AU8: 8 | AV8: 8 | AW8: 8 | AX8: 8 | AY8: 8 | AZ8: 8 | BA8: 8 | BB8: 8 | BC8: 8 | BD8: 8 | BE8: 8 | BF8: 8 | BG8: 8 | BH8: 8 | BI8: 8 | BJ8: 8 | BK8: 8 | BL8: 10 | BM8: 12 | BN8: 12 | BO8: 12 | BP8: 12 | BQ8: 12 | BR8: 12 | BS8: 12 | BT8: 12 | BU8: 12 | BV8: 6 | BW8: 6 | BX8: 6 | BY8: 6 | BZ8: 8 | CA8: 6 | CB8: 6 | CC8: 8 | CD8: 6 | CE8: 8 | CF8: 8 | CG8: 6 | CH8: 8 | CI8: 6 | CJ8: 6 | CK8: 6 | CL8: 6 | CM8: 6 | CN8: 6 | CO8: 6 | CP8: 8 | CQ8: 6 | CR8: 6 | CS8: 6 | CT8: 6 | CU8: 6 | CV8: 6 | CW8: 6 | CX8: 6 | CY8: 6 | CZ8: 6 | DA8: 6 | DB8: 6 | DC8: 6 | DD8: 8 | DE8: 8 | DF8: 8 | DG8: 8 | DH8: 8 | DI8: 8 | DJ8: 8 | DK8: 8 | DL8: 8 | DM8: 8 | DN8: 9 | DO8: 9 | DP8: 12 | DQ8: 12 | DR8: 12 | DS8: 12
B9: Standard Top Thickness | C9: Lid | D9: Inch | G9: 6 | H9: 8 | I9: 8 | J9: 8 | K9: 10 | L9: 12 | M9: 12 | N9: 12 | O9: 12 | P9: 12 | Z9: 8 | AA9: 8 | AB9: 8 | AC9: 8 | AD9: 8 | AE9: 8 | AF9: 8 | AG9: 8 | AH9: 8 | AI9: 8 | AJ9: 8 | AK9: 8 | AL9: 8 | AM9: 8 | AN9: 8 | AO9: 8 | AP9: 8 | AQ9: 8 | AR9: 8 | AS9: 8 | AT9: 8 | AU9: 8 | AV9: 8 | AW9: 8 | AX9: 8 | AY9: 8 | AZ9: 8 | BA9: 8 | BB9: 8 | BC9: 8 | BD9: 8 | BE9: 8 | BF9: 8 | BG9: 8 | BH9: 8 | BI9: 8 | BJ9: 8 | BK9: 8 | BL9: 12 | BM9: 8 | BN9: 8 | BO9: 8 | BP9: 8 | BQ9: 8 | BR9: 8 | BS9: 8 | BT9: 8 | BU9: 8 | BV9: 6 | BW9: 6 | BX9: 6 | BY9: 6 | BZ9: 6 | CA9: 6 | CB9: 6 | CC9: 6 | CD9: 6 | CE9: 6 | CF9: 6 | CG9: 6 | CH9: 6 | CI9: 6 | CJ9: 6 | CK9: 6 | CL9: 6 | CM9: 6 | CN9: 6 | CO9: 6 | CP9: 6 | CQ9: 6 | CR9: 6 | CS9: 6 | CT9: 6 | CU9: 6 | CV9: 6 | CW9: 6 | CX9: 6 | CY9: 6 | CZ9: 8 | DA9: 8 | DB9: 8 | DC9: 10 | DD9: 8 | DE9: 10 | DF9: 10 | DG9: 10 | DH9: 10 | DI9: 10 | DJ9: 10 | DK9: 10 | DL9: 10 | DM9: 10 | DN9: 9 | DO9: 9 | DP9: 9 | DQ9: 9 | DR9: 9 | DS9: 9
B10: Standard Wall Thickness | C10: Walls | D10: Inch | G10: 4 | H10: 5 | I10: 6 | J10: 6.5 | K10: 7 | L10: 8 | M10: 9 | N10: 10 | O10: 11 | P10: 12 | Z10: 8 | AA10: 8 | AB10: 8 | AC10: 8 | AD10: 8 | AE10: 8 | AF10: 8 | AG10: 8 | AH10: 8 | AI10: 8 | AJ10: 8 | AK10: 8 | AL10: 8 | AM10: 8 | AN10: 8 | AO10: 8 | AP10: 8 | AQ10: 8 | AR10: 8 | AS10: 8 | AT10: 8 | AU10: 8 | AV10: 8 | AW10: 8 | AX10: 8 | AY10: 8 | AZ10: 8 | BA10: 8 | BB10: 8 | BC10: 8 | BD10: 8 | BE10: 8 | BF10: 8 | BG10: 8 | BH10: 8 | BI10: 8 | BJ10: 8 | BK10: 8 | BL10: 10 | BM10: 8 | BN10: 8 | BO10: 8 | BP10: 8 | BQ10: 8 | BR10: 8 | BS10: 8 | BT10: 8 | BU10: 8 | BV10: 6 | BW10: 6 | BX10: 6 | BY10: 6 | BZ10: 6 | CA10: 6 | CB10: 6 | CC10: 6 | CD10: 6 | CE10: 6 | CF10: 6 | CG10: 6 | CH10: 6 | CI10: 6 | CJ10: 6 | CK10: 6 | CL10: 6 | CM10: 6 | CN10: 6 | CO10: 6 | CP10: 6 | CQ10: 6 | CR10: 6 | CS10: 6 | CT10: 6 | CU10: 6 | CV10: 6 | CW10: 6 | CX10: 6 | CY10: 6 | CZ10: 6 | DA10: 6 | DB10: 6 | DC10: 6 | DD10: 8 | DE10: 8 | DF10: 8 | DG10: 8 | DH10: 8 | DI10: 8 | DJ10: 9 | DK10: 8 | DL10: 8 | DM10: 8 | DN10: 9 | DO10: 9 | DP10: 9 | DQ10: 9 | DR10: 9 | DS10: 9
B11: Outside Perimter | C11: Perimeter (Feet) | D11: Feet | G11: 11.51 | H11: 15.19 | I11: 18.86 | J11: 20.67 | K11: 22.52 | L11: 26.17 | M11: 29.86 | N11: 33.49 | O11: 37.19 | P11: 44 | Q11: 11.51 | R11: 15.19 | S11: 18.86 | T11: 20.67 | U11: 22.52 | V11: 29.86 | W11: 33.49 | X11: 37.19 | Y11: 44 | DT11: 15.19 | DU11: 15.19 | DV11: 15.19 | DW11: 15.19 | DX11: 18.86 | DY11: 22.52 | DZ11: 13.33 | EA11: 13.33 | EB11: 14.33 | EC11: 15.33 | ED11: 17.33 | EE11: 21.33 | EF11: 10 | EG11: 12 | EH11: 14 | EI11: 14
B12: Stack-It Structure Size Translation | C12: Stack-It Structure Size Translation | D12: Size | G12: 36" 4W 6F | H12: 48" 5W 6F | I12: 60" 6W 8F | J12: 66" 6.5W 8F | K12: 72" 7W 8F | L12: 84" 8W 8F | M12: 96" 9W 8F | N12: 108" 10W 12F | O12: 120" 11W 12F | P12: 144" 13W 12F | Z12: 24" x 24" 8W 8F | AA12: 15" x 27" 8W 8F | AB12: 18" x 30" 8W 8F | AC12: 24" x 30" 8W 8F | AD12: 18" x 36" 8W 8F | AE12: 24" x 36" 8W 8F | AF12: 32" x 32" 8W 8F | AG12: 36" x 36" 8W 8F | AH12: 24" x 40" 8W 8F | AI12: 24" x 48" 8W 8F | AJ12: 36" x 48" 8W 8F | AK12: 48" x 48" 8W 8F | AL12: 24" x 54" 8W 8F | AM12: 30" x 54" 8W 8F | AN12: 36" x 54" 8W 8F | AO12: 48" x 54" 8W 8F | AP12: 54" x 54" 8W 8F | AQ12: 16" x 60" 8W 8F | AR12: 24" x 60" 8W 8F | AS12: 30" x 60" 8W 8F | AT12: 36" x 60" 8W 8F | AU12: 48" x 60" 8W 8F | AV12: 54" x 60" 8W 8F | AW12: 60" x 60" 8W 8F | AX12: 24" x 72" 8W 8F | AY12: 48" x 72" 8W 8F | AZ12: 60" x 72" 8W 8F | BA12: 72" x 72" 8W 8F | BB12: 36" x 84" 8W 8F | BC12: 84" x 84" 8W 8F | BD12: 30" x 96" 8W 8F | BE12: 36" x 96" 8W 8F | BF12: 48" x 96" 8W 8F | BG12: 72" x 96" 8W 8F | BH12: 96" x 96" 8W 8F | BI12: 24" x 120" 8W 8F | BJ12: 36" x 120" 8W 8F | BK12: 48" x 120" 8W 8F | BL12: 108" x 108" 10W 10F | BM12: 48" x 48" 8W 12F | BN12: 48" x 54" 8W 12F | BO12: 48" x 60" 8W 12F | BP12: 48" x 66" 8W 12F | BQ12: 48" x 72" 8W 12F | BR12: 72" x 72" 8W 12F | BS12: 48" x 90" 8W 12F | BT12: 48" x 96" 8W 12F | BU12: 48" x 108" 8W 12F | BV12: 18" x 18" 6W 6F | BW12: 24" x 24" 6W 6F | BX12: 28" x 28" 6W 6F | BY12: 30" x 30" 6W 6F | BZ12: 30" x 30" 6W 8F | CA12: 18" x 36" 6W 6F | CB12: 24" x 36" 6W 6F | CC12: 24" x 36" 6W 8F | CD12: 36" x 36" 6W 6F | CE12: 24" x 46" 6W 8F | CF12: 30" x 46" 6W 8F | CG12: 24" x 48" 6W 6F | CH12: 30" x 48" 6W 8F | CI12: 36" x 48" 6W 6F | CJ12: 48" x 48" 6W 6F | CK12: 27" x 57" 6W 6F | CL12: 30" x 60" 6W 6F | CM12: 36" x 60" 6W 6F | CN12: 48" x 60" 6W 6F | CO12: 60" x 60" 6W 6F | CP12: 15" x 61" 6W 8F | CQ12: 28" x 64" 6W 6F | CR12: 32" x 64" 6W 6F | CS12: 24" x 72" 6W 6F | CT12: 36" x 72" 6W 6F | CU12: 48" x 72" 6W 6F | CV12: 60" x 72" 6W 6F | CW12: 72" x 72" 6W 6F | CX12: 28" x 97" 6W 6F | CY12: 28" x 98" 6W 6F | CZ12: 72" x 96" 6W 6F | DA12: 60" x 120" 6W 6F | DB12: 72" x 144" 6W 6F | DC12: 36" x 96" 6W 6F | DD12: 26" x 32" 8W 8F | DE12: 32" x 32" 8W 8F | DF12: 36" x 48" 8W 8F | DG12: 48" x 48" 8W 8F | DH12: 62" x 62" 8W 8F | DI12: 32" x 80" 8W 8F | DJ12: 84" x 84" 9W 8F | DK12: 36" x 96" 8W 8F | DL12: 48" x 96" 8W 8F | DM12: 62" x 96" 8W 8F | DN12: 24" x 40" 9W 9F | DO12: 24" x 87" 9W 9F | DP12: 72" x 57" 9W 12F | DQ12: 72" x 78" 9W 12F | DR12: 72" x 106" 9W 12F | DS12: 72" x 134" 9W 12F
B13: Structure Type | C13: Structure Type | E13: Flat Wall | F13: Flat Wall | G13: Round | H13: Round | I13: Round | J13: Round | K13: Round | L13: Round | M13: Round | N13: Round | O13: Round | P13: Round | Q13: Round | R13: Round | S13: Round | T13: Round | U13: Round | V13: Round | W13: Round | X13: Round | Y13: Round | Z13: Flat Wall | AA13: Flat Wall | AB13: Flat Wall | AC13: Flat Wall | AD13: Flat Wall | AE13: Flat Wall | AF13: Flat Wall | AG13: Flat Wall | AH13: Flat Wall | AI13: Flat Wall | AJ13: Flat Wall | AK13: Flat Wall | AL13: Flat Wall | AM13: Flat Wall | AN13: Flat Wall | AO13: Flat Wall | AP13: Flat Wall | AQ13: Flat Wall | AR13: Flat Wall | AS13: Flat Wall | AT13: Flat Wall | AU13: Flat Wall | AV13: Flat Wall | AW13: Flat Wall | AX13: Flat Wall | AY13: Flat Wall | AZ13: Flat Wall | BA13: Flat Wall | BB13: Flat Wall | BC13: Flat Wall | BD13: Flat Wall | BE13: Flat Wall | BF13: Flat Wall | BG13: Flat Wall | BH13: Flat Wall | BI13: Flat Wall | BJ13: Flat Wall | BK13: Flat Wall | BL13: Flat Wall | BM13: Flat Wall | BN13: Flat Wall | BO13: Flat Wall | BP13: Flat Wall | BQ13: Flat Wall | BR13: Flat Wall | BS13: Flat Wall | BT13: Flat Wall | BU13: Flat Wall | BV13: Flat Wall | BW13: Flat Wall | BX13: Flat Wall | BY13: Flat Wall | BZ13: Flat Wall | CA13: Flat Wall | CB13: Flat Wall | CC13: Flat Wall | CD13: Flat Wall | CE13: Flat Wall | CF13: Flat Wall | CG13: Flat Wall | CH13: Flat Wall | CI13: Flat Wall | CJ13: Flat Wall | CK13: Flat Wall | CL13: Flat Wall | CM13: Flat Wall | CN13: Flat Wall | CO13: Flat Wall | CP13: Flat Wall | CQ13: Flat Wall | CR13: Flat Wall | CS13: Flat Wall | CT13: Flat Wall | CU13: Flat Wall | CV13: Flat Wall | CW13: Flat Wall | CX13: Flat Wall | CY13: Flat Wall | CZ13: Flat Wall | DA13: Flat Wall | DB13: Flat Wall | DC13: Flat Wall | DD13: Flat Wall | DE13: Flat Wall | DF13: Flat Wall | DG13: Flat Wall | DH13: Flat Wall | DI13: Flat Wall | DJ13: Flat Wall | DK13: Flat Wall | DL13: Flat Wall | DM13: Flat Wall | DN13: Flat Wall | DO13: Flat Wall | DP13: Flat Wall | DQ13: Flat Wall | DR13: Flat Wall | DS13: Flat Wall | DT13: Round Knockout | DU13: Round Knockout | DV13: Round Knockout | DW13: Round Knockout | DX13: Round Knockout | DY13: Round Knockout | DZ13: FW Knockout | EA13: FW Knockout | EB13: FW Knockout | EC13: FW Knockout | ED13: FW Knockout | EE13: FW Knockout | EF13: FW Knockout | EG13: FW Knockout | EH13: FW Knockout | EI13: FW Knockout
B14: Top Slab Default | C14: Top/Trans Slab Required | D14: Yes/No | E14: Yes Top | F14: Yes Top | G14: Yes Top | H14: Yes Top | I14: Yes Top | J14: Yes Top | K14: Yes Top | L14: Yes Top | M14: Yes Top | N14: Yes Top | O14: Yes Top | P14: Yes Top | Q14: No Top | R14: No Top | S14: No Top | T14: No Top | U14: No Top | V14: No Top | W14: No Top | X14: No Top | Y14: No Top | Z14: No Top | AA14: No Top | AB14: No Top | AC14: No Top | AD14: No Top | AE14: No Top | AF14: No Top | AG14: No Top | AH14: No Top | AI14: No Top | AJ14: No Top | AK14: Yes Top | AL14: Yes Top | AM14: Yes Top | AN14: Yes Top | AO14: Yes Top | AP14: Yes Top | AQ14: No Top | AR14: Yes Top | AS14: Yes Top | AT14: Yes Top | AU14: Yes Top | AV14: Yes Top | AW14: Yes Top | AX14: Yes Top | AY14: Yes Top | AZ14: Yes Top | BA14: Yes Top | BB14: Yes Top | BC14: Yes Top | BD14: Yes Top | BE14: Yes Top | BF14: Yes Top | BG14: Yes Top | BH14: Yes Top | BI14: Yes Top | BJ14: Yes Top | BK14: Yes Top | BL14: Yes Top | BM14: Yes Top | BN14: Yes Top | BO14: Yes Top | BP14: Yes Top | BQ14: Yes Top | BR14: Yes Top | BS14: Yes Top | BT14: Yes Top | BU14: Yes Top | BV14: No Top | BW14: No Top | BX14: No Top | BY14: No Top | BZ14: No Top | CA14: No Top | CB14: No Top | CC14: No Top | CD14: No Top | CE14: No Top | CF14: No Top | CG14: No Top | CH14: No Top | CI14: No Top | CJ14: No Top | CK14: No Top | CL14: No Top | CM14: No Top | CN14: No Top | CO14: No Top | CP14: No Top | CQ14: No Top | CR14: No Top | CS14: No Top | CT14: No Top | CU14: No Top | CV14: No Top | CW14: No Top | CX14: No Top | CY14: No Top | CZ14: Yes Top | DA14: Yes Top | DB14: Yes Top | DC14: Yes Top | DD14: No Top | DE14: Yes Top | DF14: Yes Top | DG14: Yes Top | DH14: Yes Top | DI14: No Top | DJ14: Yes Top | DK14: Yes Top | DL14: Yes Top | DM14: Yes Top | DN14: No Top | DO14: No Top | DP14: Yes Top | DQ14: Yes Top | DR14: Yes Top | DS14: Yes Top | DT14: Yes Top | DU14: Yes Top | DV14: Yes Top | DW14: Yes Top | DX14: Yes Top | DY14: Yes Top | DZ14: No Top | EA14: No Top | EB14: No Top | EC14: No Top | ED14: No Top | EE14: Yes Top | EF14: No Top | EG14: No Top | EH14: No Top | EI14: No Top
B15: Base Price Inside Height | C15: Base Price Depth | D15: Feet | Z15: 3 | AA15: 2 | AB15: 2 | AC15: 3 | AD15: 2 | AE15: 3 | AF15: 3 | AG15: 3 | AH15: 3 | AI15: 2.5 | AJ15: 3 | AK15: 3 | AL15: 3 | AM15: 3 | AN15: 3 | AO15: 3 | AP15: 3 | AQ15: 3 | AR15: 3 | AS15: 3 | AT15: 3 | AU15: 3 | AV15: 4 | AW15: 4 | AX15: 3 | AY15: 4 | AZ15: 4 | BA15: 4 | BB15: 4 | BC15: 4 | BD15: 4 | BE15: 4 | BF15: 4 | BG15: 4 | BH15: 4 | BI15: 3 | BJ15: 4 | BK15: 4 | BL15: 4 | BM15: 4 | BN15: 4.75 | BO15: 5 | BP15: 5.5 | BQ15: 6 | BR15: 6 | BS15: 7.5 | BT15: 7.5 | BU15: 8 | BV15: 2 | BW15: 2.5 | BX15: 4 | BY15: 4 | BZ15: 4 | CA15: 2.5 | CB15: 4 | CC15: 3 | CD15: 3 | CE15: 3 | CF15: 4 | CG15: 3 | CH15: 3 | CI15: 3 | CJ15: 3 | CK15: 3 | CL15: 4 | CM15: 4 | CN15: 4 | CO15: 4 | CP15: 3 | CQ15: 4 | CR15: 3 | CS15: 4 | CT15: 4 | CU15: 4 | CV15: 4 | CW15: 4 | CX15: 4 | CY15: 4 | CZ15: 4 | DA15: 4 | DB15: 4 | DC15: 4 | DD15: 3 | DE15: 3 | DF15: 3 | DG15: 3 | DH15: 4 | DI15: 3.25 | DJ15: 4 | DK15: 4 | DL15: 4 | DM15: 4 | DN15: 2 | DO15: 2.33 | DP15: 4 | DQ15: 5.75 | DR15: 8.1 | DS15: 10.42
B16: Flat Wall Base Price | C16: Flat Wall Base | D16: Dollar | Z16: 661 | AA16: 667 | AB16: 751 | AC16: 733 | AD16: 831 | AE16: 804 | AF16: 921 | AG16: 921 | AH16: 1293 | AI16: 1270 | AJ16: 1072 | AK16: 1182 | AL16: 1550 | AM16: 1688 | AN16: 1827 | AO16: 2103 | AP16: 2241 | AQ16: 1467 | AR16: 1659 | AS16: 1804 | AT16: 1947 | AU16: 2235 | AV16: 2884 | AW16: 3052 | AX16: 1502 | AY16: 3029 | AZ16: 3386 | BA16: 3743 | BB16: 2959 | BC16: 4483 | BD16: 3044 | BE16: 3246 | BF16: 3651 | BG16: 4461 | BH16: 5269 | BI16: 2748 | BJ16: 3822 | BK16: 4273 | BL16: 7908 | BM16: 2739 | BN16: 3269 | BO16: 3595 | BP16: 4056 | BQ16: 4543 | BR16: 5616 | BS16: 6142 | BT16: 6409 | BU16: 6778 | BV16: 445 | BW16: 510 | BX16: 790 | BY16: 813 | BZ16: 991 | CA16: 656 | CB16: 690 | CC16: 840 | CD16: 1255 | CE16: 1232 | CF16: 1137 | CG16: 1192 | CH16: 1369 | CI16: 1460 | CJ16: 1609 | CK16: 1167 | CL16: 1818 | CM16: 1960 | CN16: 2246 | CO16: 2532 | CP16: 1010 | CQ16: 1266 | CR16: 1351 | CS16: 1629 | CT16: 1890 | CU16: 2153 | CV16: 2415 | CW16: 2678 | CX16: 1824 | CY16: 1824 | CZ16: 3321 | DA16: 3510 | DB16: 4509 | DC16: 2310 | DD16: 921 | DE16: 921 | DF16: 1072 | DG16: 1182 | DH16: 3164 | DI16: 2364 | DJ16: 4941 | DK16: 3246 | DL16: 3651 | DM16: 4122 | DN16: 1162 | DO16: 2119 | DP16: 4213 | DQ16: 6326 | DR16: 9658 | DS16: 13537
B17: Flat Wall Concrete Lid Adder | C17: Flat Wall Lid Adder | D17: Dollar | Z17: 170 | AA17: 217 | AB17: 253 | AC17: 196 | AD17: 287 | AE17: 221 | AF17: 275 | AG17: 275 | AH17: 364 | AI17: 415 | AJ17: 339 | AK17: 398 | AL17: 455 | AM17: 524 | AN17: 591 | AO17: 726 | AP17: 792 | AQ17: 396 | AR17: 494 | AS17: 567 | AT17: 640 | AU17: 790 | AV17: 864 | AW17: 936 | AX17: 456 | AY17: 914 | AZ17: 1087 | BA17: 1106 | BB17: 844 | BC17: 1623 | BD17: 837 | BE17: 947 | BF17: 1164 | BG17: 1600 | BH17: 2035 | BI17: 884 | BJ17: 1148 | BK17: 1413 | BL17: 3758 | BM17: 465 | BN17: 726 | BO17: 789 | BP17: 847 | BQ17: 914 | BR17: 1258 | BS17: 1101 | BT17: 1260 | BU17: 1447 | BV17: 142 | BW17: 153 | BX17: 176 | BY17: 187 | BZ17: 187 | CA17: 173 | CB17: 156 | CC17: 156 | CD17: 375 | CE17: 298 | CF17: 317 | CG17: 290 | CH17: 354 | CI17: 462 | CJ17: 543 | CK17: 327 | CL17: 488 | CM17: 553 | CN17: 683 | CO17: 812 | CP17: 239 | CQ17: 335 | CR17: 406 | CS17: 369 | CT17: 490 | CU17: 613 | CV17: 735 | CW17: 858 | CX17: 455 | CY17: 455 | CZ17: 0 | DA17: 0 | DB17: 0 | DC17: 1166 | DD17: 275 | DE17: 330 | DF17: 407 | DG17: 478 | DH17: 1356 | DI17: 1495 | DJ17: 2999 | DK17: 1136 | DL17: 1397 | DM17: 2513 | DN17: 444 | DO17: 804 | DP17: 1231 | DQ17: 1575 | DR17: 2034 | DS17: 2494
B18: Plain Concrete VF Adder Rate | C18: VF Adder Rate | D18: Dollar | G18: 74 | H18: 102 | I18: 167 | J18: 239 | K18: 255 | L18: 404 | M18: 472 | N18: 699 | O18: 776 | P18: 1079 | Z18: 164 | AA18: 225 | AB18: 249 | AC18: 179 | AD18: 272 | AE18: 194 | AF18: 215 | AG18: 215 | AH18: 313 | AI18: 342 | AJ18: 244 | AK18: 261 | AL18: 365 | AM18: 388 | AN18: 413 | AO18: 459 | AP18: 483 | AQ18: 357 | AR18: 413 | AS18: 425 | AT18: 434 | AU18: 459 | AV18: 505 | AW18: 530 | AX18: 349 | AY18: 530 | AZ18: 576 | BA18: 621 | BB18: 530 | BC18: 716 | BD18: 552 | BE18: 576 | BF18: 622 | BG18: 717 | BH18: 810 | BI18: 593 | BJ18: 670 | BK18: 716 | BL18: 1148 | BM18: 305 | BN18: 459 | BO18: 483 | BP18: 505 | BQ18: 530 | BR18: 622 | BS18: 600 | BT18: 623 | BU18: 669 | BV18: 120 | BW18: 125 | BX18: 159 | BY18: 162 | BZ18: 162 | CA18: 192 | CB18: 138 | CC18: 138 | CD18: 293 | CE18: 280 | CF18: 165 | CG18: 273 | CH18: 307 | CI18: 333 | CJ18: 356 | CK18: 280 | CL18: 348 | CM18: 368 | CN18: 409 | CO18: 450 | CP18: 257 | CQ18: 243 | CR18: 315 | CS18: 318 | CT18: 328 | CU18: 385 | CV18: 420 | CW18: 455 | CX18: 343 | CY18: 343 | CZ18: 405 | DA18: 432 | DB18: 513 | DC18: 420 | DD18: 215 | DE18: 215 | DF18: 244 | DG18: 261 | DH18: 546 | DI18: 497 | DJ18: 814 | DK18: 576 | DL18: 622 | DM18: 676 | DN18: 358 | DO18: 564 | DP18: 643 | DQ18: 735 | DR18: 857 | DS18: 980
B19: Flat Wall Base Slab Deduct | C19: Base Slab Deduct | D19: Dollar | Z19: 128 | AA19: 217 | AB19: 253 | AC19: 147 | AD19: 287 | AE19: 166 | AF19: 207 | AG19: 207 | AH19: 364 | AI19: 415 | AJ19: 254 | AK19: 299 | AL19: 455 | AM19: 524 | AN19: 591 | AO19: 726 | AP19: 792 | AQ19: 396 | AR19: 494 | AS19: 567 | AT19: 640 | AU19: 790 | AV19: 864 | AW19: 936 | AX19: 456 | AY19: 914 | AZ19: 1087 | BA19: 1106 | BB19: 844 | BC19: 1623 | BD19: 837 | BE19: 947 | BF19: 1164 | BG19: 1600 | BH19: 2035 | BI19: 884 | BJ19: 1148 | BK19: 1413 | BL19: 3132 | BM19: 996 | BN19: 1089 | BO19: 1182 | BP19: 1276 | BQ19: 1370 | BR19: 1882 | BS19: 1650 | BT19: 1882 | BU19: 1929 | BV19: 106 | BW19: 115 | BX19: 132 | BY19: 141 | BZ19: 165 | CA19: 173 | CB19: 117 | CC19: 160 | CD19: 283 | CE19: 298 | CF19: 213 | CG19: 290 | CH19: 471 | CI19: 347 | CJ19: 408 | CK19: 327 | CL19: 488 | CM19: 553 | CN19: 683 | CO19: 812 | CP19: 239 | CQ19: 251 | CR19: 406 | CS19: 369 | CT19: 490 | CU19: 613 | CV19: 735 | CW19: 858 | CX19: 455 | CY19: 455 | CZ19: 638 | DA19: 668 | DB19: 921 | DC19: 630 | DD19: 207 | DE19: 207 | DF19: 254 | DG19: 299 | DH19: 985 | DI19: 1246 | DJ19: 2499 | DK19: 947 | DL19: 1164 | DM19: 2094 | DN19: 444 | DO19: 804 | DP19: 1641 | DQ19: 2100 | DR19: 2713 | DS19: 3325
B20: KO Base Price | C20: KO Base Price | D20: Dollar | DT20: 480 | DU20: 480 | DV20: 550 | DW20: 550 | DX20: 1155 | DY20: 1870 | DZ20: 597 | EA20: 597 | EB20: 733 | EC20: 804 | ED20: 1171 | EE20: 1574 | EF20: 445 | EG20: 573 | EH20: 690 | EI20: 813
B21: KO Base Weight | C21: KO Base Weight | D21: LBS | DT21: 2600 | DU21: 2425 | DV21: 3095 | DW21: 2925 | DX21: 6300 | DY21: 9350 | DZ21: 3200 | EA21: 2588 | EB21: 3025 | EC21: 3342 | ED21: 4357 | EE21: 6500 | EF21: 1170 | EG21: 1735 | EH21: 2550 | EI21: 2565
B22: KO Base Inside Height | C22: KO Base Height Inches | D22: Inches | DT22: 24 | DU22: 24 | DV22: 36 | DW22: 36 | DX22: 54 | DY22: 60 | DZ22: 36 | EA22: 30 | EB22: 36 | EC22: 36 | ED22: 42 | EE22: 54 | EF22: 24 | EG22: 30 | EH22: 42 | EI22: 42
B23: KO Base Product ID | C23: KO Base Product ID | D23: Product ID | DT23: Input Here | DU23: Input Here | DV23: Input Here | DW23: Input Here | DX23: Input Here | DY23: Input Here | DZ23: Input Here | EA23: Input Here | EB23: Input Here | EC23: Input Here | ED23: Input Here | EE23: Input Here | EF23: Input Here | EG23: Input Here | EH23: Input Here | EI23: Input Here
B24: KO Concrete Lid Adder | C24: KO Lid Price | D24: Dollar | DT24: 257 | DU24: 257 | DV24: 257 | DW24: 257 | DX24: 396 | DY24: 706 | DZ24: 170 | EA24: 170 | EB24: 196 | EC24: 221 | ED24: 275 | EE24: 398 | EF24: 142 | EG24: 153 | EH24: 156 | EI24: 187
B25: KO Lid Weight | C25: KO Lid Weight | D25: LBS | DT25: 1545 | DU25: 1545 | DV25: 1545 | DW25: 1545 | DX25: 2710 | DY25: 4935 | DZ25: 1112 | EA25: 1112 | EB25: 1279 | EC25: 1446 | ED25: 1880 | EE25: 2847 | EF25: 804 | EG25: 1112 | EH25: 1446 | EI25: 1471
B26: KO Lid Height | C26: KO Lid Height Inches | D26: Inch | DT26: 12 | DU26: 12 | DV26: 12 | DW26: 12 | DX26: 13 | DY26: 15 | DZ26: 8 | EA26: 8 | EB26: 8 | EC26: 8 | ED26: 8 | EE26: 8 | EF26: 6 | EG26: 6 | EH26: 6 | EI26: 6
B27: Lid for KO Structure (18"x18" Opening) | C27: 18x18 | D27: Product ID | DT27: Input Here | DU27: Input Here | DV27: Input Here | DW27: Input Here | DX27: Input Here | DY27: Input Here | DZ27: Input Here | EA27: Input Here | EF27: Not Available
B28: Lid for KO Structure (18"x36" Opening) | C28: 18x36 | D28: Product ID | DT28: Input Here | DU28: Input Here | DV28: Input Here | DW28: Input Here | DX28: Input Here | DY28: Input Here | DZ28: Not Available | EA28: Not Available | EB28: Not Available | EF28: Not Available | EG28: Not Available | EI28: Not Available
B29: Lid for KO Structure (24"x24" Opening) | C29: 24x24 | D29: Product ID | DT29: Input Here | DU29: Input Here | DV29: Input Here | DW29: Input Here | DX29: Input Here | DY29: Input Here | DZ29: Not Available | EA29: Not Available | EF29: Not Available | EG29: Not Available
B30: Lid for KO Structure (24"x30" Opening) | C30: 24x30 | D30: Product ID | DT30: Input Here | DU30: Input Here | DV30: Input Here | DW30: Input Here | DX30: Input Here | DY30: Input Here | DZ30: Not Available | EA30: Not Available | EB30: Not Available | EF30: Not Available | EG30: Not Available
B31: Lid for KO Structure (24"x36" Opening) | C31: 24x36 | D31: Product ID | DT31: Input Here | DU31: Input Here | DV31: Input Here | DW31: Input Here | DX31: Input Here | DY31: Input Here | DZ31: Not Available | EA31: Not Available | EB31: Not Available | EC31: Not Available | EF31: Not Available | EG31: Not Available | EH31: Not Available | EI31: Not Available
B32: Lid for KO Structure (30"x30" Opening) | C32: 30x30 | D32: Product ID | DT32: Input Here | DU32: Input Here | DV32: Input Here | DW32: Input Here | DX32: Input Here | DY32: Input Here | DZ32: Not Available | EA32: Not Available | EB32: Not Available | EC32: Not Available | EF32: Not Available | EG32: Not Available | EH32: Not Available | EI32: Not Available
B33: Lid for KO Structure (33"x33" Opening) | C33: 33x33 | D33: Product ID | DT33: Input Here | DU33: Input Here | DV33: Input Here | DW33: Input Here | DX33: Not Available | DY33: Not Available | DZ33: Not Available | EA33: Not Available | EB33: Not Available | EC33: Not Available | ED33: Not Available | EE33: Not Available | EF33: Not Available | EG33: Not Available | EH33: Not Available | EI33: Not Available
B34: Lid for KO Structure (36"x36" Opening) | C34: 36x36 | D34: Product ID | DT34: Not Available | DU34: Not Available | DV34: Not Available | DW34: Not Available | DX34: Input Here | DY34: Input Here | DZ34: Not Available | EA34: Not Available | EB34: Not Available | EC34: Not Available | ED34: Not Available | EF34: Not Available | EG34: Not Available | EH34: Not Available | EI34: Not Available
B35: Lid for KO Structure (48"x48" Opening) | C35: 48x48 | D35: Product ID | DT35: Not Available | DU35: Not Available | DV35: Not Available | DW35: Not Available | DX35: Not Available | DY35: Input Here | DZ35: Not Available | EA35: Not Available | EB35: Not Available | EC35: Not Available | ED35: Not Available | EE35: Not Available | EF35: Not Available | EG35: Not Available | EH35: Not Available | EI35: Not Available
B36: Lid for KO Structure (24" Dia. Opening) | C36: 24 Dia | D36: Product ID | DT36: Input Here | DU36: Input Here | DV36: Input Here | DW36: Input Here | DX36: Input Here | DY36: Input Here | DZ36: Input Here | EA36: Input Here | EF36: Not Available
B37: Lid for KO Structure (30" Dia. Opening) | C37: 30 Dia | D37: Product ID | DT37: Input Here | DU37: Input Here | DV37: Input Here | DW37: Input Here | DX37: Input Here | DY37: Input Here | DZ37: Not Available | EA37: Not Available | EB37: Not Available | EC37: Not Available | EF37: Not Available | EG37: Not Available | EH37: Not Available
B38: Lid for KO Structure (36" Dia. Opening) | C38: 36 Dia | D38: Product ID | DT38: Input Here | DU38: Input Here | DV38: Input Here | DW38: Input Here | DX38: Input Here | DY38: Input Here | DZ38: Not Available | EA38: Not Available | EB38: Not Available | EC38: Not Available | EF38: Not Available | EG38: Not Available | EH38: Not Available | EI38: Not Available
B39: Lid for KO Structure (48" Dia. Opening) | C39: 48 Dia | D39: Product ID | DT39: Not Available | DU39: Not Available | DV39: Not Available | DW39: Not Available | DX39: Input Here | DY39: Input Here | DZ39: Not Available | EA39: Not Available | EB39: Not Available | EC39: Not Available | ED39: Not Available | EF39: Not Available | EG39: Not Available | EH39: Not Available
B40: 12" Plain Riser Price | C40: KO Riser Price | D40: Dollar | DT40: 102 | DU40: 102 | DV40: 102 | DW40: 102 | DX40: 167 | DY40: 255 | DZ40: 164 | EA40: 164 | EB40: 179 | EC40: 194 | ED40: 215 | EE40: 261 | EF40: 120 | EG40: 125 | EH40: 138 | EI40: 162
B41: 12" Plain Riser Weight | C41: KO Riser Weight | D41: LBS | DT41: 867 | DU41: 867 | DV41: 867 | DW41: 867 | DX41: 1300 | DY41: 1810 | DZ41: 1068 | EA41: 1068 | EB41: 1170 | EC41: 1268 | ED41: 1475 | EE41: 1877 | EF41: 600 | EG41: 750 | EH41: 900 | EI41: 900
B42: 12" Plain Riser Product ID | C42: Riser Product ID | D42: Product ID | DT42: Input Riser Here | DU42: Input Riser Here | DV42: Input Riser Here | DW42: Input Riser Here | DX42: Input Riser Here | DY42: Input Riser Here | DZ42: Input Riser Here | EA42: Input Riser Here | EB42: Input Riser Here | EC42: Input Riser Here | ED42: Input Riser Here | EE42: Input Riser Here | EF42: Input Riser Here | EG42: Input Riser Here | EH42: Input Riser Here | EI42: Input Riser Here
B43: 24" Plain Riser Price | C43: KO Riser Price | D43: Dollar | DT43: 204 | DU43: 204 | DV43: 204 | DW43: 204 | DX43: 334 | DY43: 510 | DZ43: 328 | EA43: 328 | EB43: 358 | EC43: 388 | ED43: 430 | EE43: 522 | EF43: 240 | EG43: 250 | EH43: 276 | EI43: 324
B44: 24" Plain Riser Weight | C44: KO Riser Weight | D44: LBS | DT44: 1734 | DU44: 1734 | DV44: 1734 | DW44: 1734 | DX44: 2600 | DY44: 3620 | DZ44: 2135 | EA44: 2135 | EB44: 2340 | EC44: 2535 | ED44: 2950 | EE44: 3754 | EF44: 1200 | EG44: 1500 | EH44: 1800 | EI44: 1800
B45: 24" Plain Riser Product ID | C45: Riser Product ID | D45: Product ID | DT45: Input Riser Here | DU45: Input Riser Here | DV45: Input Riser Here | DW45: Input Riser Here | DX45: Input Riser Here | DY45: Input Riser Here | DZ45: Input Riser Here | EA45: Input Riser Here | EB45: Input Riser Here | EC45: Input Riser Here | ED45: Input Riser Here | EE45: Input Riser Here | EF45: Input Riser Here | EG45: Input Riser Here | EH45: Input Riser Here | EI45: Input Riser Here
B46: 36" Plain Riser Price | C46: KO Riser Price | D46: Dollar | DT46: 306 | DU46: 306 | DV46: 306 | DW46: 306 | DX46: 501 | DY46: 765
B47: 36" Plain Riser Weight | C47: KO Riser Weight | D47: LBS | DT47: 2601 | DU47: 2601 | DV47: 2601 | DW47: 2601 | DX47: 3900 | DY47: 5430
B48: 36" Plain Riser Product ID | C48: Riser Product ID | D48: Product ID | DT48: Input Riser Here | DU48: Input Riser Here | DV48: Input Riser Here | DW48: Input Riser Here | DX48: Input Riser Here | DY48: Input Riser Here
B49: 48" Plain Riser Price | C49: KO Riser Price | D49: Dollar | DT49: 408 | DU49: 408 | DV49: 408 | DW49: 408 | DX49: 668 | DY49: 1020
B50: 48" Plain Riser Weight | C50: KO Riser Weight | D50: LBS | DT50: 3468 | DU50: 3468 | DV50: 3468 | DW50: 3468 | DX50: 5200 | DY50: 7194
B51: 48" Plain Riser Product ID | C51: Riser Product ID | D51: Product ID | DT51: Input Riser Here | DU51: Input Riser Here | DV51: Input Riser Here | DW51: Input Riser Here | DX51: Input Riser Here | DY51: Input Riser Here
B52: 60" Plain Riser Price | C52: KO Riser Price | D52: Dollar | DT52: 510 | DU52: 510 | DV52: 510 | DW52: 510 | DX52: 853 | DY52: 1275
B53: 60" Plain Riser Weight | C53: KO Riser Weight | D53: LBS | DT53: 4335 | DU53: 4335 | DV53: 4335 | DW53: 4335 | DX53: 6500 | DY53: 8992
B54: 60" Plain Riser Product ID | C54: Riser Product ID | D54: Product ID | DT54: Input Riser Here | DU54: Input Riser Here | DV54: Input Riser Here | DW54: Input Riser Here | DX54: Input Riser Here | DY54: Input Riser Here
B55: 72" Plain Riser Price | C55: KO Riser Price | D55: Dollar | DX55: 1002 | DY55: 1530
B56: 72" Plain Riser Weight | C56: KO Riser Weight | D56: LBS | DX56: 7800 | DY56: 10791
B57: 72" Plain Riser Product ID | C57: Riser Product ID | D57: Product ID | DX57: Input Riser Here | DY57: Input Riser Here
B58: Standard Base Slab Extension | C58: Base Ext | D58: Inch | G58: 7 | H58: 8 | I58: 7 | J58: 10.5 | K58: 8 | L58: 14 | M58: 14 | N58: 8 | O58: 14 | P58: 8 | BM58: 8 | BN58: 8 | BO58: 8 | BP58: 8 | BQ58: 8 | BR58: 8 | BS58: 8 | BT58: 8 | BU58: 8 | DP58: 6 | DQ58: 6 | DR58: 6 | DS58: 6
B59: 2' Plain Base & Top | C59: 2 | D59: Dollar | G59: 438.9 | H59: 626 | I59: 1163 | J59: 1680.6 | K59: 1923 | L59: 3546.2 | M59: 4866 | N59: 7262 | O59: 8115 | P59: 12067
B60: 3' Plain Base & Top | C60: 3 | D60: Dollar | G60: 518.1 | H60: 735 | I60: 1340 | J60: 1932.7 | K60: 2190 | L60: 3961 | M60: 5333 | N60: 7951.3 | O60: 8879 | P60: 13116
B61: 4' Plain Base & Top | C61: 4 | D61: Dollar | G61: 600.1 | H61: 848 | I61: 1525 | J61: 2195.1 | K61: 2469 | L61: 4401.5 | M61: 5838 | N61: 8696.8 | O61: 9706 | P61: 14259
B62: 5' Plain Base & Top | C62: 5 | D62: Dollar | G62: 651.6 | H62: 918 | I62: 1634 | J62: 2350 | K62: 2628 | L62: 4630 | M62: 6067 | N62: 9032.5 | O62: 10076 | P62: 14735
B63: 6' Plain Base & Top | C63: 6 | D63: Dollar | G63: 718.6 | H63: 1010 | I63: 1782 | J63: 2561.3 | K63: 2851 | L63: 4974.1 | M63: 6453 | N63: 9602.7 | O63: 10708 | P63: 15600
B64: 7' Plain Base & Top | C64: 7 | D64: Dollar | G64: 773.5 | H64: 1085 | I64: 1901 | J64: 2729.8 | K64: 3027 | L64: 5238.4 | M64: 6739 | N64: 10023.9 | O64: 11174 | P64: 16225
B65: 8' Plain Base & Top | C65: 8 | D65: Dollar | G65: 831.8 | H65: 1165 | I65: 2030 | J65: 2914 | K65: 3221 | L65: 5538.3 | M65: 7074 | N65: 10517.6 | O65: 11721 | P65: 16971
B66: 9' Plain Base & Top | C66: 9 | D66: Dollar | G66: 876.5 | H66: 1226 | I66: 2126 | J66: 3050.8 | K66: 3363 | L66: 5747.5 | M66: 7296 | N66: 10845.1 | O66: 12083 | P66: 17452
B67: 10' Plain Base & Top | C67: 10 | D67: Dollar | G67: 927.6 | H67: 1296 | I67: 2238 | J67: 3209.7 | K67: 3530 | L67: 6002.6 | M67: 7579 | N67: 11262.2 | O67: 12545 | P67: 18079
B68: Plain VF of Riser | C68: VF Adder Rate | D68: Dollar | G68: 74 | H68: 102 | I68: 167 | J68: 239.1 | K68: 255 | L68: 404.2 | M68: 472 | N68: 699 | O68: 776 | P68: 1079
B69: Plain Base Slab Deduct | C69: Round Base Slab Deduct | D69: Dollar | G69: 139.5 | H69: 202 | I69: 414 | J69: 548.6 | K69: 591 | L69: 1072.7 | M69: 1901 | N69: 2563.9 | O69: 2950 | P69: 4308
B70: Plain Lid Slab | C70: Round Lid Slab Deduct | D70: Dollar | G70: 196.2 | H70: 257 | I70: 396 | J70: 646.7 | K70: 706 | L70: 1319.6 | M70: 1559 | N70: 2101.6 | O70: 2418 | P70: 3539
B71: Standard Plain Base Extension | C71: Base Ext Adder | D71: Dollar | G71: 90.2 | H71: 111 | I71: 202 | J71: 460.7 | K71: 286 | L71: 617.9 | M71: 681 | N71: 750 | O71: 866 | P71: 1025 | BM71: 480 | BN71: 500 | BO71: 520 | BP71: 540 | BQ71: 560 | BR71: 640 | BS71: 621 | BT71: 640 | BU71: 660
B72: 8" Plain Invert | C72: 8 | D72: Dollar | G72: 81 | H72: 120 | I72: 196 | J72: 272.7 | K72: 295
B73: 10" Plain Invert | C73: 10 | D73: Dollar | G73: 96.7 | H73: 143 | I73: 235 | J73: 331.8 | K73: 359
B74: 12" Plain Invert | C74: 12 | D74: Dollar | G74: 109.4 | H74: 162 | I74: 271 | J74: 388.3 | K74: 420
B75: 15" Plain Invert | C75: 15 | D75: Dollar | G75: 125.6 | H75: 186 | I75: 317 | J75: 466 | K75: 504
B76: 18" Plain Invert | C76: 18 | D76: Dollar | G76: 137.1 | H76: 203 | I76: 355 | J76: 535.2 | K76: 579
B77: 24" Plain Invert | C77: 24 | D77: Dollar | G77: n/a | H77: 217 | I77: 406 | J77: 650.8 | K77: 704
B78: 30" Plain Invert | C78: 30 | D78: Dollar | G78: n/a | H78: 203 | I78: 423 | J78: 735.8 | K78: 796
B79: 36" Plain Invert | C79: 36 | D79: Dollar | G79: n/a | H79: n/a | I79: 406 | J79: 788.5 | K79: 853
B80: 42" Plain Invert | C80: 42 | D80: Dollar | G80: n/a | H80: n/a | I80: 355 | J80: 810.7 | K80: 877
B81: 48" Plain Invert | C81: 48 | D81: Dollar | G81: n/a | H81: n/a | I81: n/a | J81: n/a | K81: 867
B82: 2' Xypex Base & Top | C82: 2 | D82: Dollar | G82: 540.5 | H82: 771 | I82: 1409 | J82: 2006.6 | K82: 2296 | L82: 4181 | M82: 5737 | N82: 8467.5 | O82: 9462 | P82: 13938
B83: 3' Xypex Base & Top | C83: 3 | D83: Dollar | G83: 640.8 | H83: 909 | I83: 1572 | J83: 2238.1 | K83: 2536 | L83: 4539.6 | M83: 6112 | N83: 9029.5 | O83: 10083 | P83: 14776
B84: 4' Xypex Base & Top | C84: 4 | D84: Dollar | G84: 743.8 | H84: 1051 | I84: 1857 | J84: 2393.4 | K84: 2692 | L84: 5212.8 | M84: 6914 | N84: 10186 | O84: 11368 | P84: 16538
B85: 5' Xypex Base & Top | C85: 5 | D85: Dollar | G85: 817 | H85: 1151 | I85: 2009 | J85: 2845.4 | K85: 3182 | L85: 5529.7 | M85: 7246 | N85: 10663.1 | O85: 11895 | P85: 17219
B86: 6' Xypex Base & Top | C86: 6 | D86: Dollar | G86: 904.3 | H86: 1271 | I86: 2201 | J86: 3112.9 | K86: 3465 | L86: 5963 | M86: 7736 | N86: 11374.8 | O86: 12684 | P86: 18287
B87: 7' Xypex Base & Top | C87: 7 | D87: Dollar | G87: 980.2 | H87: 1375 | I87: 2362 | J87: 3337.6 | K87: 3701 | L87: 6315.8 | M87: 8125 | N87: 11937.4 | O87: 13307 | P87: 19117
B88: 8' Xypex Base & Top | C88: 8 | D88: Dollar | G88: 1059.6 | H88: 1484 | I88: 2535 | J88: 3579 | K88: 3956 | L88: 6703.3 | M88: 8562 | N88: 12572.5 | O88: 14011 | P88: 20067
B89: 9' Xypex Base & Top | C89: 9 | D89: Dollar | G89: 1125.3 | H89: 1574 | I89: 2674 | J89: 3771.9 | K89: 4158 | L89: 7001.6 | M89: 8888 | N89: 13041.4 | O89: 14530 | P89: 20751
B90: 10' Xypex Base & Top | C90: 10 | D90: Dollar | G90: 1196.6 | H90: 1672 | I90: 2829 | J90: 3987.1 | K90: 4385 | L90: 7345 | M90: 9274 | N90: 13600.8 | O90: 15150 | P90: 21583
B91: Xypex VF of Riser | C91: VF Adder Rate | D91: Dollar | G91: 95.1 | H91: 131 | I91: 211 | J91: 295.4 | K91: 315 | L91: 492.4 | M91: 575 | N91: 840.4 | O91: 933 | P91: 1284
B92: Xypex Base Slab Deduct | C92: Round Base Slab Deduct | D92: Dollar | G92: 171.2 | H92: 248 | I92: 509 | J92: 676.7 | K92: 729 | L92: 1305.8 | M92: 2314 | N92: 3121 | O92: 3591 | P92: 5206
B93: Xypex Lid Slab | C93: Round Lid Slab Deduct | D93: Dollar | G93: 233.6 | H93: 306 | I93: 471 | J93: 769.4 | K93: 840 | L93: 1559.1 | M93: 1842 | N93: 2484 | O93: 2858 | P93: 4154
B94: Xypex Plain Base Extension | C94: Base Ext Adder | D94: Dollar | G94: 113.8 | H94: 140 | I94: 242 | J94: 547.7 | K94: 340 | L94: 735.8 | M94: 811 | N94: 915 | O94: 1025 | P94: 1175
B95: 8" Xypex Invert | C95: 8 | D95: Dollar | G95: 96.6 | H95: 143 | I95: 233 | J95: 324.4 | K95: 351
B96: 10" Xypex Invert | C96: 10 | D96: Dollar | G96: 114.9 | H96: 170 | I96: 280 | J96: 395.6 | K96: 428
B97: 12" Xypex Invert | C97: 12 | D97: Dollar | G97: 130.3 | H97: 193 | I97: 322 | J97: 462.3 | K97: 500
B98: 15" Xypex Invert | C98: 15 | D98: Dollar | G98: 149.9 | H98: 222 | I98: 378 | J98: 553.8 | K98: 599
B99: 18" Xypex Invert | C99: 18 | D99: Dollar | G99: 163.4 | H99: 242 | I99: 423 | J99: 636.9 | K99: 689
B100: 24" Xypex Invert | C100: 24 | D100: Dollar | G100: n/a | H100: 258 | I100: 484 | J100: 774.7 | K100: 838
B101: 30" Xypex Invert | C101: 30 | D101: Dollar | G101: n/a | H101: 242 | I101: 504 | J101: 875.3 | K101: 947
B102: 36" Xypex Invert | C102: 36 | D102: Dollar | G102: n/a | H102: n/a | I102: 484 | J102: 939.2 | K102: 1016
B103: 42" Xypex Invert | C103: 42 | D103: Dollar | G103: n/a | H103: n/a | I103: 423 | J103: 965 | K103: 1044
B104: 48" Xypex Invert | C104: 48 | D104: Dollar | G104: n/a | H104: n/a | I104: n/a | J104: n/a | K104: 1032
B105: 2' Con-Block MIC Base & Top | C105: 2 | D105: Dollar | G105: 632.3 | H105: 902 | I105: 1631 | J105: 2299.4 | K105: 2631 | L105: 4751.6 | M105: 6520 | N105: 9553.8 | O105: 10676 | P105: 15622
B106: 3' Con-Block MIC Base & Top | C106: 3 | D106: Dollar | G106: 751.4 | H106: 1066 | I106: 1890 | J106: 2658.2 | K106: 3012 | L106: 5335.1 | M106: 7183 | N106: 10512.5 | O106: 11739 | P106: 17059
B107: 4' Con-Block MIC Base & Top | C107: 4 | D107: Dollar | G107: 873.3 | H107: 1234 | I107: 2156 | J107: 3028.1 | K107: 3406 | L107: 5943.4 | M107: 7883 | N107: 11526.4 | O107: 12864 | P107: 18590
B108: 5' Con-Block MIC Base & Top | C108: 5 | D108: Dollar | G108: 965.3 | H108: 1360 | I108: 2347 | J108: 3290.7 | K108: 3680 | L108: 6340.2 | M108: 8308 | N108: 12130.6 | O108: 13532 | P108: 19454
B109: 6' Con-Block MIC Base & Top | C109: 6 | D109: Dollar | G109: 1071.5 | H109: 1506 | I109: 2578 | J109: 3608.8 | K109: 4017 | L109: 6852.6 | M109: 8890 | N109: 12970.1 | O109: 14463 | P109: 20706
B110: 7' Con-Block MIC Base & Top | C110: 7 | D110: Dollar | G110: 1166.3 | H110: 1636 | I110: 2778 | J110: 3885 | K110: 4308 | L110: 7285.1 | M110: 9372 | N110: 13659.8 | O110: 15227 | P110: 21719
B111: 8' Con-Block MIC Base & Top | C111: 8 | D111: Dollar | G111: 1264.5 | H111: 1771 | I111: 2990 | J111: 4177 | K111: 4617 | L111: 7752.4 | M111: 9902 | N111: 14422.8 | O111: 16073 | P111: 22853
B112: 9' Con-Block MIC Base & Top | C112: 9 | D112: Dollar | G112: 1349 | H112: 1887 | I112: 3168 | J112: 4420.5 | K112: 4873 | L112: 8130.4 | M112: 10321 | N112: 15018.7 | O112: 16733 | P112: 23721
B113: 10' Con-Block MIC Base & Top | C113: 10 | D113: Dollar | G113: 1439.3 | H113: 2011 | I113: 3361 | J113: 4686.3 | K113: 5154 | L113: 8552.8 | M113: 10799 | N113: 15705.1 | O113: 17494 | P113: 24736
B114: Con-Block MIC VF of Riser | C114: VF Adder Rate | D114: Dollar | G114: 113.9 | H114: 157 | I114: 249 | J114: 347 | K114: 370 | L114: 572 | M114: 668 | N114: 967.4 | O114: 1074 | P114: 1467
B115: Con-Block MIC Base Slab Deduct | C115: Round Base Slab Deduct | D115: Dollar | G115: 199.5 | H115: 289 | I115: 593 | J115: 786.2 | K115: 847 | L115: 1515.7 | M115: 2686 | N115: 3622.5 | O115: 4168 | P115: 6013
B116: Con-Block MIC Lid Slab | C116: Round Lid Slab Deduct | D116: Dollar | G116: 275.6 | H116: 361 | I116: 556 | J116: 907.7 | K116: 991 | L116: 1829.2 | M116: 2161 | N116: 2914.2 | O116: 3353 | P116: 4847
B117: Con-Block MIC Plain Base Extension | C117: Base Ext Adder | D117: Dollar | G117: 134.9 | H117: 166 | I117: 279 | J117: 626.6 | K117: 389 | L117: 841.9 | M117: 928 | N117: 1050 | O117: 1168 | P117: 1311
B118: 8" Con-Block MIC Invert | C118: 8 | D118: Dollar | G118: 114.1 | H118: 169 | I118: 275 | J118: 382.7 | K118: 414
B119: 10" Con-Block MIC Invert | C119: 10 | D119: Dollar | G119: 135.9 | H119: 201 | I119: 330 | J119: 466.8 | K119: 505
B120: 12" Con-Block MIC Invert | C120: 12 | D120: Dollar | G120: 153.9 | H120: 228 | I120: 380 | J120: 545.4 | K120: 590
B121: 15" Con-Block MIC Invert | C121: 15 | D121: Dollar | G121: 176.9 | H121: 262 | I121: 446 | J121: 653.6 | K121: 707
B122: 18" Con-Block MIC Invert | C122: 18 | D122: Dollar | G122: 192.4 | H122: 285 | I122: 499 | J122: 751.5 | K122: 813
B123: 24" Con-Block MIC Invert | C123: 24 | D123: Dollar | G123: n/a | H123: 304 | I123: 571 | J123: 914.3 | K123: 989
B124: 30" Con-Block MIC Invert | C124: 30 | D124: Dollar | G124: n/a | H124: 285 | I124: 594 | J124: 1033.4 | K124: 1118
B125: 36" Con-Block MIC Invert | C125: 36 | D125: Dollar | G125: n/a | H125: n/a | I125: 571 | J125: 1107.4 | K125: 1198
B126: 42" Con-Block MIC Invert | C126: 42 | D126: Dollar | G126: n/a | H126: n/a | I126: 499 | J126: 1138.8 | K126: 1232
B127: 48" Con-Block MIC Invert | C127: 48 | D127: Dollar | G127: n/a | H127: n/a | I127: n/a | J127: n/a | K127: 1217
B128: 2' Con-Block MIC + Xypex Base & Top | C128: 2 | D128: Dollar | G128: 734.7 | H128: 1048 | I128: 1877 | J128: 2625.3 | K128: 3004 | L128: 5386.3 | M128: 7391 | N128: 10760.2 | O128: 12024 | P128: 17493
B129: 3' Con-Block MIC + Xypex Base & Top | C129: 3 | D129: Dollar | G129: 874.8 | H129: 1241 | I129: 2121 | J129: 2964.4 | K129: 3359 | L129: 5913.7 | M129: 7962 | N129: 11590.7 | O129: 12943 | P129: 18719
B130: 4' Con-Block MIC + Xypex Base & Top | C130: 4 | D130: Dollar | G130: 1016.9 | H130: 1437 | I130: 2488 | J130: 3467.3 | K130: 3900 | L130: 6755.3 | M130: 8960 | N130: 13015.6 | O130: 14526 | P130: 20869
B131: 5' Con-Block MIC + Xypex Base & Top | C131: 5 | D131: Dollar | G131: 1130 | H131: 1592 | I131: 2723 | J131: 3786.1 | K131: 4234 | L131: 7239.9 | M131: 9487 | N131: 13762.1 | O131: 15352 | P131: 21937
B132: 6' Con-Block MIC + Xypex Base & Top | C132: 6 | D132: Dollar | G132: 1257.2 | H132: 1767 | I132: 2996 | J132: 4160.4 | K132: 4631 | L132: 7841.5 | M132: 10173 | N132: 14742.2 | O132: 16439 | P132: 23393
B133: 7' Con-Block MIC + Xypex Base & Top | C133: 7 | D133: Dollar | G133: 1373 | H133: 1926 | I133: 3240 | J133: 4492.8 | K133: 4982 | L133: 8362.4 | M133: 10758 | N133: 15574.1 | O133: 17361 | P133: 24610
B134: 8' Con-Block MIC + Xypex Base & Top | C134: 8 | D134: Dollar | G134: 1492.2 | H134: 2090 | I134: 3495 | J134: 4841 | K134: 5351 | L134: 8918.1 | M134: 11391 | N134: 16478.5 | O134: 18364 | P134: 25948
B135: 9' Con-Block MIC + Xypex Base & Top | C135: 9 | D135: Dollar | G135: 1597.8 | H135: 2235 | I135: 3716 | J135: 5141.7 | K135: 5668 | L135: 9383.7 | M135: 11912 | N135: 17215.9 | O135: 19181 | P135: 27021
B136: 10' Con-Block MIC + Xypex Base & Top | C136: 10 | D136: Dollar | G136: 1709.1 | H136: 2388 | I136: 3953 | J136: 5463.7 | K136: 6009 | L136: 9895.3 | M136: 12494 | N136: 18043.7 | O136: 20099 | P136: 28240
B137: Con-Block MIC + Xypex VF of Riser | C137: VF Adder Rate | D137: Dollar | G137: 134.9 | H137: 186 | I137: 293 | J137: 403.2 | K137: 430 | L137: 660.2 | M137: 771 | N137: 1108.8 | O137: 1231 | P137: 1671
B138: Con-Block MIC + Xypex Base Slab Deduct | C138: Round Base Slab Deduct | D138: Dollar | G138: 231.3 | H138: 335 | I138: 668 | J138: 910.6 | K138: 981 | L138: 1749.3 | M138: 3100 | N138: 4179.6 | O138: 4809 | P138: 6911
B139: Con-Block MIC + Xypex Lid Slab | C139: Round Lid Slab Deduct | D139: Dollar | G139: 313 | H139: 410 | I139: 631 | J139: 1031.3 | K139: 1126 | L139: 2068.7 | M139: 2444 | N139: 3295.7 | O139: 3792 | P139: 5462
B140: Con-Block MIC + Xypex Plain Base Ext. | C140: Base Ext Adder | D140: Dollar | G140: 158.5 | H140: 195 | I140: 319 | J140: 715.2 | K140: 444 | L140: 959.9 | M140: 1058 | N140: 1200 | O140: 1327 | P140: 1461
B141: 8" Con-Block MIC + Xypex Invert | C141: 8 | D141: Dollar | G141: 129.6 | H141: 192 | I141: 312 | J141: 434.4 | K141: 470
B142: 10" Con-Block MIC + Xypex Invert | C142: 10 | D142: Dollar | G142: 154.1 | H142: 228 | I142: 375 | J142: 529.6 | K142: 573
B143: 12" Con-Block MIC + Xypex Invert | C143: 12 | D143: Dollar | G143: 174.8 | H143: 259 | I143: 432 | J143: 619.4 | K143: 670
B144: 15" Con-Block MIC + Xypex Invert | C144: 15 | D144: Dollar | G144: 200.5 | H144: 297 | I144: 506 | J144: 742.4 | K144: 803
B145: 18" Con-Block MIC + Xypex Invert | C145: 18 | D145: Dollar | G145: 218.7 | H145: 324 | I145: 567 | J145: 853.2 | K145: 923
B146: 24" Con-Block MIC + Xypex Invert | C146: 24 | D146: Dollar | G146: n/a | H146: 346 | I146: 648 | J146: 1038.2 | K146: 1123
B147: 30" Con-Block MIC + Xypex Invert | C147: 30 | D147: Dollar | G147: n/a | H147: 324 | I147: 675 | J147: 1172.9 | K147: 1269
B148: 36" Con-Block MIC + Xypex Invert | C148: 36 | D148: Dollar | G148: n/a | H148: n/a | I148: 648 | J148: 1258 | K148: 1361
B149: 42" Con-Block MIC + Xypex Invert | C149: 42 | D149: Dollar | G149: n/a | H149: n/a | I149: 567 | J149: 1293.1 | K149: 1399
B150: 48" Con-Block MIC + Xypex Invert | C150: 48 | D150: Dollar | G150: n/a | H150: n/a | I150: n/a | J150: n/a | K150: 1382
B154: Table 2 - Transition Structures
B156: Description | C156: Cell | D156: Unit
B157: Structure Size | C157: Reference | E157: Yes Top | F157: No Top | G157: Trans 48"R W/Top | H157: Trans 60"R W/Top | I157: Trans 24"x24" Riser | J157: Trans 24"x24" W/Top | K157: Trans 24"x30" Riser | L157: Trans 24"x30" W/Top | M157: Trans 24"x36" Riser | N157: Trans 24"x36" W/Top | O157: Trans 36"x36" Riser | P157: Trans 36"x36" W/Top
B158: Structure Diamater | C158: Dia (inches) | D158: Inch | G158: 48 | H158: 60
B159: Structure Width | C159: Width (inches) | D159: Inch | I159: 24 | J159: 24 | K159: 24 | L159: 24 | M159: 24 | N159: 24 | O159: 36 | P159: 36
B160: Structure Length | C160: Length (inches) | D160: Inch | I160: 24 | J160: 24 | K160: 30 | L160: 30 | M160: 36 | N160: 36 | O160: 36 | P160: 36
B161: Standard Top Thickness | C161: Lid | D161: Inch | G161: 8 | H161: 8 | J161: 8 | L161: 8 | N161: 8 | P161: 8
B162: Standard Wall Thickness | C162: Walls | D162: Inch | G162: 5 | H162: 6 | I162: 8 | J162: 8 | K162: 8 | L162: 8 | M162: 8 | N162: 8 | O162: 8 | P162: 8
B163: Standard Top Avg. Weight | C163: Top Weight | D163: LBS | G163: 1660 | H163: 2527 | J163: 1120 | L163: 1279 | N163: 1448 | P163: 1866
B164: Standard Riser Avg. VF Weight | C164: Riser VF Weight | D164: LBS | G164: 860 | H164: 1300 | I164: 1070 | J164: 1070 | K164: 1168 | L164: 1168 | M164: 1266 | N164: 1266 | O164: 1458 | P164: 1458
B165: Structure Type | C165: Structure Type | G165: Round | H165: Round | I165: Flat Wall | J165: Flat Wall | K165: Flat Wall | L165: Flat Wall | M165: Flat Wall | N165: Flat Wall | O165: Flat Wall | P165: Flat Wall
B166: Transition Status | C166: Transition Status | E166: Top Slab | F166: No Top | G166: Transition | H166: Transition | I166: Transition | J166: Transition | K166: Transition | L166: Transition | M166: Transition | N166: Transition | O166: Transition | P166: Transition
B167: Pipe Chamber Top or Transition Used? | C167: Pipe Chamber Top Status | E167: Top Slab | F167: No Top | G167: Yes Top | H167: Yes Top | I167: Yes Top | J167: Yes Top | K167: Yes Top | L167: Yes Top | M167: Yes Top | N167: Yes Top | O167: Yes Top | P167: Yes Top
B168: Top Slab Over Transition Riser | C168: Trans. Top | D168: Dollar | G168: 257 | H168: 396 | J168: 170 | L168: 196 | N168: 221 | P168: 275
B169: Plain Concrete VF Adder Rate | C169: Trans. Riser | D169: Dollar | G169: 102 | H169: 167 | I169: 164 | J169: 164 | K169: 179 | L169: 179 | M169: 194 | N169: 194 | O169: 215 | P169: 215
B170: Xypex Top Slab Over Transition Riser | C170: Trans. Top | D170: Dollar | G170: 306 | H170: 471
B171: Xypex Concrete VF Adder Rate | C171: Trans. Riser | D171: Dollar | G171: 131 | H171: 211
B172: MIC Top Slab Over Transition Riser | C172: Trans. Top | D172: Dollar | G172: 361 | H172: 556
B173: MIC Concrete VF Adder Rate | C173: Trans. Riser | D173: Dollar | G173: 157 | H173: 249
B174: MIC+Xypex Top Slab Over Transition Riser | C174: Trans. Top | D174: Dollar | G174: 410 | H174: 631
B175: MIC+Xypex Concrete VF Adder Rate | C175: Trans. Riser | D175: Dollar | G175: 186 | H175: 293
B179: Table 3 - Casting Product Data
C180: Cell | AHD180: Blank Slot 1 Description | AHE180: Blank Slot 2 Description | AHF180: Blank Slot 3 Description | AHG180: Blank Slot 4 Description | AHH180: Blank Slot 5 Description | AHI180: Blank Slot 6 Description | AHJ180: Blank Slot 7 Description | AHK180: Blank Slot 8 Description | AHL180: Blank Slot 9 Description | AHM180: Blank Slot 10 Description
B181: Casting Make & Model | C181: Reference | D181: Unit | E181: No Casting | F181: Halliday Hatch Model | G181: Hatch Model | H181: Trench Drain F/G (Per LF) Model | I181: EJ 1578 F/C Plain | J181: EJ 1578 F/C "Cleanout" | K181: HOE MC-82 F/C Plain | L181: HOE MC-82 F/C Plain (Cast In) | M181: HOE MC-162 F/C Plain | N181: HOE MC-162 F/C Plain (Cast In) | O181: HOE MC-260 F/C Plain | P181: HOE MC-260 F/C "Storm" | Q181: HOE MC-260 F/C "Sanitary" | R181: HOE MC-260 F/C "Grease" | S181: HOE MC-260 F/C "Water" | T181: HOE MC-260 F/Vented Cover | U181: HOE MC-350 F/C Plain | V181: HOE MC-350 F/C "Storm" | W181: HOE MC-350 F/C "Sanitary" | X181: HOE MC-350 F/C "Grease" | Y181: HOE MC-350 F/C "Water" | Z181: HOE MC-350 F/Vented Cover | AA181: HOE MC-350 F/C "LFUCG SAN" | AB181: HOE MC-350 F/C "FSD" | AC181: HOE MC-350-Self Seal F/C | AD181: HOE WT-350-SAN F/C | AE181: HOE WT-350-SAN F/C "LFUCG" | AF181: HOE MC-295 F/C Plain | AG181: HOE MC-295 F/C "Storm" | AH181: HOE MC-295 F/C "Sanitary" | AI181: HOE MC-295 F/C "Grease" | AJ181: HOE MC-295 F/C "Water" | AK181: HOE MC-295 F/C Vented | AL181: HOE MC-295 F/C "iCast Storm" | AM181: HOE MC-295 F/C "iCast Sanitary" | AN181: HOE MC-295 F/C "iCast Grease" | AO181: HOE MC-315 F/C Plain | AP181: HOE MC-315 F/C "Storm" | AQ181: HOE MC-315 F/C "Sanitary" | AR181: HOE MC-315 F/C "Grease" | AS181: HOE MC-315 F/C "Water" | AT181: HOE MC-315 F/C "Oil/Water" | AU181: HOE MC-315 F/Vented Cover | AV181: HOE MC-315 F/C "iCast Storm" | AW181: HOE MC-315 F/C "iCast Sanitary" | AX181: HOE MC-315 F/C "iCast Grease" | AY181: HOE MC-315 F/C "iCast Oil/Water" | AZ181: HOE MC-315 F/C "Henderson Storm" | BA181: HOE MC-315 F/C "Henderson WW" | BB181: HOE MC-315 F/C "RWRA Sanitary" | BC181: HOE MC-315-Self Seal SAN F/C | BD181: HOE WT-315-SAN F/C | BE181: HOE MC-275 F/C Plain | BF181: HOE MC-275 F/C "Storm" | BG181: HOE MC-275 F/C "Sanitary" | BH181: HOE MC-420 F/C Plain | BI181: HOE MC-420 F/C "Storm" | BJ181: HOE MC-420 F/C LOU-MSD "Storm" | BK181: HOE MC-420 F/C "Sanitary" | BL181: HOE MC-420 F/C LOU-MSD "Sanitary" | BM181: HOE MC-420 F/C "Lagrange" | BN181: HOE WT-420 F/C "Sanitary" | BO181: HOE MC-285 F/C Plain | BP181: HOE MC-285 F/C "Storm" | BQ181: HOE MC-285 F/C "Sanitary" | BR181: HOE MC-285 F/C "Water" | BS181: HOE MC-285 F/Vented Cover | BT181: HOE MC-285 F/C "iCast Storm" | BU181: HOE MC-285 F/C "iCast Sanitary" | BV181: HOE MC-285 F/C "iCast Grease" | BW181: HOE MC-375 F/C Plain | BX181: HOE MC-375 F/C "Storm" | BY181: HOE MC-375 F/C "Sanitary" | BZ181: HOE MC-375 F/C "Water" | CA181: HOE MC-375 F/Vented Cover | CB181: HOE MC-375 F/C "BGMU Sanitary" | CC181: HOE MC-375 F/C "Grease" | CD181: HOE MC-375 F/C "Oil/Water" | CE181: HOE MC-375 F/C "Bio Clean" | CF181: HOE MC-375 F/C "iCast Storm" | CG181: HOE MC-375 F/C "iCast Sanitary" | CH181: HOE MC-375 F/C "iCast Grease" | CI181: HOE MC-375 F/C "iCast Oil/Water" | CJ181: HOE MC-375-Self Seal SAN F/C | CK181: HOE WT-375-SAN F/C | CL181: HOE MC-680 F/C Plain | CM181: HOE MC-680 F/C "Electric" | CN181: HOE MC-680 F/C "Communication" | CO181: HOE MC-780 F/C Plain | CP181: HOE MC-780 F/C "Electric" | CQ181: HOE MC-780 F/C "Communication" | CR181: HOE MC-455 F/C Plain | CS181: HOE MC-747 F/C Plain | CT181: HOE MC-900 F/C Plain | CU181: HOE MCS-295-B F/Bar Grt. (Cast In) | CV181: HOE MCS-295 F/C Plain (Cast In) | CW181: HOE MCS-295 F/C "Storm" (Cast In) | CX181: HOE MCS-295 F/C "Sanitary" (Cast In) | CY181: HOE MCS-295 F/C "Water" (Cast In) | CZ181: HOE MCS-295 F/C "Vented" (Cast In) | DA181: HOE MCS-206-B F/Bar Grt. (Cast In) | DB181: HOE MCS-288-B F/Bar Grt. (Cast In) | DC181: HOE MCS-288 F/C Plain (Cast In) | DD181: HOE MCS-288 F/C "Storm" (Cast In) | DE181: HOE MCS-288 F/C "Sanitary" (Cast In) | DF181: HOE MCS-288 F/C "Water" (Cast In) | DG181: HOE MCS-288 F/C Vented (Cast In) | DH181: HOE MCS-288-BH F/6" Beehive Grt. (Cast In) | DI181: HOE MCS-288-BH F/9" Beehive Grt. (Cast In) | DJ181: HOE MCS-290-B F/Bar Grt. (Cast In) | DK181: HOE MCS-290 F/C Plain (Cast In) | DL181: HOE MCS-290 F/C "Storm" (Cast In) | DM181: HOE MCS-290 F/C "Sanitary" (Cast In) | DN181: HOE MCS-290 F/C "Water" (Cast In) | DO181: HOE MCS-290 F/C Vented (Cast In) | DP181: HOE MCS-455-B F/Bar Grt. (Cast In) | DQ181: HOE MCS-455 F/C Plain (Cast In) | DR181: HOE MCS-455 F/C "Sanitary" (Cast In) | DS181: HOE MCS-455 F/C "Water" (Cast In) | DT181: HOE MCS-520 F/Bar Grt. (Cast In) | DU181: HOE MCS-520 F/C Plain (Cast In) | DV181: HOE MCS-747 F/Bar Grt. (Cast In) | DW181: HOE MCS-747 F/C Plain (Cast In) | DX181: HOE MCS-900 /Bar Grt. (Cast In) | DY181: HOE MCS-900 /C Plain (Cast In) | DZ181: HOE MCB-82 F/Bar Grt. | EA181: HOE MCB-82 F/Bar Grt. (Cast In) | EB181: HOE MCB-162 F/Bar Grt. | EC181: HOE MCB-162 F/Bar Grt. (Cast In) | ED181: HOE MCB-260-B F/Bar Grt. | EE181: HOE MCB-260-R F/Radial Grt. | EF181: HOE MCB-260-BH F/7" Beehive Grt. | EG181: HOE MCB-350-B F/Bar Grt. | EH181: HOE MCB-350-R F/Radial Grt. | EI181: HOE MCB-350-BH F/7" Beehive Grate | EJ181: HOE MCB-295-B F/Bar Grt. | EK181: HOE MCB-295-R F/Radial Grt. | EL181: HOE MCB-295-BH F/7" Beehive Grate | EM181: HOE MCB-315-B F/Bar Grt. | EN181: HOE MCB-315-R F/Radial Grt. | EO181: HOE MCB-315-BH F/7" Beehive Grt. | EP181: HOE MCB-275 F/Bar Grt. | EQ181: HOE MCB-420 F/Bar Grt. | ER181: HOE MCB-285-B F/Bar Grt. | ES181: HOE MCB-285-BH F/6" Beehive Grt. | ET181: HOE MCB-375-B F/Bar Grt. | EU181: HOE MCB-375-BH F/6" Beehive Grt. | EV181: HOE MCB-3759-BH F/9" Beehive Grt. | EW181: HOE MCB-520 F/Bar Grt. | EX181: HOE MCB-455 F/Bar Grt. | EY181: HOE MCB-747 F/Bar Grt. | EZ181: HOE MCB-900 F/Bar Grt. | FA181: HOE 165-A F/G | FB181: HOE 280T F/G | FC181: HOE 280T F/G (Cast In) | FD181: HOE 280-BH F/G | FE181: HOE 280-BH F/G (Cast In) | FF181: HOE 280-Solid F/C | FG181: HOE 280-Solid F/C (Cast In) | FH181: HOE 280T ADA F/G | FI181: HOE 280T ADA F/G (Cast In) | FJ181: HOE 320 F/G | FK181: HOE MCS-320 F/G (Cast In) | FL181: HOE 342 F/G | FM181: HOE 342 ADA F/G | FN181: HOE 275-A F/G | FO181: HOE 275 DBL F/G | FP181: HOE-460 F/G | FQ181: HOE 326-BH F/6.25" Beehive Grt. | FR181: HOE 326-BH F/6.25" Beehive Grt. (Cast In) | FS181: HOE 580-A F/G | FT181: HOE 580-LV F/G | FU181: HOE 518 F/G | FV181: HOE 518-DBL F/G | FW181: HOE 468 F/G | FX181: HOE MCS-468 Reversible F/G (Cast In) | FY181: HOE MCS-468 Reversible F/Solid Cover (Cast In) | FZ181: HOE 918 F/G | GA181: HOE 595 F/G | GB181: HOE 598 F/G | GC181: HOE MCS-718 F/G (Cast In) | GD181: HOE-165 Angle F/G (Recessed) | GE181: HOE-165 Angle F/G (Cast In) | GF181: HOE-315 Angle F/G (Recessed) | GG181: HOE-315 Angle F/G (Cast In) | GH181: HOE-555 Angle F/G (Recessed) | GI181: HOE-555 Angle F/G (Cast In) | GJ181: HOE-700 Angle F/G (Recessed) | GK181: HOE-700 Angle F/G (Cast In) | GL181: HOE 465 Set | GM181: HOE 360 Flat Set | GN181: HOE 360 L Vane Set | GO181: HOE 399 Set | GP181: HOE 470 Flat Set | GQ181: HOE 470 L Vane Set | GR181: HOE 525 Flat Set | GS181: HOE 525 L Vane Set | GT181: HOE 525 Vane Set | GU181: HOE 525-DBL Flat Set | GV181: HOE 525-DBL L Vane Set | GW181: HOE 525-Triple Flat Set | GX181: HOE 525-Triple L Vane Set | GY181: HOE-405 Concave F/G | GZ181: HOE-449 Concave F/G | HA181: HOE-410 Roll Curb F/G | HB181: HOE-698 Roll Curb F/G | HC181: EJ 4510 Roll Curb F/G | HD181: HOE KY-206 F/C (KY TY1) | HE181: HOE KY-206 F/C (KY TY1 Cast In) | HF181: HOE KY-510 F/C (KY TY2) | HG181: HOE KY-316 Set (DBI 1) | HH181: HOE KY-398 Set (DBI 2) | HI181: HOE KY-328 Set (DBI 3) | HJ181: HOE KY-410 Set (DBI 4) | HK181: HOE KY-460 Set (DBI 5A) | HL181: HOE KY-460 Set (DBI 5B) | HM181: HOE KY-460 Set (DBI 5C) | HN181: HOE KY-460 Set (DBI 5D) | HO181: HOE KY-460 Set (DBI 5E) | HP181: HOE KY-460 Set (DBI 5F) | HQ181: HOE KY-426 Set (DBI 6A) | HR181: HOE KY-426 Set (DBI 6B) | HS181: HOE KY-426 Set (DBI 6C) | HT181: HOE KY-426 Set (DBI 6D) | HU181: HOE KY-426 Set (DBI 6E) | HV181: HOE KY-426 Set (DBI 6F) | HW181: HOE KY-328 Set (DBI 7 Cast In) | HX181: HOE KY-550 F/G (DBI 10) | HY181: HOE KY-460-11 F/G | HZ181: HOE DBI 12 F/G (Per LF) | IA181: HOE DBI 12A F/G (Per LF) | IB181: HOE KY-230-G F/G (GRADE) | IC181: HOE KY-230-S F/G (SAG) | ID181: HOE KY-210 F/Radial Grt. (DBI 14 Cast In) | IE181: HOE KY-215 F/Beehive Grt. (DBI 15 Cast In) | IF181: HOE KY Single Safety Inlet (2 Grates) | IG181: HOE KY Double Safety Inlet (4 Grates) | IH181: HOE-169G (Bolt-On Plain Grate) | II181: HOE-169G (Bolt-On Galvanized Grate) | IJ181: HOE-199G (Bolt-On Plain Grate) | IK181: HOE-199G (Bolt-On Galvanized Grate) | IL181: HOE-269G (Bolt-On Plain Grate) | IM181: HOE-269G (Bolt-On Galvanized Grate) | IN181: HOE-729G (Bolt-On Plain Grate) | IO181: HOE-729G (Bolt-On Galvanized Grate) | IP181: HOE-1249G (Bolt-On Plain Grate) | IQ181: HOE-1249G (Bolt-On Galvanized Grate) | IR181: HOE-1799G (Bolt-On Plain Grate) | IS181: HOE-1799G (Bolt-On Galvanized Grate) | IT181: HOE KY-161 (12"-18" SBO1) | IU181: HOE KY-300 (24" SBO1) | IV181: HOE KY-272 (12"-18" SFBIO) | IW181: HOE KY-454 (24" SFBIO) | IX181: HOE KY-796 (30" SFBIO) | IY181: HOE KY-1218 (36" SFBIO) | IZ181: HOE KY-298 (SBIO TY1) | JA181: HOE KY-206-SB (SBIO TY2) | JB181: HOE KY-345 Set (MBBI) | JC181: HOE KY-206 F/C (CBI A Cast In) | JD181: HOE KY-345 Set (CBI B) | JE181: HOE KY-465 Set (CBI TY F) | JF181: JRH 1-1/2" X 8" TD Angle F/G (Per LF) | JG181: JRH 1-1/2" X 10" TD Angle F/G (Per LF) | JH181: JRH 1-1/2" X 12" TD Angle F/G (Per LF) | JI181: JRH 1-1/2" X 14" TD Angle F/G (Per LF) | JJ181: JRH 1-1/2" X 14" TD Angle Frame / L Vane Grate (Per LF) | JK181: JRH 1-1/2" X 17" TD Angle F/G (Per LF) | JL181: JRH 1-1/2" X 20" TD Angle F/G (Per LF) | JM181: JRH 1-1/2" X 24" TD Angle F/G (Per LF) | JN181: JRH 1-1/2" X 26" TD Angle F/G (Per LF) | JO181: JRH 1-1/2" X 8" TD Angle F/G ADA (Per LF) | JP181: JRH 1-1/2" X 12" TD Angle F/G ADA (Per LF) | JQ181: JRH 1-1/2" X 14" TD Angle F/G ADA (Per LF) | JR181: JRH 1-1/2" X 24" TD Angle F/G ADA (Per LF) | JS181: JRH 1-1/2" X 26" TD Angle F/G ADA (Per LF) | JT181: JRH 1-1/2" X 8" TD Iron F/G (Per LF) | JU181: JRH 1-1/2" X 10" TD Iron F/G (Per LF) | JV181: JRH 1-1/2" X 12" TD Iron F/G (Per LF) | JW181: JRH 1-1/2" X 14" TD Iron F/G (Per LF) | JX181: JRH 1-1/2" X 14" TD Iron Frame / L Vane Grate (Per LF) | JY181: JRH 1-1/2" X 17" TD Iron F/G (Per LF) | JZ181: JRH 1-1/2" X 20" TD Iron F/G (Per LF) | KA181: JRH 1-1/2" X 24" TD Iron F/G (Per LF) | KB181: JRH 1-1/2" X 26" TD Iron F/G (Per LF) | KC181: JRH 1-1/2" X 8" TD Iron Bolted F/G (Per LF) | KD181: JRH 1-1/2" X 10" TD Iron Bolted F/G (Per LF) | KE181: JRH 1-1/2" X 12" TD Iron Bolted F/G (Per LF) | KF181: JRH 1-1/2" X 14" TD Iron Bolted F/G (Per LF) | KG181: JRH 1-1/2" X 14" TD Iron Bolted Frame / L Vane Grate (Per LF) | KH181: JRH 1-1/2" X 17" TD Iron Bolted F/G (Per LF) | KI181: JRH 1-1/2" X 20" TD Iron Bolted F/G (Per LF) | KJ181: JRH 1-1/2" X 24" TD Iron Bolted F/G (Per LF) | KK181: JRH 1-1/2" X 26" TD Iron Bolted F/G (Per LF) | KL181: JRH 1-1/2" X 8" TD Iron F/G ADA (Per LF) | KM181: JRH 1-1/2" X 12" TD Iron F/G ADA (Per LF) | KN181: JRH 1-1/2" X 14" TD Iron F/G ADA (Per LF) | KO181: JRH 1-1/2" X 24" TD Iron F/G ADA (Per LF) | KP181: JRH 1-1/2" X 26" TD Iron F/G ADA (Per LF) | KQ181: JRH 1-1/2" X 8" TD Iron Bolted F/G ADA (Per LF) | KR181: JRH 1-1/2" X 12" TD Iron Bolted F/G ADA (Per LF) | KS181: JRH 1-1/2" X 14" TD Iron Bolted F/G ADA (Per LF) | KT181: JRH 1-1/2" X 24" TD Iron Bolted F/G ADA (Per LF) | KU181: JRH 1-1/2" X 26" TD Iron Bolted F/G ADA (Per LF) | KV181: INDOT Type 2 F/G Set | KW181: INDOT Type 3 F/C Set | KX181: INDOT Type 4 F/C Set | KY181: INDOT Type 5 F/G Set | KZ181: INDOT Type 5 F/G Dbl Set | LA181: INDOT Type 7 BH Grate | LB181: INDOT Type 8 Casting Set | LC181: INDOT Type 10 Casting Set | LD181: INDOT Type 12A (Single) Casting | LE181: INDOT Type 12 (Double) Casting | LF181: INDOT Type 13 F/G Set | LG181: INDOT Type 14 F/G Set | LH181: INDOT Type 15 Casting Set | LI181: EJ 6500 Grate | LJ181: JBS 1020 F/C "Drain" | LK181: JBS 1020 F/C "Sewer" | LL181: JBS 1045 F/C Plain (Cast In) | LM181: JBS 1065 F/C "Storm" | LN181: JBS 1065 F/C "Storm" (Cast In) | LO181: JBS 1072 F/C Plain | LP181: JBS 1072 F/C Plain (Cast In) | LQ181: JBS 1072 F/C "Storm" | LR181: JBS 1072 F/C "Storm" (Cast In) | LS181: JBS 1072 F/C "Sanitary" | LT181: JBS 1072 F/C "Sanitary" (Cast In) | LU181: JBS 1072 F/C "Grease" | LV181: JBS 1072 F/C "Grease" (Cast In) | LW181: JBS 1077 F/C "KY Storm" | LX181: JBS 1077 F/C "KY Storm" (Cast In) | LY181: JBS 1090 BDWT F/C "MSD Lou" | LZ181: JBS 1090 BDWT F/C "Sanitary" | MA181: JBS 1095 F/C "Lagrange Storm" | MB181: JBS 1095 F/C "Lagrange Sewer" | MC181: JBS 1095 F/C "MSD Lou Storm" | MD181: JBS 1095 F/C "MSD Lou Sewer" | ME181: JBS 1110 F/C "Storm" | MF181: JBS 1110 F/C "Sanitary" | MG181: JBS 1111 F/C "Plain" (Cast In) | MH181: JBS 1111 F/C "Storm" (Cast In) | MI181: JBS 1111 F/C "Sanitary" (Cast In) | MJ181: JBS 1123 WT F/C "Sanitary" | MK181: JBS 1123 Mod. BDWT F/C "KY Storm" | ML181: JBS 1123 Mod. Non WT F/C "KY Storm" | MM181: JBS 1123 Mod. BDWT F/C "KY SAN" | MN181: JBS 1123 Mod. Non WT F/C "KY SAN" | MO181: JBS 1132 F/C "Electric" | MP181: JBS 1132 F/C "Communication" | MQ181: JBS 1140M F/C "Storm" | MR181: JBS 1140M F/C "Sanitary" | MS181: JBS 1140M F/C "Lex. Sanitary" | MT181: JBS 1140M F/C "RWRA SAN" | MU181: JBS 1140M BDWT F/C "Sanitary" | MV181: JBS 1140M BDWT F/C "Lex. Sanitary" | MW181: JBS 1144 F/C "Storm" | MX181: JBS 1144 F/C "Sanitary" | MY181: JBS 1150 F/C Plain | MZ181: JBS 1150 F/C "Storm" | NA181: JBS 1150 F/C "Sanitary" | NB181: JBS 1150 BDWT F/C "Sanitary" | NC181: JBS 1152M F/C "BGMU" | ND181: JBS 1154 F/C "Storm" | NE181: JBS 1154 F/C "Storm" (Cast In) | NF181: JBS 1154 F/C "Sanitary" | NG181: JBS 1154 F/C "Sanitary" (Cast In) | NH181: JBS 1155 F/C Plain | NI181: JBS 1155 F/C "Storm" | NJ181: JBS 1155 F/C "Sanitary" | NK181: JBS 1155 BDWT F/C "Sanitary" | NL181: JBS 1220 F/C Plain | NM181: JBS 1220 F/C Plain (Cast In) | NN181: JBS 1220 F/C "Electric" | NO181: JBS 1220 F/C "Electric" (Cast In) | NP181: JBS 1225 F/C Plain | NQ181: JBS 1225 F/C Plain (Cast In) | NR181: JBS 1247DM F/C "Storm" | NS181: JBS 1247DM F/C "Sanitary" | NT181: JBS 1247DM Self-Seal F/C "Sanitary" | NU181: JBS 1247DM Self-Seal F/C "Gtown" | NV181: JBS 1247DM BDWT F/C "Sanitary" | NW181: JBS 2020 F/G | NX181: JBS 2072 F/G | NY181: JBS 2072 F/G (Cast In) | NZ181: JBS 2110 F/G | OA181: JBS 2111 F/G (Cast In) | OB181: JBS 2140 F/G | OC181: JBS 2150 F/G | OD181: JBS 2214 F/G (Cast In) | OE181: JBS 2215 F/G (Cast In) | OF181: JBS 2220 F/G | OG181: JBS 2220 F/G (Cast In) | OH181: JBS 2225 F/G | OI181: JBS 2225 F/G (Cast In) | OJ181: JBS 2230 F/G | OK181: JBS 2230 F/G (Cast In) | OL181: JBS 2272 Beehive F/G | OM181: JBS 2272 Beehive F/G (Cast In) | ON181: JBS 2280 Beehive F/G | OO181: JBS 3061 F/G (Cast In) | OP181: JBS 3062 F/G (Cast In) | OQ181: JBS 3070N F/G | OR181: JBS 3080 Set | OS181: JBS 3080 Vane Set | OT181: JBS 3080 Double Set | OU181: JBS 3080 Double Vane Set | OV181: JBS 3080 Triple Set | OW181: JBS 3080 Triple Vane Set | OX181: JBS 3085 Set | OY181: JBS 3101 Single Set | OZ181: JBS 3101 Vane Single Set | PA181: JBS 3101 Double Set | PB181: JBS 3101-V Vane Double Set | PC181: JBS 3101 Triple Set | PD181: JBS 3101-V Vane Triple Set | PE181: JBS 3103 Single Set | PF181: JBS 3103-V Vane Single Set | PG181: JBS 3103 Double Set | PH181: JBS 3103-V Vane Double Set | PI181: JBS 3103 Triple Set | PJ181: JBS 3103-V Vane Triple Set | PK181: JBS 3104 Single Set | PL181: JBS 3104-V Vane Single Set | PM181: JBS 3104 Double Set | PN181: JBS 3104-V Vane Double Set | PO181: JBS 3104 Triple Set | PP181: JBS 3104-V Vane Triple Set | PQ181: JBS 3105-V Set | PR181: JBS 3106 Set Reg. Grate | PS181: JBS 3106-V Set | PT181: JBS 3123 Single Set | PU181: JBS 3123 Mod. Single Set | PV181: JBS 3123 Mod. Double Set | PW181: JBS 3123-13 Single Set | PX181: JBS 3123-32 Single Set | PY181: JBS 3123-32 Double Set | PZ181: JBS 3123-41 Single Set | QA181: JBS 3123-41 Double Set | QB181: JBS 3123-41 Quad Set | QC181: JBS 3126 Roll Curb F/G | QD181: JBS 3157 Flat Set | QE181: JBS 3157-V Set | QF181: JBS 3158 Flat Set | QG181: JBS 3158-V Set | QH181: JBS 3223-V (TDOT #10LPC) | QI181: JBS 3300 Single Set | QJ181: JBS 3300-V Vane Single Set | QK181: JBS 3300 Double Set | QL181: JBS 3300-V Vane Double Set | QM181: JBS 3300 Triple Set | QN181: JBS 3300-V Vane Triple Set | QO181: JBS 3305 Roll Curb F/G | QP181: JBS 3305MOD Roll Curb F/G | QQ181: JBS 3411 F/G | QR181: JBS 3413 F/G (Cast In) | QS181: JBS 3450 F/G | QT181: JBS 3700 F/G (Cast In) | QU181: JBS 4012 F/G | QV181: JBS 4073 F/G | QW181: JBS 4073 F/G (Cast In) | QX181: JBS 4074 F/G | QY181: JBS 4074 F/G (Cast In) | QZ181: JBS 4075 F/G | RA181: JBS 4075 F/G (Cast In) | RB181: JBS 4076X F/G | RC181: JBS 4076X F/G (Cast In) | RD181: JBS 4077 F/G | RE181: JBS 4078 F/G | RF181: JBS 4190 F/G (Cast In) | RG181: JBS 4200 Single Grate | RH181: JBS 4200 Double Grate Set | RI181: JBS 4200 Quad Grate Set | RJ181: JBS 4220 F/G | RK181: JBS 4250 F/G | RL181: JBS 4254 F/G | RM181: JBS 4254 F/G (Cast In) | RN181: JBS 4260 F/G | RO181: JBS 4275-Regular F/G | RP181: JBS 4275-Vane F/G | RQ181: JBS 4300 F/G | RR181: JBS 4310 F/G | RS181: JBS 4310 Double F/G Set | RT181: JBS 4315 F/G | RU181: JBS 4315 F/G (Cast In) | RV181: JBS 4315 ADA F/G | RW181: JBS 4315 ADA F/G (Cast In) | RX181: JBS 4330 F/G | RY181: JBS 4475D Grate Only | RZ181: JBS 4480 Beehive F/G | SA181: JBS 5830 F/G (Per LF, Cast In) | SB181: JBS 5830 Bolted F/G (Per LF, Cast In) | SC181: JBS 8006 F/G "Water" | SD181: JBS 8110 F/C "Water Meter" (Cast In) | SE181: JBS 8121 F/C "Water Meter" (Cast In) | SF181: JBS 8122 F/C "Water Meter" (Cast In) | SG181: JBS 8310 F/C "Plain" | SH181: JBS TDOT Type 38 Grate | SI181: JBS TDOT Type 39 Grate | SJ181: JBS TDOT Type 40 Grate | SK181: JBS 30" TDOT 3:1 "U" Cross Drain EW Grate | SL181: JBS 30" TDOT 4:1 "U" Cross Drain EW Grate | SM181: JBS 30" TDOT 6:1 "U" Cross Drain EW Grate | SN181: JBS 36" TDOT 3:1 "U" Cross Drain EW Grate | SO181: JBS 36" TDOT 4:1 "U" Cross Drain EW Grate | SP181: JBS 36" TDOT 6:1 "U" Cross Drain EW Grate | SQ181: JBS 42" TDOT 3:1 "U" Cross Drain EW Grate | SR181: JBS 42" TDOT 4:1 "U" Cross Drain EW Grate | SS181: JBS 42" TDOT 6:1 "U" Cross Drain EW Grate | ST181: JBS 48" TDOT 3:1 "U" Cross Drain EW Grate | SU181: JBS 48" TDOT 4:1 "U" Cross Drain EW Grate | SV181: JBS 48" TDOT 6:1 "U" Cross Drain EW Grate | SW181: JBS 15" TDOT 6:1 Safety Side Drain EW (2 Grate Set) | SX181: JBS 18" TDOT 6:1 Safety Side Drain EW (3 Grate Set) | SY181: JBS 24" TDOT 6:1 Safety Side Drain EW (3 Grate Set) | SZ181: JBS 30" TDOT 6:1 Safety Side Drain EW (4 Grate Set) | TA181: JBS 36" TDOT 6:1 Safety Side Drain EW (5 Grate Set) | TB181: JBS 42" TDOT 6:1 Safety Side Drain EW (6 Grate Set) | TC181: JBS 48" TDOT 6:1 Safety Side Drain EW (7 Grate Set) | TD181: JBS 18" TDOT 12:1 Safety Side Drain EW Grate Set | TE181: LSQ-24-P Plain Trash Rack | TF181: LSQ-24-G Galvanized Trash Rack | TG181: LSQ-24-AL Aluminum Trash Rack | TH181: LSQ-36-P Plain Trash Rack | TI181: LSQ-36-G Galvanized Trash Rack | TJ181: LSQ-36-AL Aluminum Trash Rack | TK181: LSQ-3648-P Plain Trash Rack | TL181: LSQ-3648-G Galvanized Trash Rack | TM181: LSQ-3648-AL Aluminum Trash Rack | TN181: LSQ-48-P Plain Trash Rack | TO181: LSQ-48-G Galvanized Trash Rack | TP181: LSQ-48-AL Aluminum Trash Rack | TQ181: LSQ-60-P Plain Trash Rack | TR181: LSQ-60-G Galvanized Trash Rack | TS181: LSQ-60-AL Aluminum Trash Rack | TT181: LSQ-72-P Plain Trash Rack | TU181: LSQ-72-G Galvanized Trash Rack | TV181: LSQ-72-AL Aluminum Trash Rack | TW181: LDR-36-P Plain Trash Rack | TX181: LDR-36-G Galvanized Trash Rack | TY181: LDR-36-AL Aluminum Trash Rack | TZ181: LDR-48-P Plain Trash Rack | UA181: LDR-48-G Galvanized Trash Rack | UB181: LDR-48-AL Aluminum Trash Rack | UC181: LDR-60-P Plain Trash Rack | UD181: LDR-60-G Galvanized Trash Rack | UE181: LDR-60-AL Aluminum Trash Rack | UF181: LDR-72-P Plain Trash Rack | UG181: LDR-72-G Galvanized Trash Rack | UH181: LDR-72-AL Aluminum Trash Rack | UI181: LFG-36-P Plain Flat Grate | UJ181: LFG-36-G Galvanized Flat Grate | UK181: LFG-36-AL Aluminum Flat Grate | UL181: LFG-3648-P Plain Flat Grate | UM181: LFG-3648-G Galvanized Flat Grate | UN181: LFG-3648-AL Aluminum Flat Grate | UO181: LFG-48-P Plain Flat Grate | UP181: LFG-48-G Galvanized Flat Grate | UQ181: LFG-48-AL Aluminum Flat Grate | UR181: LFG-60-P Plain Flat Grate | US181: LFG-60-G Galvanized Flat Grate | UT181: LFG-60-AL Aluminum Flat Grate | UU181: LFG-72-P Plain Flat Grate | UV181: LFG-72-G Galvanized Flat Grate | UW181: LFG-72-AL Aluminum Flat Grate | UX181: LFS-36-P Plain Flush Grate | UY181: LFS-36-G Galvanized Flush Grate | UZ181: LFS-36-AL Aluminum Flush Grate | VA181: LFS-48-P Plain Flush Grate | VB181: LFS-48-G Galvanized Flush Grate | VC181: LFS-48-AL Aluminum Flush Grate | VD181: LFS-60-P Plain Flush Grate | VE181: LFS-60-G Galvanized Flush Grate | VF181: LFS-60-AL Aluminum Flush Grate | VG181: LFS-72-P Plain Flush Grate | VH181: LFS-72-G Galvanized Flush Grate | VI181: LFS-72-AL Aluminum Flush Grate | VJ181: LFR-36-P Plain Flush Grate | VK181: LFR-36-G Galvanized Flush Grate | VL181: LFR-36-AL Aluminum Flush Grate | VM181: LFR-48-P Plain Flush Grate | VN181: LFR-48-G Galvanized Flush Grate | VO181: LFR-48-AL Aluminum Flush Grate | VP181: LFR-60-P Plain Flush Grate | VQ181: LFR-60-G Galvanized Flush Grate | VR181: LFR-60-AL Aluminum Flush Grate | VS181: LFR-72-P Plain Flush Grate | VT181: LFR-72-G Galvanized Flush Grate | VU181: LFR-72-AL Aluminum Flush Grate | VV181: Halla 12" FES Trash Guard | VW181: Halla 15" FES Trash Guard | VX181: Halla 18" FES Trash Guard | VY181: Halla 24" FES Trash Guard | VZ181: Halla 30" FES Trash Guard | WA181: Halla 36" FES Trash Guard | WB181: Halliday Products S1R 24in X 24in Hatch | WC181: Halliday Products S1R 24in X 30in Hatch | WD181: Halliday Products S1R 24in X 36in Hatch | WE181: Halliday Products S1R 24in X 42in Hatch | WF181: Halliday Products S1R 24in X 48in Hatch | WG181: Halliday Products S1R 29in X 59in Hatch | WH181: Halliday Products S1R 30in X 30in Hatch | WI181: Halliday Products S1R 30in X 36in Hatch | WJ181: Halliday Products S1R 30in X 42in Hatch | WK181: Halliday Products S1R 30in X 48in Hatch | WL181: Halliday Products S1R 30in X 54in Hatch | WM181: Halliday Products S1R 30in X 60in Hatch | WN181: Halliday Products S1R 36in X 36in Hatch | WO181: Halliday Products S1R 36in X 42in Hatch | WP181: Halliday Products S1R 36in X 48in Hatch | WQ181: Halliday Products S1R 36in X 54in Hatch | WR181: Halliday Products S1R 36in X 60in Hatch | WS181: Halliday Products S1R 36in X 66in Hatch | WT181: Halliday Products S1R 36in X 72in Hatch | WU181: Halliday Products S1R 42in X 42in Hatch | WV181: Halliday Products S2R 42in X 42in Hatch | WW181: Halliday Products S2R 44in X 68in Hatch | WX181: Halliday Products S2R 48in X 42in Hatch | WY181: Halliday Products S2R 48in X 48in Hatch | WZ181: Halliday Products S2R 54in X 42in Hatch | XA181: Halliday Products S2R 54in X 48in Hatch | XB181: Halliday Products S2R 54in X 52in Hatch | XC181: Halliday Products S2R 54in X 54in Hatch | XD181: Halliday Products S2R 58in X 58in Hatch | XE181: Halliday Products S2R 60in X 30in Hatch | XF181: Halliday Products S2R 60in X 36in Hatch | XG181: Halliday Products S2R 60in X 42in Hatch | XH181: Halliday Products S2R 60in X 48in Hatch | XI181: Halliday Products S2R 60in X 54in Hatch | XJ181: Halliday Products S2R 60in X 60in Hatch | XK181: Halliday Products S2R 66in X 36in Hatch | XL181: Halliday Products S2R 66in X 42in Hatch | XM181: Halliday Products S2R 66in X 48in Hatch | XN181: Halliday Products S2R 66in X 54in Hatch | XO181: Halliday Products S2R 66in X 60in Hatch | XP181: Halliday Products S2R 66in X 66in Hatch | XQ181: Halliday Products S2R 72in X 36in Hatch | XR181: Halliday Products S2R 72in X 42in Hatch | XS181: Halliday Products S2R 72in X 48in Hatch | XT181: Halliday Products S2R 72in X 54in Hatch | XU181: Halliday Products S2R 72in X 60in Hatch | XV181: Halliday Products S1S 24in X 24in Hatch | XW181: Halliday Products S1S 24in X 30in Hatch | XX181: Halliday Products S1S 24in X 36in Hatch | XY181: Halliday Products S1S 24in X 42in Hatch | XZ181: Halliday Products S1S 24in X 48in Hatch | YA181: Halliday Products S1S 30in X 30in Hatch | YB181: Halliday Products S1S 30in X 36in Hatch | YC181: Halliday Products S1S 30in X 42in Hatch | YD181: Halliday Products S1S 30in X 48in Hatch | YE181: Halliday Products S1S 30in X 54in Hatch | YF181: Halliday Products S1S 30in X 60in Hatch | YG181: Halliday Products S1S 36in X 36in Hatch | YH181: Halliday Products S1S 36in X 42in Hatch | YI181: Halliday Products S1S 36in X 48in Hatch | YJ181: Halliday Products S1S 36in X 54in Hatch | YK181: Halliday Products S1S 36in X 60in Hatch | YL181: Halliday Products S1S 36in X 66in Hatch | YM181: Halliday Products S1S 36in X 72in Hatch | YN181: Halliday Products S1S 42in X 42in Hatch | YO181: Halliday Products S2S 36in X 54in Hatch | YP181: Halliday Products S2S 42in X 42in Hatch | YQ181: Halliday Products S2S 48in X 42in Hatch | YR181: Halliday Products S2S 48in X 48in Hatch | YS181: Halliday Products S2S 54in X 42in Hatch | YT181: Halliday Products S2S 54in X 48in Hatch | YU181: Halliday Products S2S 54in X 54in Hatch | YV181: Halliday Products S2S 60in X 30in Hatch | YW181: Halliday Products S2S 60in X 36in Hatch | YX181: Halliday Products S2S 60in X 42in Hatch | YY181: Halliday Products S2S 60in X 48in Hatch | YZ181: Halliday Products S2S 60in X 54in Hatch | ZA181: Halliday Products S2S 60in X 60in Hatch | ZB181: Halliday Products S2S 66in X 36in Hatch | ZC181: Halliday Products S2S 66in X 42in Hatch | ZD181: Halliday Products S2S 66in X 48in Hatch | ZE181: Halliday Products S2S 66in X 54in Hatch | ZF181: Halliday Products S2S 66in X 60in Hatch | ZG181: Halliday Products S2S 66in X 66in Hatch | ZH181: Halliday Products S2S 72in X 36in Hatch | ZI181: Halliday Products S2S 72in X 42in Hatch | ZJ181: Halliday Products S2S 72in X 48in Hatch | ZK181: Halliday Products S2S 72in X 54in Hatch | ZL181: Halliday Products S2S 72in X 60in Hatch | ZM181: Halliday Products W1R 24in X 24in Hatch | ZN181: Halliday Products W1R 24in X 30in Hatch | ZO181: Halliday Products W1R 24in X 36in Hatch | ZP181: Halliday Products W1R 24in X 42in Hatch | ZQ181: Halliday Products W1R 24in X 48in Hatch | ZR181: Halliday Products W1R 30in X 30in Hatch | ZS181: Halliday Products W1R 30in X 36in Hatch | ZT181: Halliday Products W1R 30in X 42in Hatch | ZU181: Halliday Products W1R 30in X 48in Hatch | ZV181: Halliday Products W1R 30in X 54in Hatch | ZW181: Halliday Products W1R 30in X 60in Hatch | ZX181: Halliday Products W1R 36in X 36in Hatch | ZY181: Halliday Products W1R 36in X 42in Hatch | ZZ181: Halliday Products W1R 36in X 48in Hatch | AAA181: Halliday Products W1R 36in X 54in Hatch | AAB181: Halliday Products W1R 36in X 60in Hatch | AAC181: Halliday Products W1R 36in X 66in Hatch | AAD181: Halliday Products W1R 36in X 72in Hatch | AAE181: Halliday Products W1R 42in X 42in Hatch | AAF181: Halliday Products W2R 42in X 42in Hatch | AAG181: Halliday Products W2R 48in X 42in Hatch | AAH181: Halliday Products W2R 48in X 48in Hatch | AAI181: Halliday Products W2R 54in X 42in Hatch | AAJ181: Halliday Products W2R 54in X 48in Hatch | AAK181: Halliday Products W2R 54in X 54in Hatch | AAL181: Halliday Products W2R 58in X 34in Hatch | AAM181: Halliday Products W2R 60in X 30in Hatch | AAN181: Halliday Products W2R 60in X 36in Hatch | AAO181: Halliday Products W2R 60in X 42in Hatch | AAP181: Halliday Products W2R 60in X 48in Hatch | AAQ181: Halliday Products W2R 60in X 54in Hatch | AAR181: Halliday Products W2R 60in X 60in Hatch | AAS181: Halliday Products W2R 66in X 36in Hatch | AAT181: Halliday Products W2R 66in X 42in Hatch | AAU181: Halliday Products W2R 66in X 48in Hatch | AAV181: Halliday Products W2R 66in X 54in Hatch | AAW181: Halliday Products W2R 66in X 60in Hatch | AAX181: Halliday Products W2R 66in X 66in Hatch | AAY181: Halliday Products W2R 72in X 36in Hatch | AAZ181: Halliday Products W2R 72in X 42in Hatch | ABA181: Halliday Products W2R 72in X 48in Hatch | ABB181: Halliday Products W2R 72in X 54in Hatch | ABC181: Halliday Products W2R 72in X 60in Hatch | ABD181: Halliday Products W1S 24in X 24in Hatch | ABE181: Halliday Products W1S 24in X 30in Hatch | ABF181: Halliday Products W1S 24in X 36in Hatch | ABG181: Halliday Products W1S 24in X 42in Hatch | ABH181: Halliday Products W1S 24in X 48in Hatch | ABI181: Halliday Products W1S 30in X 30in Hatch | ABJ181: Halliday Products W1S 30in X 36in Hatch | ABK181: Halliday Products W1S 30in X 42in Hatch | ABL181: Halliday Products W1S 30in X 48in Hatch | ABM181: Halliday Products W1S 30in X 54in Hatch | ABN181: Halliday Products W1S 30in X 60in Hatch | ABO181: Halliday Products W1S 36in X 36in Hatch | ABP181: Halliday Products W1S 36in X 42in Hatch | ABQ181: Halliday Products W1S 36in X 48in Hatch | ABR181: Halliday Products W1S 36in X 54in Hatch | ABS181: Halliday Products W1S 36in X 60in Hatch | ABT181: Halliday Products W1S 36in X 66in Hatch | ABU181: Halliday Products W1S 36in X 72in Hatch | ABV181: Halliday Products W1S 36in X 78in Hatch | ABW181: Halliday Products W1S 42in X 42in Hatch | ABX181: Halliday Products W1S 42in X 60in Hatch | ABY181: Halliday Products W1S 60in X 60in Hatch | ABZ181: Halliday Products W2S 42in X 42in Hatch | ACA181: Halliday Products W2S 48in X 42in Hatch | ACB181: Halliday Products W2S 48in X 48in Hatch | ACC181: Halliday Products W2S 54in X 42in Hatch | ACD181: Halliday Products W2S 54in X 48in Hatch | ACE181: Halliday Products W2S 54in X 54in Hatch | ACF181: Halliday Products W2S 60in X 30in Hatch | ACG181: Halliday Products W2S 60in X 36in Hatch | ACH181: Halliday Products W2S 60in X 42in Hatch | ACI181: Halliday Products W2S 60in X 48in Hatch | ACJ181: Halliday Products W2S 60in X 54in Hatch | ACK181: Halliday Products W2S 60in X 60in Hatch | ACL181: Halliday Products W2S 66in X 36in Hatch | ACM181: Halliday Products W2S 66in X 42in Hatch | ACN181: Halliday Products W2S 66in X 48in Hatch | ACO181: Halliday Products W2S 66in X 54in Hatch | ACP181: Halliday Products W2S 66in X 60in Hatch | ACQ181: Halliday Products W2S 66in X 66in Hatch | ACR181: Halliday Products W2S 72in X 36in Hatch | ACS181: Halliday Products W2S 72in X 42in Hatch | ACT181: Halliday Products W2S 72in X 48in Hatch | ACU181: Halliday Products W2S 72in X 54in Hatch | ACV181: Halliday Products W2S 72in X 60in Hatch | ACW181: Halliday Products W2S 78in X 48in Hatch | ACX181: Halliday Products W2S 96in X 72in Hatch | ACY181: Halliday Products W1C 24in X 24in Hatch | ACZ181: Halliday Products W1C 24in X 30in Hatch | ADA181: Halliday Products W1C 24in X 36in Hatch | ADB181: Halliday Products W1C 24in X 42in Hatch | ADC181: Halliday Products W1C 24in X 48in Hatch | ADD181: Halliday Products W1C 30in X 30in Hatch | ADE181: Halliday Products W1C 30in X 36in Hatch | ADF181: Halliday Products W1C 30in X 42in Hatch | ADG181: Halliday Products W1C 30in X 48in Hatch | ADH181: Halliday Products W1C 30in X 54in Hatch | ADI181: Halliday Products W1C 30in X 60in Hatch | ADJ181: Halliday Products W1C 36in X 36in Hatch | ADK181: Halliday Products W1C 36in X 42in Hatch | ADL181: Halliday Products W1C 36in X 48in Hatch | ADM181: Halliday Products W1C 36in X 54in Hatch | ADN181: Halliday Products W1C 36in X 60in Hatch | ADO181: Halliday Products W1C 36in X 66in Hatch | ADP181: Halliday Products W1C 36in X 72in Hatch | ADQ181: Halliday Products W1C 42in X 42in Hatch | ADR181: Halliday Products W2C 42in X 42in Hatch | ADS181: Halliday Products W2C 48in X 42in Hatch | ADT181: Halliday Products W2C 48in X 48in Hatch | ADU181: Halliday Products W2C 54in X 42in Hatch | ADV181: Halliday Products W2C 54in X 48in Hatch | ADW181: Halliday Products W2C 54in X 54in Hatch | ADX181: Halliday Products W2C 60in X 30in Hatch | ADY181: Halliday Products W2C 60in X 36in Hatch | ADZ181: Halliday Products W2C 60in X 42in Hatch | AEA181: Halliday Products W2C 60in X 48in Hatch | AEB181: Halliday Products W2C 60in X 54in Hatch | AEC181: Halliday Products W2C 60in X 60in Hatch | AED181: Halliday Products W2C 66in X 36in Hatch | AEE181: Halliday Products W2C 66in X 42in Hatch | AEF181: Halliday Products W2C 66in X 48in Hatch | AEG181: Halliday Products W2C 66in X 54in Hatch | AEH181: Halliday Products W2C 66in X 60in Hatch | AEI181: Halliday Products W2C 66in X 66in Hatch | AEJ181: Halliday Products W2C 72in X 36in Hatch | AEK181: Halliday Products W2C 72in X 42in Hatch | AEL181: Halliday Products W2C 72in X 48in Hatch | AEM181: Halliday Products W2C 72in X 54in Hatch | AEN181: Halliday Products W2C 72in X 60in Hatch | AEO181: Halliday Products H1R 24in X 24in Hatch | AEP181: Halliday Products H1R 24in X 30in Hatch | AEQ181: Halliday Products H1R 24in X 36in Hatch | AER181: Halliday Products H1R 24in X 42in Hatch | AES181: Halliday Products H1R 24in X 48in Hatch | AET181: Halliday Products H1R 30in X 30in Hatch | AEU181: Halliday Products H1R 30in X 36in Hatch | AEV181: Halliday Products H1R 30in X 42in Hatch | AEW181: Halliday Products H1R 30in X 48in Hatch | AEX181: Halliday Products H1R 36in X 36in Hatch | AEY181: Halliday Products H1R 36in X 42in Hatch | AEZ181: Halliday Products H1R 36in X 48in Hatch | AFA181: Halliday Products H2R 42in X 42in Hatch | AFB181: Halliday Products H2R 48in X 42in Hatch | AFC181: Halliday Products H2R 48in x 48in Hatch | AFD181: Halliday Products H2R 54in X 42in Hatch | AFE181: Halliday Products H2R 54in X 48in Hatch | AFF181: Halliday Products H2R 60in X 48in Hatch | AFG181: Halliday Products H2R 60in X 60in Hatch | AFH181: Halliday Products H2R 72in X 48in Hatch | AFI181: Halliday Products H2R 72in X 60in Hatch | AFJ181: Halliday Products H2R 72in X 72in Hatch | AFK181: Halliday Products H1W 24in X 24in Hatch | AFL181: Halliday Products H1W 24in X 30in Hatch | AFM181: Halliday Products H1W 24in X 36in Hatch | AFN181: Halliday Products H1W 24in X 42in Hatch | AFO181: Halliday Products H1W 24in X 48in Hatch | AFP181: Halliday Products H1W 30in X 30in Hatch | AFQ181: Halliday Products H1W 30in X 36in Hatch | AFR181: Halliday Products H1W 30in X 42in Hatch | AFS181: Halliday Products H1W 30in X 48in Hatch | AFT181: Halliday Products H1W 36" x 36" Hatch | AFU181: Halliday Products H1W 36in X 42in Hatch | AFV181: Halliday Products H1W 36in X 48in Hatch | AFW181: Halliday Products H1W 36" x 60" Hatch | AFX181: Halliday Products H2W 36in x 80in Hatch | AFY181: Halliday Products H2W 42in X 42in Hatch | AFZ181: Halliday Products H2W 48in X 42in Hatch | AGA181: Halliday Products H2W 48in X 48in Hatch | AGB181: Halliday Products H2W 54in X 42in Hatch | AGC181: Halliday Products H2W 54in X 48in Hatch | AGD181: Halliday Products H2W 60in X 48in Hatch | AGE181: Halliday Products H2W 60in X 60in Hatch | AGF181: Halliday Products H2W 72in X 48in Hatch | AGG181: Halliday Products H2W 72in X 60in Hatch | AGH181: Halliday Products H1C 24in X 24in Hatch | AGI181: Halliday Products H1C 24in X 30in Hatch | AGJ181: Halliday Products H1C 24in X 36in Hatch | AGK181: Halliday Products H1C 24in X 42in Hatch | AGL181: Halliday Products H1C 24in X 48in Hatch | AGM181: Halliday Products H1C 30in X 30in Hatch | AGN181: Halliday Products H1C 30in X 36in Hatch | AGO181: Halliday Products H1C 30in X 42in Hatch | AGP181: Halliday Products H1C 30in X 48in Hatch | AGQ181: Halliday Products H1C 36in X 36in Hatch | AGR181: Halliday Products H1C 36in X 42in Hatch | AGS181: Halliday Products H1C 36in X 48in Hatch | AGT181: Halliday Products H2C 42in X 42in Hatch | AGU181: Halliday Products H2C 48in X 42in Hatch | AGV181: Halliday Products H2C 48in X 48in Hatch | AGW181: Halliday Products H2C 54in X 42in Hatch | AGX181: Halliday Products H2C 54in X 48in Hatch | AGY181: Halliday Products H2C 60in X 48in Hatch | AGZ181: Halliday Products H2C 60in X 60in Hatch | AHA181: Halliday Products H2C 72in X 48in Hatch | AHB181: Halliday Products H2C 72in X 60in Hatch | AHC181: Halliday Products H2C 72in X 72in Hatch | AHD181: Input Description 1 | AHE181: Input Description 2 | AHF181: Input Description 3 | AHG181: Input Description 4 | AHH181: Input Description 5 | AHI181: Input Description 6 | AHJ181: Input Description 7 | AHK181: Input Description 8 | AHL181: Input Description 9 | AHM181: Input Description 10
B182: Casting Frame Height Above Str. | C182: Casting Height | D182: Inch | E182: 0 | I182: 8 | J182: 8 | K182: 4 | L182: 0 | M182: 4 | N182: 0 | O182: 4 | P182: 4 | Q182: 4 | R182: 4 | S182: 4 | T182: 4 | U182: 7 | V182: 7 | W182: 7 | X182: 7 | Y182: 7 | Z182: 7 | AA182: 7 | AB182: 7 | AC182: 7 | AD182: 7 | AE182: 7 | AF182: 4 | AG182: 4 | AH182: 4 | AI182: 4 | AJ182: 4 | AK182: 4 | AL182: 4 | AM182: 4 | AN182: 4 | AO182: 7 | AP182: 7 | AQ182: 7 | AR182: 7 | AS182: 7 | AT182: 7 | AU182: 7 | AV182: 7 | AW182: 7 | AX182: 7 | AY182: 7 | AZ182: 7 | BA182: 7 | BB182: 7 | BC182: 7 | BD182: 7 | BE182: 4 | BF182: 4 | BG182: 4 | BH182: 7 | BI182: 7 | BJ182: 7 | BK182: 7 | BL182: 7 | BM182: 7 | BN182: 7 | BO182: 4 | BP182: 4 | BQ182: 4 | BR182: 4 | BS182: 4 | BT182: 4 | BU182: 4 | BV182: 4 | BW182: 7 | BX182: 7 | BY182: 7 | BZ182: 7 | CA182: 7 | CB182: 7 | CC182: 7 | CD182: 7 | CE182: 7 | CF182: 7 | CG182: 7 | CH182: 7 | CI182: 7 | CJ182: 7 | CK182: 7 | CL182: 5.625 | CM182: 5.625 | CN182: 5.625 | CO182: 10 | CP182: 10 | CQ182: 10 | CR182: 4 | CS182: 6 | CT182: 6 | CU182: 0 | CV182: 0 | CW182: 0 | CX182: 0 | CY182: 0 | CZ182: 0 | DA182: 0 | DB182: 0 | DC182: 0 | DD182: 0 | DE182: 0 | DF182: 0 | DG182: 0 | DH182: 0 | DI182: 0 | DJ182: 0 | DK182: 0 | DL182: 0 | DM182: 0 | DN182: 0 | DO182: 0 | DP182: 0 | DQ182: 0 | DR182: 0 | DS182: 0 | DT182: 0 | DU182: 0 | DV182: 0 | DW182: 0 | DX182: 0 | DY182: 0 | DZ182: 4 | EA182: 0 | EB182: 4 | EC182: 0 | ED182: 4 | EE182: 4 | EF182: 4 | EG182: 7 | EH182: 7 | EI182: 7 | EJ182: 4 | EK182: 4 | EL182: 4 | EM182: 7 | EN182: 7 | EO182: 7 | EP182: 4 | EQ182: 7 | ER182: 4 | ES182: 4 | ET182: 7 | EU182: 7 | EV182: 7 | EW182: 4 | EX182: 4 | EY182: 6 | EZ182: 6 | FA182: 4 | FB182: 4 | FC182: 0 | FD182: 4 | FE182: 0 | FF182: 4 | FG182: 0 | FH182: 4 | FI182: 0 | FJ182: 4 | FK182: 0 | FL182: 6 | FM182: 6 | FN182: 3.5 | FO182: 3.5 | FP182: 4 | FQ182: 4 | FR182: 0 | FS182: 5.5 | FT182: 5.5 | FU182: 4 | FV182: 4 | FW182: 4 | FX182: 4 | FY182: 0 | FZ182: 4 | GA182: 3 | GB182: 4 | GC182: 0 | GD182: 0 | GE182: 0 | GF182: 0 | GG182: 0 | GH182: 0 | GI182: 0 | GJ182: 0 | GK182: 0 | GL182: 5 | GM182: 6 | GN182: 6 | GO182: 8 | GP182: 6 | GQ182: 6 | GR182: 6 | GS182: 6 | GT182: 6 | GU182: 6 | GV182: 6 | GW182: 6 | GX182: 6 | GY182: 6 | GZ182: 5 | HA182: 3.5 | HB182: 3.5 | HC182: 6.25 | HD182: 4 | HE182: 0 | HF182: 8 | HG182: 0 | HH182: 0 | HI182: 0 | HJ182: 0 | HK182: 0 | HL182: 0 | HM182: 0 | HN182: 0 | HO182: 0 | HP182: 0 | HQ182: 0 | HR182: 0 | HS182: 0 | HT182: 0 | HU182: 0 | HV182: 0 | HW182: 0 | HX182: 5 | HY182: 3.75 | HZ182: 0 | IA182: 0 | IB182: 0 | IC182: 0 | ID182: 0 | IE182: 0 | IT182: 0 | IU182: 0 | IV182: 0 | IW182: 0 | IX182: 0 | IY182: 0 | IZ182: 0 | JA182: 0 | JB182: 0 | JC182: 0 | JD182: 0 | JE182: 5 | KV182: 8 | KX182: 7 | KY182: 8 | KZ182: 8 | LA182: 0 | LB182: 8 | LC182: 8 | LF182: 8 | LG182: 7 | LH182: 8 | LI182: 0 | LJ182: 6.75 | LK182: 6.75 | LL182: 0 | LM182: 0 | LN182: 0 | LO182: 4 | LP182: 4 | LQ182: 4 | LR182: 4 | LS182: 4 | LT182: 4 | LU182: 4 | LV182: 4 | LW182: 4 | LX182: 4 | LY182: 7.5 | LZ182: 7.5 | MA182: 7 | MB182: 7 | MC182: 7 | MD182: 7 | ME182: 7.25 | MF182: 7.25 | MH182: 0 | MJ182: 7.5 | MK182: 8 | ML182: 8 | MM182: 8 | MN182: 8 | MO182: 10 | MP182: 10 | MQ182: 7 | MR182: 7 | MS182: 7 | MT182: 7 | MU182: 7 | MV182: 7 | MW182: 4 | MX182: 4 | MY182: 7.25 | MZ182: 7.25 | NA182: 7.25 | NB182: 7.25 | NC182: 8 | ND182: 4 | NE182: 4 | NF182: 4 | NG182: 4 | NH182: 6 | NI182: 6 | NJ182: 6 | NK182: 6 | NL182: 4 | NM182: 0 | NN182: 4 | NO182: 0 | NP182: 4 | NQ182: 0 | NR182: 7 | NS182: 7 | NT182: 7 | NU182: 7 | NV182: 7 | NW182: 6.75 | NX182: 4 | NY182: 0 | NZ182: 7.25 | OA182: 0 | OB182: 7 | OC182: 7.25 | OD182: 0 | OE182: 0 | OF182: 4 | OG182: 0 | OH182: 4 | OI182: 0 | OJ182: 4.25 | OK182: 0 | OL182: 4 | OM182: 0 | ON182: 4 | OO182: 0 | OP182: 0 | OQ182: 6.25 | OR182: 6.5 | OS182: 6.5 | OT182: 6.5 | OU182: 6.5 | OV182: 6.5 | OW182: 6.5 | OX182: 5 | OY182: 6 | OZ182: 6 | PA182: 6 | PB182: 6 | PC182: 6 | PD182: 6 | PE182: 6 | PF182: 6 | PG182: 6 | PH182: 6 | PI182: 6 | PJ182: 6 | PK182: 5 | PL182: 5 | PM182: 5 | PN182: 5 | PO182: 5 | PP182: 5 | PQ182: 7 | PR182: 5.5 | PS182: 5.5 | PT182: 5 | PU182: 5 | PV182: 5 | PW182: 5 | PX182: 5 | PY182: 5 | PZ182: 5 | QA182: 5 | QB182: 5 | QC182: 3 | QD182: 7 | QE182: 7 | QF182: 5.5 | QG182: 5.5 | QH182: 5 | QI182: 7.5 | QJ182: 7.5 | QK182: 7.5 | QL182: 7.5 | QM182: 7.5 | QN182: 7.5 | QO182: 7.63 | QP182: 7.25 | QQ182: 3.75 | QR182: 0 | QS182: 0 | QT182: 0 | QU182: 7 | QV182: 4 | QW182: 0 | QX182: 4 | QY182: 0 | QZ182: 3.37 | RA182: 0 | RB182: 3 | RC182: 0 | RD182: 5 | RE182: 6 | RF182: 0 | RG182: 0 | RH182: 0 | RI182: 0 | RJ182: 6 | RK182: 4 | RL182: 4 | RM182: 0 | RN182: 4 | RO182: 5.5 | RP182: 5.5 | RQ182: 6 | RR182: 6 | RS182: 6 | RT182: 4 | RU182: 0 | RV182: 4 | RW182: 0 | RX182: 6 | RY182: 0 | RZ182: 0 | SA182: 0 | SB182: 0 | SC182: 6 | SD182: 0 | SE182: 0 | SF182: 0 | SG182: 3 | SH182: 0 | SI182: 0 | SJ182: 0
B183: Casting Set Cost (Not Selling Price =>) | C183: Casting Price | D183: Dollar | I183: =I184+I185 -> 176.58 | J183: 176.58 | K183: 222 | L183: 222 | M183: 350.1 | N183: 350.1 | O183: =O184+O185 -> 293.88 | P183: 293.88 | Q183: 293.88 | R183: 293.88 | S183: 279.88 | T183: 399.83 | U183: 326.68 | V183: =V184+V185 -> 326.68 | W183: =W184+W185 -> 326.68 | X183: =X184+X185 -> 326.68 | Y183: 311.12 | Z183: =Z184+Z185 -> 432.63 | AA183: =AA184+AA185 -> 326.68 | AB183: =AB184+AB185 -> 326.68 | AC183: =AC184+AC185 -> 359.47 | AD183: 414.96 | AE183: 414.96 | AF183: =AF184+AF185 -> 330.8 | AG183: 330.8 | AH183: 330.8 | AI183: 330.8 | AJ183: 330.8 | AK183: 330.8 | AL183: =AL184+AL185 -> 356.09 | AM183: 356.09 | AN183: 356.09 | AO183: 305.23 | AP183: 305.23 | AQ183: 305.23 | AR183: =AR184+AR185 -> 305.23 | AS183: 305.23 | AT183: 305.23 | AU183: 411.18 | AV183: =AV184+AV185 -> 330.52 | AW183: =AW184+AW185 -> 330.52 | AX183: =AX184+AX185 -> 330.52 | AY183: =AY184+AY185 -> 330.52 | AZ183: 312.79 | BA183: 315.25 | BB183: 305.23 | BC183: 372.08 | BD183: 414.96 | BE183: =BE184+BE185 -> 397.69 | BF183: 397.69 | BG183: 397.69 | BH183: =BH184+BH185 -> 368.29 | BI183: 368.29 | BJ183: 368.29 | BK183: 368.29 | BL183: 368.29 | BM183: 368.29 | BN183: 462.9 | BO183: =BO184+BO185 -> 353.17 | BP183: 353.17 | BQ183: 353.17 | BR183: 336.35 | BS183: 459.12 | BT183: =BT184+BT185 -> 358.87 | BU183: =BU184+BU185 -> 358.87 | BV183: =BV184+BV185 -> 358.87 | BW183: 353.17 | BX183: 353.17 | BY183: 353.17 | BZ183: 353.17 | CA183: 459.12 | CB183: 353.17 | CC183: 358.87 | CD183: 358.87 | CE183: 412.89 | CF183: =CF184+CF185 -> 358.87 | CG183: =CG184+CG185 -> 358.87 | CH183: =CH184+CH185 -> 358.87 | CI183: =CI184+CI185 -> 358.87 | CJ183: 425.73 | CK183: 504.51 | CL183: =CL184+CL185 -> 797.16 | CM183: 797.16 | CN183: 797.16 | CO183: 797.16 | CP183: 797.16 | CQ183: 797.16 | CR183: 548.65 | CS183: 1094.76 | CT183: 2002.96 | CU183: 417.2 | CV183: 330.8 | CW183: 330.8 | CX183: 330.8 | CY183: 330.8 | CZ183: 436.75 | DA183: 351.89 | DB183: 359 | DC183: 356.95 | DD183: 356.95 | DE183: 356.95 | DF183: 356.95 | DG183: 462.9 | DH183: 372.08 | DI183: 566.24 | DJ183: 359.75 | DK183: 293.88 | DL183: 293.88 | DM183: 293.88 | DN183: 293.88 | DO183: 399.83 | DQ183: 548.65 | DR183: 631.55 | DS183: 631.55 | DZ183: =DZ184+DZ185 -> 285.64 | EA183: =EA184+EA185 -> 285.64 | EB183: =EB184+EB185 -> 360.72 | EC183: =EC184+EC185 -> 360.72 | ED183: 367.03 | EE183: 385.95 | EF183: 428.83 | EG183: =EG184+EG185 -> 399.84 | EH183: 418.76 | EI183: 461.65 | EJ183: 401.43 | EK183: 451.88 | EL183: 463.23 | EM183: 375.86 | EN183: =EN184+EN185 -> 426.32 | EO183: 437.66 | EP183: 498.59 | EQ183: 469.19 | ER183: 359.45 | ES183: 368.3 | ET183: 359.45 | EU183: =EU184+EU185 -> 368.3 | EV183: =EV184+EV185 -> 562.45 | EY183: 1094.76 | EZ183: 2002.96 | FA183: 245.95 | FB183: 290.09 | FC183: =FC184+FC185 -> 290.09 | FD183: 331.72 | FE183: 331.72 | FF183: 331.72 | FG183: =FG184+FG185 -> 331.72 | FH183: =FH184+FH185 -> 328.73 | FI183: =FI184+FI185 -> 328.73 | FJ183: 409.91 | FL183: 551.18 | FM183: 551.19 | FN183: 542.36 | FO183: 1379.83 | FP183: 560.72 | FQ183: 504.51 | FR183: =FR184+FR185 -> 504.51 | FS183: 568.86 | FT183: 568.86 | FU183: 469.2 | FV183: 1022.4 | FW183: 627.9 | FX183: 772.07 | FY183: 1001.3 | FZ183: 2005.75 | GA183: 755.63 | GB183: 1302.38 | GD183: 251.01 | GE183: 251.01 | GF183: 475.52 | GG183: 475.53 | GH183: 869.02 | GI183: 869.02 | GJ183: 807.21 | GK183: 807.21 | GL183: =GL184+GL185+GL186 -> 586.51 | GM183: =GM184+GM185+GM186 -> 525.96 | GN183: =GN184+GN185+GN186 -> 525.96 | GO183: =GO184+GO185+GO186 -> 629.44 | GP183: =GP184+GP185+GP186 -> 755.49 | GQ183: 755.49 | GR183: 624.34 | GS183: 624.34 | GT183: 624.34 | GU183: 1344.54 | GV183: 1344.54 | GW183: 2016.81 | GX183: 2016.81 | GY183: 822.42 | HA183: =HA184+HA185 -> 580.19 | HB183: 1054.43 | HC183: 880.07 | HD183: 283.8 | HE183: =HE184+HE185 -> 283.8 | HF183: 712.61 | HG183: 439.45 | HH183: 535.76 | HI183: 595.93 | HJ183: 782.56 | HK183: 644.18 | HL183: =HL184+HL185 -> 644.18 | HM183: 644.18 | HN183: 644.18 | HO183: 644.18 | HP183: 644.18 | HQ183: 874.07 | HR183: 874.07 | HS183: 874.07 | HT183: 874.07 | HU183: 874.07 | HV183: =HV184+HV185 -> 874.07 | HW183: 595.93 | HX183: 1015.31 | HY183: 561.27 | HZ183: 128.65 | IA183: 151.36 | IB183: 353.16 | IC183: 706.32 | ID183: 428.82 | IE183: 435.13 | IF183: 666.91 | IG183: 1123.82 | IH183: 316.47 | II183: 438.01 | IJ183: 403.82 | IK183: 491.66 | IL183: 503.36 | IM183: 713.52 | IN183: 1277.32 | IO183: 1677.48 | IP183: 2200.33 | IQ183: 2910.08 | IR183: 3205.9 | IS183: 4054.38 | IT183: 216.71 | IU183: 469.51 | IV183: 373.22 | IW183: 626.05 | IX183: 1127.07 | IY183: 1715.61 | IZ183: 475.56 | JA183: 355.16 | JB183: =JB184+JB185 -> 534.8 | JC183: =JC184+JC185 -> 283.8 | JD183: =JD184+JD185 -> 534.8 | JE183: =JE184+JE185+JE186 -> 586.5 | JF183: 74.42 | JG183: 84.51 | JH183: 88.28 | JI183: 94.61 | JJ183: 166.49 | JK183: 124.87 | JL183: 145.05 | JM183: 171.53 | JN183: 184.15 | JO183: 157.67 | JP183: 172.8 | JQ183: 179.1 | JR183: 220.73 | JS183: 271.17 | JT183: 108.47 | JU183: 115.83 | JV183: 121.09 | JW183: 127.4 | JX183: 199.28 | JY183: 157.67 | JZ183: 177.84 | KA183: 203.07 | KB183: 216.95 | KC183: 130.47 | KD183: 137.83 | KE183: 143.09 | KF183: 149.4 | KG183: 223.25 | KH183: 179.67 | KI183: 199.84 | KJ183: 225.07 | KK183: 238.95 | KL183: 157.67 | KM183: 172.8 | KN183: 179.1 | KO183: 220.73 | KP183: 271.17 | KQ183: 179.67 | KR183: 194.8 | KS183: 201.1 | KT183: 242.73 | KU183: 293.17 | KV183: =KV184+KV185 -> 754.9 | KW183: =KW184+KW185 -> 658.98 | KX183: =KX184+KX185 -> 370.77 | KY183: 1133.13 | KZ183: 2266.26 | LA183: 298.91 | LB183: =LB184+LB185+LB186 -> 630.29 | LC183: =LC184+LC185+LC186 -> 746.51 | LD183: 908.07 | LE183: 2064.95 | LF183: =LF184+LF185 -> 623.06 | LG183: =LG184+LG185 -> 1126.84 | LH183: 1042.86 | LI183: 540.66 | LJ183: 552.3 | LK183: 552.3 | LO183: 285.6 | LP183: 285.6 | LQ183: 285.6 | LR183: 285.6 | LS183: 285.6 | LT183: 285.6 | LU183: 295.05 | LV183: 295.05 | LW183: 279.3 | LX183: 279.3 | LY183: 431.55 | LZ183: 456.75 | MA183: 354.9 | MB183: 354.9 | MC183: 333.9 | MD183: 333.9 | ME183: 302.4 | MF183: 302.4 | MJ183: 790.65 | MK183: 731.85 | ML183: 633.15 | MM183: 731.85 | MN183: 633.15 | MO183: 842.1 | MP183: 842.1 | MQ183: 311.85 | MR183: 311.85 | MS183: 311.85 | MT183: 311.85 | MU183: 397.95 | MV183: 397.95 | MW183: 348.6 | MX183: 348.6 | MY183: 349.65 | MZ183: 349.65 | NA183: 342.3 | NB183: 439.95 | NC183: 321.3 | ND183: 362.25 | NE183: 362.25 | NF183: 362.25 | NG183: 362.25 | NH183: 306.6 | NI183: 306.6 | NJ183: 298.2 | NK183: 409.5 | NL183: 479.85 | NM183: 479.85 | NR183: 323.4 | NS183: 323.4 | NT183: 348.6 | NU183: 348.6 | NV183: 449.4 | NX183: 338.1 | NY183: 338.1 | NZ183: 311.85 | OB183: 357 | OC183: 350.7 | OD183: 289.8 | OE183: 305.55 | OF183: 528.15 | OG183: 528.15 | OJ183: 413.7 | OK183: 413.7 | OL183: 321.3 | OM183: 321.3 | OQ183: 868.35 | OR183: 567 | OS183: 567 | OT183: 1134 | OU183: 1134 | OV183: 1701 | OW183: 1701 | OX183: 584.85 | OY183: 763.35 | OZ183: 763.35 | PA183: 1621.2 | PB183: 1621.2 | PC183: 2480.1 | PD183: 2480.1 | PE183: 751.8 | PF183: 751.8 | PG183: 1600.2 | PH183: 1600.2 | PI183: 2446.5 | PJ183: 2446.5 | PK183: 702.45 | PL183: 702.45 | PM183: 1494.15 | PN183: 1494.15 | PO183: 2291.1 | PP183: 2291.1 | PQ183: 441 | PR183: 710.85 | PS183: 668.85 | PT183: 837.9 | PU183: 837.9 | PV183: 1675.8 | PW183: 903 | PX183: 861 | PY183: 1722 | PZ183: 851.55 | QA183: 1703.1 | QB183: 3406.2 | QD183: 441 | QE183: 441 | QF183: 670.95 | QG183: 670.95 | QH183: 568.05 | QI183: 680.4 | QJ183: 680.4 | QK183: 1456.35 | QL183: 1456.35 | QM183: 2233.35 | QN183: 2233.35 | QP183: 719.25 | QQ183: 558.6 | QR183: 350.7 | QS183: 451.5 | QT183: 767.55 | QU183: 997.5 | QV183: 837.9 | QW183: 837.9 | QZ183: 286.65 | RA183: 286.65 | RB183: 183.75 | RC183: 183.75 | RG183: 580.65 | RH183: 1161.3 | RI183: 2322.6 | RJ183: 708.75 | RL183: 436.8 | RM183: 436.8 | RN183: 837.9 | RO183: 541.8 | RP183: 504 | RQ183: 691.95 | RR183: 691.95 | RS183: 691.95 | RT183: 573.3 | RU183: 573.3 | RY183: 337.05 | RZ183: 584.85 | SA183: 117.6 | SB183: 151.2 | SC183: 190 | SH183: 682.5 | SI183: 892.5 | TE183: 485.58 | TF183: 569.78 | TG183: 716.52 | TH183: 845.96 | TI183: 962.25 | TJ183: 1175.57 | TK183: 980.51 | TL183: 1114.53 | TM183: 1360.28 | TN183: 1033.45 | TO183: 1188.5 | TP183: 1452.97 | TQ183: 2467.44 | TR183: 2774.25 | TS183: 3404.07 | TT183: 3710.23 | TU183: 4046.45 | TV183: 5729.5 | TW183: 1053.56 | TX183: 1146.1 | TY183: 1321.13 | TZ183: 1113.72 | UA183: 1212.42 | UB183: 1399.14 | UC183: 1781.56 | UD183: 1975.88 | UE183: 2343.46 | UF183: 2779.91 | UG183: 3026.9 | UH183: 4376.95 | UI183: 667.93 | UJ183: 749.39 | UK183: 898.16 | UL183: 878.41 | UM183: 994.14 | UN183: 1137.58 | UO183: 1014.55 | UP183: 1161.72 | UQ183: 1369.18 | UR183: 2285.52 | US183: 2657.87 | UT183: 3329.56 | UU183: 3378.22 | UV183: 3723.36 | UW183: 5406.42 | UX183: 705.73 | UY183: 763.56 | UZ183: 872.96 | VA183: 1033.45 | VB183: 1149.12 | VC183: 1367.92 | VD183: 2339.06 | VE183: 2666.79 | VF183: 3286.72 | VG183: 2960.53 | VH183: 3252.12 | VI183: 4845.93 | VJ183: 705.73 | VK183: 763.56 | VL183: 872.96 | VM183: 1197.32 | VN183: 1341.9 | VO183: 1615.4 | VP183: 2339.06 | VQ183: 2666.79 | VR183: 3286.72 | VS183: 2960.53 | VT183: 3252.12 | VU183: 4845.93 | VV183: 276.15 | VW183: 323.4 | VX183: 373.8 | VY183: 550.2 | VZ183: 746.55 | WA183: 897.75
B184: Frame Cost | C184: Frame Cost | D184: Dollar | I184: 104.69 | J184: 104.69 | K184: 111 | L184: 111 | M184: 179.1 | N184: 179.1 | O184: 177.84 | P184: 177.84 | Q184: 177.84 | R184: 177.84 | S184: 177.84 | T184: 177.84 | U184: 210.64 | V184: 210.64 | W184: 210.64 | X184: 210.64 | Y184: 210.64 | Z184: 210.64 | AA184: 210.64 | AB184: 210.64 | AC184: 210.64 | AF184: 212.24 | AG184: 212.24 | AH184: 212.24 | AI184: 212.24 | AJ184: 212.24 | AK184: 212.24 | AL184: 212.24 | AM184: 212.24 | AN184: 212.24 | AO184: 186.67 | AP184: 186.67 | AQ184: 186.67 | AR184: 186.67 | AS184: 186.67 | AU184: 186.67 | AV184: 186.67 | AW184: 186.67 | AX184: 186.67 | AY184: 186.67 | AZ184: 186.67 | BA184: 186.67 | BB184: 186.67 | BE184: 221.11 | BF184: 221.11 | BG184: 221.11 | BH184: 191.71 | BI184: 191.71 | BJ184: 191.71 | BK184: 191.71 | BL184: 191.71 | BM184: 191.71 | BO184: 180.37 | BP184: 180.37 | BQ184: 180.37 | BR184: 180.37 | BS184: 180.37 | BT184: 180.37 | BU184: 180.37 | BV184: 180.37 | BW184: 180.37 | BX184: 180.37 | BY184: 180.37 | BZ184: 180.37 | CA184: 180.37 | CB184: 180.37 | CC184: 180.37 | CF184: 180.37 | CG184: 180.37 | CH184: 180.37 | CI184: 180.37 | CL184: 407.4 | CM184: 407.4 | CN184: 407.4 | CO184: 407.4 | CP184: 407.4 | CQ184: 407.4 | CR184: 253.52 | CS184: 492.57 | CT184: 974.76 | CV184: 212.24 | CW184: 212.24 | CX184: 212.24 | CY184: 212.24 | CZ184: 212.24 | DC184: 184.15 | DD184: 184.15 | DE184: 184.15 | DF184: 184.15 | DG184: 184.15 | DH184: 184.15 | DI184: 184.15 | DK184: 177.84 | DL184: 177.84 | DM184: 177.84 | DN184: 177.84 | DO184: 177.84 | DQ184: 253.52 | DZ184: 111 | EA184: 111 | EB184: 179.1 | EC184: 179.1 | ED184: 177.84 | EE184: 177.84 | EF184: 177.84 | EG184: 210.65 | EH184: 210.65 | EI184: 210.65 | EJ184: 212.24 | EK184: 212.24 | EL184: 212.24 | EM184: 186.67 | EN184: 186.67 | EO184: 186.67 | EP184: 221.11 | EQ184: 191.71 | ER184: 180.37 | ES184: 180.37 | ET184: 180.37 | EU184: 180.37 | EV184: 180.37 | EY184: 492.57 | EZ184: 974.76 | FA184: 81.98 | FB184: 131.17 | FC184: 131.17 | FD184: 131.17 | FE184: 131.17 | FF184: 131.17 | FG184: 131.17 | FH184: 131.17 | FI184: 131.17 | FJ184: 177.84 | FL184: 330.45 | FN184: 361.99 | FO184: 587.75 | FP184: 236.57 | FQ184: 176.58 | FR184: 176.58 | FS184: 334.24 | FT184: 334.24 | FU184: 239.65 | FV184: 563.29 | FW184: 251.16 | FX184: 323.01 | FZ184: 687.53 | GA184: 224.51 | GD184: 87.04 | GE184: 87.04 | GF184: 190.46 | GG184: 190.46 | GH184: 259.83 | GI184: 259.83 | GJ184: 317.84 | GK184: 317.84 | GL184: 175.32 | GM184: 228.29 | GN184: 228.29 | GO184: 274.09 | GP184: 292.61 | GQ184: 292.61 | GR184: 232.07 | GS184: 232.07 | GT184: 232.07 | GU184: 560.01 | GV184: 560.01 | GW184: 840.02 | GX184: 840.02 | HA184: 283.79 | HB184: 461.62 | HC184: 478.34 | HD184: 147.58 | HE184: 147.58 | HG184: 95.11 | HH184: 119.2 | HI184: 95.11 | HJ184: 125.21 | HK184: 124.01 | HL184: 124.01 | HM184: 124.01 | HN184: 124.01 | HO184: 124.01 | HP184: 124.01 | HQ184: 125.21 | HR184: 125.21 | HS184: 125.21 | HT184: 125.21 | HU184: 125.21 | HV184: 125.21 | HW184: 95.11 | HX184: 507.02 | HY184: 237.12 | HZ184: 41.62 | IB184: 176.58 | IC184: 353.16 | ID184: 204.32 | IE184: 204.32 | JB184: 219.48 | JC184: 147.58 | JD184: 219.48 | JE184: 175.32 | KV184: 479.64 | KW184: 491.6 | KX184: 203.92 | LB184: 284.27 | LC184: 320.53 | LF184: 418.7 | LG184: 680.44
B185: Cover/Grate Cost | C185: Cover/Grate Cost | D185: Dollar | I185: 71.89 | J185: 71.89 | K185: 111 | L185: 111 | M185: 171 | N185: 171 | O185: 116.04 | P185: 116.04 | Q185: 116.04 | R185: 116.04 | S185: 116.04 | T185: 221.99 | U185: 116.04 | V185: 116.04 | W185: 116.04 | X185: 116.04 | Y185: 116.04 | Z185: 221.99 | AA185: 116.04 | AB185: 116.04 | AC185: 148.83 | AF185: 118.56 | AG185: 118.56 | AH185: 118.56 | AI185: 118.56 | AJ185: 118.56 | AK185: 118.56 | AL185: 143.85 | AM185: 143.85 | AN185: 143.85 | AO185: 118.56 | AP185: 118.56 | AQ185: 118.56 | AR185: 118.56 | AS185: 118.56 | AU185: 224.51 | AV185: 143.85 | AW185: 143.85 | AX185: 143.85 | AY185: 143.85 | AZ185: 126.12 | BA185: 128.58 | BB185: 118.56 | BE185: 176.58 | BF185: 176.58 | BG185: 176.58 | BH185: 176.58 | BI185: 176.58 | BJ185: 176.58 | BK185: 176.58 | BL185: 176.58 | BM185: 176.58 | BO185: 172.8 | BP185: 172.8 | BQ185: 172.8 | BR185: 172.8 | BS185: 278.75 | BT185: 178.5 | BU185: 178.5 | BV185: 178.5 | BW185: 172.8 | BX185: 172.8 | BY185: 172.8 | BZ185: 172.8 | CA185: 278.75 | CB185: 172.8 | CC185: 178.5 | CF185: 178.5 | CG185: 178.5 | CH185: 178.5 | CI185: 178.5 | CL185: 389.76 | CM185: 389.76 | CN185: 389.76 | CO185: 389.76 | CP185: 389.76 | CQ185: 389.76 | CR185: 295.13 | CS185: 602.19 | CT185: 1028.2 | CV185: 118.56 | CW185: 118.56 | CX185: 118.56 | CY185: 118.56 | CZ185: 224.51 | DC185: 172.8 | DD185: 172.8 | DE185: 172.8 | DF185: 172.8 | DG185: 278.75 | DH185: 187.93 | DI185: 382.09 | DK185: 116.04 | DL185: 116.04 | DM185: 116.04 | DN185: 116.04 | DO185: 221.99 | DQ185: 295.13 | DZ185: 174.64 | EA185: 174.64 | EB185: 181.62 | EC185: 181.62 | ED185: 189.19 | EE185: 208.11 | EF185: 250.99 | EG185: 189.19 | EH185: 208.11 | EI185: 251 | EJ185: 189.19 | EK185: 239.64 | EL185: 250.99 | EM185: 189.19 | EN185: 239.65 | EO185: 250.99 | EP185: 277.48 | EQ185: 277.48 | ER185: 179.08 | ES185: 187.93 | ET185: 179.08 | EU185: 187.93 | EV185: 382.08 | EY185: 602.19 | EZ185: 1028.2 | FA185: 163.97 | FB185: 158.92 | FC185: 158.92 | FD185: 200.55 | FE185: 200.55 | FF185: 200.55 | FG185: 200.55 | FH185: 197.56 | FI185: 197.56 | FJ185: 232.07 | FL185: 220.73 | FN185: 180.37 | FO185: 792.08 | FP185: 324.15 | FQ185: 327.93 | FR185: 327.93 | FS185: 234.62 | FT185: 234.62 | FU185: 229.55 | FV185: 459.11 | FW185: 376.74 | FX185: 449.06 | FZ185: 1318.22 | GA185: 531.12 | GD185: 163.97 | GE185: 163.97 | GF185: 285.06 | GG185: 285.06 | GH185: 609.19 | GI185: 609.19 | GJ185: 489.37 | GK185: 489.37 | GL185: 248.48 | GM185: 162.71 | GN185: 162.71 | GO185: 164.94 | GP185: 211.89 | GQ185: 211.89 | GR185: 228.3 | GS185: 228.3 | GT185: 228.3 | GU185: 456.59 | GV185: 456.59 | GW185: 684.88 | GX185: 684.88 | HA185: 296.4 | HB185: 592.81 | HC185: 401.73 | HD185: 136.22 | HE185: 136.22 | HG185: 344.34 | HH185: 416.56 | HI185: 500.82 | HJ185: 657.35 | HK185: 520.17 | HL185: 520.17 | HM185: 520.17 | HN185: 520.17 | HO185: 520.17 | HP185: 520.17 | HQ185: 748.86 | HR185: 748.86 | HS185: 748.86 | HT185: 748.86 | HU185: 748.86 | HV185: 748.86 | HW185: 500.82 | HX185: 508.29 | HY185: 324.15 | HZ185: 87.03 | IB185: 176.58 | IC185: 353.16 | ID185: 224.5 | IE185: 230.81 | JB185: 315.32 | JC185: 136.22 | JD185: 315.32 | JE185: 248.47 | KV185: 275.26 | KW185: 167.38 | KX185: 166.85 | LB185: 126.07 | LC185: 206.03 | LF185: 204.36 | LG185: 446.4
B186: Curb Box Cost | C186: Curb Box Cost | D186: Dollar | GL186: 162.71 | GM186: 134.96 | GN186: 134.96 | GO186: 190.41 | GP186: 250.99 | GQ186: 250.99 | GR186: 163.97 | GS186: 163.97 | GT186: 163.97 | GU186: 327.94 | GV186: 327.94 | GW186: 491.91 | GX186: 491.91 | JE186: 162.71 | LB186: 219.95 | LC186: 219.95
B187: Casting Clear Opening | C187: Clear Opening | D187: Inch | I187: 9.75 | J187: 9.75 | K187: 11 | L187: 11 | M187: 20.25 | N187: 20.25 | O187: 21 | P187: 21 | Q187: 21 | R187: 21 | S187: 21 | T187: 21 | U187: 21 | V187: 21 | W187: 21 | X187: 21 | Y187: 21 | Z187: 21 | AA187: 21 | AB187: 21 | AC187: 21 | AD187: 21 | AE187: 21 | AF187: 21 | AG187: 21 | AH187: 21 | AI187: 21 | AJ187: 21 | AK187: 21 | AL187: 21 | AM187: 21 | AN187: 21 | AO187: 21 | AP187: 21 | AQ187: 21 | AR187: 21 | AS187: 21 | AT187: 21 | AU187: 21 | AV187: 21 | AW187: 21 | AX187: 21 | AY187: 21 | AZ187: 21 | BA187: 21 | BB187: 21 | BC187: 21 | BD187: 21 | BE187: 22 | BF187: 22 | BG187: 22 | BH187: 22 | BI187: 22 | BJ187: 22 | BK187: 22 | BL187: 22 | BM187: 22 | BN187: 22 | BO187: 24 | BP187: 24 | BQ187: 24 | BR187: 24 | BS187: 24 | BT187: 24 | BU187: 24 | BV187: 24 | BW187: 24 | BX187: 24 | BY187: 24 | BZ187: 24 | CA187: 24 | CB187: 24 | CC187: 24 | CD187: 24 | CE187: 24 | CF187: 24 | CG187: 24 | CH187: 24 | CI187: 24 | CJ187: 24 | CK187: 24 | CL187: 30 | CM187: 30 | CN187: 30 | CO187: 30 | CP187: 30 | CQ187: 30 | CR187: 32 | CS187: 36 | CT187: 48 | CU187: 21 | CV187: 21 | CW187: 21 | CX187: 21 | CY187: 21 | CZ187: 21 | DA187: 23.5 | DB187: 24 | DC187: 24 | DD187: 24 | DE187: 24 | DF187: 24 | DG187: 24 | DH187: 24 | DI187: 24 | DJ187: 21 | DK187: 21 | DL187: 21 | DM187: 21 | DN187: 21 | DO187: 21 | DP187: 32.25 | DQ187: 32.25 | DR187: 32.25 | DS187: 32.25 | DT187: 30 | DU187: 30 | DV187: 36 | DW187: 36 | DX187: 48 | DY187: 48 | DZ187: 11 | EA187: 11 | EB187: 20.25 | EC187: 20.25 | ED187: 21 | EE187: 21 | EF187: 21 | EG187: 21 | EH187: 21 | EI187: 21 | EJ187: 21 | EK187: 21 | EL187: 21 | EM187: 21 | EN187: 21 | EO187: 21 | EP187: 22 | EQ187: 22 | ER187: 24 | ES187: 24 | ET187: 24 | EU187: 24 | EV187: 24 | EW187: 30 | EX187: 32.25 | EY187: 36 | EZ187: 48 | FA187: 18 X 18 | FB187: 22 X 22 | FC187: 22 X 22 | FD187: 22 X 22 | FE187: 22 X 22 | FF187: 22 X 22 | FG187: 22 X 22 | FH187: 22 X 22 | FI187: 22 X 22 | FJ187: 24 X 24 | FK187: 24 X 24 | FL187: 22 X 22 | FM187: 22 X 22 | FN187: 20 X 26 | FO187: 26 X 46 | FP187: 21.375 X 27.875 | FQ187: 24 X 24 | FR187: 24 X 24 | FS187: 15.25 X 35.75 | FT187: 15.25 X 35.75 | FU187: 22 X 34 | FV187: 34 X 48 | FW187: 30 X 30 | FX187: 30 X 30 | FY187: 30 X 30 | FZ187: 48.625X48.625 | GA187: 33.25 X 33.25 | GB187: 36 X 36 | GC187: 36 X 36 | GD187: 15.5 X 15.5 | GE187: 15.5 X 15.5 | GF187: 25.5 X 25.5 | GG187: 25.5 X 25.5 | GH187: 36 X 36 | GI187: 36 X 36 | GJ187: 24 X 35 | GK187: 24 X 35 | GL187: 22 X 22 | GM187: 17.5 X 20.25 | GN187: 17.5 X 20.25 | GO187: 20.88 X 22 | GP187: 14.75 X 36 | GQ187: 14.75 X 36 | GR187: 24.25 X 33.25 | GS187: 24.25 X 33.25 | GT187: 24.25 X 33.25 | GU187: (2) 24.25 X 33.25 | GV187: (2) 24.25 X 33.25 | GW187: (3) 24.25 X 33.25 | GX187: (3) 24.25 X 33.25 | GY187: 24 X 24 | GZ187: 23 X 31 | HA187: 23.375 X 20 | HB187: 23.378 X 44 | HC187: 21.25 X 34.31 | HD187: 23.5 | HE187: 23.5 | HF187: 26 | HG187: 36 X 36 | HH187: 36 X 48 | HI187: 36 X 36 | HJ187: 36 X 48 | HK187: 36 X 48 | HL187: 36 X 48 | HM187: 36 X 48 | HN187: 36 X 48 | HO187: 36 X 48 | HP187: 36 X 48 | HQ187: 36 X 48 | HR187: 36 X 48 | HS187: 36 X 48 | HT187: 36 X 48 | HU187: 36 X 48 | HV187: 36 X 48 | HW187: 36 X 36 | HX187: 16 X 28 | HY187: 21 X 28 | HZ187: 12 X 12 | IA187: 12 X 12 | IB187: 15.75 X 27.75 | IC187: (2) 15.75 X 27.75 | ID187: 20 | IE187: 20 | IF187: n/a | IG187: n/a | IH187: n/a | II187: n/a | IJ187: n/a | IK187: n/a | IL187: n/a | IM187: n/a | IN187: n/a | IO187: n/a | IP187: n/a | IQ187: n/a | IR187: n/a | IS187: n/a | IT187: n/a | IU187: n/a | IV187: n/a | IW187: n/a | IX187: n/a | IY187: n/a | IZ187: n/a | JA187: n/a | JB187: 24 X 24 | JC187: 23.5 | JD187: 24 X 24 | JE187: 24 X 24 | JF187: 6 x 12 | JG187: 8 x 12 | JH187: 10 x 12 | JI187: 12 x 12 | JJ187: 12 x 12 | JK187: 15 x 12 | JL187: 18 x 12 | JM187: 22 x 12 | JN187: 24 x 12 | JO187: 6 x 12 | JP187: 10 x 12 | JQ187: 12 x 12 | JR187: 22 x 12 | JS187: 24 x 12 | JT187: 6 x 12 | JU187: 8 x 12 | JV187: 10 x 12 | JW187: 12 x 12 | JX187: 12 x 12 | JY187: 15 x 12 | JZ187: 18 x 12 | KA187: 22 x 12 | KB187: 24 x 12 | KC187: 6 x 12 | KD187: 8 x 12 | KE187: 10 x 12 | KF187: 12 x 12 | KG187: 12 x 12 | KH187: 15 x 12 | KI187: 18 x 12 | KJ187: 22 x 12 | KK187: 24 x 12 | KL187: 6 x 12 | KM187: 10 x 12 | KN187: 12 x 12 | KO187: 22 x 12 | KP187: 24 x 12 | KQ187: 6 x 12 | KR187: 10 x 12 | KS187: 12 x 12 | KT187: 22 x 12 | KU187: 24 x 12 | KV187: 20 X 20 | KW187: 22 | KX187: 21.625 | KY187: 19.5 X 44 | KZ187: 19.5 X 44 | LA187: 30 X 30 | LB187: 20 X 22 | LC187: 22 X 33 | LD187: 24 X 72 | LE187: 24 X 35 | LF187: 14 X 27.5 | LG187: 13 X 60 | LH187: 28 X 42 | LI187: 22 X 22 | LJ187: 22 | LK187: 22 | LL187: 22.5 | LM187: 22 | LN187: 22 | LO187: 24.25 | LP187: 24.25 | LQ187: 24.25 | LR187: 24.25 | LS187: 24.25 | LT187: 24.25 | LU187: 24.25 | LV187: 24.25 | LW187: 23.5 | LX187: 23.5 | LY187: 21.75 | LZ187: 21.75 | MA187: 22 | MB187: 22 | MC187: 22 | MD187: 22 | ME187: 21.5 | MF187: 21.5 | MG187: 21.5 | MH187: 21.5 | MI187: 21.5 | MJ187: 24 | MK187: 24 | ML187: 24 | MM187: 24 | MN187: 24 | MO187: 30 | MP187: 30 | MQ187: 21 | MR187: 21 | MS187: 21 | MT187: 21 | MU187: 21 | MV187: 21 | MW187: 20.62 | MX187: 20.62 | MY187: 24.12 | MZ187: 24.12 | NA187: 24.12 | NB187: 24 | NC187: 24 | ND187: 24.12 | NE187: 24.12 | NF187: 24.12 | NG187: 24.12 | NH187: 24.12 | NI187: 24.12 | NJ187: 24.12 | NK187: 24.12 | NL187: 30 | NM187: 30 | NN187: 30 | NO187: 30 | NP187: 32.25 | NQ187: 32.25 | NR187: 24 | NS187: 24 | NT187: 24 | NU187: 24 | NV187: 24 | NW187: 22 | NX187: 24.25 | NY187: 24.25 | NZ187: 21.5 | OA187: 21.5 | OB187: 21 | OC187: 24.12 | OD187: 20 | OE187: 20 | OF187: 30 | OG187: 30 | OH187: 32.25 | OI187: 32.25 | OJ187: 24 X 24 | OK187: 24 X 24 | OL187: 24.25 | OM187: 24.25 | ON187: 24.13 | OO187: 24 X 48 | OP187: 24 X 48 | OQ187: 21.25 X 34.31 | OR187: 24.75 X33.75 | OS187: 24.75 X33.75 | OT187: 24.75 X33.75 | OU187: 24.75 X33.75 | OV187: 24.75 X33.75 | OW187: 24.75 X33.75 | OX187: 24 X 24 | OY187: 30X30 | OZ187: 30X30 | PA187: (2) 30X30 | PB187: (2) 30X30 | PC187: (3) 30X30 | PD187: (3) 30X30 | PE187: 30X30 | PF187: 30X30 | PG187: (2) 30X30 | PH187: (2) 30X30 | PI187: (3) 30X30 | PJ187: (3) 30X30 | PK187: 30 X 29.75 | PL187: 30 X 29.75 | PM187: (2) 30 X 29.75 | PN187: (2) 30 X 29.75 | PO187: (3) 30 X 29.75 | PP187: (3) 30 X 29.75 | PQ187: 20.5 X 29 | PR187: 24 X 35.62 | PS187: 24 X 35.62 | PT187: 28 X 34 | PU187: 28 X 34 | PV187: (2) 28 X 34 | PW187: 28 X 34 | PX187: 28 X 34 | PY187: (2) 28 X 34 | PZ187: 28 X 34 | QA187: (2) 28 X 34 | QB187: (4) 28 X 34 | QC187: 15 X 43 | QD187: 20.5 X 29 | QE187: 20.5 X 29 | QF187: 24 X 35.62 | QG187: 24 X 35.62 | QH187: 19 x 34 | QI187: 28 X 29.56 | QJ187: 28 X 29.56 | QK187: (2) 28 X 29.56 | QL187: (2) 28 X 29.56 | QM187: (3) 28 X 29.56 | QN187: (3) 28 X 29.56 | QO187: 29.25 X 29.25 | QP187: 23.25 X 24.25 | QQ187: 21 X 28 | QR187: 15.75 X 27.75 | QS187: 24 X 24 | QT187: 24 X 36 | QU187: 22 X 22 | QV187: 36 X 36 | QW187: 36 X 36 | QX187: 35.75 X 35.75 | QY187: 35.75 X 35.75 | QZ187: 22.75 X 22.75 | RA187: 22.75 X 22.75 | RB187: 17 X 17 | RC187: 17 X 17 | RD187: 45 X 48 | RE187: 24 X 48 | RF187: 24 X 24 | RG187: 32 X 32 | RH187: (2) 32 X 32 | RI187: (4) 32 X 32 | RJ187: 26 x 26 | RK187: 24 X 30 | RL187: 22 X 34 | RM187: 22 X 34 | RN187: 34 X 34 | RO187: 15 X 35.62 | RP187: 15 X 35.62 | RQ187: 30 X 30 | RR187: 30 X 30 | RS187: 30 X 62 | RT187: 30 X 30 | RU187: 30 X 30 | RV187: 30 X 30 | RW187: 30 X 30 | RX187: 26 X 26 | RY187: 30 X 30 | RZ187: 24 X 24 | SA187: 12 X 12 | SB187: 12 X 12 | SC187: 11.25 X 13.5 | SD187: 12 X 20 | SE187: 12 X 29.75 | SF187: 12 X 29.75 | SG187: 22.5 X 22.5 | SH187: 32 X 32 | SI187: 48 X 48 | SJ187: 48 X 96 | SK187: n/a | SL187: n/a | SM187: n/a | SN187: n/a | SO187: n/a | SP187: n/a | SQ187: n/a | SR187: n/a | SS187: n/a | ST187: n/a | SU187: n/a | SV187: n/a | SW187: n/a | SX187: n/a | SY187: n/a | SZ187: n/a | TA187: n/a | TB187: n/a | TC187: n/a | TD187: n/a | TE187: 24 X 24 | TF187: 24 X 24 | TG187: 24 X 24 | TH187: 36 X 36 | TI187: 36 X 36 | TJ187: 36 X 36 | TK187: 36 X 48 | TL187: 36 X 48 | TM187: 36 X 48 | TN187: 48 X 48 | TO187: 48 X 48 | TP187: 48 X 48 | TQ187: 60 X 60 | TR187: 60 X 60 | TS187: 60 X 60 | TT187: 72 X 72 | TU187: 72 X 72 | TV187: 72 X 72 | TW187: 36 | TX187: 36 | TY187: 36 | TZ187: 48 | UA187: 48 | UB187: 48 | UC187: 60 | UD187: 60 | UE187: 60 | UF187: 72 | UG187: 72 | UH187: 72 | UI187: 36 X 36 | UJ187: 36 X 36 | UK187: 36 X 36 | UL187: 36 X 48 | UM187: 36 X 48 | UN187: 36 X 48 | UO187: 48 X 48 | UP187: 48 X 48 | UQ187: 48 X 48 | UR187: 60 X 60 | US187: 60 X 60 | UT187: 60 X 60 | UU187: 72 X 72 | UV187: 72 X 72 | UW187: 72 X 72 | UX187: 36 X 36 | UY187: 36 X 36 | UZ187: 36 X 36 | VA187: 48 X 48 | VB187: 48 X 48 | VC187: 48 X 48 | VD187: 60 X 60 | VE187: 60 X 60 | VF187: 60 X 60 | VG187: 72 X 72 | VH187: 72 X 72 | VI187: 72 X 72 | VJ187: 36 | VK187: 36 | VL187: 36 | VM187: 48 | VN187: 48 | VO187: 48 | VP187: 60 | VQ187: 60 | VR187: 60 | VS187: 72 | VT187: 72 | VU187: 72 | VV187: n/a | VW187: n/a | VX187: n/a | VY187: n/a | VZ187: n/a | WA187: n/a | WB187: 24 X 24 | WC187: 24 X 30 | WD187: 24 X 36 | WE187: 24 X 42 | WF187: 24 X 48 | WG187: 29 X 59 | WH187: 30 X 30 | WI187: 30 X 36 | WJ187: 30 X 42 | WK187: 30 X 48 | WL187: 30 X 54 | WM187: 30 X 60 | WN187: 36 X 36 | WO187: 36 X 42 | WP187: 36 X 48 | WQ187: 36 X 54 | WR187: 36 X 60 | WS187: 36 X 66 | WT187: 36 X 72 | WU187: 42 X 42 | WV187: 42 X 42 | WW187: 44 X 68 | WX187: 48 X 42 | WY187: 48 X 48 | WZ187: 54 X 42 | XA187: 54 X 48 | XB187: 54 X 52 | XC187: 54 X 54 | XD187: 58 X 58 | XE187: 60 X 30 | XF187: 60 X 36 | XG187: 60 X 42 | XH187: 60 X 48 | XI187: 60 X 54 | XJ187: 60 X 60 | XK187: 66 X 36 | XL187: 66 X 42 | XM187: 66 X 48 | XN187: 66 X 54 | XO187: 66 X 60 | XP187: 66 X 66 | XQ187: 72 X 36 | XR187: 72 X 42 | XS187: 72 X 48 | XT187: 72 X 54 | XU187: 72 X 60 | XV187: 24 X 24 | XW187: 24 X 30 | XX187: 24 X 36 | XY187: 24 X 42 | XZ187: 24 X 48 | YA187: 30 X 30 | YB187: 30 X 36 | YC187: 30 X 42 | YD187: 30 X 48 | YE187: 30 X 54 | YF187: 30 X 60 | YG187: 36 X 36 | YH187: 36 X 42 | YI187: 36 X 48 | YJ187: 36 X 54 | YK187: 36 X 60 | YL187: 36 X 66 | YM187: 36 X 72 | YN187: 42 X 42 | YO187: 36 X 54 | YP187: 42 X 42 | YQ187: 48 X 42 | YR187: 48 X 48 | YS187: 54 X 42 | YT187: 54 X 48 | YU187: 54 X 54 | YV187: 60 X 30 | YW187: 60 X 36 | YX187: 60 X 42 | YY187: 60 X 48 | YZ187: 60 X 54 | ZA187: 60 X 60 | ZB187: 66 X 36 | ZC187: 66 X 42 | ZD187: 66 X 48 | ZE187: 66 X 54 | ZF187: 66 X 60 | ZG187: 66 X 66 | ZH187: 72 X 36 | ZI187: 72 X 42 | ZJ187: 72 X 48 | ZK187: 72 X 54 | ZL187: 72 X 60 | ZM187: 24 X 24 | ZN187: 24 X 30 | ZO187: 24 X 36 | ZP187: 24 X 42 | ZQ187: 24 X 48 | ZR187: 30 X 30 | ZS187: 30 X 36 | ZT187: 30 X 42 | ZU187: 30 X 48 | ZV187: 30 X 54 | ZW187: 30 X 60 | ZX187: 36 X 36 | ZY187: 36 X 42 | ZZ187: 36 X 48 | AAA187: 36 X 54 | AAB187: 36 X 60 Cast-In | AAC187: 36 X 66 | AAD187: 36 X 72 | AAE187: 42 X 42 | AAF187: 42 X 42 | AAG187: 48 X 42 | AAH187: 48 X 48 | AAI187: 52 X 42 | AAJ187: 54 X 48 | AAK187: 54 X 54 | AAL187: 58 X 34 | AAM187: 60 X 30 | AAN187: 60 X 36 | AAO187: 60 X 42 | AAP187: 60 X 48 | AAQ187: 60 X 54 | AAR187: 60 X 36 | AAS187: 66 X 36 | AAT187: 66 X 42 | AAU187: 66 X 48 | AAV187: 66 X 54 | AAW187: 66 X 60 | AAX187: 66 X 66 | AAY187: 72 X 36 | AAZ187: 72 X 42 | ABA187: 72 X 48 | ABB187: 72 X 54 | ABC187: 72 X 60 | ABD187: 24 X 24 | ABE187: 24 X 30 | ABF187: 24 X 36 | ABG187: 24 X 42 | ABH187: 24 X 48 | ABI187: 30 X 30 | ABJ187: 30 X 36 | ABK187: 30 X 42 | ABL187: 30 X 48 | ABM187: 30 X 54 | ABN187: 30 X 60 | ABO187: 36 X 36 | ABP187: 36 X 42 | ABQ187: 36 X 48 | ABR187: 36 X 54 | ABS187: 36 X 60 | ABT187: 36 X 66 | ABU187: 36 X 72 | ABV187: 36 X 78 | ABW187: 42 X 42 | ABX187: 42 X 60 | ABY187: 60 X 60 | ABZ187: 42 X 42 | ACA187: 48 X 42 | ACB187: 48 X 48 | ACC187: 54 X 42 | ACD187: 54 X 48 | ACE187: 54 X 54 | ACF187: 60 X 30 | ACG187: 60 X 36 | ACH187: 60 X 42 | ACI187: 60 X 48 | ACJ187: 60 X 54 | ACK187: 60 X 60 | ACL187: 66 X 36 | ACM187: 66 X 42 | ACN187: 66 X 48 | ACO187: 66 X 54 | ACP187: 66 X 60 | ACQ187: 66 X 66 | ACR187: 72 X 36 | ACS187: 72 X 42 | ACT187: 72 X 48 | ACU187: 72 X 54 | ACV187: 72 X 60 | ACW187: 78 X 48 | ACX187: 96 X 72 | ACY187: 24 X 24 | ACZ187: 24 X 30 | ADA187: 24 X 36 | ADB187: 24 X 42 | ADC187: 24 X 48 | ADD187: 30 X 30 | ADE187: 30 X 36 | ADF187: 30 X 42 | ADG187: 30 X 48 | ADH187: 30 X 54 | ADI187: 30 X 60 | ADJ187: 36 X 36 | ADK187: 36 X 42 | ADL187: 36 X 48 | ADM187: 36 X 54 | ADN187: 36 X 60 | ADO187: 36 X 66 | ADP187: 36 X 72 | ADQ187: 42 X 42 | ADR187: 42 X 42 | ADS187: 48 X 42 | ADT187: 48 X 48 | ADU187: 54 X 42 | ADV187: 54 X 48 | ADW187: 54 X 54 | ADX187: 60 X 30 | ADY187: 60 X 36 | ADZ187: 60 X 42 | AEA187: 60 X 48 | AEB187: 60 X 54 | AEC187: 60 X 60 | AED187: 66 X 36 | AEE187: 66 X 42 | AEF187: 66 X 48 | AEG187: 66 X 54 | AEH187: 66 X 60 | AEI187: 66 X 66 | AEJ187: 72 X 36 | AEK187: 72 X 42 | AEL187: 72 X 48 | AEM187: 72 X 54 | AEN187: 72 X 60 | AEO187: 24 X 24 | AEP187: 24 X 30 | AEQ187: 24 X 36 | AER187: 24 X 42 | AES187: 24 X 48 | AET187: 30 X 30 | AEU187: 30 X 36 | AEV187: 30 X 42 | AEW187: 30 X 48 | AEX187: 36 X 36 | AEY187: 36 X 42 | AEZ187: 36 X 48 | AFA187: 42 X 42 | AFB187: 48 X 42 | AFC187: 48 X 48 | AFD187: 54 X 42 | AFE187: 54 X 48 | AFF187: 60 X 48 | AFG187: 60 X 60 | AFH187: 72 X 48 | AFI187: 72 X 60 | AFJ187: 72 X 72 | AFK187: 24 X 24 | AFL187: 24 X 30 | AFM187: 24 X 36 | AFN187: 24 X 42 | AFO187: 24 X 48 | AFP187: 30 X 30 | AFQ187: 30 X 36 | AFR187: 30 X 42 | AFS187: 30 X 48 | AFT187: 36 X 36 | AFU187: 36 X 42 | AFV187: 36 X 48 | AFW187: 36 X 60 | AFX187: 36 X 80 | AFY187: 42 X 42 | AFZ187: 48 X 42 | AGA187: 48 X 48 | AGB187: 54 X 42 | AGC187: 54 X 48 | AGD187: 60 X 48 | AGE187: 60 X 60 | AGF187: 72 X 48 | AGG187: 72 X 60 | AGH187: 24 X 24 | AGI187: 24 X 30 | AGJ187: 24 X 36 | AGK187: 24 X 42 | AGL187: 24 X 48 | AGM187: 30 X 30 | AGN187: 30 X 36 | AGO187: 30 X 42 | AGP187: 30 X 48 | AGQ187: 36 X 36 | AGR187: 36 X 42 | AGS187: 36 X 48 | AGT187: 42 X 42 | AGU187: 48 X 42 | AGV187: 48 X 48 | AGW187: 54 X 42 | AGX187: 54 X 48 | AGY187: 60 X 48 | AGZ187: 60 X 60 | AHA187: 72 X 48 | AHB187: 72 X 60 | AHC187: 72 X 72
B188: Precast Opening Size | C188: Precast Opening Size | D188: Inch | I188: 10 Dia. | J188: 10 Dia. | K188: 12 Dia. | L188: 12 Dia. | M188: 21 Dia. | N188: 21 Dia. | O188: 24 Dia. | P188: 24 Dia. | Q188: 24 Dia. | R188: 24 Dia. | S188: 24 Dia. | T188: 24 Dia. | U188: 24 Dia. | V188: 24 Dia. | W188: 24 Dia. | X188: 24 Dia. | Y188: 24 Dia. | Z188: 24 Dia. | AA188: 24 Dia. | AB188: 24 Dia. | AC188: 24 Dia. | AD188: 24 Dia. | AE188: 24 Dia. | AF188: 24 Dia. | AG188: 24 Dia. | AH188: 24 Dia. | AI188: 24 Dia. | AJ188: 24 Dia. | AK188: 24 Dia. | AL188: 24 Dia. | AM188: 24 Dia. | AN188: 24 Dia. | AO188: 24 Dia. | AP188: 24 Dia. | AQ188: 24 Dia. | AR188: 24 Dia. | AS188: 24 Dia. | AT188: 24 Dia. | AU188: 24 Dia. | AV188: 24 Dia. | AW188: 24 Dia. | AX188: 24 Dia. | AY188: 24 Dia. | AZ188: 24 Dia. | BA188: 24 Dia. | BB188: 24 Dia. | BC188: 24 Dia. | BD188: 24 Dia. | BE188: 24 Dia. | BF188: 24 Dia. | BG188: 24 Dia. | BH188: 24 Dia. | BI188: 24 Dia. | BJ188: 24 Dia. | BK188: 24 Dia. | BL188: 24 Dia. | BM188: 24 Dia. | BN188: 24 Dia. | BO188: 24 Dia. | BP188: 24 Dia. | BQ188: 24 Dia. | BR188: 24 Dia. | BS188: 24 Dia. | BT188: 24 Dia. | BU188: 24 Dia. | BV188: 24 Dia. | BW188: 24 Dia. | BX188: 24 Dia. | BY188: 24 Dia. | BZ188: 24 Dia. | CA188: 24 Dia. | CB188: 24 Dia. | CC188: 24 Dia. | CD188: 24 Dia. | CE188: 24 Dia. | CF188: 24 Dia. | CG188: 24 Dia. | CH188: 24 Dia. | CI188: 24 Dia. | CJ188: 24 Dia. | CK188: 24 Dia. | CL188: 30 Dia. | CM188: 30 Dia. | CN188: 30 Dia. | CO188: 30 Dia. | CP188: 30 Dia. | CQ188: 30 Dia. | CR188: 30 Dia. | CS188: 36 Dia. | CT188: 48 Dia. | CU188: 24 Dia. Cast-In | CV188: 24 Dia. Cast-In | CW188: 24 Dia. Cast-In | CX188: 24 Dia. Cast-In | CY188: 24 Dia. Cast-In | CZ188: 24 Dia. Cast-In | DA188: 24 Dia. Cast-In | DB188: 24 Dia. Cast-In | DC188: 24 Dia. Cast-In | DD188: 24 Dia. Cast-In | DE188: 24 Dia. Cast-In | DF188: 24 Dia. Cast-In | DG188: 24 Dia. Cast-In | DH188: 24 Dia. Cast-In | DI188: 24 Dia. Cast-In | DJ188: 24 Dia. Cast-In | DK188: 24 Dia. Cast-In | DL188: 24 Dia. Cast-In | DM188: 24 Dia. Cast-In | DN188: 24 Dia. Cast-In | DO188: 24 Dia. Cast-In | DP188: 34 Dia. Cast-In | DQ188: 34 Dia. Cast-In | DR188: 34 Dia. Cast-In | DS188: 34 Dia. Cast-In | DT188: 30 Dia. Cast-In | DU188: 30 Dia. Cast-In | DV188: 36 Dia. Cast-In | DW188: 36 Dia. Cast-In | DX188: 48 Dia. Cast-In | DY188: 48 Dia. Cast-In | DZ188: 12 Dia. | EA188: 12 Dia. | EB188: 21 Dia. | EC188: 21 Dia. | ED188: 24 Dia. | EE188: 24 Dia. | EF188: 24 Dia. | EG188: 24 Dia. | EH188: 24 Dia. | EI188: 24 Dia. | EJ188: 24 Dia. | EK188: 24 Dia. | EL188: 24 Dia. | EM188: 24 Dia. | EN188: 24 Dia. | EO188: 24 Dia. | EP188: 24 Dia. | EQ188: 24 Dia. | ER188: 24 Dia. | ES188: 24 Dia. | ET188: 24 Dia. | EU188: 24 Dia. | EV188: 24 Dia. | EW188: 30 Dia. | EX188: 34 Dia. | EY188: 36 Dia. | EZ188: 48 Dia. | FA188: 18x18 | FB188: 24x24 | FC188: 24x24 Cast-In | FD188: 24x24 | FE188: 24x24 Cast-In | FF188: 24x24 | FG188: 24x24 Cast-In | FH188: 24x24 | FI188: 24x24 Cast-In | FJ188: 24x24 | FK188: 24x24 Cast-In | FL188: 24x24 | FM188: 24x24 | FN188: 24x30 | FO188: 30x48 | FP188: 24x30 | FQ188: 24x24 | FR188: 24x24 Cast-In | FS188: 18x36 | FT188: 18x36 | FU188: 24x36 | FV188: 36x48 | FW188: 30x30 | FX188: 30x30 Cast-In | FY188: 30x30 Cast-In | FZ188: 48x48 | GA188: 36x36 | GB188: 36x36 | GC188: 36x36 Cast-In | GD188: 18x18 | GE188: 18x18 Cast-In | GF188: 25.5x25.5 | GG188: 25.5x25.5 Cast-In | GH188: 36x36 | GI188: 36x36 Cast-In | GJ188: 24x36 | GK188: 24x36 Cast-In | GL188: 24x24 | GM188: 24x30 | GN188: 24x30 | GO188: 24x24 | GP188: 24x36 | GQ188: 24x36 | GR188: 24x36 | GS188: 24x36 | GT188: 24x36 | GU188: 24x72 | GV188: 24x72 | GW188: 24x112 | GX188: 24x112 | GY188: 24x24 | GZ188: 24x32 | HA188: 24x24 | HB188: 24x48 | HC188: 24x36 | HD188: 24 Dia. | HE188: 24 Dia. | HF188: 30 Dia. | HG188: 36x36 | HH188: 36x48 | HI188: 36x36 | HJ188: 36x48 | HK188: 36x48 | HL188: 36x48 | HM188: 36x48 | HN188: 36x48 | HO188: 36x48 | HP188: 36x48 | HQ188: 36x48 | HR188: 36x48 | HS188: 36x48 | HT188: 36x48 | HU188: 36x48 | HV188: 36x48 | HW188: 36x36 Cast-In | HX188: 16 X 28 | HY188: 24x30 | HZ188: 12x12 Cast-In | IA188: 12x12 Cast-In | IB188: 16x28 | IC188: 16x60 | ID188: 20 Dia. Cast-In | IE188: 20 Dia. Cast-In | IF188: n/a | IG188: n/a | IH188: n/a | II188: n/a | IJ188: n/a | IK188: n/a | IL188: n/a | IM188: n/a | IN188: n/a | IO188: n/a | IP188: n/a | IQ188: n/a | IR188: n/a | IS188: n/a | IT188: n/a | IU188: n/a | IV188: n/a | IW188: n/a | IX188: n/a | IY188: n/a | IZ188: n/a | JA188: n/a | JB188: 24x24 | JC188: 24 Dia. Cast-In | JD188: 24x24 | JE188: 24x24 | JF188: 6x12 Cast-In | JG188: 8x12 Cast-In | JH188: 10x12 Cast-In | JI188: 12x12 Cast-In | JJ188: 12x12 Cast-In | JK188: 15x12 Cast-In | JL188: 18x12 Cast-In | JM188: 22x12 Cast-In | JN188: 24x12 Cast-In | JO188: 6x12 Cast-In | JP188: 10x12 Cast-In | JQ188: 12x12 Cast-In | JR188: 22x12 Cast-In | JS188: 24x12 Cast-In | JT188: 6x12 Cast-In | JU188: 8x12 Cast-In | JV188: 10x12 Cast-In | JW188: 12x12 Cast-In | JX188: 12x12 Cast-In | JY188: 15x12 Cast-In | JZ188: 18x12 Cast-In | KA188: 22x12 Cast-In | KB188: 24x12 Cast-In | KC188: 6x12 Cast-In | KD188: 8x12 Cast-In | KE188: 10x12 Cast-In | KF188: 12x12 Cast-In | KG188: 12x12 Cast-In | KH188: 15x12 Cast-In | KI188: 18x12 Cast-In | KJ188: 22x12 Cast-In | KK188: 24x12 Cast-In | KL188: 6x12 Cast-In | KM188: 10x12 Cast-In | KN188: 12x12 Cast-In | KO188: 22x12 Cast-In | KP188: 24x12 Cast-In | KQ188: 6x12 Cast-In | KR188: 10x12 Cast-In | KS188: 12x12 Cast-In | KT188: 22x12 Cast-In | KU188: 24x12 Cast-In | KV188: 22x22 | KW188: 24 Dia. | KX188: 24 Dia. | KY188: 24x46 | KZ188: 24x46 | LA188: 30x30 | LB188: 22x22 | LC188: 24x36 | LD188: 24x72 | LE188: 24x36 | LF188: 17x30 | LG188: 15x61 | LH188: 30x46 | LI188: 24x24 | LJ188: 24 Dia. | LK188: 24 Dia. | LL188: 24 Dia. Cast-In | LM188: 24 Dia. | LN188: 24 Dia. Cast-In | LO188: 24 Dia. | LP188: 24 Dia. Cast-In | LQ188: 24 Dia. | LR188: 24 Dia. Cast-In | LS188: 24 Dia. | LT188: 24 Dia. Cast-In | LU188: 24 Dia. | LV188: 24 Dia. Cast-In | LW188: 24 Dia. | LX188: 24 Dia. Cast-In | LY188: 24 Dia. | LZ188: 24 Dia. | MA188: 24 Dia. | MB188: 24 Dia. | MC188: 24 Dia. | MD188: 24 Dia. | ME188: 24 Dia. | MF188: 24 Dia. | MG188: 21.5 Dia. Cast-In | MH188: 21.5 Dia. Cast-In | MI188: 21.5 Dia. Cast-In | MJ188: 24 Dia. | MK188: 24 Dia. | ML188: 24 Dia. | MM188: 24 Dia. | MN188: 24 Dia. | MO188: 30 Dia. | MP188: 30 Dia. | MQ188: 24 Dia. | MR188: 24 Dia. | MS188: 24 Dia. | MT188: 24 Dia. | MU188: 24 Dia. | MV188: 24 Dia. | MW188: 24 Dia. | MX188: 24 Dia. | MY188: 24 Dia. | MZ188: 24 Dia. | NA188: 24 Dia. | NB188: 24 Dia. | NC188: 24 Dia. | ND188: 24 Dia. | NE188: 24 Dia. Cast-In | NF188: 24 Dia. | NG188: 24 Dia. Cast-In | NH188: 24 Dia. | NI188: 24 Dia. | NJ188: 24 Dia. | NK188: 24 Dia. | NL188: 30 Dia. | NM188: 30 Dia. Cast-In | NN188: 30 Dia. | NO188: 30 Dia. Cast-In | NP188: 34 Dia. | NQ188: 34 Dia. Cast-In | NR188: 24 Dia. | NS188: 24 Dia. | NT188: 24 Dia. | NU188: 24 Dia. | NV188: 24 Dia. | NW188: 24 Dia. | NX188: 24 Dia. | NY188: 24 Dia. Cast-In | NZ188: 24 Dia. | OA188: 21.5 Dia. Cast-In | OB188: 24 Dia. | OC188: 24 Dia. | OD188: 24 Dia. Cast-In | OE188: 24 Dia. Cast-In | OF188: 30 Dia. | OG188: 30 Dia. Cast-In | OH188: 34 Dia. | OI188: 34 Dia. Cast-In | OJ188: 24x24 | OK188: 24x24 Cast-In | OL188: 24 Dia. | OM188: 24 Dia. Cast-In | ON188: 24 Dia. | OO188: 24x48 | OP188: 24x48 | OQ188: 24x36 | OR188: 24x36 | OS188: 24x36 | OT188: 24x72 | OU188: 24x72 | OV188: 24x112 | OW188: 24x112 | OX188: 24x24 | OY188: 30x30 | OZ188: 30x30 | PA188: 30x63 | PB188: 30x63 | PC188: 30x96 | PD188: 30x96 | PE188: 30x30 | PF188: 30x30 | PG188: 30x63 | PH188: 30x63 | PI188: 30x96 | PJ188: 30x96 | PK188: 30x30 | PL188: 30x30 | PM188: 30x63 | PN188: 30x63 | PO188: 30x96 | PP188: 30x96 | PQ188: 24x30 | PR188: 24x36 | PS188: 24x36 | PT188: 28x34 | PU188: 28x34 | PV188: (2) 28x34 | PW188: 28x34 | PX188: 28x34 | PY188: (2) 28x34 | PZ188: 28x34 | QA188: (2) 28x34 | QB188: (4) 28x34 | QC188: 15x43 | QD188: 24x30 | QE188: 24x30 | QF188: 24x36 | QG188: 24x36 | QH188: 20x34 | QI188: 30x30 | QJ188: 30x30 | QK188: 28x64 | QL188: 28x64 | QM188: 28x97 | QN188: 28x97 | QO188: 30x30 | QP188: 24x24 | QQ188: 24x30 | QR188: 16x28 Cast-In | QS188: 24x24 | QT188: 24x36 Cast-In | QU188: 24x24 | QV188: 36x36 | QW188: 36x36 Cast-In | QX188: 36x36 | QY188: 36x36 Cast-In | QZ188: 24x24 | RA188: 24x24 Cast-In | RB188: 18x18 | RC188: 18x18 Cast-In | RD188: 45x48 | RE188: 24x48 | RF188: 24x24 Cast-In | RG188: 32x32 | RH188: (2) 32x32 | RI188: (4) 32x32 | RJ188: 26x26 | RK188: 24x30 | RL188: 24x36 | RM188: 24x36 Cast-In | RN188: 36x36 | RO188: 18x36 | RP188: 18x36 | RQ188: 30x30 | RR188: 30x30 | RS188: 30x62 | RT188: 30x30 | RU188: 30x30 Cast-In | RV188: 30x30 | RW188: 30x30 Cast-In | RX188: 26x26 Cast-In | RY188: 30x30 | RZ188: 24x24 | SA188: 12x12 Cast-In | SB188: 12x12 Cast-In | SC188: 11x13 | SD188: 12x20 Cast-In | SE188: 12x30 Cast-In | SF188: 12x30 Cast-In | SG188: 22.5x22.5 | SH188: 32x32 | SI188: 48x48 | SJ188: 48x96 | SK188: n/a | SL188: n/a | SM188: n/a | SN188: n/a | SO188: n/a | SP188: n/a | SQ188: n/a | SR188: n/a | SS188: n/a | ST188: n/a | SU188: n/a | SV188: n/a | SW188: n/a | SX188: n/a | SY188: n/a | SZ188: n/a | TA188: n/a | TB188: n/a | TC188: n/a | TD188: n/a | TE188: 24x24 | TF188: 24x24 | TG188: 24x24 | TH188: 36x36 | TI188: 36x36 | TJ188: 36x36 | TK188: 36x48 | TL188: 36x48 | TM188: 36x48 | TN188: 48x48 | TO188: 48x48 | TP188: 48x48 | TQ188: 60x60 | TR188: 60x60 | TS188: 60x60 | TT188: 72x72 | TU188: 72x72 | TV188: 72x72 | TW188: 36 Dia. | TX188: 36 Dia. | TY188: 36 Dia. | TZ188: 48 Dia. | UA188: 48 Dia. | UB188: 48 Dia. | UC188: 60 Dia. | UD188: 60 Dia. | UE188: 60 Dia. | UF188: 72 Dia. | UG188: 72 Dia. | UH188: 72 Dia. | UI188: 36x36 | UJ188: 36x36 | UK188: 36x36 | UL188: 36x48 | UM188: 36x48 | UN188: 36x48 | UO188: 48x48 | UP188: 48x48 | UQ188: 48x48 | UR188: 60x60 | US188: 60x60 | UT188: 60x60 | UU188: 72x72 | UV188: 72x72 | UW188: 72x72 | UX188: 36x36 | UY188: 36x36 | UZ188: 36x36 | VA188: 48x48 | VB188: 48x48 | VC188: 48x48 | VD188: 60x60 | VE188: 60x60 | VF188: 60x60 | VG188: 72x72 | VH188: 72x72 | VI188: 72x72 | VJ188: 36 Dia. | VK188: 36 Dia. | VL188: 36 Dia. | VM188: 48 Dia. | VN188: 48 Dia. | VO188: 48 Dia. | VP188: 60 Dia. | VQ188: 60 Dia. | VR188: 60 Dia. | VS188: 72 Dia. | VT188: 72 Dia. | VU188: 72 Dia. | VV188: n/a | VW188: n/a | VX188: n/a | VY188: n/a | VZ188: n/a | WA188: n/a | WB188: 24x24 Cast-In | WC188: 24x30 Cast-In | WD188: 24x36 Cast-In | WE188: 24x42 Cast-In | WF188: 24x48 Cast-In | WG188: 29x59 Cast-In | WH188: 30x30 Cast-In | WI188: 30x36 Cast-In | WJ188: 30x42 Cast-In | WK188: 30x48 Cast-In | WL188: 30x54 Cast-In | WM188: 30x60 Cast-In | WN188: 36x36 Cast-In | WO188: 36x42 Cast-In | WP188: 36x48 Cast-In | WQ188: 36x54 Cast-In | WR188: 36x60 Cast-In | WS188: 36x66 Cast-In | WT188: 36x72 Cast-In | WU188: 42x42 Cast-In | WV188: 42x42 Cast-In | WW188: 44x68 Cast-In | WX188: 48x42 Cast-In | WY188: 48x48 Cast-In | WZ188: 54x42 Cast-In | XA188: 54x48 Cast-In | XB188: 54x52 Cast-In | XC188: 54x54 Cast-In | XD188: 58x58 Cast-In | XE188: 60x30 Cast-In | XF188: 60x36 Cast-In | XG188: 60x42 Cast-In | XH188: 60x48 Cast-In | XI188: 60x54 Cast-In | XJ188: 60x60 Cast-In | XK188: 66x36 Cast-In | XL188: 66x42 Cast-In | XM188: 66x48 Cast-In | XN188: 66x54 Cast-In | XO188: 66x60 Cast-In | XP188: 66x66 Cast-In | XQ188: 72x36 Cast-In | XR188: 72x42 Cast-In | XS188: 72x48 Cast-In | XT188: 72x54 Cast-In | XU188: 72x60 Cast-In | XV188: 24x24 Cast-In | XW188: 24x30 Cast-In | XX188: 24x36 Cast-In | XY188: 24x42 Cast-In | XZ188: 24x48 Cast-In | YA188: 30x30 Cast-In | YB188: 30x36 Cast-In | YC188: 30x42 Cast-In | YD188: 30x48 Cast-In | YE188: 30x54 Cast-In | YF188: 30x60 Cast-In | YG188: 36x36 Cast-In | YH188: 36x42 Cast-In | YI188: 36x48 Cast-In | YJ188: 36x54 Cast-In | YK188: 36x60 Cast-In | YL188: 36x66 Cast-In | YM188: 36x72 Cast-In | YN188: 42x42 Cast-In | YO188: 36x54 Cast-In | YP188: 42x42 Cast-In | YQ188: 48x42 Cast-In | YR188: 48x48 Cast-In | YS188: 54x42 Cast-In | YT188: 54x48 Cast-In | YU188: 54x54 Cast-In | YV188: 60x30 Cast-In | YW188: 60x36 Cast-In | YX188: 60x42 Cast-In | YY188: 60x48 Cast-In | YZ188: 60x54 Cast-In | ZA188: 60x60 Cast-In | ZB188: 66x36 Cast-In | ZC188: 66x42 Cast-In | ZD188: 66x48 Cast-In | ZE188: 66x54 Cast-In | ZF188: 66x60 Cast-In | ZG188: 66x66 Cast-In | ZH188: 72x36 Cast-In | ZI188: 72x42 Cast-In | ZJ188: 72x48 Cast-In | ZK188: 72x54 Cast-In | ZL188: 72x60 Cast-In | ZM188: 24x24 Cast-In | ZN188: 24x30 Cast-In | ZO188: 24x36 Cast-In | ZP188: 24x42 Cast-In | ZQ188: 24x48 Cast-In | ZR188: 30x30 Cast-In | ZS188: 30x36 Cast-In | ZT188: 30x42 Cast-In | ZU188: 30x48 Cast-In | ZV188: 30x54 Cast-In | ZW188: 30x60 Cast-In | ZX188: 36x36 Cast-In | ZY188: 36x42 Cast-In | ZZ188: 36x48 Cast-In | AAA188: 36x54 Cast-In | AAB188: 36x60 Cast-In | AAC188: 36x66 Cast-In | AAD188: 36x72 Cast-In | AAE188: 42x42 Cast-In | AAF188: 42x42 Cast-In | AAG188: 48x42 Cast-In | AAH188: 48x48 Cast-In | AAI188: 52x42 Cast-In | AAJ188: 54x48 Cast-In | AAK188: 54x54 Cast-In | AAL188: 58x34 Cast-In | AAM188: 60x30 Cast-In | AAN188: 60x36 Cast-In | AAO188: 60x42 Cast-In | AAP188: 60x48 Cast-In | AAQ188: 60x54 Cast-In | AAR188: 60x36 Cast-In | AAS188: 66x36 Cast-In | AAT188: 66x42 Cast-In | AAU188: 66x48 Cast-In | AAV188: 66x54 Cast-In | AAW188: 66x60 Cast-In | AAX188: 66x66 Cast-In | AAY188: 72x36 Cast-In | AAZ188: 72x42 Cast-In | ABA188: 72x48 Cast-In | ABB188: 72x54 Cast-In | ABC188: 72x60 Cast-In | ABD188: 24x24 Cast-In | ABE188: 24x30 Cast-In | ABF188: 24x36 Cast-In | ABG188: 24x42 Cast-In | ABH188: 24x48 Cast-In | ABI188: 30x30 Cast-In | ABJ188: 30x36 Cast-In | ABK188: 30x42 Cast-In | ABL188: 30x48 Cast-In | ABM188: 30x54 Cast-In | ABN188: 30x60 Cast-In | ABO188: 36x36 Cast-In | ABP188: 36x42 Cast-In | ABQ188: 36x48 Cast-In | ABR188: 36x54 Cast-In | ABS188: 36x60 Cast-In | ABT188: 36x66 Cast-In | ABU188: 36x72 Cast-In | ABV188: 36x78 Cast-In | ABW188: 42x42 Cast-In | ABX188: 42x60 Cast-In | ABY188: 60x60 Cast-In | ABZ188: 42x42 Cast-In | ACA188: 48x42 Cast-In | ACB188: 48x48 Cast-In | ACC188: 54x42 Cast-In | ACD188: 54x48 Cast-In | ACE188: 54x54 Cast-In | ACF188: 60x30 Cast-In | ACG188: 60x36 Cast-In | ACH188: 60x42 Cast-In | ACI188: 60x48 Cast-In | ACJ188: 60x54 Cast-In | ACK188: 60x60 Cast-In | ACL188: 66x36 Cast-In | ACM188: 66x42 Cast-In | ACN188: 66x48 Cast-In | ACO188: 66x54 Cast-In | ACP188: 66x60 Cast-In | ACQ188: 66x66 Cast-In | ACR188: 72x36 Cast-In | ACS188: 72x42 Cast-In | ACT188: 72x48 Cast-In | ACU188: 72x54 Cast-In | ACV188: 72x60 Cast-In | ACW188: 78x48 Cast-In | ACX188: 96x72 Cast-In | ACY188: 24x24 Cast-In | ACZ188: 24x30 Cast-In | ADA188: 24x36 Cast-In | ADB188: 24x42 Cast-In | ADC188: 24x48 Cast-In | ADD188: 30x30 Cast-In | ADE188: 30x36 Cast-In | ADF188: 30x42 Cast-In | ADG188: 30x48 Cast-In | ADH188: 30x54 Cast-In | ADI188: 30x60 Cast-In | ADJ188: 36x36 Cast-In | ADK188: 36x42 Cast-In | ADL188: 36x48 Cast-In | ADM188: 36x54 Cast-In | ADN188: 36x60 Cast-In | ADO188: 36x66 Cast-In | ADP188: 36x72 Cast-In | ADQ188: 42x42 Cast-In | ADR188: 42x42 Cast-In | ADS188: 48x42 Cast-In | ADT188: 48x48 Cast-In | ADU188: 54x42 Cast-In | ADV188: 54x48 Cast-In | ADW188: 54x54 Cast-In | ADX188: 60x30 Cast-In | ADY188: 60x36 Cast-In | ADZ188: 60x42 Cast-In | AEA188: 60x48 Cast-In | AEB188: 60x54 Cast-In | AEC188: 60x60 Cast-In | AED188: 66x36 Cast-In | AEE188: 66x42 Cast-In | AEF188: 66x48 Cast-In | AEG188: 66x54 Cast-In | AEH188: 66x60 Cast-In | AEI188: 66x66 Cast-In | AEJ188: 72x36 Cast-In | AEK188: 72x42 Cast-In | AEL188: 72x48 Cast-In | AEM188: 72x54 Cast-In | AEN188: 72x60 Cast-In | AEO188: 24x24 Cast-In | AEP188: 24x30 Cast-In | AEQ188: 24x36 Cast-In | AER188: 24x42 Cast-In | AES188: 24x48 Cast-In | AET188: 30x30 Cast-In | AEU188: 30x36 Cast-In | AEV188: 30x42 Cast-In | AEW188: 30x48 Cast-In | AEX188: 36x36 Cast-In | AEY188: 36x42 Cast-In | AEZ188: 36x48 Cast-In | AFA188: 42x42 Cast-In | AFB188: 48x42 Cast-In | AFC188: 48x48 Cast-In | AFD188: 54x42 Cast-In | AFE188: 54x48 Cast-In | AFF188: 60x48 Cast-In | AFG188: 60x60 Cast-In | AFH188: 72x48 Cast-In | AFI188: 72x60 Cast-In | AFJ188: 72x72 Cast-In | AFK188: 24x24 Cast-In | AFL188: 24x30 Cast-In | AFM188: 24x36 Cast-In | AFN188: 24x42 Cast-In | AFO188: 24x48 Cast-In | AFP188: 30x30 Cast-In | AFQ188: 30x36 Cast-In | AFR188: 30x42 Cast-In | AFS188: 30x48 Cast-In | AFT188: 36x36 Cast-In | AFU188: 36x42 Cast-In | AFV188: 36x48 Cast-In | AFW188: 36x60 Cast-In | AFX188: 36x80 Cast-In | AFY188: 42x42 Cast-In | AFZ188: 48x42 Cast-In | AGA188: 48x48 Cast-In | AGB188: 54x42 Cast-In | AGC188: 54x48 Cast-In | AGD188: 60x48 Cast-In | AGE188: 60x60 Cast-In | AGF188: 72x48 Cast-In | AGG188: 72x60 Cast-In | AGH188: 24x24 Cast-In | AGI188: 24x30 Cast-In | AGJ188: 24x36 Cast-In | AGK188: 24x42 Cast-In | AGL188: 24x48 Cast-In | AGM188: 30x30 Cast-In | AGN188: 30x36 Cast-In | AGO188: 30x42 Cast-In | AGP188: 30x48 Cast-In | AGQ188: 36x36 Cast-In | AGR188: 36x42 Cast-In | AGS188: 36x48 Cast-In | AGT188: 42x42 Cast-In | AGU188: 48x42 Cast-In | AGV188: 48x48 Cast-In | AGW188: 54x42 Cast-In | AGX188: 54x48 Cast-In | AGY188: 60x48 Cast-In | AGZ188: 60x60 Cast-In | AHA188: 72x48 Cast-In | AHB188: 72x60 Cast-In | AHC188: 72x72 Cast-In
B189: Grade Ring Compatibility | C189: Grade Ring Compatible | D189: Yes/No | I189: No | J189: No | K189: No | L189: No | M189: No | N189: No | O189: Yes | P189: Yes | Q189: Yes | R189: Yes | S189: Yes | T189: Yes | U189: Yes | V189: Yes | W189: Yes | X189: Yes | Y189: Yes | Z189: Yes | AA189: Yes | AB189: Yes | AC189: Yes | AD189: Yes | AE189: Yes | AF189: Yes | AG189: Yes | AH189: Yes | AI189: Yes | AJ189: Yes | AK189: Yes | AL189: Yes | AM189: Yes | AN189: Yes | AO189: Yes | AP189: Yes | AQ189: Yes | AR189: Yes | AS189: Yes | AT189: Yes | AU189: Yes | AV189: Yes | AW189: Yes | AX189: Yes | AY189: Yes | AZ189: Yes | BA189: Yes | BB189: Yes | BC189: Yes | BD189: Yes | BE189: Yes | BF189: Yes | BG189: Yes | BH189: Yes | BI189: Yes | BJ189: Yes | BK189: Yes | BL189: Yes | BM189: Yes | BN189: Yes | BO189: Yes | BP189: Yes | BQ189: Yes | BR189: Yes | BS189: Yes | BT189: Yes | BU189: Yes | BV189: Yes | BW189: Yes | BX189: Yes | BY189: Yes | BZ189: Yes | CA189: Yes | CB189: Yes | CC189: Yes | CD189: Yes | CE189: Yes | CF189: Yes | CG189: Yes | CH189: Yes | CI189: Yes | CJ189: Yes | CK189: Yes | CL189: Yes | CM189: Yes | CN189: Yes | CO189: Yes | CP189: Yes | CQ189: Yes | CR189: Yes | CS189: Yes | CT189: No | CU189: No | CV189: No | CW189: No | CX189: No | CY189: No | CZ189: No | DA189: No | DB189: No | DC189: No | DD189: No | DE189: No | DF189: No | DG189: No | DH189: No | DI189: No | DJ189: No | DK189: No | DL189: No | DM189: No | DN189: No | DO189: No | DP189: No | DQ189: No | DR189: No | DS189: No | DT189: No | DU189: No | DV189: No | DW189: No | DX189: No | DY189: No | DZ189: No | EA189: No | EB189: No | EC189: No | ED189: Yes | EE189: Yes | EF189: Yes | EG189: Yes | EH189: Yes | EI189: Yes | EJ189: Yes | EK189: Yes | EL189: Yes | EM189: Yes | EN189: Yes | EO189: Yes | EP189: Yes | EQ189: Yes | ER189: Yes | ES189: Yes | ET189: Yes | EU189: Yes | EV189: Yes | EW189: Yes | EX189: Yes | EY189: Yes | EZ189: Yes | FA189: Yes | FB189: Yes | FC189: Yes | FD189: Yes | FE189: Yes | FF189: Yes | FG189: Yes | FH189: Yes | FI189: Yes | FJ189: Yes | FK189: Yes | FL189: Yes | FM189: Yes | FN189: Yes | FO189: No | FP189: Yes | FQ189: Yes | FR189: Yes | FS189: Yes | FT189: Yes | FU189: Yes | FV189: No | FW189: Yes | FX189: Yes | FY189: Yes | FZ189: No | GA189: Yes | GB189: Yes | GC189: Yes | GD189: Yes | GE189: Yes | GF189: No | GG189: No | GH189: Yes | GI189: Yes | GJ189: Yes | GK189: Yes | GL189: Yes | GM189: Yes | GN189: Yes | GO189: No | GP189: Yes | GQ189: Yes | GR189: Yes | GS189: Yes | GT189: Yes | GU189: No | GV189: No | GW189: No | GX189: No | GY189: Yes | GZ189: No | HA189: Yes | HB189: No | HC189: Yes | HD189: Yes | HE189: Yes | HF189: Yes | HG189: No | HH189: No | HI189: No | HJ189: No | HK189: No | HL189: No | HM189: No | HN189: No | HO189: No | HP189: No | HQ189: No | HR189: No | HS189: No | HT189: No | HU189: No | HV189: No | HW189: No | HX189: No | HY189: Yes | HZ189: No | IA189: No | IB189: No | IC189: No | ID189: No | IE189: No
B190: Top Slab or Cone Required | C190: Top Slab or Cone Required | D190: Yes/No | I190: Yes | J190: Yes | K190: Yes | L190: Yes | M190: Yes | N190: Yes | O190: Yes | P190: Yes | Q190: Yes | R190: Yes | S190: Yes | T190: Yes | U190: Yes | V190: Yes | W190: Yes | X190: Yes | Y190: Yes | Z190: Yes | AA190: Yes | AB190: Yes | AC190: Yes | AD190: Yes | AE190: Yes | AF190: Yes | AG190: Yes | AH190: Yes | AI190: Yes | AJ190: Yes | AK190: Yes | AL190: Yes | AM190: Yes | AN190: Yes | AO190: Yes | AP190: Yes | AQ190: Yes | AR190: Yes | AS190: Yes | AT190: Yes | AU190: Yes | AV190: Yes | AW190: Yes | AX190: Yes | AY190: Yes | AZ190: Yes | BA190: Yes | BB190: Yes | BC190: Yes | BD190: Yes | BE190: Yes | BF190: Yes | BG190: Yes | BH190: Yes | BI190: Yes | BJ190: Yes | BK190: Yes | BL190: Yes | BM190: Yes | BN190: Yes | BO190: Yes | BP190: Yes | BQ190: Yes | BR190: Yes | BS190: Yes | BT190: Yes | BU190: Yes | BV190: Yes | BW190: Yes | BX190: Yes | BY190: Yes | BZ190: Yes | CA190: Yes | CB190: Yes | CC190: Yes | CD190: Yes | CE190: Yes | CF190: Yes | CG190: Yes | CH190: Yes | CI190: Yes | CJ190: Yes | CK190: Yes | CL190: Yes | CM190: Yes | CN190: Yes | CO190: Yes | CP190: Yes | CQ190: Yes | CR190: Yes | CS190: Yes | CT190: No | CU190: Yes | CV190: Yes | CW190: Yes | CX190: Yes | CY190: Yes | CZ190: Yes | DA190: Yes | DB190: Yes | DC190: Yes | DD190: Yes | DE190: Yes | DF190: Yes | DG190: Yes | DH190: Yes | DI190: Yes | DJ190: Yes | DK190: Yes | DL190: Yes | DM190: Yes | DN190: Yes | DO190: Yes | DP190: Yes | DQ190: Yes | DR190: Yes | DS190: Yes | DT190: Yes | DU190: Yes | DV190: Yes | DW190: Yes | DX190: Yes | DY190: Yes | DZ190: Yes | EA190: Yes | EB190: Yes | EC190: Yes | ED190: Yes | EE190: Yes | EF190: Yes | EG190: Yes | EH190: Yes | EI190: Yes | EJ190: Yes | EK190: Yes | EL190: Yes | EM190: Yes | EN190: Yes | EO190: Yes | EP190: Yes | EQ190: Yes | ER190: Yes | ES190: Yes | ET190: Yes | EU190: Yes | EV190: Yes | EW190: Yes | EX190: Yes | EY190: Yes | EZ190: No | FA190: No | FB190: No | FC190: No | FD190: No | FE190: No | FF190: No | FG190: No | FH190: No | FI190: No | FJ190: No | FK190: No | FL190: No | FM190: No | FN190: No | FO190: No | FP190: No | FQ190: No | FR190: No | FS190: No | FT190: No | FU190: No | FV190: No | FW190: No | FX190: No | FY190: No | FZ190: No | GA190: No | GB190: No | GC190: No | GD190: No | GE190: No | GF190: Yes | GG190: Yes | GH190: No | GI190: No | GJ190: No | GK190: No | GL190: No | GM190: No | GN190: No | GO190: No | GP190: No | GQ190: No | GR190: No | GS190: No | GT190: No | GU190: No | GV190: No | GW190: No | GX190: No | GY190: No | GZ190: No | HA190: No | HB190: No | HC190: No | HD190: Yes | HE190: Yes | HF190: Yes | HG190: No | HH190: No | HI190: No | HJ190: No | HK190: No | HL190: No | HM190: No | HN190: No | HO190: No | HP190: No | HQ190: No | HR190: No | HS190: No | HT190: No | HU190: No | HV190: No | HW190: No | HX190: Yes | HY190: No | HZ190: No | IA190: No | IB190: Yes | IC190: Yes | ID190: Yes | IE190: Yes
B191: Casting/Hatch Designation | C191: Designation: | D191: Designation | F191: Hatch | G191: Hatch | H191: Casting | I191: Casting | J191: Casting | K191: Casting | L191: Casting | M191: Casting | N191: Casting | O191: Casting | P191: Casting | Q191: Casting | R191: Casting | S191: Casting | T191: Casting | U191: Casting | V191: Casting | W191: Casting | X191: Casting | Y191: Casting | Z191: Casting | AA191: Casting | AB191: Casting | AC191: Casting | AD191: Casting | AE191: Casting | AF191: Casting | AG191: Casting | AH191: Casting | AI191: Casting | AJ191: Casting | AK191: Casting | AL191: Casting | AM191: Casting | AN191: Casting | AO191: Casting | AP191: Casting | AQ191: Casting | AR191: Casting | AS191: Casting | AT191: Casting | AU191: Casting | AV191: Casting | AW191: Casting | AX191: Casting | AY191: Casting | AZ191: Casting | BA191: Casting | BB191: Casting | BC191: Casting | BD191: Casting | BE191: Casting | BF191: Casting | BG191: Casting | BH191: Casting | BI191: Casting | BJ191: Casting | BK191: Casting | BL191: Casting | BM191: Casting | BN191: Casting | BO191: Casting | BP191: Casting | BQ191: Casting | BR191: Casting | BS191: Casting | BT191: Casting | BU191: Casting | BV191: Casting | BW191: Casting | BX191: Casting | BY191: Casting | BZ191: Casting | CA191: Casting | CB191: Casting | CC191: Casting | CD191: Casting | CE191: Casting | CF191: Casting | CG191: Casting | CH191: Casting | CI191: Casting | CJ191: Casting | CK191: Casting | CL191: Casting | CM191: Casting | CN191: Casting | CO191: Casting | CP191: Casting | CQ191: Casting | CR191: Casting | CS191: Casting | CT191: Casting | CU191: Casting | CV191: Casting | CW191: Casting | CX191: Casting | CY191: Casting | CZ191: Casting | DA191: Casting | DB191: Casting | DC191: Casting | DD191: Casting | DE191: Casting | DF191: Casting | DG191: Casting | DH191: Casting | DI191: Casting | DJ191: Casting | DK191: Casting | DL191: Casting | DM191: Casting | DN191: Casting | DO191: Casting | DP191: Casting | DQ191: Casting | DR191: Casting | DS191: Casting | DT191: Casting | DU191: Casting | DV191: Casting | DW191: Casting | DX191: Casting | DY191: Casting | DZ191: Casting | EA191: Casting | EB191: Casting | EC191: Casting | ED191: Casting | EE191: Casting | EF191: Casting | EG191: Casting | EH191: Casting | EI191: Casting | EJ191: Casting | EK191: Casting | EL191: Casting | EM191: Casting | EN191: Casting | EO191: Casting | EP191: Casting | EQ191: Casting | ER191: Casting | ES191: Casting | ET191: Casting | EU191: Casting | EV191: Casting | EW191: Casting | EX191: Casting | EY191: Casting | EZ191: Casting | FA191: Casting | FB191: Casting | FC191: Casting | FD191: Casting | FE191: Casting | FF191: Casting | FG191: Casting | FH191: Casting | FI191: Casting | FJ191: Casting | FK191: Casting | FL191: Casting | FM191: Casting | FN191: Casting | FO191: Casting | FP191: Casting | FQ191: Casting | FR191: Casting | FS191: Casting | FT191: Casting | FU191: Casting | FV191: Casting | FW191: Casting | FX191: Casting | FY191: Casting | FZ191: Casting | GA191: Casting | GB191: Casting | GC191: Casting | GD191: Casting | GE191: Casting | GF191: Casting | GG191: Casting | GH191: Casting | GI191: Casting | GJ191: Casting | GK191: Casting | GL191: Casting | GM191: Casting | GN191: Casting | GO191: Casting | GP191: Casting | GQ191: Casting | GR191: Casting | GS191: Casting | GT191: Casting | GU191: Casting | GV191: Casting | GW191: Casting | GX191: Casting | GY191: Casting | GZ191: Casting | HA191: Casting | HB191: Casting | HC191: Casting | HD191: Casting | HE191: Casting | HF191: Casting | HG191: Casting | HH191: Casting | HI191: Casting | HJ191: Casting | HK191: Casting | HL191: Casting | HM191: Casting | HN191: Casting | HO191: Casting | HP191: Casting | HQ191: Casting | HR191: Casting | HS191: Casting | HT191: Casting | HU191: Casting | HV191: Casting | HW191: Casting | HX191: Casting | HY191: Casting | HZ191: Casting | IA191: Casting | IB191: Casting | IC191: Casting | ID191: Casting | IE191: Casting | IF191: Casting | IG191: Casting | IH191: Casting | II191: Casting | IJ191: Casting | IK191: Casting | IL191: Casting | IM191: Casting | IN191: Casting | IO191: Casting | IP191: Casting | IQ191: Casting | IR191: Casting | IS191: Casting | IT191: Casting | IU191: Casting | IV191: Casting | IW191: Casting | IX191: Casting | IY191: Casting | IZ191: Casting | JA191: Casting | JB191: Casting | JC191: Casting | JD191: Casting | JE191: Casting | JF191: Casting | JG191: Casting | JH191: Casting | JI191: Casting | JJ191: Casting | JK191: Casting | JL191: Casting | JM191: Casting | JN191: Casting | JO191: Casting | JP191: Casting | JQ191: Casting | JR191: Casting | JS191: Casting | JT191: Casting | JU191: Casting | JV191: Casting | JW191: Casting | JX191: Casting | JY191: Casting | JZ191: Casting | KA191: Casting | KB191: Casting | KC191: Casting | KD191: Casting | KE191: Casting | KF191: Casting | KG191: Casting | KH191: Casting | KI191: Casting | KJ191: Casting | KK191: Casting | KL191: Casting | KM191: Casting | KN191: Casting | KO191: Casting | KP191: Casting | KQ191: Casting | KR191: Casting | KS191: Casting | KT191: Casting | KU191: Casting | KV191: Casting | KW191: Casting | KX191: Casting | KY191: Casting | KZ191: Casting | LA191: Casting | LB191: Casting | LC191: Casting | LD191: Casting | LE191: Casting | LF191: Casting | LG191: Casting | LH191: Casting | LI191: Casting | LJ191: Casting | LK191: Casting | LL191: Casting | LM191: Casting | LN191: Casting | LO191: Casting | LP191: Casting | LQ191: Casting | LR191: Casting | LS191: Casting | LT191: Casting | LU191: Casting | LV191: Casting | LW191: Casting | LX191: Casting | LY191: Casting | LZ191: Casting | MA191: Casting | MB191: Casting | MC191: Casting | MD191: Casting | ME191: Casting | MF191: Casting | MG191: Casting | MH191: Casting | MI191: Casting | MJ191: Casting | MK191: Casting | ML191: Casting | MM191: Casting | MN191: Casting | MO191: Casting | MP191: Casting | MQ191: Casting | MR191: Casting | MS191: Casting | MT191: Casting | MU191: Casting | MV191: Casting | MW191: Casting | MX191: Casting | MY191: Casting | MZ191: Casting | NA191: Casting | NB191: Casting | NC191: Casting | ND191: Casting | NE191: Casting | NF191: Casting | NG191: Casting | NH191: Casting | NI191: Casting | NJ191: Casting | NK191: Casting | NL191: Casting | NM191: Casting | NN191: Casting | NO191: Casting | NP191: Casting | NQ191: Casting | NR191: Casting | NS191: Casting | NT191: Casting | NU191: Casting | NV191: Casting | NW191: Casting | NX191: Casting | NY191: Casting | NZ191: Casting | OA191: Casting | OB191: Casting | OC191: Casting | OD191: Casting | OE191: Casting | OF191: Casting | OG191: Casting | OH191: Casting | OI191: Casting | OJ191: Casting | OK191: Casting | OL191: Casting | OM191: Casting | ON191: Casting | OO191: Casting | OP191: Casting | OQ191: Casting | OR191: Casting | OS191: Casting | OT191: Casting | OU191: Casting | OV191: Casting | OW191: Casting | OX191: Casting | OY191: Casting | OZ191: Casting | PA191: Casting | PB191: Casting | PC191: Casting | PD191: Casting | PE191: Casting | PF191: Casting | PG191: Casting | PH191: Casting | PI191: Casting | PJ191: Casting | PK191: Casting | PL191: Casting | PM191: Casting | PN191: Casting | PO191: Casting | PP191: Casting | PQ191: Casting | PR191: Casting | PS191: Casting | PT191: Casting | PU191: Casting | PV191: Casting | PW191: Casting | PX191: Casting | PY191: Casting | PZ191: Casting | QA191: Casting | QB191: Casting | QC191: Casting | QD191: Casting | QE191: Casting | QF191: Casting | QG191: Casting | QH191: Casting | QI191: Casting | QJ191: Casting | QK191: Casting | QL191: Casting | QM191: Casting | QN191: Casting | QO191: Casting | QP191: Casting | QQ191: Casting | QR191: Casting | QS191: Casting | QT191: Casting | QU191: Casting | QV191: Casting | QW191: Casting | QX191: Casting | QY191: Casting | QZ191: Casting | RA191: Casting | RB191: Casting | RC191: Casting | RD191: Casting | RE191: Casting | RF191: Casting | RG191: Casting | RH191: Casting | RI191: Casting | RJ191: Casting | RK191: Casting | RL191: Casting | RM191: Casting | RN191: Casting | RO191: Casting | RP191: Casting | RQ191: Casting | RR191: Casting | RS191: Casting | RT191: Casting | RU191: Casting | RV191: Casting | RW191: Casting | RX191: Casting | RY191: Casting | RZ191: Casting | SA191: Casting | SB191: Casting | SC191: Casting | SD191: Casting | SE191: Casting | SF191: Casting | SG191: Casting | SH191: Casting | SI191: Casting | SJ191: Casting | SK191: Casting | SL191: Casting | SM191: Casting | SN191: Casting | SO191: Casting | SP191: Casting | SQ191: Casting | SR191: Casting | SS191: Casting | ST191: Casting | SU191: Casting | SV191: Casting | SW191: Casting | SX191: Casting | SY191: Casting | SZ191: Casting | TA191: Casting | TB191: Casting | TC191: Casting | TD191: Casting | TE191: Casting | TF191: Casting | TG191: Casting | TH191: Casting | TI191: Casting | TJ191: Casting | TK191: Casting | TL191: Casting | TM191: Casting | TN191: Casting | TO191: Casting | TP191: Casting | TQ191: Casting | TR191: Casting | TS191: Casting | TT191: Casting | TU191: Casting | TV191: Casting | TW191: Casting | TX191: Casting | TY191: Casting | TZ191: Casting | UA191: Casting | UB191: Casting | UC191: Casting | UD191: Casting | UE191: Casting | UF191: Casting | UG191: Casting | UH191: Casting | UI191: Casting | UJ191: Casting | UK191: Casting | UL191: Casting | UM191: Casting | UN191: Casting | UO191: Casting | UP191: Casting | UQ191: Casting | UR191: Casting | US191: Casting | UT191: Casting | UU191: Casting | UV191: Casting | UW191: Casting | UX191: Casting | UY191: Casting | UZ191: Casting | VA191: Casting | VB191: Casting | VC191: Casting | VD191: Casting | VE191: Casting | VF191: Casting | VG191: Casting | VH191: Casting | VI191: Casting | VJ191: Casting | VK191: Casting | VL191: Casting | VM191: Casting | VN191: Casting | VO191: Casting | VP191: Casting | VQ191: Casting | VR191: Casting | VS191: Casting | VT191: Casting | VU191: Casting | VV191: Casting | VW191: Casting | VX191: Casting | VY191: Casting | VZ191: Casting | WA191: Casting | WB191: Hatch | WC191: Hatch | WD191: Hatch | WE191: Hatch | WF191: Hatch | WG191: Hatch | WH191: Hatch | WI191: Hatch | WJ191: Hatch | WK191: Hatch | WL191: Hatch | WM191: Hatch | WN191: Hatch | WO191: Hatch | WP191: Hatch | WQ191: Hatch | WR191: Hatch | WS191: Hatch | WT191: Hatch | WU191: Hatch | WV191: Hatch | WW191: Hatch | WX191: Hatch | WY191: Hatch | WZ191: Hatch | XA191: Hatch | XB191: Hatch | XC191: Hatch | XD191: Hatch | XE191: Hatch | XF191: Hatch | XG191: Hatch | XH191: Hatch | XI191: Hatch | XJ191: Hatch | XK191: Hatch | XL191: Hatch | XM191: Hatch | XN191: Hatch | XO191: Hatch | XP191: Hatch | XQ191: Hatch | XR191: Hatch | XS191: Hatch | XT191: Hatch | XU191: Hatch | XV191: Hatch | XW191: Hatch | XX191: Hatch | XY191: Hatch | XZ191: Hatch | YA191: Hatch | YB191: Hatch | YC191: Hatch | YD191: Hatch | YE191: Hatch | YF191: Hatch | YG191: Hatch | YH191: Hatch | YI191: Hatch | YJ191: Hatch | YK191: Hatch | YL191: Hatch | YM191: Hatch | YN191: Hatch | YO191: Hatch | YP191: Hatch | YQ191: Hatch | YR191: Hatch | YS191: Hatch | YT191: Hatch | YU191: Hatch | YV191: Hatch | YW191: Hatch | YX191: Hatch | YY191: Hatch | YZ191: Hatch | ZA191: Hatch | ZB191: Hatch | ZC191: Hatch | ZD191: Hatch | ZE191: Hatch | ZF191: Hatch | ZG191: Hatch | ZH191: Hatch | ZI191: Hatch | ZJ191: Hatch | ZK191: Hatch | ZL191: Hatch | ZM191: Hatch | ZN191: Hatch | ZO191: Hatch | ZP191: Hatch | ZQ191: Hatch | ZR191: Hatch | ZS191: Hatch | ZT191: Hatch | ZU191: Hatch | ZV191: Hatch | ZW191: Hatch | ZX191: Hatch | ZY191: Hatch | ZZ191: Hatch | AAA191: Hatch | AAB191: Hatch | AAC191: Hatch | AAD191: Hatch | AAE191: Hatch | AAF191: Hatch | AAG191: Hatch | AAH191: Hatch | AAI191: Hatch | AAJ191: Hatch | AAK191: Hatch | AAL191: Hatch | AAM191: Hatch | AAN191: Hatch | AAO191: Hatch | AAP191: Hatch | AAQ191: Hatch | AAR191: Hatch | AAS191: Hatch | AAT191: Hatch | AAU191: Hatch | AAV191: Hatch | AAW191: Hatch | AAX191: Hatch | AAY191: Hatch | AAZ191: Hatch | ABA191: Hatch | ABB191: Hatch | ABC191: Hatch | ABD191: Hatch | ABE191: Hatch | ABF191: Hatch | ABG191: Hatch | ABH191: Hatch | ABI191: Hatch | ABJ191: Hatch | ABK191: Hatch | ABL191: Hatch | ABM191: Hatch | ABN191: Hatch | ABO191: Hatch | ABP191: Hatch | ABQ191: Hatch | ABR191: Hatch | ABS191: Hatch | ABT191: Hatch | ABU191: Hatch | ABV191: Hatch | ABW191: Hatch | ABX191: Hatch | ABY191: Hatch | ABZ191: Hatch | ACA191: Hatch | ACB191: Hatch | ACC191: Hatch | ACD191: Hatch | ACE191: Hatch | ACF191: Hatch | ACG191: Hatch | ACH191: Hatch | ACI191: Hatch | ACJ191: Hatch | ACK191: Hatch | ACL191: Hatch | ACM191: Hatch | ACN191: Hatch | ACO191: Hatch | ACP191: Hatch | ACQ191: Hatch | ACR191: Hatch | ACS191: Hatch | ACT191: Hatch | ACU191: Hatch | ACV191: Hatch | ACW191: Hatch | ACX191: Hatch | ACY191: Hatch | ACZ191: Hatch | ADA191: Hatch | ADB191: Hatch | ADC191: Hatch | ADD191: Hatch | ADE191: Hatch | ADF191: Hatch | ADG191: Hatch | ADH191: Hatch | ADI191: Hatch | ADJ191: Hatch | ADK191: Hatch | ADL191: Hatch | ADM191: Hatch | ADN191: Hatch | ADO191: Hatch | ADP191: Hatch | ADQ191: Hatch | ADR191: Hatch | ADS191: Hatch | ADT191: Hatch | ADU191: Hatch | ADV191: Hatch | ADW191: Hatch | ADX191: Hatch | ADY191: Hatch | ADZ191: Hatch | AEA191: Hatch | AEB191: Hatch | AEC191: Hatch | AED191: Hatch | AEE191: Hatch | AEF191: Hatch | AEG191: Hatch | AEH191: Hatch | AEI191: Hatch | AEJ191: Hatch | AEK191: Hatch | AEL191: Hatch | AEM191: Hatch | AEN191: Hatch | AEO191: Hatch | AEP191: Hatch | AEQ191: Hatch | AER191: Hatch | AES191: Hatch | AET191: Hatch | AEU191: Hatch | AEV191: Hatch | AEW191: Hatch | AEX191: Hatch | AEY191: Hatch | AEZ191: Hatch | AFA191: Hatch | AFB191: Hatch | AFC191: Hatch | AFD191: Hatch | AFE191: Hatch | AFF191: Hatch | AFG191: Hatch | AFH191: Hatch | AFI191: Hatch | AFJ191: Hatch | AFK191: Hatch | AFL191: Hatch | AFM191: Hatch | AFN191: Hatch | AFO191: Hatch | AFP191: Hatch | AFQ191: Hatch | AFR191: Hatch | AFS191: Hatch | AFT191: Hatch | AFU191: Hatch | AFV191: Hatch | AFW191: Hatch | AFX191: Hatch | AFY191: Hatch | AFZ191: Hatch | AGA191: Hatch | AGB191: Hatch | AGC191: Hatch | AGD191: Hatch | AGE191: Hatch | AGF191: Hatch | AGG191: Hatch | AGH191: Hatch | AGI191: Hatch | AGJ191: Hatch | AGK191: Hatch | AGL191: Hatch | AGM191: Hatch | AGN191: Hatch | AGO191: Hatch | AGP191: Hatch | AGQ191: Hatch | AGR191: Hatch | AGS191: Hatch | AGT191: Hatch | AGU191: Hatch | AGV191: Hatch | AGW191: Hatch | AGX191: Hatch | AGY191: Hatch | AGZ191: Hatch | AHA191: Hatch | AHB191: Hatch | AHC191: Hatch | AHD191: Casting | AHE191: Casting | AHF191: Casting | AHG191: Casting | AHH191: Casting | AHI191: Casting | AHJ191: Casting | AHK191: Casting | AHL191: Casting | AHM191: Casting
B192: Stock or Non-Stock Item Designation | C192: Stock or Non-Stock Item | F192: Non-Stock Hatch | G192: Non-Stock Hatch | H192: Non-Stock | I192: Non-Stock | J192: Non-Stock | K192: Non-Stock | L192: Non-Stock | M192: Non-Stock | N192: Non-Stock | O192: Non-Stock | P192: Non-Stock | Q192: Non-Stock | R192: Non-Stock | S192: Non-Stock | T192: Non-Stock | U192: Non-Stock | V192: Non-Stock | W192: Non-Stock | X192: Non-Stock | Y192: Non-Stock | Z192: Non-Stock | AA192: Non-Stock | AB192: Non-Stock | AC192: Non-Stock | AD192: Non-Stock | AE192: Non-Stock | AF192: Non-Stock | AG192: Non-Stock | AH192: Non-Stock | AI192: Non-Stock | AJ192: Non-Stock | AK192: Non-Stock | AL192: Non-Stock | AM192: Non-Stock | AN192: Non-Stock | AO192: Stock | AP192: Stock | AQ192: Stock | AR192: Stock | AS192: Stock | AT192: Stock | AU192: Non-Stock | AV192: Non-Stock | AW192: Non-Stock | AX192: Non-Stock | AY192: Non-Stock | AZ192: Stock | BA192: Stock | BB192: Stock | BC192: Non-Stock | BD192: Non-Stock | BE192: Non-Stock | BF192: Non-Stock | BG192: Non-Stock | BH192: Non-Stock | BI192: Non-Stock | BJ192: Non-Stock | BK192: Non-Stock | BL192: Non-Stock | BM192: Non-Stock | BN192: Non-Stock | BO192: Non-Stock | BP192: Non-Stock | BQ192: Non-Stock | BR192: Non-Stock | BS192: Non-Stock | BT192: Non-Stock | BU192: Non-Stock | BV192: Non-Stock | BW192: Stock | BX192: Stock | BY192: Stock | BZ192: Non-Stock | CA192: Non-Stock | CB192: Non-Stock | CC192: Stock | CD192: Stock | CE192: Non-Stock | CF192: Non-Stock | CG192: Non-Stock | CH192: Non-Stock | CI192: Non-Stock | CJ192: Non-Stock | CK192: Non-Stock | CL192: Non-Stock | CM192: Non-Stock | CN192: Non-Stock | CO192: Non-Stock | CP192: Non-Stock | CQ192: Non-Stock | CR192: Non-Stock | CS192: Non-Stock | CT192: Non-Stock | CU192: Stock | CV192: Stock | CW192: Stock | CX192: Stock | CY192: Stock | CZ192: Non-Stock | DA192: Non-Stock | DB192: Stock | DC192: Stock | DD192: Stock | DE192: Stock | DF192: Non-Stock | DG192: Non-Stock | DH192: Stock | DI192: Stock | DJ192: Non-Stock | DK192: Non-Stock | DL192: Non-Stock | DM192: Non-Stock | DN192: Non-Stock | DO192: Non-Stock | DP192: Non-Stock | DQ192: Non-Stock | DR192: Non-Stock | DS192: Non-Stock | DT192: Non-Stock | DU192: Non-Stock | DV192: Non-Stock | DW192: Non-Stock | DX192: Non-Stock | DY192: Non-Stock | DZ192: Non-Stock | EA192: Non-Stock | EB192: Non-Stock | EC192: Non-Stock | ED192: Non-Stock | EE192: Non-Stock | EF192: Non-Stock | EG192: Non-Stock | EH192: Non-Stock | EI192: Non-Stock | EJ192: Non-Stock | EK192: Non-Stock | EL192: Non-Stock | EM192: Stock | EN192: Stock | EO192: Stock | EP192: Non-Stock | EQ192: Non-Stock | ER192: Non-Stock | ES192: Non-Stock | ET192: Stock | EU192: Stock | EV192: Non-Stock | EW192: Non-Stock | EX192: Non-Stock | EY192: Non-Stock | EZ192: Non-Stock | FA192: Stock | FB192: Stock | FC192: Stock | FD192: Non-Stock | FE192: Non-Stock | FF192: Non-Stock | FG192: Non-Stock | FH192: Non-Stock | FI192: Non-Stock | FJ192: Non-Stock | FK192: Non-Stock | FL192: Non-Stock | FM192: Non-Stock | FN192: Non-Stock | FO192: Non-Stock | FP192: Non-Stock | FQ192: Non-Stock | FR192: Non-Stock | FS192: Non-Stock | FT192: Non-Stock | FU192: Non-Stock | FV192: Non-Stock | FW192: Stock | FX192: Non-Stock | FY192: Non-Stock | FZ192: Non-Stock | GA192: Non-Stock | GB192: Non-Stock | GC192: Non-Stock | GD192: Non-Stock | GE192: Non-Stock | GF192: Non-Stock | GG192: Non-Stock | GH192: Non-Stock | GI192: Non-Stock | GJ192: Non-Stock | GK192: Non-Stock | GL192: Stock | GM192: Non-Stock | GN192: Non-Stock | GO192: Non-Stock | GP192: Non-Stock | GQ192: Non-Stock | GR192: Stock | GS192: Stock | GT192: Stock | GU192: Non-Stock | GV192: Non-Stock | GW192: Non-Stock | GX192: Non-Stock | GY192: Non-Stock | GZ192: Non-Stock | HA192: Non-Stock | HB192: Non-Stock | HC192: Non-Stock | HD192: Stock | HE192: Stock | HF192: Non-Stock | HG192: Non-Stock | HH192: Non-Stock | HI192: Non-Stock | HJ192: Non-Stock | HK192: Non-Stock | HL192: Non-Stock | HM192: Non-Stock | HN192: Non-Stock | HO192: Non-Stock | HP192: Non-Stock | HQ192: Non-Stock | HR192: Non-Stock | HS192: Non-Stock | HT192: Non-Stock | HU192: Non-Stock | HV192: Non-Stock | HW192: Non-Stock | HX192: Non-Stock | HY192: Stock | HZ192: Non-Stock | IA192: Non-Stock | IB192: Non-Stock | IC192: Non-Stock | ID192: Non-Stock | IE192: Non-Stock | IF192: Non-Stock | IG192: Non-Stock | IH192: Non-Stock | II192: Non-Stock | IJ192: Non-Stock | IK192: Non-Stock | IL192: Non-Stock | IM192: Non-Stock | IN192: Non-Stock | IO192: Non-Stock | IP192: Non-Stock | IQ192: Non-Stock | IR192: Non-Stock | IS192: Non-Stock | IT192: Non-Stock | IU192: Non-Stock | IV192: Non-Stock | IW192: Non-Stock | IX192: Non-Stock | IY192: Non-Stock | IZ192: Non-Stock | JA192: Non-Stock | JB192: Non-Stock | JC192: Stock | JD192: Non-Stock | JE192: Stock | JF192: Non-Stock | JG192: Non-Stock | JH192: Non-Stock | JI192: Non-Stock | JJ192: Non-Stock | JK192: Non-Stock | JL192: Non-Stock | JM192: Non-Stock | JN192: Non-Stock | JO192: Non-Stock | JP192: Non-Stock | JQ192: Non-Stock | JR192: Non-Stock | JS192: Non-Stock | JT192: Non-Stock | JU192: Non-Stock | JV192: Non-Stock | JW192: Non-Stock | JX192: Non-Stock | JY192: Non-Stock | JZ192: Non-Stock | KA192: Non-Stock | KB192: Non-Stock | KC192: Non-Stock | KD192: Non-Stock | KE192: Non-Stock | KF192: Non-Stock | KG192: Non-Stock | KH192: Non-Stock | KI192: Non-Stock | KJ192: Non-Stock | KK192: Non-Stock | KL192: Non-Stock | KM192: Non-Stock | KN192: Non-Stock | KO192: Non-Stock | KP192: Non-Stock | KQ192: Non-Stock | KR192: Non-Stock | KS192: Non-Stock | KT192: Non-Stock | KU192: Non-Stock | KV192: Non-Stock | KW192: Non-Stock | KX192: Non-Stock | KY192: Non-Stock | KZ192: Non-Stock | LA192: Stock | LB192: Non-Stock | LC192: Non-Stock | LD192: Non-Stock | LE192: Non-Stock | LF192: Non-Stock | LG192: Non-Stock | LH192: Non-Stock | LI192: Non-Stock | LJ192: Non-Stock | LK192: Non-Stock | LL192: Non-Stock | LM192: Non-Stock | LN192: Non-Stock | LO192: Non-Stock | LP192: Non-Stock | LQ192: Non-Stock | LR192: Non-Stock | LS192: Non-Stock | LT192: Non-Stock | LU192: Non-Stock | LV192: Non-Stock | LW192: Non-Stock | LX192: Non-Stock | LY192: Non-Stock | LZ192: Non-Stock | MA192: Non-Stock | MB192: Non-Stock | MC192: Non-Stock | MD192: Non-Stock | ME192: Non-Stock | MF192: Non-Stock | MG192: Non-Stock | MH192: Non-Stock | MI192: Non-Stock | MJ192: Non-Stock | MK192: Non-Stock | ML192: Non-Stock | MM192: Non-Stock | MN192: Non-Stock | MO192: Non-Stock | MP192: Non-Stock | MQ192: Non-Stock | MR192: Non-Stock | MS192: Non-Stock | MT192: Non-Stock | MU192: Non-Stock | MV192: Non-Stock | MW192: Non-Stock | MX192: Non-Stock | MY192: Non-Stock | MZ192: Non-Stock | NA192: Non-Stock | NB192: Non-Stock | NC192: Non-Stock | ND192: Non-Stock | NE192: Non-Stock | NF192: Non-Stock | NG192: Non-Stock | NH192: Non-Stock | NI192: Non-Stock | NJ192: Non-Stock | NK192: Non-Stock | NL192: Non-Stock | NM192: Non-Stock | NN192: Non-Stock | NO192: Non-Stock | NP192: Non-Stock | NQ192: Non-Stock | NR192: Non-Stock | NS192: Non-Stock | NT192: Non-Stock | NU192: Non-Stock | NV192: Non-Stock | NW192: Non-Stock | NX192: Non-Stock | NY192: Non-Stock | NZ192: Non-Stock | OA192: Non-Stock | OB192: Non-Stock | OC192: Non-Stock | OD192: Non-Stock | OE192: Non-Stock | OF192: Non-Stock | OG192: Non-Stock | OH192: Non-Stock | OI192: Non-Stock | OJ192: Non-Stock | OK192: Non-Stock | OL192: Non-Stock | OM192: Non-Stock | ON192: Non-Stock | OO192: Non-Stock | OP192: Non-Stock | OQ192: Non-Stock | OR192: Non-Stock | OS192: Non-Stock | OT192: Non-Stock | OU192: Non-Stock | OV192: Non-Stock | OW192: Non-Stock | OX192: Non-Stock | OY192: Non-Stock | OZ192: Non-Stock | PA192: Non-Stock | PB192: Non-Stock | PC192: Non-Stock | PD192: Non-Stock | PE192: Non-Stock | PF192: Non-Stock | PG192: Non-Stock | PH192: Non-Stock | PI192: Non-Stock | PJ192: Non-Stock | PK192: Non-Stock | PL192: Non-Stock | PM192: Non-Stock | PN192: Non-Stock | PO192: Non-Stock | PP192: Non-Stock | PQ192: Non-Stock | PR192: Non-Stock | PS192: Non-Stock | PT192: Non-Stock | PU192: Non-Stock | PV192: Non-Stock | PW192: Non-Stock | PX192: Non-Stock | PY192: Non-Stock | PZ192: Non-Stock | QA192: Non-Stock | QB192: Non-Stock | QC192: Non-Stock | QD192: Non-Stock | QE192: Non-Stock | QF192: Non-Stock | QG192: Non-Stock | QH192: Non-Stock | QI192: Non-Stock | QJ192: Non-Stock | QK192: Non-Stock | QL192: Non-Stock | QM192: Non-Stock | QN192: Non-Stock | QO192: Non-Stock | QP192: Non-Stock | QQ192: Non-Stock | QR192: Non-Stock | QS192: Non-Stock | QT192: Non-Stock | QU192: Non-Stock | QV192: Non-Stock | QW192: Non-Stock | QX192: Non-Stock | QY192: Non-Stock | QZ192: Non-Stock | RA192: Non-Stock | RB192: Non-Stock | RC192: Non-Stock | RD192: Non-Stock | RE192: Non-Stock | RF192: Non-Stock | RG192: Non-Stock | RH192: Non-Stock | RI192: Non-Stock | RJ192: Non-Stock | RK192: Non-Stock | RL192: Non-Stock | RM192: Non-Stock | RN192: Non-Stock | RO192: Non-Stock | RP192: Non-Stock | RQ192: Non-Stock | RR192: Non-Stock | RS192: Non-Stock | RT192: Non-Stock | RU192: Non-Stock | RV192: Non-Stock | RW192: Non-Stock | RX192: Non-Stock | RY192: Non-Stock | RZ192: Non-Stock | SA192: Non-Stock | SB192: Non-Stock | SC192: Non-Stock | SD192: Non-Stock | SE192: Non-Stock | SF192: Non-Stock | SG192: Non-Stock | SH192: Non-Stock | SI192: Non-Stock | SJ192: Non-Stock | SK192: Non-Stock | SL192: Non-Stock | SM192: Non-Stock | SN192: Non-Stock | SO192: Non-Stock | SP192: Non-Stock | SQ192: Non-Stock | SR192: Non-Stock | SS192: Non-Stock | ST192: Non-Stock | SU192: Non-Stock | SV192: Non-Stock | SW192: Non-Stock | SX192: Non-Stock | SY192: Non-Stock | SZ192: Non-Stock | TA192: Non-Stock | TB192: Non-Stock | TC192: Non-Stock | TD192: Non-Stock | TE192: Non-Stock | TF192: Non-Stock | TG192: Non-Stock | TH192: Non-Stock | TI192: Non-Stock | TJ192: Non-Stock | TK192: Non-Stock | TL192: Non-Stock | TM192: Non-Stock | TN192: Non-Stock | TO192: Non-Stock | TP192: Non-Stock | TQ192: Non-Stock | TR192: Non-Stock | TS192: Non-Stock | TT192: Non-Stock | TU192: Non-Stock | TV192: Non-Stock | TW192: Non-Stock | TX192: Non-Stock | TY192: Non-Stock | TZ192: Non-Stock | UA192: Non-Stock | UB192: Non-Stock | UC192: Non-Stock | UD192: Non-Stock | UE192: Non-Stock | UF192: Non-Stock | UG192: Non-Stock | UH192: Non-Stock | UI192: Non-Stock | UJ192: Non-Stock | UK192: Non-Stock | UL192: Non-Stock | UM192: Non-Stock | UN192: Non-Stock | UO192: Non-Stock | UP192: Non-Stock | UQ192: Non-Stock | UR192: Non-Stock | US192: Non-Stock | UT192: Non-Stock | UU192: Non-Stock | UV192: Non-Stock | UW192: Non-Stock | UX192: Non-Stock | UY192: Non-Stock | UZ192: Non-Stock | VA192: Non-Stock | VB192: Non-Stock | VC192: Non-Stock | VD192: Non-Stock | VE192: Non-Stock | VF192: Non-Stock | VG192: Non-Stock | VH192: Non-Stock | VI192: Non-Stock | VJ192: Non-Stock | VK192: Non-Stock | VL192: Non-Stock | VM192: Non-Stock | VN192: Non-Stock | VO192: Non-Stock | VP192: Non-Stock | VQ192: Non-Stock | VR192: Non-Stock | VS192: Non-Stock | VT192: Non-Stock | VU192: Non-Stock | VV192: Non-Stock | VW192: Non-Stock | VX192: Non-Stock | VY192: Non-Stock | VZ192: Non-Stock | WA192: Non-Stock | WB192: Non-Stock | WC192: Non-Stock | WD192: Non-Stock | WE192: Non-Stock | WF192: Non-Stock | WG192: Non-Stock | WH192: Non-Stock | WI192: Non-Stock | WJ192: Non-Stock | WK192: Non-Stock | WL192: Non-Stock | WM192: Non-Stock | WN192: Non-Stock | WO192: Non-Stock | WP192: Non-Stock | WQ192: Non-Stock | WR192: Non-Stock | WS192: Non-Stock | WT192: Non-Stock | WU192: Non-Stock | WV192: Non-Stock | WW192: Non-Stock | WX192: Non-Stock | WY192: Non-Stock | WZ192: Non-Stock | XA192: Non-Stock | XB192: Non-Stock | XC192: Non-Stock | XD192: Non-Stock | XE192: Non-Stock | XF192: Non-Stock | XG192: Non-Stock | XH192: Non-Stock | XI192: Non-Stock | XJ192: Non-Stock | XK192: Non-Stock | XL192: Non-Stock | XM192: Non-Stock | XN192: Non-Stock | XO192: Non-Stock | XP192: Non-Stock | XQ192: Non-Stock | XR192: Non-Stock | XS192: Non-Stock | XT192: Non-Stock | XU192: Non-Stock | XV192: Non-Stock | XW192: Non-Stock | XX192: Non-Stock | XY192: Non-Stock | XZ192: Non-Stock | YA192: Non-Stock | YB192: Non-Stock | YC192: Non-Stock | YD192: Non-Stock | YE192: Non-Stock | YF192: Non-Stock | YG192: Non-Stock | YH192: Non-Stock | YI192: Non-Stock | YJ192: Non-Stock | YK192: Non-Stock | YL192: Non-Stock | YM192: Non-Stock | YN192: Non-Stock | YO192: Non-Stock | YP192: Non-Stock | YQ192: Non-Stock | YR192: Non-Stock | YS192: Non-Stock | YT192: Non-Stock | YU192: Non-Stock | YV192: Non-Stock | YW192: Non-Stock | YX192: Non-Stock | YY192: Non-Stock | YZ192: Non-Stock | ZA192: Non-Stock | ZB192: Non-Stock | ZC192: Non-Stock | ZD192: Non-Stock | ZE192: Non-Stock | ZF192: Non-Stock | ZG192: Non-Stock | ZH192: Non-Stock | ZI192: Non-Stock | ZJ192: Non-Stock | ZK192: Non-Stock | ZL192: Non-Stock | ZM192: Non-Stock | ZN192: Non-Stock | ZO192: Non-Stock | ZP192: Non-Stock | ZQ192: Non-Stock | ZR192: Non-Stock | ZS192: Non-Stock | ZT192: Non-Stock | ZU192: Non-Stock | ZV192: Non-Stock | ZW192: Non-Stock | ZX192: Non-Stock | ZY192: Non-Stock | ZZ192: Non-Stock | AAA192: Non-Stock | AAB192: Non-Stock | AAC192: Non-Stock | AAD192: Non-Stock | AAE192: Non-Stock | AAF192: Non-Stock | AAG192: Non-Stock | AAH192: Non-Stock | AAI192: Non-Stock | AAJ192: Non-Stock | AAK192: Non-Stock | AAL192: Non-Stock | AAM192: Non-Stock | AAN192: Non-Stock | AAO192: Non-Stock | AAP192: Non-Stock | AAQ192: Non-Stock | AAR192: Non-Stock | AAS192: Non-Stock | AAT192: Non-Stock | AAU192: Non-Stock | AAV192: Non-Stock | AAW192: Non-Stock | AAX192: Non-Stock | AAY192: Non-Stock | AAZ192: Non-Stock | ABA192: Non-Stock | ABB192: Non-Stock | ABC192: Non-Stock | ABD192: Non-Stock | ABE192: Non-Stock | ABF192: Non-Stock | ABG192: Non-Stock | ABH192: Non-Stock | ABI192: Non-Stock | ABJ192: Non-Stock | ABK192: Non-Stock | ABL192: Non-Stock | ABM192: Non-Stock | ABN192: Non-Stock | ABO192: Non-Stock | ABP192: Non-Stock | ABQ192: Non-Stock | ABR192: Non-Stock | ABS192: Non-Stock | ABT192: Non-Stock | ABU192: Non-Stock | ABV192: Non-Stock | ABW192: Non-Stock | ABX192: Non-Stock | ABY192: Non-Stock | ABZ192: Non-Stock | ACA192: Non-Stock | ACB192: Non-Stock | ACC192: Non-Stock | ACD192: Non-Stock | ACE192: Non-Stock | ACF192: Non-Stock | ACG192: Non-Stock | ACH192: Non-Stock | ACI192: Non-Stock | ACJ192: Non-Stock | ACK192: Non-Stock | ACL192: Non-Stock | ACM192: Non-Stock | ACN192: Non-Stock | ACO192: Non-Stock | ACP192: Non-Stock | ACQ192: Non-Stock | ACR192: Non-Stock | ACS192: Non-Stock | ACT192: Non-Stock | ACU192: Non-Stock | ACV192: Non-Stock | ACW192: Non-Stock | ACX192: Non-Stock | ACY192: Non-Stock | ACZ192: Non-Stock | ADA192: Non-Stock | ADB192: Non-Stock | ADC192: Non-Stock | ADD192: Non-Stock | ADE192: Non-Stock | ADF192: Non-Stock | ADG192: Non-Stock | ADH192: Non-Stock | ADI192: Non-Stock | ADJ192: Non-Stock | ADK192: Non-Stock | ADL192: Non-Stock | ADM192: Non-Stock | ADN192: Non-Stock | ADO192: Non-Stock | ADP192: Non-Stock | ADQ192: Non-Stock | ADR192: Non-Stock | ADS192: Non-Stock | ADT192: Non-Stock | ADU192: Non-Stock | ADV192: Non-Stock | ADW192: Non-Stock | ADX192: Non-Stock | ADY192: Non-Stock | ADZ192: Non-Stock | AEA192: Non-Stock | AEB192: Non-Stock | AEC192: Non-Stock | AED192: Non-Stock | AEE192: Non-Stock | AEF192: Non-Stock | AEG192: Non-Stock | AEH192: Non-Stock | AEI192: Non-Stock | AEJ192: Non-Stock | AEK192: Non-Stock | AEL192: Non-Stock | AEM192: Non-Stock | AEN192: Non-Stock | AEO192: Non-Stock | AEP192: Non-Stock | AEQ192: Non-Stock | AER192: Non-Stock | AES192: Non-Stock | AET192: Non-Stock | AEU192: Non-Stock | AEV192: Non-Stock | AEW192: Non-Stock | AEX192: Non-Stock | AEY192: Non-Stock | AEZ192: Non-Stock | AFA192: Non-Stock | AFB192: Non-Stock | AFC192: Non-Stock | AFD192: Non-Stock | AFE192: Non-Stock | AFF192: Non-Stock | AFG192: Non-Stock | AFH192: Non-Stock | AFI192: Non-Stock | AFJ192: Non-Stock | AFK192: Non-Stock | AFL192: Non-Stock | AFM192: Non-Stock | AFN192: Non-Stock | AFO192: Non-Stock | AFP192: Non-Stock | AFQ192: Non-Stock | AFR192: Non-Stock | AFS192: Non-Stock | AFT192: Non-Stock | AFU192: Non-Stock | AFV192: Non-Stock | AFW192: Non-Stock | AFX192: Non-Stock | AFY192: Non-Stock | AFZ192: Non-Stock | AGA192: Non-Stock | AGB192: Non-Stock | AGC192: Non-Stock | AGD192: Non-Stock | AGE192: Non-Stock | AGF192: Non-Stock | AGG192: Non-Stock | AGH192: Non-Stock | AGI192: Non-Stock | AGJ192: Non-Stock | AGK192: Non-Stock | AGL192: Non-Stock | AGM192: Non-Stock | AGN192: Non-Stock | AGO192: Non-Stock | AGP192: Non-Stock | AGQ192: Non-Stock | AGR192: Non-Stock | AGS192: Non-Stock | AGT192: Non-Stock | AGU192: Non-Stock | AGV192: Non-Stock | AGW192: Non-Stock | AGX192: Non-Stock | AGY192: Non-Stock | AGZ192: Non-Stock | AHA192: Non-Stock | AHB192: Non-Stock | AHC192: Non-Stock | AHD192: Non-Stock | AHE192: Non-Stock | AHF192: Non-Stock | AHG192: Non-Stock | AHH192: Non-Stock | AHI192: Non-Stock | AHJ192: Non-Stock | AHK192: Non-Stock | AHL192: Non-Stock | AHM192: Non-Stock
B193: Cast In or Loose | C193: Cast In or Loose | F193: Cast In | G193: Cast In | H193: Cast In | I193: Loose | J193: Loose | K193: Loose | L193: Cast In | M193: Loose | N193: Cast In | O193: Loose | P193: Loose | Q193: Loose | R193: Loose | S193: Loose | T193: Loose | U193: Loose | V193: Loose | W193: Loose | X193: Loose | Y193: Loose | Z193: Loose | AA193: Loose | AB193: Loose | AC193: Loose | AD193: Loose | AE193: Loose | AF193: Loose | AG193: Loose | AH193: Loose | AI193: Loose | AJ193: Loose | AK193: Loose | AL193: Loose | AM193: Loose | AN193: Loose | AO193: Loose | AP193: Loose | AQ193: Loose | AR193: Loose | AS193: Loose | AT193: Loose | AU193: Loose | AV193: Loose | AW193: Loose | AX193: Loose | AY193: Loose | AZ193: Loose | BA193: Loose | BB193: Loose | BC193: Loose | BD193: Loose | BE193: Loose | BF193: Loose | BG193: Loose | BH193: Loose | BI193: Loose | BJ193: Loose | BK193: Loose | BL193: Loose | BM193: Loose | BN193: Loose | BO193: Loose | BP193: Loose | BQ193: Loose | BR193: Loose | BS193: Loose | BT193: Loose | BU193: Loose | BV193: Loose | BW193: Loose | BX193: Loose | BY193: Loose | BZ193: Loose | CA193: Loose | CB193: Loose | CC193: Loose | CD193: Loose | CE193: Loose | CF193: Loose | CG193: Loose | CH193: Loose | CI193: Loose | CJ193: Loose | CK193: Loose | CL193: Loose | CM193: Loose | CN193: Loose | CO193: Loose | CP193: Loose | CQ193: Loose | CR193: Loose | CS193: Loose | CT193: Loose | CU193: Cast In | CV193: Cast In | CW193: Cast In | CX193: Cast In | CY193: Cast In | CZ193: Cast In | DA193: Cast In | DB193: Cast In | DC193: Cast In | DD193: Cast In | DE193: Cast In | DF193: Cast In | DG193: Cast In | DH193: Cast In | DI193: Cast In | DJ193: Cast In | DK193: Cast In | DL193: Cast In | DM193: Cast In | DN193: Cast In | DO193: Cast In | DP193: Cast In | DQ193: Cast In | DR193: Cast In | DS193: Cast In | DT193: Cast In | DU193: Cast In | DV193: Cast In | DW193: Cast In | DX193: Cast In | DY193: Cast In | DZ193: Loose | EA193: Cast In | EB193: Loose | EC193: Cast In | ED193: Loose | EE193: Loose | EF193: Loose | EG193: Loose | EH193: Loose | EI193: Loose | EJ193: Loose | EK193: Loose | EL193: Loose | EM193: Loose | EN193: Loose | EO193: Loose | EP193: Loose | EQ193: Loose | ER193: Loose | ES193: Loose | ET193: Loose | EU193: Loose | EV193: Loose | EW193: Loose | EX193: Loose | EY193: Loose | EZ193: Loose | FA193: Loose | FB193: Loose | FC193: Cast In | FD193: Loose | FE193: Cast In | FF193: Loose | FG193: Cast In | FH193: Loose | FI193: Cast In | FJ193: Loose | FK193: Cast In | FL193: Loose | FM193: Loose | FN193: Loose | FO193: Loose | FP193: Loose | FQ193: Loose | FR193: Cast In | FS193: Loose | FT193: Loose | FU193: Loose | FV193: Loose | FW193: Loose | FX193: Cast In | FY193: Cast In | FZ193: Loose | GA193: Loose | GB193: Loose | GC193: Cast In | GD193: Loose | GE193: Cast In | GF193: Loose | GG193: Cast In | GH193: Loose | GI193: Cast In | GJ193: Loose | GK193: Cast In | GL193: Loose | GM193: Loose | GN193: Loose | GO193: Loose | GP193: Loose | GQ193: Loose | GR193: Loose | GS193: Loose | GT193: Loose | GU193: Loose | GV193: Loose | GW193: Loose | GX193: Loose | GY193: Loose | GZ193: Loose | HA193: Loose | HB193: Loose | HC193: Loose | HD193: Loose | HE193: Cast In | HF193: Loose | HG193: Loose | HH193: Loose | HI193: Loose | HJ193: Loose | HK193: Loose | HL193: Loose | HM193: Loose | HN193: Loose | HO193: Loose | HP193: Loose | HQ193: Loose | HR193: Loose | HS193: Loose | HT193: Loose | HU193: Loose | HV193: Loose | HW193: Cast In | HX193: Loose | HY193: Loose | HZ193: Cast In | IA193: Cast In | IB193: Loose | IC193: Loose | ID193: Cast In | IE193: Cast In | IF193: Loose | IG193: Loose | IH193: Loose | II193: Loose | IJ193: Loose | IK193: Loose | IL193: Loose | IM193: Loose | IN193: Loose | IO193: Loose | IP193: Loose | IQ193: Loose | IR193: Loose | IS193: Loose | IT193: Loose | IU193: Loose | IV193: Loose | IW193: Loose | IX193: Loose | IY193: Loose | IZ193: Loose | JA193: Loose | JB193: Loose | JC193: Cast In | JD193: Loose | JE193: Loose | JF193: Cast In | JG193: Cast In | JH193: Cast In | JI193: Cast In | JJ193: Cast In | JK193: Cast In | JL193: Cast In | JM193: Cast In | JN193: Cast In | JO193: Cast In | JP193: Cast In | JQ193: Cast In | JR193: Cast In | JS193: Cast In | JT193: Cast In | JU193: Cast In | JV193: Cast In | JW193: Cast In | JX193: Cast In | JY193: Cast In | JZ193: Cast In | KA193: Cast In | KB193: Cast In | KC193: Cast In | KD193: Cast In | KE193: Cast In | KF193: Cast In | KG193: Cast In | KH193: Cast In | KI193: Cast In | KJ193: Cast In | KK193: Cast In | KL193: Cast In | KM193: Cast In | KN193: Cast In | KO193: Cast In | KP193: Cast In | KQ193: Cast In | KR193: Cast In | KS193: Cast In | KT193: Cast In | KU193: Cast In | KV193: Loose | KW193: Loose | KX193: Loose | KY193: Loose | KZ193: Loose | LA193: Loose | LB193: Loose | LC193: Loose | LD193: Loose | LE193: Loose | LF193: Loose | LG193: Loose | LH193: Loose | LI193: Loose | LJ193: Loose | LK193: Loose | LL193: Cast In | LM193: Loose | LN193: Cast In | LO193: Loose | LP193: Cast In | LQ193: Loose | LR193: Cast In | LS193: Loose | LT193: Cast In | LU193: Loose | LV193: Cast In | LW193: Loose | LX193: Cast In | LY193: Loose | LZ193: Loose | MA193: Loose | MB193: Loose | MC193: Loose | MD193: Loose | ME193: Loose | MF193: Loose | MG193: Cast In | MH193: Cast In | MI193: Cast In | MJ193: Loose | MK193: Loose | ML193: Loose | MM193: Loose | MN193: Loose | MO193: Loose | MP193: Loose | MQ193: Loose | MR193: Loose | MS193: Loose | MT193: Loose | MU193: Loose | MV193: Loose | MW193: Loose | MX193: Loose | MY193: Loose | MZ193: Loose | NA193: Loose | NB193: Loose | NC193: Loose | ND193: Loose | NE193: Cast In | NF193: Loose | NG193: Cast In | NH193: Loose | NI193: Loose | NJ193: Loose | NK193: Loose | NL193: Loose | NM193: Cast In | NN193: Loose | NO193: Cast In | NP193: Loose | NQ193: Cast In | NR193: Loose | NS193: Loose | NT193: Loose | NU193: Loose | NV193: Loose | NW193: Loose | NX193: Loose | NY193: Cast In | NZ193: Loose | OA193: Cast In | OB193: Loose | OC193: Loose | OD193: Cast In | OE193: Cast In | OF193: Loose | OG193: Cast In | OH193: Loose | OI193: Cast In | OJ193: Loose | OK193: Cast In | OL193: Loose | OM193: Cast In | ON193: Loose | OO193: Loose | OP193: Loose | OQ193: Loose | OR193: Loose | OS193: Loose | OT193: Loose | OU193: Loose | OV193: Loose | OW193: Loose | OX193: Loose | OY193: Loose | OZ193: Loose | PA193: Loose | PB193: Loose | PC193: Loose | PD193: Loose | PE193: Loose | PF193: Loose | PG193: Loose | PH193: Loose | PI193: Loose | PJ193: Loose | PK193: Loose | PL193: Loose | PM193: Loose | PN193: Loose | PO193: Loose | PP193: Loose | PQ193: Loose | PR193: Loose | PS193: Loose | PT193: Loose | PU193: Loose | PV193: Loose | PW193: Loose | PX193: Loose | PY193: Loose | PZ193: Loose | QA193: Loose | QB193: Loose | QC193: Loose | QD193: Loose | QE193: Loose | QF193: Loose | QG193: Loose | QH193: Loose | QI193: Loose | QJ193: Loose | QK193: Loose | QL193: Loose | QM193: Loose | QN193: Loose | QO193: Loose | QP193: Loose | QQ193: Loose | QR193: Cast In | QS193: Loose | QT193: Cast In | QU193: Loose | QV193: Loose | QW193: Cast In | QX193: Loose | QY193: Cast In | QZ193: Loose | RA193: Cast In | RB193: Loose | RC193: Cast In | RD193: Loose | RE193: Loose | RF193: Cast In | RG193: Loose | RH193: Loose | RI193: Loose | RJ193: Loose | RK193: Loose | RL193: Loose | RM193: Cast In | RN193: Loose | RO193: Loose | RP193: Loose | RQ193: Loose | RR193: Loose | RS193: Loose | RT193: Loose | RU193: Cast In | RV193: Loose | RW193: Cast In | RX193: Cast In | RY193: Loose | RZ193: Loose | SA193: Cast In | SB193: Cast In | SC193: Loose | SD193: Cast In | SE193: Cast In | SF193: Cast In | SG193: Loose | SH193: Loose | SI193: Loose | SJ193: Loose | SK193: Loose | SL193: Loose | SM193: Loose | SN193: Loose | SO193: Loose | SP193: Loose | SQ193: Loose | SR193: Loose | SS193: Loose | ST193: Loose | SU193: Loose | SV193: Loose | SW193: Loose | SX193: Loose | SY193: Loose | SZ193: Loose | TA193: Loose | TB193: Loose | TC193: Loose | TD193: Loose | TE193: Loose | TF193: Loose | TG193: Loose | TH193: Loose | TI193: Loose | TJ193: Loose | TK193: Loose | TL193: Loose | TM193: Loose | TN193: Loose | TO193: Loose | TP193: Loose | TQ193: Loose | TR193: Loose | TS193: Loose | TT193: Loose | TU193: Loose | TV193: Loose | TW193: Loose | TX193: Loose | TY193: Loose | TZ193: Loose | UA193: Loose | UB193: Loose | UC193: Loose | UD193: Loose | UE193: Loose | UF193: Loose | UG193: Loose | UH193: Loose | UI193: Loose | UJ193: Loose | UK193: Loose | UL193: Loose | UM193: Loose | UN193: Loose | UO193: Loose | UP193: Loose | UQ193: Loose | UR193: Loose | US193: Loose | UT193: Loose | UU193: Loose | UV193: Loose | UW193: Loose | UX193: Loose | UY193: Loose | UZ193: Loose | VA193: Loose | VB193: Loose | VC193: Loose | VD193: Loose | VE193: Loose | VF193: Loose | VG193: Loose | VH193: Loose | VI193: Loose | VJ193: Loose | VK193: Loose | VL193: Loose | VM193: Loose | VN193: Loose | VO193: Loose | VP193: Loose | VQ193: Loose | VR193: Loose | VS193: Loose | VT193: Loose | VU193: Loose | VV193: Loose | VW193: Loose | VX193: Loose | VY193: Loose | VZ193: Loose | WA193: Loose | WB193: Cast In | WC193: Cast In | WD193: Cast In | WE193: Cast In | WF193: Cast In | WG193: Cast In | WH193: Cast In | WI193: Cast In | WJ193: Cast In | WK193: Cast In | WL193: Cast In | WM193: Cast In | WN193: Cast In | WO193: Cast In | WP193: Cast In | WQ193: Cast In | WR193: Cast In | WS193: Cast In | WT193: Cast In | WU193: Cast In | WV193: Cast In | WW193: Cast In | WX193: Cast In | WY193: Cast In | WZ193: Cast In | XA193: Cast In | XB193: Cast In | XC193: Cast In | XD193: Cast In | XE193: Cast In | XF193: Cast In | XG193: Cast In | XH193: Cast In | XI193: Cast In | XJ193: Cast In | XK193: Cast In | XL193: Cast In | XM193: Cast In | XN193: Cast In | XO193: Cast In | XP193: Cast In | XQ193: Cast In | XR193: Cast In | XS193: Cast In | XT193: Cast In | XU193: Cast In | XV193: Cast In | XW193: Cast In | XX193: Cast In | XY193: Cast In | XZ193: Cast In | YA193: Cast In | YB193: Cast In | YC193: Cast In | YD193: Cast In | YE193: Cast In | YF193: Cast In | YG193: Cast In | YH193: Cast In | YI193: Cast In | YJ193: Cast In | YK193: Cast In | YL193: Cast In | YM193: Cast In | YN193: Cast In | YO193: Cast In | YP193: Cast In | YQ193: Cast In | YR193: Cast In | YS193: Cast In | YT193: Cast In | YU193: Cast In | YV193: Cast In | YW193: Cast In | YX193: Cast In | YY193: Cast In | YZ193: Cast In | ZA193: Cast In | ZB193: Cast In | ZC193: Cast In | ZD193: Cast In | ZE193: Cast In | ZF193: Cast In | ZG193: Cast In | ZH193: Cast In | ZI193: Cast In | ZJ193: Cast In | ZK193: Cast In | ZL193: Cast In | ZM193: Cast In | ZN193: Cast In | ZO193: Cast In | ZP193: Cast In | ZQ193: Cast In | ZR193: Cast In | ZS193: Cast In | ZT193: Cast In | ZU193: Cast In | ZV193: Cast In | ZW193: Cast In | ZX193: Cast In | ZY193: Cast In | ZZ193: Cast In | AAA193: Cast In | AAB193: Cast In | AAC193: Cast In | AAD193: Cast In | AAE193: Cast In | AAF193: Cast In | AAG193: Cast In | AAH193: Cast In | AAI193: Cast In | AAJ193: Cast In | AAK193: Cast In | AAL193: Cast In | AAM193: Cast In | AAN193: Cast In | AAO193: Cast In | AAP193: Cast In | AAQ193: Cast In | AAR193: Cast In | AAS193: Cast In | AAT193: Cast In | AAU193: Cast In | AAV193: Cast In | AAW193: Cast In | AAX193: Cast In | AAY193: Cast In | AAZ193: Cast In | ABA193: Cast In | ABB193: Cast In | ABC193: Cast In | ABD193: Cast In | ABE193: Cast In | ABF193: Cast In | ABG193: Cast In | ABH193: Cast In | ABI193: Cast In | ABJ193: Cast In | ABK193: Cast In | ABL193: Cast In | ABM193: Cast In | ABN193: Cast In | ABO193: Cast In | ABP193: Cast In | ABQ193: Cast In | ABR193: Cast In | ABS193: Cast In | ABT193: Cast In | ABU193: Cast In | ABV193: Cast In | ABW193: Cast In | ABX193: Cast In | ABY193: Cast In | ABZ193: Cast In | ACA193: Cast In | ACB193: Cast In | ACC193: Cast In | ACD193: Cast In | ACE193: Cast In | ACF193: Cast In | ACG193: Cast In | ACH193: Cast In | ACI193: Cast In | ACJ193: Cast In | ACK193: Cast In | ACL193: Cast In | ACM193: Cast In | ACN193: Cast In | ACO193: Cast In | ACP193: Cast In | ACQ193: Cast In | ACR193: Cast In | ACS193: Cast In | ACT193: Cast In | ACU193: Cast In | ACV193: Cast In | ACW193: Cast In | ACX193: Cast In | ACY193: Cast In | ACZ193: Cast In | ADA193: Cast In | ADB193: Cast In | ADC193: Cast In | ADD193: Cast In | ADE193: Cast In | ADF193: Cast In | ADG193: Cast In | ADH193: Cast In | ADI193: Cast In | ADJ193: Cast In | ADK193: Cast In | ADL193: Cast In | ADM193: Cast In | ADN193: Cast In | ADO193: Cast In | ADP193: Cast In | ADQ193: Cast In | ADR193: Cast In | ADS193: Cast In | ADT193: Cast In | ADU193: Cast In | ADV193: Cast In | ADW193: Cast In | ADX193: Cast In | ADY193: Cast In | ADZ193: Cast In | AEA193: Cast In | AEB193: Cast In | AEC193: Cast In | AED193: Cast In | AEE193: Cast In | AEF193: Cast In | AEG193: Cast In | AEH193: Cast In | AEI193: Cast In | AEJ193: Cast In | AEK193: Cast In | AEL193: Cast In | AEM193: Cast In | AEN193: Cast In | AEO193: Cast In | AEP193: Cast In | AEQ193: Cast In | AER193: Cast In | AES193: Cast In | AET193: Cast In | AEU193: Cast In | AEV193: Cast In | AEW193: Cast In | AEX193: Cast In | AEY193: Cast In | AEZ193: Cast In | AFA193: Cast In | AFB193: Cast In | AFC193: Cast In | AFD193: Cast In | AFE193: Cast In | AFF193: Cast In | AFG193: Cast In | AFH193: Cast In | AFI193: Cast In | AFJ193: Cast In | AFK193: Cast In | AFL193: Cast In | AFM193: Cast In | AFN193: Cast In | AFO193: Cast In | AFP193: Cast In | AFQ193: Cast In | AFR193: Cast In | AFS193: Cast In | AFT193: Cast In | AFU193: Cast In | AFV193: Cast In | AFW193: Cast In | AFX193: Cast In | AFY193: Cast In | AFZ193: Cast In | AGA193: Cast In | AGB193: Cast In | AGC193: Cast In | AGD193: Cast In | AGE193: Cast In | AGF193: Cast In | AGG193: Cast In | AGH193: Cast In | AGI193: Cast In | AGJ193: Cast In | AGK193: Cast In | AGL193: Cast In | AGM193: Cast In | AGN193: Cast In | AGO193: Cast In | AGP193: Cast In | AGQ193: Cast In | AGR193: Cast In | AGS193: Cast In | AGT193: Cast In | AGU193: Cast In | AGV193: Cast In | AGW193: Cast In | AGX193: Cast In | AGY193: Cast In | AGZ193: Cast In | AHA193: Cast In | AHB193: Cast In | AHC193: Cast In
B194: General Description for Quote | C194: Casting or Hatch Description for Quote | D194: Description | E194: No Casting | F194: Hatch | G194: Hatch | H194: TD Frame & Grate Casting (Per LF) | I194: Frame & Cover Casting | J194: Frame & Cover Casting | K194: Frame & Cover Casting | L194: Frame & Cover Casting | M194: Frame & Cover Casting | N194: Frame & Cover Casting | O194: Frame & Cover Casting | P194: Frame & Cover Casting | Q194: Frame & Cover Casting | R194: Frame & Cover Casting | S194: Frame & Cover Casting | T194: Frame & Cover Casting | U194: Frame & Cover Casting | V194: Frame & Cover Casting | W194: Frame & Cover Casting | X194: Frame & Cover Casting | Y194: Frame & Cover Casting | Z194: Frame & Cover Casting | AA194: Frame & Cover Casting | AB194: Frame & Cover Casting | AC194: Frame & Cover Casting | AD194: Frame & Cover Casting | AE194: Frame & Cover Casting | AF194: Frame & Cover Casting | AG194: Frame & Cover Casting | AH194: Frame & Cover Casting | AI194: Frame & Cover Casting | AJ194: Frame & Cover Casting | AK194: Frame & Cover Casting | AL194: Frame & Cover Casting | AM194: Frame & Cover Casting | AN194: Frame & Cover Casting | AO194: Frame & Cover Casting | AP194: Frame & Cover Casting | AQ194: Frame & Cover Casting | AR194: Frame & Cover Casting | AS194: Frame & Cover Casting | AT194: Frame & Cover Casting | AU194: Frame & Cover Casting | AV194: Frame & Cover Casting | AW194: Frame & Cover Casting | AX194: Frame & Cover Casting | AY194: Frame & Cover Casting | AZ194: Frame & Cover Casting | BA194: Frame & Cover Casting | BB194: Frame & Cover Casting | BC194: Frame & Cover Casting | BD194: Frame & Cover Casting | BE194: Frame & Cover Casting | BF194: Frame & Cover Casting | BG194: Frame & Cover Casting | BH194: Frame & Cover Casting | BI194: Frame & Cover Casting | BJ194: Frame & Cover Casting | BK194: Frame & Cover Casting | BL194: Frame & Cover Casting | BM194: Frame & Cover Casting | BN194: Frame & Cover Casting | BO194: Frame & Cover Casting | BP194: Frame & Cover Casting | BQ194: Frame & Cover Casting | BR194: Frame & Cover Casting | BS194: Frame & Cover Casting | BT194: Frame & Cover Casting | BU194: Frame & Cover Casting | BV194: Frame & Cover Casting | BW194: Frame & Cover Casting | BX194: Frame & Cover Casting | BY194: Frame & Cover Casting | BZ194: Frame & Cover Casting | CA194: Frame & Cover Casting | CB194: Frame & Cover Casting | CC194: Frame & Cover Casting | CD194: Frame & Cover Casting | CE194: Frame & Cover Casting | CF194: Frame & Cover Casting | CG194: Frame & Cover Casting | CH194: Frame & Cover Casting | CI194: Frame & Cover Casting | CJ194: Frame & Cover Casting | CK194: Frame & Cover Casting | CL194: Frame & Cover Casting | CM194: Frame & Cover Casting | CN194: Frame & Cover Casting | CO194: Frame & Cover Casting | CP194: Frame & Cover Casting | CQ194: Frame & Cover Casting | CR194: Frame & Cover Casting | CS194: Frame & Cover Casting | CT194: Frame & Cover Casting | CU194: Frame & Grate Casting | CV194: Frame & Cover Casting | CW194: Frame & Cover Casting | CX194: Frame & Cover Casting | CY194: Frame & Cover Casting | CZ194: Frame & Cover Casting | DA194: Frame & Grate Casting | DB194: Frame & Grate Casting | DC194: Frame & Cover Casting | DD194: Frame & Cover Casting | DE194: Frame & Cover Casting | DF194: Frame & Cover Casting | DG194: Frame & Cover Casting | DH194: Frame & Grate Casting | DI194: Frame & Grate Casting | DJ194: Frame & Grate Casting | DK194: Frame & Cover Casting | DL194: Frame & Cover Casting | DM194: Frame & Cover Casting | DN194: Frame & Cover Casting | DO194: Frame & Cover Casting | DP194: Frame & Grate Casting | DQ194: Frame & Cover Casting | DR194: Frame & Cover Casting | DS194: Frame & Cover Casting | DT194: Frame & Grate Casting | DU194: Frame & Cover Casting | DV194: Frame & Grate Casting | DW194: Frame & Cover Casting | DX194: Frame & Grate Casting | DY194: Frame & Cover Casting | DZ194: Frame & Grate Casting | EA194: Frame & Grate Casting | EB194: Frame & Grate Casting | EC194: Frame & Grate Casting | ED194: Frame & Grate Casting | EE194: Frame & Grate Casting | EF194: Frame & Grate Casting | EG194: Frame & Grate Casting | EH194: Frame & Grate Casting | EI194: Frame & Grate Casting | EJ194: Frame & Grate Casting | EK194: Frame & Grate Casting | EL194: Frame & Grate Casting | EM194: Frame & Grate Casting | EN194: Frame & Grate Casting | EO194: Frame & Grate Casting | EP194: Frame & Grate Casting | EQ194: Frame & Grate Casting | ER194: Frame & Grate Casting | ES194: Frame & Grate Casting | ET194: Frame & Grate Casting | EU194: Frame & Grate Casting | EV194: Frame & Grate Casting | EW194: Frame & Grate Casting | EX194: Frame & Grate Casting | EY194: Frame & Grate Casting | EZ194: Frame & Grate Casting | FA194: Frame & Grate Casting | FB194: Frame & Grate Casting | FC194: Frame & Grate Casting | FD194: Frame & Grate Casting | FE194: Frame & Grate Casting | FF194: Frame & Cover Casting | FG194: Frame & Cover Casting | FH194: Frame & ADA Grate Casting | FI194: Frame & ADA Grate Casting | FJ194: Frame & Grate Casting | FK194: Frame & Grate Casting | FL194: Frame & Grate Casting | FM194: Frame & ADA Grate Casting | FN194: Frame & Grate Casting | FO194: Frame & Grate Casting | FP194: Frame & Grate Casting | FQ194: Frame & Grate Casting | FR194: Frame & Grate Casting | FS194: Frame & Grate Casting | FT194: Frame & Grate Casting | FU194: Frame & Grate Casting | FV194: Frame & Grate Casting | FW194: Frame & Grate Casting | FX194: Frame & Grate Casting | FY194: Frame & Grate Casting | FZ194: Frame & Grate Casting | GA194: Frame & Grate Casting | GB194: Frame & Grate Casting | GC194: Frame & Grate Casting | GD194: Frame & Grate Casting | GE194: Frame & Grate Casting | GF194: Frame & Grate Casting | GG194: Frame & Grate Casting | GH194: Frame & Grate Casting | GI194: Frame & Grate Casting | GJ194: Frame & Grate Casting | GK194: Frame & Grate Casting | GL194: Curb Casting | GM194: Curb Casting | GN194: Curb Casting | GO194: Curb Casting | GP194: Curb Casting | GQ194: Curb Casting | GR194: Curb Casting | GS194: Curb Casting | GT194: Curb Casting | GU194: Curb Casting | GV194: Curb Casting | GW194: Curb Casting | GX194: Curb Casting | GY194: Frame & Concave Grate Casting | GZ194: Frame & Concave Grate Casting | HA194: Curb Casting | HB194: Curb Casting | HC194: Curb Casting | HD194: KYTC Type 1 F/C Casting | HE194: KYTC Type 1 F/C Casting | HF194: KYTC Type 2 F/C Casting | HG194: KYTC DBI 1 F/G Casting | HH194: KYTC DBI 2 F/G Casting | HI194: KYTC DBI 3 F/G Casting | HJ194: KYTC DBI 4 F/G Casting | HK194: KYTC DBI 5 F/G Casting | HL194: KYTC DBI 5 F/G Casting | HM194: KYTC DBI 5 F/G Casting | HN194: KYTC DBI 5 F/G Casting | HO194: KYTC DBI 5 F/G Casting | HP194: KYTC DBI 5 F/G Casting | HQ194: KYTC DBI 6 F/G Casting | HR194: KYTC DBI 6 F/G Casting | HS194: KYTC DBI 6 F/G Casting | HT194: KYTC DBI 6 F/G Casting | HU194: KYTC DBI 6 F/G Casting | HV194: KYTC DBI 6 F/G Casting | HW194: KYTC DBI 7 F/G Casting | HX194: KYTC DBI 10 F/G Casting | HY194: KYTC DBI 11 F/G Casting | HZ194: KYTC DBI 12 F/G (Per LF) Casting | IA194: KYTC DBI 12A F/G (Per LF) Casting | IB194: KYTC DBI 13/16G F/G Casting | IC194: KYTC DBI 13/16S F/G Casting | ID194: KYTC DBI 14 F/G Casting | IE194: KYTC DBI 15 F/G Casting | IF194: KY Single Safety Inlet Grates | IG194: KY Double Safety Inlet Grates | IH194: Bolt-On Plain Grate | II194: Bolt-On Galvanized Grate | IJ194: Bolt-On Plain Grate | IK194: Bolt-On Galvanized Grate | IL194: Bolt-On Plain Grate | IM194: Bolt-On Galvanized Grate | IN194: Bolt-On Plain Grate | IO194: Bolt-On Galvanized Grate | IP194: Bolt-On Plain Grate | IQ194: Bolt-On Galvanized Grate | IR194: Bolt-On Plain Grate | IS194: Bolt-On Galvanized Grate | IT194: KYTC SBO1 Grates | IU194: KYTC SBO1 Grates | IV194: KYTC SFBIO Grates | IW194: KYTC SFBIO Grates | IX194: KYTC SFBIO Grates | IY194: KYTC SFBIO Grates | IZ194: KYTC SBIO Grates | JA194: KYTC SBIO Grates | JB194: KYTC MBBI F/G Casting | JC194: KYTC CBI TY A F/C Casting | JD194: KYTC CBI TY B F/G Casting | JE194: KYTC CBI TY F Curb Casting | JF194: 1-1/2" X 8" TD Angle F/G (Per LF) | JG194: 1-1/2" X 10" TD Angle F/G (Per LF) | JH194: 1-1/2" X 12" TD Angle F/G (Per LF) | JI194: 1-1/2" X 14" TD Angle F/G (Per LF) | JJ194: 1-1/2" X 14" TD Angle F/G L Vane (Per LF) | JK194: 1-1/2" X 17" TD Angle F/G (Per LF) | JL194: 1-1/2" X 20" TD Angle F/G | JM194: 1-1/2" X 24" TD Angle F/G (Per LF) | JN194: 1-1/2" X 26" TD Angle F/G (Per LF) | JO194: 1-1/2" X 8" TD Angle F/G ADA (Per LF) | JP194: 1-1/2" X 12" TD Angle F/G ADA (Per LF) | JQ194: 1-1/2" X 14" TD Angle F/G ADA (Per LF) | JR194: 1-1/2" X 24" TD Angle F/G ADA (Per LF) | JS194: 1-1/2" X 26" TD Angle F/G ADA (Per LF) | JT194: 1-1/2" X 8" TD Iron F/G (Per LF) | JU194: 1-1/2" X 10" TD Iron F/G (Per LF) | JV194: 1-1/2" X 12" TD Iron F/G (Per LF) | JW194: 1-1/2" X 14" TD Iron F/G (Per LF) | JX194: 1-1/2" X 14" TD Iron F/G L Vane (Per LF) | JY194: 1-1/2" X 17" TD Iron F/G (Per LF) | JZ194: 1-1/2" X 20" TD Iron F/G (Per LF) | KA194: 1-1/2" X 24" TD Iron F/G (Per LF) | KB194: 1-1/2" X 26" TD Iron F/G (Per LF) | KC194: 1-1/2" X 8" TD Iron F/G (Per LF) | KD194: 1-1/2" X 10" TD Iron Bolted F/G (Per LF) | KE194: 1-1/2" X 12" TD Iron F/G (Per LF) | KF194: 1-1/2" X 14" TD Iron Bolted F/G (Per LF) | KG194: 1-1/2" X 14" TD Iron Bolted F/G L Vane (Per LF) | KH194: 1-1/2" X 17" TD Iron Bolted F/G (Per LF) | KI194: 1-1/2" X 20" TD Iron Bolted F/G (Per LF) | KJ194: 1-1/2" X 24" TD Iron Bolted F/G (Per LF) | KK194: 1-1/2" X 26" TD Iron Bolted F/G (Per LF) | KL194: 1-1/2" X 8" TD Iron F/G ADA (Per LF) | KM194: 1-1/2" X 12" TD Iron F/G ADA (Per LF) | KN194: 1-1/2" X 14" TD Iron F/G ADA (Per LF) | KO194: 1-1/2" X 24" TD Iron F/G ADA (Per LF) | KP194: 1-1/2" X 26" TD Iron F/G ADA (Per LF) | KQ194: 1-1/2" X 8" TD Iron Bolted F/G ADA (Per LF) | KR194: 1-1/2" X 12" TD Iron Bolted F/G ADA (Per LF) | KS194: 1-1/2" X 14" TD Iron Bolted F/G ADA (Per LF) | KT194: 1-1/2" X 24" TD Iron Bolted F/G ADA (Per LF) | KU194: 1-1/2" X 26" TD Iron Bolted F/G ADA (Per LF) | KV194: INDOT Type 2 F/G Casting | KW194: INDOT Type 3 F/G Casting | KX194: INDOT Type 4 F/G Casting | KY194: INDOT Type 5 F/G Casting | KZ194: INDOT Type 5 F/G Dbl Casting | LA194: INDOT Type 7 BH Grate | LB194: INDOT Type 8 Curb Casting | LC194: INDOT Type 10 Curb Casting | LD194: INDOT Type 12A (Single) Casting | LE194: INDOT Type 12 (Double) Casting | LF194: INDOT Type 13 F/G Casting | LG194: INDOT Type 14 F/G Casting | LH194: INDOT Type 15 Curb Casting | LI194: Grate Casting | LJ194: Frame & Cover Casting | LK194: Frame & Cover Casting | LL194: Frame & Cover Casting | LM194: Frame & Cover Casting | LN194: Frame & Cover Casting | LO194: Frame & Cover Casting | LP194: Frame & Cover Casting | LQ194: Frame & Cover Casting | LR194: Frame & Cover Casting | LS194: Frame & Cover Casting | LT194: Frame & Cover Casting | LU194: Frame & Cover Casting | LV194: Frame & Cover Casting | LW194: Frame & Cover Casting | LX194: Frame & Cover Casting | LY194: Frame & Cover Casting | LZ194: Frame & Cover Casting | MA194: Frame & Cover Casting | MB194: Frame & Cover Casting | MC194: Frame & Cover Casting | MD194: Frame & Cover Casting | ME194: Frame & Cover Casting | MF194: Frame & Cover Casting | MG194: Frame & Cover Casting | MH194: Frame & Cover Casting | MI194: Frame & Cover Casting | MJ194: Frame & Cover Casting | MK194: Frame & Cover Casting | ML194: Frame & Cover Casting | MM194: Frame & Cover Casting | MN194: Frame & Cover Casting | MO194: Frame & Cover Casting | MP194: Frame & Cover Casting | MQ194: Frame & Cover Casting | MR194: Frame & Cover Casting | MS194: Frame & Cover Casting | MT194: Frame & Cover Casting | MU194: Frame & Cover Casting | MV194: Frame & Cover Casting | MW194: Frame & Cover Casting | MX194: Frame & Cover Casting | MY194: Frame & Cover Casting | MZ194: Frame & Cover Casting | NA194: Frame & Cover Casting | NB194: Frame & Cover Casting | NC194: Frame & Cover Casting | ND194: Frame & Cover Casting | NE194: Frame & Cover Casting | NF194: Frame & Cover Casting | NG194: Frame & Cover Casting | NH194: Frame & Cover Casting | NI194: Frame & Cover Casting | NJ194: Frame & Cover Casting | NK194: Frame & Cover Casting | NL194: Frame & Cover Casting | NM194: Frame & Cover Casting | NN194: Frame & Cover Casting | NO194: Frame & Cover Casting | NP194: Frame & Cover Casting | NQ194: Frame & Cover Casting | NR194: Frame & Cover Casting | NS194: Frame & Cover Casting | NT194: Frame & Cover Casting | NU194: Frame & Cover Casting | NV194: Frame & Cover Casting | NW194: Frame & Grate Casting | NX194: Frame & Grate Casting | NY194: Frame & Grate Casting | NZ194: Frame & Grate Casting | OA194: Frame & Grate Casting | OB194: Frame & Grate Casting | OC194: Frame & Grate Casting | OD194: Frame & Grate Casting | OE194: Frame & Grate Casting | OF194: Frame & Grate Casting | OG194: Frame & Grate Casting | OH194: Frame & Grate Casting | OI194: Frame & Grate Casting | OJ194: Frame & Grate Casting | OK194: Frame & Grate Casting | OL194: Frame & Grate Casting | OM194: Frame & Grate Casting | ON194: Frame & Grate Casting | OO194: Frame & Grate Casting | OP194: Frame & Grate Casting | OQ194: Curb Casting | OR194: Curb Casting | OS194: Curb Casting | OT194: Curb Casting | OU194: Curb Casting | OV194: Curb Casting | OW194: Curb Casting | OX194: Curb Casting | OY194: Curb Casting | OZ194: Curb Casting | PA194: Curb Casting | PB194: Curb Casting | PC194: Curb Casting | PD194: Curb Casting | PE194: Curb Casting | PF194: Curb Casting | PG194: Curb Casting | PH194: Curb Casting | PI194: Curb Casting | PJ194: Curb Casting | PK194: Curb Casting | PL194: Curb Casting | PM194: Curb Casting | PN194: Curb Casting | PO194: Curb Casting | PP194: Curb Casting | PQ194: Curb Casting | PR194: Curb Casting | PS194: Curb Casting | PT194: Curb Casting | PU194: Curb Casting | PV194: Curb Casting | PW194: Curb Casting | PX194: Curb Casting | PY194: Curb Casting | PZ194: Curb Casting | QA194: Curb Casting | QB194: Curb Casting | QC194: Roll Curb Casting | QD194: Curb Casting | QE194: Curb Casting | QF194: Curb Casting | QG194: Curb Casting | QH194: Frame & Grate Casting | QI194: Curb Casting | QJ194: Curb Casting | QK194: Curb Casting | QL194: Curb Casting | QM194: Curb Casting | QN194: Curb Casting | QO194: Roll Curb Casting | QP194: Roll Curb Casting | QQ194: Frame & Grate Casting | QR194: Frame & Grate Casting | QS194: Frame & Grate Casting | QT194: Frame & Grate Casting | QU194: Frame & Grate Casting | QV194: Frame & Grate Casting | QW194: Frame & Grate Casting | QX194: Frame & Grate Casting | QY194: Frame & Grate Casting | QZ194: Frame & Grate Casting | RA194: Frame & Grate Casting | RB194: Frame & Grate Casting | RC194: Frame & Grate Casting | RD194: Frame & Grate Casting | RE194: Frame & Grate Casting | RF194: Frame & Grate Casting | RG194: Grate Casting | RH194: Grate Casting | RI194: Grate Casting | RJ194: Frame & Grate Casting | RK194: Frame & Grate Casting | RL194: Frame & Grate Casting | RM194: Frame & Grate Casting | RN194: Frame & Grate Casting | RO194: Frame & Grate Casting | RP194: Frame & Grate Casting | RQ194: Frame & Grate Casting | RR194: Frame & Grate Casting | RS194: Frame & Grate Casting | RT194: Frame & Grate Casting | RU194: Frame & Grate Casting | RV194: Frame & ADA Grate Casting | RW194: Frame & ADA Grate Casting | RX194: Frame & Grate Casting | RY194: Frame & Grate Casting | RZ194: Frame & Grate Casting | SA194: Frame & Grate (Per LF) Casting | SB194: Frame & Grate (Per LF) Casting | SC194: Frame & Cover Casting | SD194: Frame & Cover Casting | SE194: Frame & Cover Casting | SF194: Frame & Cover Casting | SG194: Frame & Cover Casting | SH194: Grate Casting | SI194: Grate Casting | SJ194: Grate Casting | SK194: Grate Casting | SL194: Grate Casting | SM194: Grate Casting | SN194: Grate Casting | SO194: Grate Casting | SP194: Grate Casting | SQ194: Grate Casting | SR194: Grate Casting | SS194: Grate Casting | ST194: Grate Casting | SU194: Grate Casting | SV194: Grate Casting | SW194: Grate Set Casting | SX194: Grate Set Casting | SY194: Grate Set Casting | SZ194: Grate Set Casting | TA194: Grate Set Casting | TB194: Grate Set Casting | TC194: Grate Set Casting | TD194: Grate Set Casting | TE194: Trash Rack | TF194: Trash Rack | TG194: Trash Rack | TH194: Trash Rack | TI194: Trash Rack | TJ194: Trash Rack | TK194: Trash Rack | TL194: Trash Rack | TM194: Trash Rack | TN194: Trash Rack | TO194: Trash Rack | TP194: Trash Rack | TQ194: Trash Rack | TR194: Trash Rack | TS194: Trash Rack | TT194: Trash Rack | TU194: Trash Rack | TV194: Trash Rack | TW194: Trash Rack | TX194: Trash Rack | TY194: Trash Rack | TZ194: Trash Rack | UA194: Trash Rack | UB194: Trash Rack | UC194: Trash Rack | UD194: Trash Rack | UE194: Trash Rack | UF194: Trash Rack | UG194: Trash Rack | UH194: Trash Rack | UI194: Grate | UJ194: Grate | UK194: Grate | UL194: Grate | UM194: Grate | UN194: Grate | UO194: Grate | UP194: Grate | UQ194: Grate | UR194: Grate | US194: Grate | UT194: Grate | UU194: Grate | UV194: Grate | UW194: Grate | UX194: Grate | UY194: Grate | UZ194: Grate | VA194: Grate | VB194: Grate | VC194: Grate | VD194: Grate | VE194: Grate | VF194: Grate | VG194: Grate | VH194: Grate | VI194: Grate | VJ194: Grate | VK194: Grate | VL194: Grate | VM194: Grate | VN194: Grate | VO194: Grate | VP194: Grate | VQ194: Grate | VR194: Grate | VS194: Grate | VT194: Grate | VU194: Grate | VV194: 12" FES Trash Guard | VW194: 15" FES Trash Guard | VX194: 18" FES Trash Guard | VY194: 24" FES Trash Guard | VZ194: 30" FES Trash Guard | WA194: 36" FES Trash Guard | WB194: Hatch | WC194: Hatch | WD194: Hatch | WE194: Hatch | WF194: Hatch | WG194: Hatch | WH194: Hatch | WI194: Hatch | WJ194: Hatch | WK194: Hatch | WL194: Hatch | WM194: Hatch | WN194: Hatch | WO194: Hatch | WP194: Hatch | WQ194: Hatch | WR194: Hatch | WS194: Hatch | WT194: Hatch | WU194: Hatch | WV194: Hatch | WW194: Hatch | WX194: Hatch | WY194: Hatch | WZ194: Hatch | XA194: Hatch | XB194: Hatch | XC194: Hatch | XD194: Hatch | XE194: Hatch | XF194: Hatch | XG194: Hatch | XH194: Hatch | XI194: Hatch | XJ194: Hatch | XK194: Hatch | XL194: Hatch | XM194: Hatch | XN194: Hatch | XO194: Hatch | XP194: Hatch | XQ194: Hatch | XR194: Hatch | XS194: Hatch | XT194: Hatch | XU194: Hatch | XV194: Hatch | XW194: Hatch | XX194: Hatch | XY194: Hatch | XZ194: Hatch | YA194: Hatch | YB194: Hatch | YC194: Hatch | YD194: Hatch | YE194: Hatch | YF194: Hatch | YG194: Hatch | YH194: Hatch | YI194: Hatch | YJ194: Hatch | YK194: Hatch | YL194: Hatch | YM194: Hatch | YN194: Hatch | YO194: Hatch | YP194: Hatch | YQ194: Hatch | YR194: Hatch | YS194: Hatch | YT194: Hatch | YU194: Hatch | YV194: Hatch | YW194: Hatch | YX194: Hatch | YY194: Hatch | YZ194: Hatch | ZA194: Hatch | ZB194: Hatch | ZC194: Hatch | ZD194: Hatch | ZE194: Hatch | ZF194: Hatch | ZG194: Hatch | ZH194: Hatch | ZI194: Hatch | ZJ194: Hatch | ZK194: Hatch | ZL194: Hatch | ZM194: Hatch | ZN194: Hatch | ZO194: Hatch | ZP194: Hatch | ZQ194: Hatch | ZR194: Hatch | ZS194: Hatch | ZT194: Hatch | ZU194: Hatch | ZV194: Hatch | ZW194: Hatch | ZX194: Hatch | ZY194: Hatch | ZZ194: Hatch | AAA194: Hatch | AAB194: Hatch | AAC194: Hatch | AAD194: Hatch | AAE194: Hatch | AAF194: Hatch | AAG194: Hatch | AAH194: Hatch | AAI194: Hatch | AAJ194: Hatch | AAK194: Hatch | AAL194: Hatch | AAM194: Hatch | AAN194: Hatch | AAO194: Hatch | AAP194: Hatch | AAQ194: Hatch | AAR194: Hatch | AAS194: Hatch | AAT194: Hatch | AAU194: Hatch | AAV194: Hatch | AAW194: Hatch | AAX194: Hatch | AAY194: Hatch | AAZ194: Hatch | ABA194: Hatch | ABB194: Hatch | ABC194: Hatch | ABD194: Hatch | ABE194: Hatch | ABF194: Hatch | ABG194: Hatch | ABH194: Hatch | ABI194: Hatch | ABJ194: Hatch | ABK194: Hatch | ABL194: Hatch | ABM194: Hatch | ABN194: Hatch | ABO194: Hatch | ABP194: Hatch | ABQ194: Hatch | ABR194: Hatch | ABS194: Hatch | ABT194: Hatch | ABU194: Hatch | ABV194: Hatch | ABW194: Hatch | ABX194: Hatch | ABY194: Hatch | ABZ194: Hatch | ACA194: Hatch | ACB194: Hatch | ACC194: Hatch | ACD194: Hatch | ACE194: Hatch | ACF194: Hatch | ACG194: Hatch | ACH194: Hatch | ACI194: Hatch | ACJ194: Hatch | ACK194: Hatch | ACL194: Hatch | ACM194: Hatch | ACN194: Hatch | ACO194: Hatch | ACP194: Hatch | ACQ194: Hatch | ACR194: Hatch | ACS194: Hatch | ACT194: Hatch | ACU194: Hatch | ACV194: Hatch | ACW194: Hatch | ACX194: Hatch | ACY194: Hatch | ACZ194: Hatch | ADA194: Hatch | ADB194: Hatch | ADC194: Hatch | ADD194: Hatch | ADE194: Hatch | ADF194: Hatch | ADG194: Hatch | ADH194: Hatch | ADI194: Hatch | ADJ194: Hatch | ADK194: Hatch | ADL194: Hatch | ADM194: Hatch | ADN194: Hatch | ADO194: Hatch | ADP194: Hatch | ADQ194: Hatch | ADR194: Hatch | ADS194: Hatch | ADT194: Hatch | ADU194: Hatch | ADV194: Hatch | ADW194: Hatch | ADX194: Hatch | ADY194: Hatch | ADZ194: Hatch | AEA194: Hatch | AEB194: Hatch | AEC194: Hatch | AED194: Hatch | AEE194: Hatch | AEF194: Hatch | AEG194: Hatch | AEH194: Hatch | AEI194: Hatch | AEJ194: Hatch | AEK194: Hatch | AEL194: Hatch | AEM194: Hatch | AEN194: Hatch | AEO194: Hatch | AEP194: Hatch | AEQ194: Hatch | AER194: Hatch | AES194: Hatch | AET194: Hatch | AEU194: Hatch | AEV194: Hatch | AEW194: Hatch | AEX194: Hatch | AEY194: Hatch | AEZ194: Hatch | AFA194: Hatch | AFB194: Hatch | AFC194: Hatch | AFD194: Hatch | AFE194: Hatch | AFF194: Hatch | AFG194: Hatch | AFH194: Hatch | AFI194: Hatch | AFJ194: Hatch | AFK194: Hatch | AFL194: Hatch | AFM194: Hatch | AFN194: Hatch | AFO194: Hatch | AFP194: Hatch | AFQ194: Hatch | AFR194: Hatch | AFS194: Hatch | AFT194: Hatch | AFU194: Hatch | AFV194: Hatch | AFW194: Hatch | AFX194: Hatch | AFY194: Hatch | AFZ194: Hatch | AGA194: Hatch | AGB194: Hatch | AGC194: Hatch | AGD194: Hatch | AGE194: Hatch | AGF194: Hatch | AGG194: Hatch | AGH194: Hatch | AGI194: Hatch | AGJ194: Hatch | AGK194: Hatch | AGL194: Hatch | AGM194: Hatch | AGN194: Hatch | AGO194: Hatch | AGP194: Hatch | AGQ194: Hatch | AGR194: Hatch | AGS194: Hatch | AGT194: Hatch | AGU194: Hatch | AGV194: Hatch | AGW194: Hatch | AGX194: Hatch | AGY194: Hatch | AGZ194: Hatch | AHA194: Hatch | AHB194: Hatch | AHC194: Hatch | AHD194: Casting | AHE194: Casting | AHF194: Casting | AHG194: Casting | AHH194: Casting | AHI194: Casting | AHJ194: Casting | AHK194: Casting | AHL194: Casting | AHM194: Casting
B195: NetSuite Product ID | C195: Product ID | D195: ID | F195: MTO | G195: MTO | I195: CSTEJ1578FCP | J195: CSTEJ1578FCCO | K195: CSTJRHMC82FCP | L195: CSTJRHMC82FCPCastIn | M195: CSTJRHMC162FCP | N195: CSTJRHMC162FCPCastIn | O195: CSTJRHMC260FCP | P195: CSTJRHMC260FCST | Q195: CSTJRHMC260FCSAN | R195: CSTJRHMC260FCG | S195: CSTJRHMC260FCW | T195: CSTJRHMC260FCV | U195: CSTJRHMC350FCP | V195: CSTJRHMC350FCST | W195: CSTJRHMC350FCSAN | X195: CSTJRHMC350FCG | Y195: CSTJRHMC350FCW | Z195: CSTJRHMC350FCV | AA195: CSTJRHMC350FCLFUCGS | AB195: CSTJRHMC350FCFSD | AC195: CSTJRHMC350FCSSS | AD195: CSTJRHMC350FCBDWTS | AE195: CSTJRHMC350WTL | AF195: CSTJRHMC295FCP | AG195: CSTJRHMC295FCST | AH195: CSTJRHMC295FCSAN | AI195: CSTJRHMC295FCG | AJ195: CSTJRHMC295FCW | AK195: CSTJRHMC295FCV | AL195: CSTJRHMC295FCSTICAST | AM195: CSTJRHMC295FCSANICAST | AN195: CSTJRHMC295GICAST | AO195: CSTJRHMC315FCP | AP195: CSTJRHMC315FCST | AQ195: CSTJRHMC315FCSAN | AR195: CSTJRHMC315G | AS195: CSTJRHMC315FCW | AT195: CSTJRHMC315FCOW | AU195: CSTJRHMC315FCV | AV195: CSTJRHMC315FCSTICAST | AW195: CSTJRHMC315FCSANICAST | AX195: CSTJRHMC315GICAST | AY195: CSTJRHMC315FCOWICAST | AZ195: CSTJRHMC315FCSTH | BA195: CSTJRHMC315FCSANH | BB195: CSTJRHMC315RWRA | BC195: CSTJRHMC315SSC | BD195: CSTJRHMC315FCBDWTS | BE195: CSTJRHMC275FCP | BF195: CSTJRHMC275FCST | BG195: CSTJRHMC275FCSAN | BH195: CSTJRHMC420FCP | BI195: CSTJRHMC420FC | BJ195: CSTJRHMC420FC-STM-LOUMSD | BK195: CSTJRHMC420FCSAN | BL195: CSTJRHMC420FC-SWR-LOUMSD | BM195: CSTJRHMC420FCLG | BN195: CSTJRHMC420FCBDWTS | BO195: CSTJRHMC285FCP | BP195: CSTJRHMC285FCST | BQ195: CSTJRHMC285FCSAN | BR195: CSTJRHMC285FCW | BS195: CSTJRHMC285FCV | BT195: CSTJRHMC285FCSTICAST | BU195: CSTJRHMC285FCSANICAST | BV195: CSTJRHMC285FCGTICAST | BW195: CSTJRHMC375FCP | BX195: CSTJRHMC375FCST | BY195: CSTJRHMC375S | BZ195: CSTJRHMC375FCW | CA195: CSTJRHMC375FCV | CB195: CSTJRHMC375FCS-BGMU | CC195: CSTJRHMC375FCG | CD195: CSTJRHMC375FCOW | CE195: CSTJRHMC375FCBIO | CF195: CSTJRHMC375FCSTICAST | CG195: CSTJRHMC375FCSANICAST | CH195: CSTJRHMC375FCGTICAST | CI195: CSTJRHMC375FCOWICAST | CJ195: CSTJRHMC375FCSSS | CK195: CSTJRHMC375FCBDWTS | CL195: CSTJRHMC680FCP | CM195: CSTJRHMC680FCELE | CN195: CSTJRHMC680FCCOM | CO195: CSTJRHMC780FCP | CP195: CSTJRHMC780FCELE | CQ195: CSTJRHMC780FCCOM | CR195: CSTJRHMC455FCP | CS195: CSTJRHMC747FCP | CT195: CSTJRHMC900FCP | CU195: CSTJRHMCS295FGB | CV195: CSTJRHMCS295FC | CW195: CSTJRHMCS295FCST | CX195: CSTJRHMCS295FCSAN | CY195: CSTJRHMCS295FCW | CZ195: CSTJRHMCS295FCV | DA195: CSTJRHMCS206FGB | DB195: CSTJRHMCS288FGB | DC195: CSTJRHMCS288FC | DD195: CSTJRHMCS288FCST | DE195: CSTJRHMCS288FCSAN | DF195: CSTJRHMCS288FCW | DG195: CSTJRHMCS288FCV | DH195: CSTJRHMCS288BHFG6 | DI195: CSTJRHMCS288BHFG9 | DJ195: CSTJRHMCS290FGB | DK195: CSTJRHMCS290FC | DL195: CSTJRHMCS290FCST | DM195: CSTJRHMCS290FCSAN | DN195: CSTJRHMCS290FCW | DO195: CSTJRHMCS290FCV | DP195: CSTJRHMCS455FGB | DQ195: CSTJRHMCS455FCP | DR195: CSTJRHMCS455FCP | DS195: CSTJRHMCS455FCW | DT195: CSTJRHMCS520FGB | DU195: CSTJRHMCS520FCP | DV195: CSTJRHMCS747FGB | DW195: CSTJRHMCS747FCP | DX195: CSTJRHMCS900FGB | DY195: CSTJRHMCS900FCP | DZ195: CSTJRHMCB82FG | EA195: CSTJRHMCB82FGCastIn | EB195: CSTJRHMCB162FG | EC195: CSTJRHMCB162FGCastIn | ED195: CSTJRHMCB260FBG | EE195: CSTJRHMCB260FRG | EF195: CSTJRHMCB260FBHG | EG195: CSTJRHMCB350FBG | EH195: CSTJRHMCB350FRG | EI195: CSTJRHMCB350FBHG | EJ195: CSTJRHMCB295FBG | EK195: CSTJRHMCB295FRG | EL195: CSTJRHMCB295FBHG | EM195: CSTJRHMCB315BFG | EN195: CSTJRHMCB315FRG | EO195: CSTJRHMCB315FBHG | EP195: CSTJRHMCB275FBG | EQ195: CSTJRHMCB420FBG | ER195: CSTJRHMCB285FBG | ES195: CSTJRHMCB285FBHG | ET195: CSTJRHMCB375FBG | EU195: CSTJRHMCB375FBHG | EV195: CSTJRHMCB375FBHG9 | EW195: CSTJRHMCB520FBG | EX195: CSTJRHMCB455FBG | EY195: CSTJRHMCB747FG | EZ195: CSTJRHMCB900FG | FA195: CSTJRHHOE165AFG | FB195: CSTJRHHOE280TFG | FC195: CSTJRHHOE280TFGCastIn | FD195: CSTJRHHOE280BH | FE195: CSTJRHHOE280BHCastIn | FF195: CSTJRHHOE280SOLIDFC | FG195: CSTJRHHOE280SOLIDFCCastIn | FH195: CSTJRHHOE280TFGADA | FI195: CSTJRHHOE280TFGADACastIn | FJ195: CSTJRHHOE320 | FK195: CSTJRHMCS320FG | FL195: CSTJRHHOE342FG | FM195: CSTJRHHOE342FGADA | FN195: CSTJRHHOE275AFG | FO195: CSTJRHHOE275DBLFG | FP195: CSTJRHHOE460FG | FQ195: CSTJRHHOE326FBHG | FR195: CSTJRHHOE326FBHGCastIn | FS195: CSTJRHHOE580FGA | FT195: CSTJRHHOE580FGLV | FU195: CSTJRHHOE518FG | FV195: CSTJRHHOE518DBLFG | FW195: CSTJRHHOE468FG | FX195: CSTJRHHOE468RFG | FY195: CSTJRHHOE468RFC | FZ195: CSTJRHHOE918FG | GA195: CSTJRHHOE595 | GB195: CSTJRHHOE595FG | GC195: CSTJRHHOE718FG | GD195: CSTJRHHOE165FG | GE195: CSTJRHHOE165FGCastIn | GF195: CSTJRHHOE315FG | GG195: CSTJRHHOE315FGCastIn | GH195: CSTJRHHOE555FG | GI195: CSTJRHHOE555FGCastIn | GJ195: CSTJRHHOE700FG | GK195: CSTJRHHOE700FGCastIn | GL195: CSTJRHHOE465SET | GM195: CSTJRHHOE360SETF | GN195: CSTJRHHOE360SETLV | GO195: CSTJRHHOE399SET | GP195: CSTJRHHOE470SETF | GQ195: CSTJRHHOE470SETLV | GR195: CSTJRHHOE525SETF | GS195: CSTJRHHOE525LV | GT195: CSTJRHHOE525SETV | GU195: CSTJRHHOE525LV | GV195: CSTJRHHOE525DBLSETLV | GW195: CSTJRHHOE525DBLSETF | GX195: CSTJRHHOE525TPLSETLV | GY195: CSTJRHHOE405FG | GZ195: CSTJRHHOE449FG | HA195: CSTJRHHOE410FG | HB195: CSTJRHHOE698FG | HC195: CSTEJ4510 | HD195: CSTJRHKY206 | HE195: CSTJRHKY206CastIn | HF195: CSTJRHKY510FC | HG195: CSTJRHKY316FG2 | HH195: CSTJRHKY398FG2 | HI195: CSTJRHKY328FG2 | HJ195: CSTJRHKY410FG2 | HK195: CSTJRHKY460-5AFG2 | HL195: CSTJRHKY460-5BFG2 | HM195: CSTJRHKY460-5CFG2 | HN195: CSTJRHKY460-5DFG2 | HO195: CSTJRHKY460-5EFG2 | HP195: CSTJRHKY460-5FFG2 | HQ195: CSTJRHKY426-6AFG2 | HR195: CSTJRHKY426-6BFG2 | HS195: CSTJRHKY426-6CFG2 | HT195: CSTJRHKY426-6DFG2 | HU195: CSTJRHKY426-6EFG2 | HV195: CSTJRHKY426-6FFG2 | HW195: CSTJRHKY328FG (cast in) | HX195: CSTJRHKY550 | HY195: CSTJRHKY46011 | HZ195: CSTJRHKY65 | IA195: CSTJRHKY65A | IB195: CSTJRHKY230GFG | IC195: CSTJRHKY230SFG | ID195: CSTJRHKY210FG | IE195: CSTJRHKY215FG | IF195: CSTJRHKYSAFETY-SGL | IG195: CSTJRHKYSAFETY-DBL | IH195: CSTJRHHOE169PLAIN | II195: CSTJRHHOE169GAL | IJ195: CSTJRHHOE199PLAIN | IK195: CSTJRHHOE199GAL | IL195: CSTJRHHOE269PLAIN | IM195: CSTJRHHOE269GAL | IN195: CSTJRHHOE729PLAIN | IO195: CSTJRHHOE729GAL | IP195: CSTJRHHOE1249PLAIN | IQ195: CSTJRHHOE1249GAL | IR195: CSTJRHHOE1799PLAIN | IS195: CSTJRHHOE1799GAL | IT195: CSTJRHKY161 | IU195: CSTJRHKY300 | IV195: CSTJRHKY272 | IW195: CSTJRHKY454 | IX195: CSTJRHKY796 | IY195: CSTJRHKY1218 | IZ195: CSTJRHKY298 | JA195: CSTJRHKY206-S | JB195: CSTJRHKY345SET | JC195: CSTJRHKY206CastIn | JD195: CSTJRHKY345 | JE195: CSTJRHHOE465SET | JF195: CSTJRHTFG1.5x8-PLF | JG195: CSTJRHTFG1.5x10-PLF | JH195: CSTJRHTFG1.5x12-PLF | JI195: CSTJRHTFG1.5x14-PLF | JJ195: CSTJRHTFGLV1.5x14-PLF | JK195: CSTJRHTFG1.5x17-PLF | JL195: CSTJRHTFG1.5x20-PLF | JM195: CSTJRHTFG1.5x24-PLF | JN195: CSTJRHTFG1.5x26-PLF | JO195: CSTJRHTFGADA1.5x8-PLF | JP195: CSTJRHTFGADA1.5x12-PLF | JQ195: CSTJRHTFGADA1.5x14-PLF | JR195: CSTJRHTFGADA1.5x24-PLF | JS195: CSTJRHTFGADA1.5x26-PLF | JT195: CSTJRHTCIFG1.5x8-PLF | JU195: CSTJRHTCIFG1.5x10-PLF | JV195: CSTJRHTCIFG1.5x12-PLF | JW195: CSTJRHTCIFG1.5x14-PLF | JX195: CSTJRHTCIFGLV1.5x14-PLF | JY195: CSTJRHTCIFG1.5x17-PLF | JZ195: CSTJRHTCIFG1.5x20-PLF | KA195: CSTJRHTCIFG1.5x24-PLF | KB195: CSTJRHTCIFG1.5x26-PLF | KC195: CSTJRHTCIBDFG1.5x8-PLF | KD195: CSTJRHTCIBDFG1.5x10-PLF | KE195: CSTJRHTCIBDFG1.5x12-PLF | KF195: CSTJRHTCIBDFG1.5x14-PLF | KG195: CSTJRHTCIBDFGLV1.5x14-PLF | KH195: CSTJRHTCIBDFG1.5x17-PLF | KI195: CSTJRHTCIBDFG1.5x20-PLF | KJ195: CSTJRHTCIBDFG1.5x24-PLF | KK195: CSTJRHTCIBDFG1.5x26-PLF | KL195: CSTJRHTCIFGADA1.5x8-PLF | KM195: CSTJRHTCIFGADA1.5x12-PLF | KN195: CSTJRHTCIFGADA1.5x14-PLF | KO195: CSTJRHTCIFGADA1.5x24-PLF | KP195: CSTJRHTCIFGADA1.5x26-PLF | KQ195: CSTJRHTCIBDFGADA1.5x8-PLF | KR195: CSTJRHTCIBDFGADA1.5x12-PLF | KS195: CSTJRHTCIBDFGADA1.5x14-PLF | KT195: CSTJRHTCIBDFGADA1.5x24-PLF | KU195: CSTJRHTCIBDFGADA1.5x26-PLF | KV195: CSTEJ5340 | KW195: CSTEJ7500 | KX195: CSTEJ1925 | KY195: CSTEJ5425 | KZ195: CSTEJ5425 | LA195: CSTEJ6610GBH | LB195: CSTEJ7520 | LC195: CSTEJ7505 | LD195: CSTEJ5400 | LE195: CSTEJ5405 | LF195: CSTEJ5335 | LG195: CSTEJDBL5191F5190G | LH195: CSTEJ542532B01 | LI195: CSTJRHEJ6500 | LJ195: CSTJBS1020FCDR | LK195: CSTJBS1020FCSEW | LL195: CSTJBS1045FCST | LM195: CSTJBS1065FCST | LN195: CSTJBS1065FCSTCastIn | LO195: CSTJBS1072FCP | LP195: CSTJBS1072FCPCastIn | LQ195: CSTJBS1072FCST | LR195: CSTJBS1072FCSTCastIn | LS195: CSTJBS1072FCSAN | LT195: CSTJBS1072FCSANCastIn | LU195: CSTJBS1072FCG | LV195: CSTJBS1072FCGCastIn | LW195: CSTJBS1077FCST | LX195: CSTJBS1077FCSTCastIn | LY195: CSTJBS1090FCBDWTLOU | LZ195: CSTJBS1090FCBDWTSAN | MA195: CSTJBS1095FCLAGST | MB195: CSTJBS1095FCLAGSEW | MC195: CSTJBS1095FCLOUST | MD195: CSTJBS1095FCLOUSEW | ME195: CSTJBS1110FCST | MF195: CSTJBS1110FCSAN | MG195: CSTJBS1111FCPCastIn | MH195: CSTJBS1111FCSTCastIn | MI195: CSTJBS1111FCSEWCastIn | MJ195: CSTJBS1123FCBDWTSAN | MK195: CSTJBS1123FCBDWTKYST | ML195: CSTJBS1123FCKYST | MM195: CSTJBS1123FCBDWTKYSAN | MN195: CSTJBS1123FCKYSAN | MO195: CSTJBS1132FCELE | MP195: CSTJBS1132FCCOM | MQ195: CSTJBS1140MFCST | MR195: CSTJBS1140MFCSAN | MS195: CSTJBS1140MFCLEXSAN | MT195: CSTJBS1140MFCRWRASAN | MU195: CSTJBS1140MFCBDWTSAN | MV195: CSTJBS1140MFCBDWTLEXSAN | MW195: CSTJBS1144FCST | MX195: CSTJBS1144FCSAN | MY195: CSTJBS1150 | MZ195: CSTJBS1150ST | NA195: CSTJBS1150FCSAN | NB195: CSTJBS1150FCBDWTSAN | NC195: CSTJBS1152MFCBGMUSAN | ND195: CSTJBS1154FCST | NE195: CSTJBS1154FCST | NF195: CSTJBS1154FCSAN | NG195: CSTJBS1154FCSAN | NH195: CSTJBS1155FCP | NI195: CSTJBS1155FCST | NJ195: CSTJBS1155SANSEW | NK195: CSTJBS1155SANBDWT | NL195: CSTJBS1220FCP | NM195: CSTJBS1220FCPCastIn | NN195: CSTJBS1220FCE | NO195: CSTJBS1220FCECastIn | NP195: CSTJBS1225FCP | NQ195: CSTJBS1225FCPCastIn | NR195: CSTJBS1247DMFCST | NS195: CSTJBS1247DMFCSAN | NT195: CSTJBS1247DMFCSSS | NU195: CSTJBS1247DMFCGSS | NV195: CSTJBS1247DMFCBDWTSAN | NW195: CSTJBS2020FG | NX195: CSTJBS2072FG | NY195: CSTJBS2072FGCastIn | NZ195: CSTJBS2110FG | OA195: CSTJBS2111FGCastIn | OB195: CSTJBS2140FG | OC195: CSTJBS2150FG | OD195: CSTJBS2214FG | OE195: CSTJBS2215FG | OF195: CSTJBS2220FG | OG195: CSTJBS2220FGCastIn | OH195: CSTJBS2225FG | OI195: CSTJBS2225FGCastIn | OJ195: CSTJBS2230FG | OK195: CSTJBS2230FGCastIn | OL195: CSTJBS2272FBHG | OM195: CSTJBS2272FBHGCastIn | ON195: CSTJBS2280FBHG | OO195: CSTJBS3061FGCastIn | OP195: CSTJBS3062FGCastIn | OQ195: CSTJBS3070FG | OR195: CSTJBS3080 | OS195: CSTJBS3080V | OT195: CSTJBS3080DBL | OU195: CSTJBS3080VDBL | OV195: CSTJBS3080TPL | OW195: CSTJBS3080VTPL | OX195: CSTJBS3085 | OY195: CSTJBS3101 | OZ195: CSTJBS3101V | PA195: CSTJBS3101D | PB195: CSTJBS3101VD | PC195: CSTJBS3101T | PD195: CSTJBS3101VT | PE195: CSTJBS3103 | PF195: CSTJBS3103V | PG195: CSTJBS3103D | PH195: CSTJBS3103VD | PI195: CSTJBS3103T | PJ195: CSTJBS3103VT | PK195: CSTJBS3104SGL | PL195: CSTJBS3104VSGL | PM195: CSTJBS3104D | PN195: CSTJBS3104VD | PO195: CSTJBS3104T | PP195: CSTJBS3104VT | PQ195: CSTJBS3105V | PR195: CSTJBS3106 | PS195: CSTJBS3106V | PT195: CSTJBS3123 | PU195: CSTJBS3123MOD | PV195: CSTJBS3123MODDBL | PW195: CSTJBS3123-13 | PX195: CSTJBS3123-32 | PY195: CSTJBS3123-32DBL | PZ195: CSTJBS3123-41 | QA195: CSTJBS3123-41DBL | QB195: CSTJBS3123-41Q | QC195: CSTJBS3126 | QD195: CSTJBS3157 | QE195: CSTJBS3157V | QF195: CSTJBS3158 | QG195: CSTJBS3158V | QH195: CSTJBS3223V | QI195: CSTJBS3300 | QJ195: CSTJBS3300V | QK195: CSTJBS3300DBL | QL195: CSTJBS3300VDBL | QM195: CSTJBS3300TPL | QN195: CSTJBS3300VTPL | QO195: CSTJBS3305 | QP195: CSTJBS3305M | QQ195: CSTJBS3411FG | QR195: CSTJBS3413FG | QS195: CSTJBS3450FG | QT195: CSTJBS3700FG | QU195: CSTJBS4012FG | QV195: CSTJBS4073FG | QW195: CSTJBS4073FGCastIn | QX195: CSTJBS4074FG | QY195: CSTJBS4074FGCastIn | QZ195: CSTJBS4075 | RA195: CSTJBS4075CastIn | RB195: CSTJBS4076XFG | RC195: CSTJBS4076XFGCastIn | RD195: CSTJBS4077 | RE195: CSTJBS4078 | RF195: CSTJBS4190 | RG195: CSTJBS4200G | RH195: CSTJBS4200GDBL | RI195: CSTJBS4200GQ | RJ195: CSTJBS4220FG | RK195: CSTJBS4250 | RL195: CSTJBS4254 | RM195: CSTJBS4254CastIn | RN195: CSTJBS4260 | RO195: CSTJBS4275 | RP195: CSTJBS4275V | RQ195: CSTJBS4300 | RR195: CSTJBS4310SGL | RS195: CSTJBS4310DBL | RT195: CSTJBS4315 | RU195: CSTJBS4315CastIn | RV195: CSTJBS4315ADA | RW195: CSTJBS4315ADACastIn | RX195: CSTJBS4330 | RY195: CSTJBS4475G | RZ195: CSTJBS4480FBHG | SA195: CSTJBS5830FGSTD | SB195: CSTJBS5830FG | SC195: PSJBS8006FC | SD195: PSJBS8110FCCastIn | SE195: PSJBS8121FCCastIn | SF195: PSJBS8122FCCastIn | SG195: CSTJBS8310FC | SH195: CSTJBSTY38G | SI195: CSTJBSTY39G | SJ195: CSTJBSTY40G | SK195: HWTDOT3-1CD30G | SL195: HWTDOT4-1CD30G | SM195: HWTDOT6-1CD30G | SN195: HWTDOT3-1CD36G | SO195: HWTDOT4-1CD36G | SP195: HWTDOT6-1CD36G | SQ195: HWTDOT3-1CD42G | SR195: HWTDOT4-1CD42G | SS195: HWTDOT6-1CD42G | ST195: HWTDOT3-1CD48G | SU195: HWTDOT4-1CD48G | SV195: HWTDOT6-1CD48G | SW195: HWTDOT6-1SA15C | SX195: HWTDOT6-1SA18C | SY195: HWTDOT6-1SA24C | SZ195: HWTDOT6-1SA30C | TA195: HWTDOT6-1SA36C | TB195: HWTDOT6-1SA42C | TC195: HWTDOT6-1SA48C | TD195: HWTDOT12-1SA18C | TE195: CSTJRHTRLSQ-24 | TF195: CSTJRHTRLSQ-24-G | TG195: CSTJRHTRLSQ-24-AL | TH195: CSTJRHTRLSQ-36 | TI195: CSTJRHTRLSQ-36-G | TJ195: CSTJRHTRLSQ-36-AL | TK195: CSTJRHTRLSQ-3648-P | TL195: CSTJRHTRLSQ-3648-G | TM195: CSTJRHTRLSQ-3648-AL | TN195: CSTJRHTRLSQ-48-P | TO195: CSTJRHTRLSQ-48 | TP195: CSTJRHTRLSQ-48-AL | TQ195: CSTJRHTRLSQ-60-P | TR195: CSTJRHTRLSQ-60-G | TS195: CSTJRHTRLSQ-60-AL | TT195: CSTJRHTRLSQ-72-P | TU195: CSTJRHTRLSQ-72-G | TV195: CSTJRHTRLSQ-72-AL | TW195: CSTJRHTRLDR-36-P | TX195: CSTJRHTRLDR-36-G | TY195: CSTJRHTRLDR-36-AL | TZ195: CSTJRHTRLDR-48-P | UA195: CSTJRHTRLDR-48-G | UB195: CSTJRHTRLDR-48-AL | UC195: CSTJRHTRLDR-60-P | UD195: CSTJRHTRLDR-60-G | UE195: CSTJRHTRLDR-60-AL | UF195: CSTJRHTRLDR-72-P | UG195: CSTJRHTRLDR-72-G | UH195: CSTJRHTRLDR-72-AL | UI195: CSTJRHTRLFG-36-P | UJ195: CSTJRHTRLFG-36-G | UK195: CSTJRHTRLFG-36-AL | UL195: CSTJRHTRLFG-3648-P | UM195: CSTJRHTRLFG-3648-G | UN195: CSTJRHTRLFG-3648-AL | UO195: CSTJRHTRLFG-48-P | UP195: CSTJRHTRLFG-48-G | UQ195: CSTJRHTRLFG-48-AL | UR195: CSTJRHTRLFG-60-P | US195: CSTJRHTRLFG-60-G | UT195: CSTJRHTRLFG-60-AL | UU195: CSTJRHTRLFG-72-P | UV195: CSTJRHTRLFG-72-G | UW195: CSTJRHTRLFG-72-AL | UX195: CSTJRHTRLFS-36 | UY195: CSTJRHTRLFS-36-G | UZ195: CSTJRHTRLFS-36-AL | VA195: CSTJRHTRLFS-48-P | VB195: CSTJRHTRLFS-48-G | VC195: CSTJRHTRLFS-48-AL | VD195: CSTJRHTRLFS-60-P | VE195: CSTJRHTRLFS-60-G | VF195: CSTJRHTRLFS-60-AL | VG195: CSTJRHTRLFS-72-P | VH195: CSTJRHTRLFS-72-G | VI195: CSTJRHTRLFS-72-AL | VJ195: CSTJRHTRLFR-36-P | VK195: CSTJRHTRLFR-36-G | VL195: CSTJRHTRLFR-36-AL | VM195: CSTJRHTRLFR-48-P | VN195: CSTJRHTRLFR-48-G | VO195: CSTJRHTRLFR-48-AL | VP195: CSTJRHTRLFR-60-P | VQ195: CSTJRHTRLFR-60-G | VR195: CSTJRHTRLFR-60-AL | VS195: CSTJRHTRLFR-72-P | VT195: CSTJRHTRLFR-72-G | VU195: CSTJRHTRLFR-72-AL | VV195: MTO | VW195: MTO | VX195: MTO | VY195: MTO | VZ195: MTO | WA195: MTO | WB195: HATHALS1R2424 | WC195: HATHALS1R2430 | WD195: HATHALS1R2436 | WE195: HATHALS1R2442 | WF195: HATHALS1R2448 | WG195: HATHALS1R2959 | WH195: HATHALS1R3030 | WI195: HATHALS1R3036 | WJ195: HATHALS1R3042 | WK195: HATHALS1R3048 | WL195: HATHALS1R3054 | WM195: HATHALS1R3060 | WN195: HATHALS1R3636 | WO195: HATHALS1R3642 | WP195: HATHALS1R3648 | WQ195: HATHALS1R3654 | WR195: HATHALS1R3660 | WS195: HATHALS1R3666 | WT195: HATHALS1R3672 | WU195: HATHALS1R4242 | WV195: HATHALS2R4242 | WW195: HATHALS2R4468 | WX195: HATHALS2R4842 | WY195: HATHALS2R4848 | WZ195: HATHALS2R5442 | XA195: HATHALS2R5448 | XB195: HATHALS2R5452 | XC195: HATHALS2R5454 | XD195: HATHALS2R5858 | XE195: HATHALS2R6030 | XF195: HATHALS2R6036 | XG195: HATHALS2R6042 | XH195: HATHALS2R6048 | XI195: HATHALS2R6054 | XJ195: HATHALS2R6060 | XK195: HATHALS2R6636 | XL195: HATHALS2R6642 | XM195: HATHALS2R6648 | XN195: HATHALS2R6654 | XO195: HATHALS2R6660 | XP195: HATHALS2R6666 | XQ195: HATHALS2R7236 | XR195: HATHALS2R7242 | XS195: HATHALS2R7248 | XT195: HATHALS2R7254 | XU195: HATHALS2R7260 | XV195: HATHALS1S2424 | XW195: HATHALS1S2430 | XX195: HATHALS1S2436 | XY195: HATHALS1S2442 | XZ195: HATHALS1S2448 | YA195: HATHALS1S3030 | YB195: HATHALS1S3036 | YC195: HATHALS1S3042 | YD195: HATHALS1S3048 | YE195: HATHALS1S3054 | YF195: HATHALS1S3060 | YG195: HATHALS1S3636 | YH195: HATHALS1S3642 | YI195: HATHALS1S3648 | YJ195: HATHALS1S3654 | YK195: HATHALS1S3660 | YL195: HATHALS1S3666 | YM195: HATHALS1S3672 | YN195: HATHALS1S4242 | YO195: HATHALS2S3654 | YP195: HATHALS2S4242 | YQ195: HATHALS2S4842 | YR195: HATHALS2S4848 | YS195: HATHALS2S5442 | YT195: HATHALS2S5448 | YU195: HATHALS2S5454 | YV195: HATHALS2S6030 | YW195: HATHALS2S6036 | YX195: HATHALS2S6042 | YY195: HATHALS2S6048 | YZ195: HATHALS2S6054 | ZA195: HATHALS2S6060 | ZB195: HATHALS2S6636 | ZC195: HATHALS2S6642 | ZD195: HATHALS2S6648 | ZE195: HATHALS2S6654 | ZF195: HATHALS2S6660 | ZG195: HATHALS2S6666 | ZH195: HATHALS2S7236 | ZI195: HATHALS2S7242 | ZJ195: HATHALS2S7248 | ZK195: HATHALS2S7254 | ZL195: HATHALS2S7260 | ZM195: HATHALW1R2424 | ZN195: HATHALW1R2430 | ZO195: HATHALW1R2436 | ZP195: HATHALW1R2442 | ZQ195: HATHALW1R2448 | ZR195: HATHALW1R3030 | ZS195: HATHALW1R3036 | ZT195: HATHALW1R3042 | ZU195: HATHALW1R3048 | ZV195: HATHALW1R3054 | ZW195: HATHALW1R3060 | ZX195: HATHALW1R3636 | ZY195: HATHALW1R3642 | ZZ195: HATHALW1R3648 | AAA195: HATHALW1R3654 | AAB195: HATHALW1R3660 | AAC195: HATHALW1R3666 | AAD195: HATHALW1R3672 | AAE195: HATHALW1R4242 | AAF195: HATHALW2R4242 | AAG195: HATHALW2R4842 | AAH195: HATHALW2R4848 | AAI195: HATHALW2R5442 | AAJ195: HATHALW2R5448 | AAK195: HATHALW2R5454 | AAL195: HATHALW2R5834 | AAM195: HATHALW2R6030 | AAN195: HATHALW2R6036 | AAO195: HATHALW2R6042 | AAP195: HATHALW2R6048 | AAQ195: HATHALW2R6054 | AAR195: HATHALW2R6060 | AAS195: HATHALW2R6636 | AAT195: HATHALW2R6642 | AAU195: HATHALW2R6648 | AAV195: HATHALW2R6654 | AAW195: HATHALW2R6660 | AAX195: HATHALW2R6666 | AAY195: HATHALW2R7236 | AAZ195: HATHALW2R7242 | ABA195: HATHALW2R7248 | ABB195: HATHALW2R7254 | ABC195: HATHALW2R7260 | ABD195: HATHALW1S2424 | ABE195: HATHALW1S2430 | ABF195: HATHALW1S2436 | ABG195: HATHALW1S2442 | ABH195: HATHALW1S2448 | ABI195: HATHALW1S3030 | ABJ195: HATHALW1S3036 | ABK195: HATHALW1S3042 | ABL195: HATHALW1S3048 | ABM195: HATHALW1S3054 | ABN195: HATHALW1S3060 | ABO195: HATHALW1S3636 | ABP195: HATHALW1S3642 | ABQ195: HATHALW1S3648 | ABR195: HATHALW1S3654 | ABS195: HATHALW1S3660 | ABT195: HATHALW1S3666 | ABU195: HATHALW1S3672 | ABV195: HATHALW1S3678 | ABW195: HATHALW1S4242 | ABX195: HATHALW1S4260 | ABY195: HATHALW1S6060 | ABZ195: HATHALW2S4242 | ACA195: HATHALW2S4842 | ACB195: HATHALW2S4848 | ACC195: HATHALW2S5442 | ACD195: HATHALW2S5448 | ACE195: HATHALW2S5454 | ACF195: HATHALW2S6030 | ACG195: HATHALW2S6036 | ACH195: HATHALW2S6042 | ACI195: HATHALW2S6048 | ACJ195: HATHALW2S6054 | ACK195: HATHALW2S6060 | ACL195: HATHALW2S6636 | ACM195: HATHALW2S6642 | ACN195: HATHALW2S6648 | ACO195: HATHALW2S6654 | ACP195: HATHALW2S6660 | ACQ195: HATHALW2S6666 | ACR195: HATHALW2S7236 | ACS195: HATHALW2S7242 | ACT195: HATHALW2S7248 | ACU195: HATHALW2S7254 | ACV195: HATHALW2S7260 | ACW195: HATHALW2S7848 | ACX195: HATHALW2S9672 | ACY195: HATHALW1C2424 | ACZ195: HATHALW1C2430 | ADA195: HATHALW1C2436 | ADB195: HATHALW1C2442 | ADC195: HATHALW1C2448 | ADD195: HATHALW1C3030 | ADE195: HATHALW1C3036 | ADF195: HATHALW1C3042 | ADG195: HATHALW1C3048 | ADH195: HATHALW1C3054 | ADI195: HATHALW1C3060 | ADJ195: HATHALW1C3636 | ADK195: HATHALW1C3642 | ADL195: HATHALW1C3648 | ADM195: HATHALW1C3654 | ADN195: HATHALW1C3660 | ADO195: HATHALW1C3666 | ADP195: HATHALW1C3672 | ADQ195: HATHALW1C4242 | ADR195: HATHALW2C4242 | ADS195: HATHALW2C4842 | ADT195: HATHALW2C4848 | ADU195: HATHALW2C5442 | ADV195: HATHALW2C5448 | ADW195: HATHALW2C5454 | ADX195: HATHALW2C6030 | ADY195: HATHALW2C6036 | ADZ195: HATHALW2C6042 | AEA195: HATHALW2C6048 | AEB195: HATHALW2C6054 | AEC195: HATHALW2C6060 | AED195: HATHALW2C6636 | AEE195: HATHALW2C6642 | AEF195: HATHALW2C6648 | AEG195: HATHALW2C6654 | AEH195: HATHALW2C6660 | AEI195: HATHALW2C6666 | AEJ195: HATHALW2C7236 | AEK195: HATHALW2C7242 | AEL195: HATHALW2C7248 | AEM195: HATHALW2C7254 | AEN195: HATHALW2C7260 | AEO195: HATHALH1R2424 | AEP195: HATHALH1R2430 | AEQ195: HATHALH1R2436 | AER195: HATHALH1R2442 | AES195: HATHALH1R2448 | AET195: HATHALH1R3030 | AEU195: HATHALH1R3036 | AEV195: HATHALH1R3042 | AEW195: HATHALH1R3048 | AEX195: HATHALH1R3636 | AEY195: HATHALH1R3642 | AEZ195: HATHALH1R3648 | AFA195: HATHALH2R4242 | AFB195: HATHALH2R4842 | AFC195: HATHALH2R4848 | AFD195: HATHALH2R5442 | AFE195: HATHALH2R5448 | AFF195: HATHALH2R6048 | AFG195: HATHALH2R6060 | AFH195: HATHALH2R7248 | AFI195: HATHALH2R7260 | AFJ195: HATHALH2R7272 | AFK195: HATHALH1W2424 | AFL195: HATHALH1W2430 | AFM195: HATHALH1W2436 | AFN195: HATHALH1W2442 | AFO195: HATHALH1W2448 | AFP195: HATHALH1W3030 | AFQ195: HATHALH1W3036 | AFR195: HATHALH1W3042 | AFS195: HATHALH1W3048 | AFT195: HATHALH1W3636 | AFU195: HATHALH1W3642 | AFV195: HATHALH1W3648 | AFW195: HATHALH1W3660 | AFX195: HATHALH2W3680 | AFY195: HATHALH2W4242 | AFZ195: HATHALH2W4842 | AGA195: HATHALH2W4848 | AGB195: HATHALH2W5442 | AGC195: HATHALH2W5448 | AGD195: HATHALH2W6048 | AGE195: HATHALH2W6060 | AGF195: HATHALH2W7248 | AGG195: HATHALH2W7260 | AGH195: HATHALH1C2424 | AGI195: HATHALH1C2430 | AGJ195: HATHALH1C2436 | AGK195: HATHALH1C2442 | AGL195: HATHALH1C2448 | AGM195: HATHALH1C3030 | AGN195: HATHALH1C3036 | AGO195: HATHALH1C3042 | AGP195: HATHALH1C3048 | AGQ195: HATHALH1C3636 | AGR195: HATHALH1C3642 | AGS195: HATHALH1C3648 | AGT195: HATHALH2C4242 | AGU195: HATHALH2C4842 | AGV195: HATHALH2C4848 | AGW195: HATHALH2C5442 | AGX195: HATHALH2C5448 | AGY195: HATHALH2C6048 | AGZ195: HATHALH2C6060 | AHA195: HATHALH2C7248 | AHB195: HATHALH2C7260 | AHC195: HATHALH2C7272 | AHD195: MTO | AHE195: MTO | AHF195: MTO | AHG195: MTO | AHH195: MTO | AHI195: MTO | AHJ195: MTO | AHK195: MTO | AHL195: MTO | AHM195: MTO
B196: NetSuite Product ID (Frame) | C196: Product ID | D196: ID | F196: MTO | G196: MTO | K196: CSTJRHMC82F | L196: CSTJRHMC82F | O196: CSTJRHMC260F | P196: CSTJRHMC260F | Q196: CSTJRHMC260F | R196: CSTJRHMC260F | T196: CSTJRHMC260F | U196: CSTJRHMC350F | V196: CSTJRHMC350F | W196: CSTJRHMC350F | X196: CSTJRHMC350F | Z196: CSTJRHMC350F | AC196: CSTJRHMC350F | AD196: CSTJRHMC350F | AO196: CSTJRHMC315F | AP196: CSTJRHMC315F | AQ196: CSTJRHMC315F | AR196: CSTJRHMC315F | AS196: CSTJRHMC315F | AT196: CSTJRHMC315F | AU196: CSTJRHMC315F | AZ196: CSTJRHMC315F | BA196: CSTJRHMC315F | BB196: CSTJRHMC315F | BC196: CSTJRHMC315F | BD196: CSTJRHMC315F | BH196: CSTJRHMC420F | BI196: CSTJRHMC420F | BJ196: CSTJRHMC420F | BK196: CSTJRHMC420F | BL196: CSTJRHMC420F | BM196: CSTJRHMC420F | BO196: CSTJRHMC285F | BP196: CSTJRHMC285F | BQ196: CSTJRHMC285F | BS196: CSTJRHMC285F | BW196: CSTJRHMC375F | BX196: CSTJRHMC375F | BY196: CSTJRHMC375F | CA196: CSTJRHMC375F | CB196: CSTJRHMC375F | CC196: CSTJRHMC375F | CD196: CSTJRHMC375F | CE196: CSTJRHMC375F | CJ196: CSTJRHMC375F | CR196: CSTJRHMC455F | CS196: CSTJRHMC747F | CV196: CSTJRHMCS295F | CW196: CSTJRHMCS295F | CX196: CSTJRHMCS295F | CY196: CSTJRHMCS295F | DC196: CSTJRHMCS288F | DD196: CSTJRHMCS288F | DE196: CSTJRHMCS288F | DF196: CSTJRHMCS288F | DH196: CSTJRHMCS288F | DI196: CSTJRHMCS288F | DK196: CSTJRHMCS290F | DL196: CSTJRHMCS290F | DM196: CSTJRHMCS290F | DN196: CSTJRHMCS290F | ED196: CSTJRHMCB260F | EE196: CSTJRHMCB260F | EF196: CSTJRHMCB260F | EG196: CSTJRHMCB350F | EH196: CSTJRHMCB350F | EI196: CSTJRHMCB350F | EM196: CSTJRHMCB315BF | EQ196: CSTJRHMCB420F | ER196: CSTJRHMCB285F | ES196: CSTJRHMCB285F | EZ196: CSTJRHMCB900F | FA196: CSTJRHHOE165F | FB196: CSTJRHHOE280TF | FC196: CSTJRHHOE280TF | FD196: CSTJRHHOE280TF | FE196: CSTJRHHOE280TF | FF196: CSTJRHHOE280TF | FG196: CSTJRHHOE280TF | FJ196: CSTJRHHOE320F | FL196: CSTJRHHOE342F | FO196: CSTJRHHOE275DBLF | FQ196: CSTJRHHOE326F | FR196: CSTJRHHOE326F | FS196: CSTJRHHOE580F | FT196: CSTJRHHOE580F | FU196: CSTJRHHOE518F | FV196: CSTJRHHOE518DBLF | FW196: CSTJRHHOE468F | FZ196: CSTJRHHOE918F | GA196: CSTJRHHOE595F | GD196: CSTJRHHOE165AF | GH196: CSTJRHHOE555F | GJ196: CSTJRHHOE700F | GL196: CSTJRHHOE465F | GM196: CSTJRHHOE360F | GO196: CSTJRHHOE399F | GP196: CSTJRHHOE470F | GR196: CSTJRHHOE525F | GS196: CSTJRHHOE525F | GT196: CSTJRHHOE525F | GU196: CSTJRHHOE525DBLF | GV196: CSTJRHHOE525DBLF | HA196: CSTJRHHOE410F | HB196: CSTJRHHOE698F | HD196: CSTJRHKY206F | HE196: CSTJRHKY206F | HF196: CSTJRHKY510F | HG196: CSTJRHKY316F | HH196: CSTJRHKY398F | HI196: CSTJRHKY328F | HJ196: CSTJRHKY410F | HK196: CSTJRHKY460-5AF | HL196: CSTJRHKY460-5BF | HM196: CSTJRHKY460-5CF | HN196: CSTJRHKY460-5DF | HO196: CSTJRHKY460-5EF | HP196: CSTJRHKY460-5FF | HQ196: CSTJRHKY426-6AF | HR196: CSTJRHKY426-6BF | HS196: CSTJRHKY426-6CF | HT196: CSTJRHKY426-6DF | HU196: CSTJRHKY426-6EF | HV196: CSTJRHKY426-6FF | HW196: CSTJRHKY328F (cast in) | HX196: CSTJRHKY550F | HY196: CSTJRHKY46011F | HZ196: CSTJRHDBI12F | IA196: CSTJRHDBI12AF | IB196: CSTJRHKY230F | IC196: CSTJRHKY230SF | ID196: CSTJRHKY210F | IE196: CSTJRHKY215F | JC196: CSTJRHKY206F | JE196: CSTJRHKY465F | LC196: CSTJRHR328710V-F | LJ196: CSTJBS1020F | LK196: CSTJBS1020F | LO196: CSTJBS1072F | LP196: CSTJBS1072F | LQ196: CSTJBS1072F | LR196: CSTJBS1072F | LS196: CSTJBS1072F | LT196: CSTJBS1072F | MJ196: CSTJBS1123F | MQ196: CSTJBS1140MF | MR196: CSTJBS1140MF | MS196: CSTJBS1140MF | MT196: CSTJBS1140MF | MW196: CSTJBS1144F | MX196: CSTJBS1144F | MY196: CSTJBS1150F | MZ196: CSTJBS1150F | NA196: CSTJBS1150F | ND196: CSTJBS1154F | NE196: CSTJBS1154F | NF196: CSTJBS1154F | NG196: CSTJBS1154F | NL196: CSTJBS1220F | NM196: CSTJBS1220F | NX196: CSTJBS1072F | NY196: CSTJBS1072F | OC196: CSTJBS2150F | OQ196: CSTJBS3070NF | OR196: CSTJBS3080F | OS196: CSTJBS3080F | OT196: CSTJBS3080F | OU196: CSTJBS3080F | OV196: CSTJBS3080F | OW196: CSTJBS3080F | QI196: CSTJBS3300F | QV196: CSTJBS4073F | QW196: CSTJBS4073F | QZ196: CSTJBS4075F | RA196: CSTJBS4075F | RT196: CSTJBS4315F | RU196: CSTJBS4315F
B197: NetSuite Product ID (Cover/Grate) | C197: Product ID | D197: ID | F197: MTO | G197: MTO | K197: CSTJRHMC82C | L197: CSTJRHMC82C | O197: CSTJRHMC260C | P197: CSTJRHMC260C | Q197: CSTJRHMC260CSAN | R197: CSTJRHMC260CG | T197: CSTJRHMC260CG | U197: CSTJRHMC350C | V197: CSTJRHMC350CSTM | W197: CSTJRHMC350CS | X197: CSTJRHMC350CG | Z197: MTO | AC197: CSTJRHMC350CSS | AD197: CSTJRHMC350CBDWTS | AO197: CSTJRHMC315P | AP197: CSTJRHMC315ST | AQ197: CSTJRHMC315CSAN | AR197: CSTJRHMC315CG | AS197: CSTJRHMC315W | AT197: CSTJRHMC315OW | AU197: MTO | AZ197: CSTJRHMC315STH | BA197: MTO | BB197: CSTJRHMC315CRWRA | BC197: CSTJRHMC315CSSSAN | BD197: CSTJRHMC315WTSS | BH197: CSTJRHMC420C | BI197: CSTJRHMC420C | BJ197: CSTJRHMC420C-STM-LOUMSD | BK197: CSTJRHMC420C | BL197: CSTJRHMC420C-SWR-LOUMSD | BM197: CSTJRHMC420CLG | BO197: CSTJRHMC285C | BP197: CSTJRHMC285C | BQ197: CSTJRHMC285C | BS197: MTO | BW197: CSTJRHMC375C | BX197: CSTJRHMC375CST | BY197: CSTJRHMC375CS | CA197: MTO | CB197: CSTJRHMC375CS-BGMU | CC197: CSTJRHMC375CG | CD197: CSTJRHMC375CO | CE197: MTO | CJ197: CSTJRHMC375CSSS | CK197: CSTJRHMC375CWTS | CR197: CSTJRHMC455C | CS197: CSTJRHMC747C | CV197: CSTJRHMCS295C | CW197: MTO | CX197: CSTJRHMCS295CS | DC197: CSTJRHMCS290C | DD197: CSTJRHMCS288STM | DE197: MTO | DF197: MTO | DH197: CSTJRHMCS288BHG | DI197: MTO | DK197: CSTJRHMCS290C | DL197: MTO | DM197: MTO | DN197: MTO | ED197: CSTJRHMCB260G | EE197: MTO | EF197: CSTJRHMCB260BHG | EG197: CSTJRHMCB350G | EH197: CSTJRHMCB350RG | EI197: CSTJRHMCB350BHG | EM197: CSTJRHMCB315BG | EN197: CSTJRHMCB315RG | EO197: CSTJRHMCB315BH | EQ197: CSTJRHMCB420G | ER197: CSTJRHMCB285G | ES197: CSTJRHMCB285BHG | ET197: CSTJRHMCB375BG | EU197: CSTJRHMCB375BHG | EZ197: CSTJRHMCB900G | FA197: CSTJRHHOE165G | FB197: CSTJRHHOE280TG | FC197: CSTJRHHOE280TG | FD197: CSTJRHHOE280BHG | FE197: CSTJRHHOE280BHG | FF197: CSTJRHHOE280SOLIDF | FG197: CSTJRHHOE280SOLIDF | FJ197: CSTJRHHOE320G | FL197: CSTJRHHOE342G | FO197: CSTJRHHOE275DBLG | FQ197: CSTJRHHOE326BHG | FR197: CSTJRHHOE326BHG | FS197: CSTJRHHOE580GA | FT197: CSTJRHHOE580GLV | FU197: CSTJRHHOE518G | FV197: CSTJRHHOE518DBLG | FW197: CSTJRHHOE468G | FZ197: CSTJRHHOE918G | GA197: CSTJRHHOE595G | GD197: CSTJRHHOE165AG | GH197: CSTJRHHOE555G | GJ197: CSTJRHHOE700G | GL197: CSTJRHHOE465G | GM197: CSTJRHHOE360G | GO197: CSTJRHHOE399G | GP197: CSTJRHHOE470G | GR197: CSTJRHHOE525G | GS197: CSTJRHHOE525GLV | GT197: CSTJRHHOE525GV | GU197: CSTJRHHOE525DBLG | GV197: CSTJRHHOE525DBLVG | HA197: CSTJRHHOE410G | HB197: CSTJRHHOE698G | HD197: CSTJRHKY206C | HE197: CSTJRHKY206C | HF197: CSTJRHKY510C | HG197: CSTJRHKY316G | HH197: CSTJRHKY398G | HI197: CSTJRHKY328G | HJ197: CSTJRHKY410G | HK197: CSTJRHKY460-5AG | HL197: CSTJRHKY460-5BG | HM197: CSTJRHKY460-5CG | HN197: CSTJRHKY460-5DG | HO197: CSTJRHKY460-5EG | HP197: CSTJRHKY460-5FG | HQ197: CSTJRHKY426-6AG | HR197: CSTJRHKY426-6BG | HS197: CSTJRHKY426-6CG | HT197: CSTJRHKY426-6DG | HU197: CSTJRHKY426-6EG | HV197: CSTJRHKY426-6FG | HW197: CSTJRHKY328G | HX197: CSTJRHKY550G | HY197: CSTJRHKY46011G | HZ197: CSTJRHDBI12G | IA197: CSTJRHDBI12AG | IB197: CSTJRHKY230G | IC197: CSTJRHKY230SG | ID197: CSTJRHKY210G | IE197: CSTJRHKY215G | JC197: CSTJRHKY206C | JE197: CSTJRHKY465G | LA197: CSTJRHR4215C | LC197: CSTJRHR328710V-G | LJ197: MTO | LK197: MTO | LO197: MTO | LP197: MTO | LQ197: MTO | LR197: MTO | LS197: CSTJBS1072SAN | LT197: CSTJBS1072SAN | MJ197: CSTJBS1123WT | MQ197: MTO | MR197: CSTJBS1140SANC | MS197: MTO | MT197: MTO | MW197: MTO | MX197: MTO | MZ197: CSTJBS1150STM | NA197: CSTJBS1150SAN | ND197: MTO | NE197: MTO | NF197: MTO | NG197: MTO | NL197: CSTJBS1220C | NM197: CSTJBS1220C | NX197: CSTJBS2072G | NY197: CSTJBS2072G | OC197: CSTJBS2150G | OQ197: CSTJBS3070NG | OS197: CSTJBS3080VG | OT197: MTO | OU197: CSTJBS3080VG | OV197: MTO | OW197: CSTJBS3080VG | QI197: CSTJBS3300G | QV197: CSTJBS4073G | QW197: CSTJBS4073G | QZ197: CSTJBS4075G | RA197: CSTJBS4075G | RG197: CSTJBS4200G | RT197: CSTJBS4315G | RU197: CSTJBS4315G
B198: NetSuite Product ID (Curb Box) | C198: Product ID | D198: ID | GM198: CSTJRHHOE360CB | GO198: CSTJRHHOE399CB | GP198: CSTJRHHOE470CB | GR198: CSTJRHHOE525CB | GS198: CSTJRHHOE525CB | GT198: CSTJRHHOE525CB | GU198: CSTJRHHOE525DBLCB | GV198: CSTJRHHOE525DBLCB | JE198: CSTJRHKY465CB | LC198: CSTJRHR328710V-CB | OR198: CSTJBS3080CP | OS198: CSTJBS3080CP | OT198: CSTJBS3080CP | OU198: CSTJBS3080CP | OV198: CSTJBS3080CP | OW198: CSTJBS3080CP | QI198: CSTJBS3300CP
B199: Casting Quick Reference | C199: Equivalent 1 | O199: JBS 1144 | P199: JBS 1144 | Q199: JBS 1144 | R199: JBS 1144 | S199: JBS 1144 | T199: JBS 1144 | AO199: JBS 1140 | AP199: JBS 1140 | AQ199: JBS 1140 | AR199: JBS 1140 | AS199: JBS 1140 | AT199: JBS 1140 | AU199: JBS 1140 | AV199: JBS 1140 | AW199: JBS 1140 | AX199: JBS 1140 | AY199: JBS 1140 | AZ199: JBS 1140 | BA199: JBS 1140 | BB199: JBS 1140 | BC199: JBS 1140 | BD199: JBS 1140 | BW199: JBS 1150 | BX199: JBS 1150 | BY199: JBS 1150 | CA199: JBS 1150 | CB199: JBS 1150 | CC199: JBS 1150 | CD199: JBS 1150 | CE199: JBS 1150 | CF199: JBS 1150 | CG199: JBS 1150 | CH199: JBS 1150 | CI199: JBS 1150 | CJ199: JBS 1150 | CK199: JBS 1150 | DC199: JBS 1072 | DD199: JBS 1072 | DE199: JBS 1072 | DF199: JBS 1072 | EM199: JBS 2140 | ES199: JBS 2272 | ET199: JBS 2150 | EU199: JBS 2280 | FB199: JBS 4075 | FC199: JBS 4075 | FS199: JBS 4275 | FT199: JBS 4275 | FU199: JBS 4254 | FW199: JBS 4315 | FX199: JBS 4315 | GA199: JBS 4260 | GJ199: JBS 3700 | GM199: JBS 3105 | GN199: JBS 3105 | GP199: JBS 3106 | GQ199: JBS 3106 | GR199: JBS 3080 | GS199: JBS 3080 | GT199: JBS 3080 | GU199: JBS 3080 DBL | GV199: JBS 3080 DBL | HC199: JBS 3070 | HD199: JBS 1077 | HE199: JBS 1077 | HF199: JBS 1123 Mod. | HG199: BOTTOMS DBI 1 | HH199: BOTTOMS DBI 2 | HI199: BOTTOMS DBI 3 | HJ199: BOTTOMS DBI 4 | HK199: BOTTOMS DBI 5 | HL199: BOTTOMS DBI 5 | HM199: BOTTOMS DBI 5 | HN199: BOTTOMS DBI 5 | HO199: BOTTOMS DBI 5 | HP199: BOTTOMS DBI 5 | HQ199: BOTTOMS DBI 6 | HR199: BOTTOMS DBI 6 | HS199: BOTTOMS DBI 6 | HT199: BOTTOMS DBI 6 | HU199: BOTTOMS DBI 6 | HV199: BOTTOMS DBI 6 | HW199: BOTTOMS DBI 7 | HX199: JBS 2501D | HY199: JBS 3411 | HZ199: JBS 5830 | IA199: JBS 5830 BOLTED | IB199: JBS 3413 | IC199: JBS 3413D | ID199: JBS 2214 | IE199: JBS 2215 | IT199: BOTTOMS | IU199: BOTTOMS | IV199: BOTTOMS | IW199: BOTTOMS | IX199: BOTTOMS | IY199: BOTTOMS | IZ199: BOTTOMS | JA199: BOTTOMS | JB199: JBS 3450 | JC199: JBS 1077 | JD199: JBS 3450 | JE199: JBS 3085 | LO199: HOE MCS-288 | LP199: HOE MCS-288 | LQ199: HOE MCS-288 | LR199: HOE MCS-288 | LS199: HOE MCS-288 | LT199: HOE MCS-288 | LU199: HOE MCS-288 | LV199: HOE MCS-288 | LW199: HOE KY-206 | LX199: HOE KY-206 | MK199: HOE KY-510 | MM199: HOE KY-510 | MQ199: HOE MC-315 | MR199: HOE MC-315 | MS199: HOE MC-315 | MT199: HOE MC-315 | MU199: HOE WT-315-SAN | MV199: HOE WT-315-SAN | MW199: HOE MC-260 | MX199: HOE MC-260 | MY199: HOE MC-375 | MZ199: HOE MC-375 | NA199: HOE MC-375 | NB199: HOE WT-375-SAN | NR199: HOE MC-375 | NS199: HOE MC-375 | NT199: HOE MC-375 SS | NU199: HOE MC-375 SS | NV199: HOE WT-375-SAN | OB199: HOE MCB-315-B | OC199: HOE MCB-375-B | OD199: HOE KY-210 | OE199: HOE KY-215 | OL199: HOE MCB-285-BH | OM199: HOE MCB-285-BH | OQ199: EJ 4510 | OR199: HOE 525 | OS199: HOE 525 | OT199: HOE 525 | OU199: HOE 525 | OV199: HOE 525 | OW199: HOE 525 | OX199: HOE KY-465 | PQ199: HOE 360 | PR199: HOE 470 | PS199: HOE 470 | QD199: HOE 360 | QE199: HOE 360 | QF199: HOE 470 | QG199: HOE 470 | QQ199: HOE KY-460-11 | QR199: HOE KY-240 | QS199: HOE KY-345 | QT199: HOE-700 | QZ199: HOE-280T | RA199: HOE-280T | RL199: HOE-518 | RN199: HOE-595 | RO199: HOE-580 | RP199: HOE-580 | RT199: HOE 468 | SA199: HOE DBI 12 | SB199: HOE DBI 12A
B200: Casting Quick Reference | C200: Equivalent 2 | BW200: JBS 1247DM | BX200: JBS 1247DM | BY200: JBS 1247DM | CA200: JBS 1247DM | CB200: JBS 1247DM | CC200: JBS 1247DM | CD200: JBS 1247DM | CE200: JBS 1247DM | CF200: JBS 1247DM | CG200: JBS 1247DM | CH200: JBS 1247DM | CI200: JBS 1247DM | CJ200: JBS 1247DM | CK200: JBS 1247DM
B201: Casting Quick Reference | C201: Equivalent 3
B202: Municipal or State Spec. | C202: Specification | GJ202: LEX SI TY B | GM202: LOU SINGLE CI | GN202: LOU SINGLE CI | GP202: LOU DOUBLE CI | GQ202: LOU DOUBLE CI | GR202: LEX TYPE D CI | HC202: BGMU CI | HD202: KY MH TY 1 | HE202: KY MH TY 1 | HF202: KY MH TY 2 | HG202: KY DBI TY 1 | HH202: KY DBI TY 2 | HI202: KY DBI TY 3 | HJ202: KY DBI TY 4 | HK202: KY DBI TY 5 | HL202: KY DBI TY 5 | HM202: KY DBI TY 5 | HN202: KY DBI TY 5 | HO202: KY DBI TY 5 | HP202: KY DBI TY 5 | HQ202: KY DBI TY 6 | HR202: KY DBI TY 6 | HS202: KY DBI TY 6 | HT202: KY DBI TY 6 | HU202: KY DBI TY 6 | HV202: KY DBI TY 6 | HW202: KY DBI TY 7 | HX202: KY DBI TY 10 | HY202: KY DBI TY 11 | HZ202: KY DBI TY 12 | IA202: KY DBI TY 12A | IB202: KY DBI TY 13/16G | IC202: KY DBI TY 13/16S | ID202: KY DBI TY 14 | IE202: KY DBI TY 15 | IH202: 12"-15" SL/FL Headwall | II202: 12"-15" SL/FL Headwall | IJ202: 18" SL/FL Headwall | IK202: 18" SL/FL Headwall | IL202: 24" SL/FL Headwall | IM202: 24" SL/FL Headwall | IN202: 30"-36" SL/FL Headwall | IO202: 30"-36" SL/FL Headwall | IP202: 42"-48" SL/FL Headwall | IQ202: 42"-48" SL/FL Headwall | IR202: 54"-60" SL/FL Headwall | IS202: 54"-60" SL/FL Headwall | IT202: 15"-18" SBO TY 1 | IU202: 24" SBO TY 1 | IV202: 18" SFBIO | IW202: 24" SFBIO | IX202: 30" SFBIO | IY202: 36" SFBIO | IZ202: SBIO TY 1 | JA202: SBIO TY 2 | JB202: KY CMBBI | JC202: KY CBI TY A | JD202: KY CBI TY B | JE202: KY CBI TY F | LJ202: TDOT Type 3 | LK202: TDOT Type 3 | LW202: KDOT Type 1 | LX202: KDOT Type 1 | MC202: LOU KY MH | MD202: LOU KY MH | MJ202: NASHVILLE, TN MH | MK202: KY MH TY 2 | ML202: KY MH TY 2 | MM202: KY MH TY 2 | MN202: KY MH TY 2 | NW202: TDOT Std. #2 | OD202: KY DBI TY 14 | OE202: KY DBI TY 15 | OO202: TDOT Std. #18 | OP202: TDOT Std. #6 | OQ202: BGMU SCI | OX202: KY CBI TY F | PQ202: LOU SINGLE CI | PR202: LOU DOUBLE CI | PS202: LOU DOUBLE CI | PU202: TDOT Std. #12 | PV202: TDOT Std. Type 12 | PW202: TDOT Std. Type 13 | PX202: TDOT Std. Type 41 | PY202: TDOT Std. Type 41 | PZ202: TDOT Std. Type 31 | QA202: TDOT Std. Type 31 | QB202: TDOT Std. Type 31 | QH202: TDOT #10LPC | QQ202: KY DBI TY 11 | QR202: KY DBI TY 13/16G | QS202: KY CBI TY B | QT202: LFUCG TY B SI | RF202: TDOT STD. #19 | RG202: TDOT STD. #42 | RH202: TDOT STD. #42 | RI202: TDOT STD. #42 | RO202: LOU DOUBLE SI | RP202: LOU DOUBLE SI | SA202: KY DBI TY 12 | SB202: KY DBI TY 12A | AHD202: Blank Slot 1 | AHE202: Blank Slot 2 | AHF202: Blank Slot 3 | AHG202: Blank Slot 4 | AHH202: Blank Slot 5 | AHI202: Blank Slot 6 | AHJ202: Blank Slot 7 | AHK202: Blank Slot 8 | AHL202: Blank Slot 9 | AHM202: Blank Slot 10
B203: Municipal or State Spec. | C203: Specification | QS203: KY CMBBI
B204: Municipal or State Spec. | C204: Specification
B207: Table 4 - Pipe Connection & Pipe Seal Product Data
C208: Cell
C209: Reference | D209: Unit | E209: Box Culvert (Grout) | F209: Link Seal (Others) | G209: Doghouse (Grout) | H209: 4" HDPE (Grout) | I209: 6" HDPE (Grout) | J209: 8" HDPE (Grout) | K209: 10" HDPE (Grout) | L209: 12" HDPE (Grout) | M209: 15" HDPE (Grout) | N209: 18" HDPE (Grout) | O209: 24" HDPE (Grout) | P209: 30" HDPE (Grout) | Q209: 36" HDPE (Grout) | R209: 42" HDPE (Grout) | S209: 48" HDPE (Grout) | T209: 54" HDPE (Grout) | U209: 60" HDPE (Grout) | V209: 12" RCP B WALL (Grout) | W209: 15" RCP B WALL (Grout) | X209: 18" RCP B WALL (Grout) | Y209: 21" RCP B WALL (Grout) | Z209: 24" RCP B WALL (Grout) | AA209: 27" RCP B WALL (Grout) | AB209: 30" RCP B WALL (Grout) | AC209: 36" RCP B WALL (Grout) | AD209: 42" RCP B WALL (Grout) | AE209: 48" RCP B WALL (Grout) | AF209: 54" RCP B WALL (Grout) | AG209: 60" RCP B WALL (Grout) | AH209: 66" RCP B WALL (Grout) | AI209: 72" RCP B WALL (Grout) | AJ209: 78" RCP B WALL (Grout) | AK209: 84" RCP B WALL (Grout) | AL209: 90" RCP B WALL (Grout) | AM209: 96" RCP B WALL (Grout) | AN209: 8" CMP (Grout) | AO209: 10" CMP (Grout) | AP209: 12" CMP (Grout) | AQ209: 15" CMP (Grout) | AR209: 18" CMP (Grout) | AS209: 21" CMP (Grout) | AT209: 24" CMP (Grout) | AU209: 27" CMP (Grout) | AV209: 30" CMP (Grout) | AW209: 36" CMP (Grout) | AX209: 42" CMP (Grout) | AY209: 48" CMP (Grout) | AZ209: 54" CMP (Grout) | BA209: 60" CMP (Grout) | BB209: 66" CMP (Grout) | BC209: 72" CMP (Grout) | BD209: 2" PVC SDR35 (Grout) | BE209: 3" PVC SDR35 (Grout) | BF209: 4" PVC SDR35 (Grout) | BG209: 6" PVC SDR35 (Grout) | BH209: 8" PVC SDR35 (Grout) | BI209: 10" PVC SDR35 (Grout) | BJ209: 12" PVC SDR35 (Grout) | BK209: 15" PVC SDR35 (Grout) | BL209: 18" PVC SDR35 (Grout) | BM209: 21" PVC SDR35 (Grout) | BN209: 24" PVC SDR35 (Grout) | BO209: 2" PVC SCH40 (Grout) | BP209: 3" PVC SCH40 (Grout) | BQ209: 4" PVC SCH40 (Grout) | BR209: 6" PVC SCH40 (Grout) | BS209: 8" PVC SCH40 (Grout) | BT209: 10" PVC SCH40 (Grout) | BU209: 12" PVC SCH40 (Grout) | BV209: 15" PVC SCH40 (Grout) | BW209: 18" PVC SCH40 (Grout) | BX209: 21" PVC SCH40 (Grout) | BY209: 24" PVC SCH40 (Grout) | BZ209: 23"x14" HERCP (Grout) | CA209: 30"x19" HERCP (Grout) | CB209: 34"x22" HERCP (Grout) | CC209: 38"x24" HERCP (Grout) | CD209: 42"x27" HERCP (Grout) | CE209: 45"x29" HERCP (Grout) | CF209: 49"x32" HERCP (Grout) | CG209: 53"x34" HERCP (Grout) | CH209: 60"x38" HERCP (Grout) | CI209: 68"x43" HERCP (Grout) | CJ209: 76"x48" HERCP (Grout) | CK209: 2" PVC SDR35 Boot | CL209: 3" PVC SDR35 Boot | CM209: 4" PVC SDR35 Boot | CN209: 6" PVC SDR35 Boot | CO209: 8" PVC SDR35 Boot | CP209: 10" PVC SDR35 Boot | CQ209: 12" PVC SDR35 Boot | CR209: 15" PVC SDR35 Boot | CS209: 18" PVC SDR35 Boot | CT209: 21" PVC SDR35 Boot | CU209: 24" PVC SDR35 Boot | CV209: 27" PVC SDR35 Boot (60" MH Min.) | CW209: 30" PVC SDR35 Boot (72" MH Min.) | CX209: 36" PVC SDR35 Boot (72" MH Min.) | CY209: 42" PVC SDR35 Boot (84" MH Min.) | CZ209: 48" PVC SDR35 Boot (96" MH Min.) | DA209: 4" PVC SDR26 Boot | DB209: 6" PVC SDR26 Boot | DC209: 8" PVC SDR26 Boot | DD209: 10" PVC SDR26 Boot | DE209: 12" PVC SDR26 Boot | DF209: 15" PVC SDR26 Boot | DG209: 18" PVC SDR26 Boot | DH209: 21" PVC SDR26 Boot | DI209: 24" PVC SDR26 Boot | DJ209: 27" PVC SDR26 Boot (60" MH Min.) | DK209: 30" PVC SDR26 Boot (72" MH Min.) | DL209: 36" PVC SDR26 Boot (72" MH Min.) | DM209: 42" PVC SDR26 Boot (84" MH Min.) | DN209: 48" PVC SDR26 Boot (96" MH Min.) | DO209: 1.5" PVC SCH40 Boot | DP209: 2" PVC SCH40 Boot | DQ209: 2.5" PVC SCH40 Boot | DR209: 3" PVC SCH40 Boot | DS209: 3.5" PVC SCH40 Boot | DT209: 4" PVC SCH40 Boot | DU209: 6" PVC SCH40 Boot | DV209: 8" PVC SCH40 Boot | DW209: 10" PVC SCH40 Boot | DX209: 12" PVC SCH40 Boot | DY209: 14" PVC SCH40 Boot | DZ209: 16" PVC SCH40 Boot | EA209: 18" PVC SCH40 Boot | EB209: 20" PVC SCH40 Boot | EC209: 24" PVC SCH40 Boot | ED209: 1.5" PVC SCH80 Boot | EE209: 2" PVC SCH80 Boot | EF209: 2.5" PVC SCH80 Boot | EG209: 3" PVC SCH80 Boot | EH209: 4" PVC SCH80 Boot | EI209: 6" PVC SCH80 Boot | EJ209: 8" PVC SCH80 Boot | EK209: 10" PVC SCH80 Boot | EL209: 12" PVC SCH80 Boot | EM209: 14" PVC SCH80 Boot | EN209: 16" PVC SCH80 Boot | EO209: 3" PVC C900 Boot | EP209: 4" PVC C900 Boot | EQ209: 6" PVC C900 Boot | ER209: 8" PVC C900 Boot | ES209: 10" PVC C900 Boot | ET209: 12" PVC C900 Boot | EU209: 14" PVC C900 Boot | EV209: 16" PVC C900 Boot | EW209: 18" PVC C900 Boot | EX209: 20" PVC C900 Boot | EY209: 24" PVC C900 Boot (60" MH Min.) | EZ209: 30" PVC C900 Boot (72" MH Min.) | FA209: 36" PVC C900 Boot (72" MH Min.) | FB209: 42" PVC C900 Boot (84" MH Min.) | FC209: 48" PVC C900 Boot (96" MH Min.) | FD209: 1.5" DI Boot | FE209: 2" DI Boot | FF209: 3" DI Boot | FG209: 4" DI Boot | FH209: 6" DI Boot | FI209: 8" DI Boot | FJ209: 10" DI Boot | FK209: 12" DI Boot | FL209: 14" DI Boot | FM209: 16" DI Boot | FN209: 18" DI Boot | FO209: 20" DI Boot | FP209: 24" DI Boot (60" MH Min.) | FQ209: 30" DI Boot (72" MH Min.) | FR209: 36" DI Boot (72" MH Min.) | FS209: 42" DI Boot (84" MH Min.) | FT209: 48" DI Boot (96" MH Min.) | FU209: 4" PVC SDR35 A-Lok | FV209: 6" PVC SDR35 A-Lok | FW209: 8" PVC SDR35 A-Lok | FX209: 10" PVC SDR35 A-Lok | FY209: 12" PVC SDR35 A-Lok | FZ209: 15" PVC SDR35 A-Lok | GA209: 18" PVC SDR35 A-Lok | GB209: 21" PVC SDR35 A-Lok | GC209: 24" PVC SDR35 A-Lok | GD209: 27" PVC SDR35 A-Lok | GE209: 30" PVC SDR35 A-Lok (60" MH Min.) | GF209: 36" PVC SDR35 A-Lok (60" MH Min.) | GG209: 42" PVC SDR35 A-Lok (72" MH Min.) | GH209: 48" PVC SDR35 A-Lok (72" MH Min.) | GI209: 54" PVC SDR35 A-Lok (84" MH Min.) | GJ209: 60" PVC SDR35 A-Lok (96" MH Min.) | GK209: 4" PVC SDR26 A-Lok | GL209: 6" PVC SDR26 A-Lok | GM209: 8" PVC SDR26 A-Lok | GN209: 10" PVC SDR26 A-Lok | GO209: 12" PVC SDR26 A-Lok | GP209: 15" PVC SDR26 A-Lok | GQ209: 18" PVC SDR26 A-Lok | GR209: 21" PVC SDR26 A-Lok | GS209: 24" PVC SDR26 A-Lok | GT209: 27" PVC SDR26 A-Lok | GU209: 30" PVC SDR26 A-Lok (60" MH Min.) | GV209: 36" PVC SDR26 A-Lok (60" MH Min.) | GW209: 42" PVC SDR26 A-Lok (72" MH Min.) | GX209: 48" PVC SDR26 A-Lok (72" MH Min.) | GY209: 54" PVC SDR26 A-Lok (84" MH Min.) | GZ209: 60" PVC SDR26 A-Lok (96" MH Min.) | HA209: 4" PVC C900 A-Lok | HB209: 6" PVC C900 A-Lok | HC209: 8" PVC C900 A-Lok | HD209: 10" PVC C900 A-Lok | HE209: 12" PVC C900 A-Lok | HF209: 14" PVC C900 A-Lok | HG209: 16" PVC C900 A-Lok | HH209: 18" PVC C900 A-Lok | HI209: 20" PVC C900 A-Lok | HJ209: 24" PVC C900 A-Lok | HK209: 30" PVC C900 A-Lok (60" MH Min.) | HL209: 36" PVC C900 A-Lok (60" MH Min.) | HM209: 42" PVC C900 A-Lok (72" MH Min.) | HN209: 48" PVC C900 A-Lok (72" MH Min.) | HO209: 54" PVC C900 A-Lok (84" MH Min.) | HP209: 60" PVC C900 A-Lok (96" MH Min.) | HQ209: 4" DI A-Lok | HR209: 6" DI A-Lok | HS209: 8" DI A-Lok | HT209: 10" DI A-Lok | HU209: 12" DI A-Lok | HV209: 14" DI A-Lok | HW209: 16" DI A-Lok | HX209: 18" DI A-Lok | HY209: 20" DI A-Lok | HZ209: 24" DI A-Lok | IA209: 30" DI A-Lok (60" MH Min.) | IB209: 36" DI A-Lok (60" MH Min.) | IC209: 42" DI A-Lok (72" MH Min.) | ID209: 48" DI A-Lok (72" MH Min.) | IE209: 54" DI A-Lok (84" MH Min.) | IF209: A-Lok 1840 Mandrel (84" MH) | IG209: A-Lok 1840 Mandrel (96" MH) | IH209: A-Lok 1840 Mandrel (108" MH) | II209: A-Lok 1840 Mandrel (120" MH) | IJ209: A-Lok 1840 Mandrel (144" MH) | IK209: A-Lok 1840 Mandrel (12" Flat Wall) | IL209: 60" DI A-Lok (96" MH Min.) | IM209: A-Lok 1930 Mandrel (96" MH) | IN209: A-Lok 1930 Mandrel (108" MH) | IO209: A-Lok 1930 Mandrel (120" MH) | IP209: A-Lok 1930 Mandrel (144" MH) | IQ209: A-Lok 1930 Mandrel (12" Flat Wall) | IR209: 64" DI A-Lok (96" MH Min.) | IS209: A-Lok 2050 Mandrel (96" MH) | IT209: A-Lok 2050 Mandrel (108" MH) | IU209: A-Lok 2050 Mandrel (120" MH) | IV209: 36" HOBAS A-Lok (60" MH Min.) | IW209: 42" HOBAS A-Lok (72" MH Min.) | IX209: 48" HOBAS A-Lok (72" MH Min.) | IY209: 54" HOBAS A-Lok (84" MH Min.) | IZ209: A-Lok 1830 Mandrel (84" MH) | JA209: A-Lok 1830 Mandrel (96" MH) | JB209: A-Lok 1830 Mandrel (108" MH) | JC209: A-Lok 1830 Mandrel (120" MH) | JD209: A-Lok 1830 Mandrel (144" MH) | JE209: A-Lok 1830 Mandrel (12" Flat Wall) | JF209: 60" HOBAS A-Lok (96" MH Min.) | JG209: A-Lok 1970 Mandrel (96" MH) | JH209: A-Lok 1970 Mandrel (108" MH) | JI209: A-Lok 1970 Mandrel (120" MH) | JJ209: A-Lok 1970 Mandrel (144" MH) | JK209: A-Lok 1970 Mandrel (12" Flat Wall) | JL209: 66" HOBAS A-Lok (96" MH Min.) | JM209: A-Lok 2210 Mandrel (96" MH) | JN209: A-Lok 2210 Mandrel (108" MH) | JO209: A-Lok 2210 Mandrel (120" MH) | JP209: A-Lok 2210 Mandrel (144" MH) | JQ209: A-Lok 2210 Mandrel (12" Flat Wall) | JR209: 72" HOBAS A-Lok (108" MH Min.) | JS209: A-Lok 2430 Mandrel (108" MH) | JT209: A-Lok 2430 Mandrel (120" MH) | JU209: A-Lok 2430 Mandrel (144" MH) | JV209: A-Lok 2430 Mandrel (12" Flat Wall) | JW209: 12" B-Wall RCP A-Lok | JX209: 15" B-Wall RCP A-Lok | JY209: 18" B-Wall RCP A-Lok | JZ209: 21" B-Wall RCP A-Lok | KA209: 24" B-Wall RCP A-Lok | KB209: 27" B-Wall RCP A-Lok (60" MH Min.) | KC209: 30" B-Wall RCP A-Lok (60" MH Min.) | KD209: A-Lok 1200 Mandrel (60" MH) | KE209: A-Lok 1200 Mandrel (72" MH) | KF209: A-Lok 1200 Mandrel (84" MH) | KG209: A-Lok 1200 Mandrel (96" MH) | KH209: A-Lok 1200 Mandrel (108" MH) | KI209: A-Lok 1200 Mandrel (120" MH) | KJ209: A-Lok 1200 Mandrel (144" MH) | KK209: 36" B-Wall RCP A-Lok (72" MH Min.) | KL209: A-Lok 1420 Mandrel (72" MH) | KM209: A-Lok 1420 Mandrel (84" MH) | KN209: A-Lok 1420 Mandrel (96" MH) | KO209: A-Lok 1420 Mandrel (108" MH) | KP209: A-Lok 1420 Mandrel (120" MH) | KQ209: A-Lok 1420 Mandrel (144" MH) | KR209: 42" B-Wall RCP A-Lok (72" MH Min.) | KS209: A-Lok 1640 Mandrel (72" MH) | KT209: A-Lok 1640 Mandrel (84" MH) | KU209: A-Lok 1640 Mandrel (96" MH) | KV209: A-Lok 1640 Mandrel (108" MH) | KW209: A-Lok 1640 Mandrel (120" MH) | KX209: A-Lok 1640 Mandrel (144" MH) | KY209: 48" B-Wall RCP A-Lok (84" MH Min.) | KZ209: A-Lok 1860 Mandrel (84" MH) | LA209: A-Lok 1860 Mandrel (96" MH) | LB209: A-Lok 1860 Mandrel (108" MH) | LC209: A-Lok 1860 Mandrel (120" MH) | LD209: A-Lok 1860 Mandrel (144" MH) | LE209: 54" B-Wall RCP A-Lok (84" MH Min.) | LF209: A-Lok 2040 Mandrel (84" MH) | LG209: A-Lok 2040 Mandrel (96" MH) | LH209: A-Lok 2040 Mandrel (108" MH) | LI209: A-Lok 2040 Mandrel (120" MH) | LJ209: A-Lok 2040 Mandrel (144" MH) | LK209: 60" B-Wall RCP A-Lok (96" MH Min.) | LL209: A-Lok 2300 Mandrel (96" MH) | LM209: A-Lok 2300 Mandrel (108" MH) | LN209: A-Lok 2300 Mandrel (120" MH) | LO209: A-Lok 2300 Mandrel (144" MH) | LP209: 66" B-Wall RCP A-Lok (Flat Wall Only) | LQ209: A-Lok 2520 Mandrel (120" MH) | LR209: A-Lok 2520 Mandrel (144" MH) | LS209: A-Lok 2520 Mandrel (12" Flat Wall) | LT209: 72" B-Wall RCP A-Lok (Flat Wall Only) | LU209: A-Lok 2740 Mandrel (120" MH) | LV209: A-Lok 2740 Mandrel (144" MH) | LW209: A-Lok 2740 Mandrel (12" Flat Wall) | LX209: 12" B-Wall RCP Boot | LY209: 15" B-Wall RCP Boot | LZ209: 18" B-Wall RCP Boot | MA209: 21" B-Wall RCP Boot (60" MH Min.) | MB209: 24" B-Wall RCP Boot (60" MH Min.) | MC209: 27" B-Wall RCP Boot (72" MH Min.) | MD209: 30" B-Wall RCP Boot (72" MH Min.) | ME209: 36" B-Wall RCP Boot (84" MH Min.) | MF209: 42" B-Wall RCP Boot (96" MH Min.) | MG209: 4" N-12 Boot W/Adapter | MH209: 6" N-12 Boot W/Adapter | MI209: 8" N-12 Boot W/Adapter | MJ209: 10" N-12 Boot W/Adapter | MK209: 12" N-12 Boot W/Adapter | ML209: 15" N-12 Boot W/Adapter | MM209: 18" N-12 Boot W/Adapter | MN209: 24" N-12 Boot W/Adapter (60" MH Min.) | MO209: 30" N-12 Boot W/Adapter (72" MH Min.) | MP209: 36" N-12 Boot W/Adapter (84" MH Min.) | MQ209: 42" N-12 Boot W/Adapter (96" MH Min.) | MR209: Blank Slot 1 (A-Lok) | MS209: Blank Slot 2 (A-Lok) | MT209: Blank Slot 3 (A-Lok) | MU209: Blank Slot 4 (A-Lok) | MV209: Blank Slot 5 (A-Lok) | MW209: Blank Slot 6 (A-Lok)
B210: Pipe Seal Cost | C210: Pipe Seal Cost | D210: Dollar | CK210: 41 | CL210: 41 | CM210: 41 | CN210: 28 | CO210: 28 | CP210: 49 | CQ210: 49 | CR210: 94 | CS210: 133 | CT210: 144 | CU210: 175 | CV210: 200 | CW210: 241 | CX210: 269 | CY210: 393 | CZ210: 825 | DA210: 41 | DB210: 28 | DC210: 28 | DD210: 49 | DE210: 49 | DF210: 94 | DG210: 133 | DH210: 144 | DI210: 175 | DJ210: 200 | DK210: 241 | DL210: 269 | DM210: 393 | DN210: 825 | DO210: 41 | DP210: 41 | DQ210: 41 | DR210: 41 | DS210: 41 | DT210: 41 | DU210: 28 | DV210: 28 | DW210: 49 | DX210: 49 | DY210: 94 | DZ210: 127 | EA210: 127 | EB210: 133 | EC210: 175 | ED210: 41 | EE210: 41 | EF210: 41 | EG210: 41 | EH210: 41 | EI210: 28 | EJ210: 28 | EK210: 49 | EL210: 94 | EM210: 92 | EN210: 127 | EO210: 41 | EP210: 41 | EQ210: 28 | ER210: 28 | ES210: 49 | ET210: 49 | EU210: 94 | EV210: 110 | EW210: 127 | EX210: 133 | EY210: 175 | EZ210: 241 | FA210: 269 | FB210: 393 | FC210: 825 | FD210: 41 | FE210: 41 | FF210: 41 | FG210: 41 | FH210: 28 | FI210: 35 | FJ210: 49 | FK210: 49 | FL210: 103 | FM210: 114 | FN210: 137 | FO210: 144 | FP210: 185 | FQ210: 241 | FR210: 269 | FS210: 393 | FT210: 825 | FU210: 29 | FV210: 29 | FW210: 31 | FX210: 44 | FY210: 52 | FZ210: 80 | GA210: 99 | GB210: 116 | GC210: 130 | GD210: 269 | GE210: 269 | GF210: 327 | GG210: 380 | GH210: 434 | GI210: 475 | GJ210: 535 | GK210: 29 | GL210: 29 | GM210: 31 | GN210: 44 | GO210: 52 | GP210: 80 | GQ210: 99 | GR210: 116 | GS210: 130 | GT210: 269 | GU210: 269 | GV210: 327 | GW210: 380 | GX210: 434 | GY210: 475 | GZ210: 535 | HA210: 29 | HB210: 29 | HC210: 31 | HD210: 44 | HE210: 52 | HF210: 80 | HG210: 99 | HH210: 110 | HI210: 116 | HJ210: 140 | HK210: 269 | HL210: 327 | HM210: 380 | HN210: 434 | HO210: 475 | HP210: 535 | HQ210: 29 | HR210: 29 | HS210: 31 | HT210: 44 | HU210: 52 | HV210: 80 | HW210: 99 | HX210: 110 | HY210: 116 | HZ210: 140 | IA210: 269 | IB210: 327 | IC210: 380 | ID210: 434 | IE210: 475 | IF210: 2472 | IG210: 2784 | IH210: 3060 | II210: 3202 | IJ210: 3480 | IK210: 2784 | IL210: 535 | IM210: 3658 | IN210: 3841 | IO210: 4033 | IP210: 4206 | IQ210: 3505 | IR210: 597 | IS210: 4200 | IT210: 4421 | IU210: 4642 | IV210: 327 | IW210: 380 | IX210: 434 | IY210: 475 | IZ210: 2472 | JA210: 2784 | JB210: 3060 | JC210: 3202 | JD210: 3480 | JE210: 2784 | JF210: 535 | JG210: 3658 | JH210: 3841 | JI210: 4033 | JJ210: 4206 | JK210: 3505 | JL210: 597 | JM210: 4200 | JN210: 4421 | JO210: 4642 | JP210: 4226 | JQ210: 4025 | JR210: 651 | JS210: 4994 | JT210: Don’t Use | JU210: Don’t Use | JV210: 4777 | JW210: 99 | JX210: 116 | JY210: 130 | JZ210: 200 | KA210: 269 | KB210: 269 | KC210: 327 | LQ210: Don’t Use | LR210: Don’t Use | LU210: Don’t Use | LV210: Don’t Use | LX210: 110 | LY210: 127 | LZ210: 147 | MA210: 166 | MB210: 193 | MC210: 206 | MD210: 225 | ME210: 270 | MF210: 615 | MG210: 55 | MH210: 55 | MI210: 59.57 | MJ210: 73.9 | MK210: 79.09 | ML210: 150.1 | MM210: 180.88 | MN210: 243.8 | MO210: 296.23 | MP210: 351.1 | MQ210: 611.57
... 964 more rows

Sheet Data Trans.
D1: Stack-IT Initial Export Directions: See SOP. Enter all MTO structures and structure data first in Stack-IT. From the "view" screen in stack-it, left click on the Structure ID header (All structures should show a blue fill color), right click on Structure ID header, select "Copy Extended to Clipboard", Select OK. In the excel "Stack-IT Export" tab, right click on cell D4, paste data into cell D4. | U1: Winston Data Transfer
A2: Paste data Into cell A5 for Winston Data Transfer. | D2: Stack-IT Export of Updates or Changes: See SOP. Update all MTO structures and structure data first in Stack-IT. Create another version of the take-off in in excel
A3: Sheet Number | B3: Station Number | C3: Phase/ Alt./ Section | D3: QuoteID | E3: JobName1 | F3: JobName2 | G3: Bid Item ID | H3: ID | I3: Spec | J3: Type | K3: Size [in] | L3: Rim [ft] | M3: Reducer [ft] | N3: Inv 1 Elev [ft] | O3: Inv 1 Deg | P3: Inv 1 Offset [in] | Q3: Inv 1 Pipe | R3: Inv 1 Dia [in] | S3: Inv 1 Conn | T3: Inv 2 Elev [ft] | U3: Inv 2 Deg | V3: Inv 2 Offset [in] | W3: Inv 2 Pipe | X3: Inv 2 Dia [in] | Y3: Inv 2 Conn | Z3: Inv 3 Elev [ft] | AA3: Inv 3 Deg | AB3: Inv 3 Offset [in] | AC3: Inv 3 Pipe | AD3: Inv 3 Dia [in] | AE3: Inv 3 Conn | AF3: Inv 4 Elev [ft] | AG3: Inv 4 Deg | AH3: Inv 4 Offset [in] | AI3: Inv 4 Pipe | AJ3: Inv 4 Dia [in] | AK3: Inv 4 Conn | AL3: Inv 5 Elev [ft] | AM3: Inv 5 Deg | AN3: Inv 5 Offset [in] | AO3: Inv 5 Pipe | AP3: Inv 5 Dia [in] | AQ3: Inv 5 Conn | AR3: Inv 6 Elev [ft] | AS3: Inv 6 Deg | AT3: Inv 6 Offset [in] | AU3: Inv 6 Pipe | AV3: Inv 6 Dia [in] | AW3: Inv 6 Conn | AX3: Inv 7 Elev [ft] | AY3: Inv 7 Deg | AZ3: Inv 7 Offset [in] | BA3: Inv 7 Pipe | BB3: Inv 7 Dia [in] | BC3: Inv 7 Conn | BD3: Inv 8 Elev [ft] | BE3: Inv 8 Deg | BF3: Inv 8 Offset [in] | BG3: Inv 8 Pipe | BH3: Inv 8 Dia [in] | BI3: Inv 8 Conn | BJ3: Sump [ft] | BK3: Rim to Invert [ft] | BL3: Structure Price | BM3: Rim1 Part | BN3: Rim1 Height [in] | BO3: Top1 Part | BP3: Top1 Height [in] | BQ3: Wall [in] | BR3: Floor [in] | BS3: Extended Floor [in] | BT3: Invert Channel | BU3: Drop 1 Height [ft] | BV3: Drop 2 Height [ft] | BW3: Steps | BX3: Joint Count | BY3: Joint Perimeter [ft] | BZ3: Joint Sealant | CA3: Joint Wrap | CB3: Admixture | CC3: Coating Int Type | CD3: Coating Int Qty | CE3: Coating Ext Type | CF3: Coating Ext Qty | CG3: Overall Structure Ht [ft] | CH3: Structure Weight (Net) [lb] | CI3: Structure Volume (Net) [cuyd] | CJ3: Ancillary | CK3: Status

Sheet Pipe Input
C1: Data Collection | E1: Formula - Unlock Password: I-Cast | I1: Hidden Items. Unide rows on the quote to use these items.
C2: Select RCP/HERCP Market Location: | E2: Price Per LF (Tennessee) | I2: Select Offloading (Up to 60" Round): | K2: No Offloading | AL2: =". Estimated "&ROUNDUP(SUM(I4:I33),0)&" Loads with 60"" and Under" -> . Estimated 18 Loads with 60" and Under
B3: Line Item # | C3: Bid Item # | D3: Pipe Specified | E3: Pipe Type Quoted | F3: Alternate Status | G3: Pipe Selection | H3: Pipe Size | I3: # loads Eligible for offloading | J3: Line Item Description | K3: LF Selling Price | L3: List Price | M3: RCP List Price | N3: HERCP List Price | O3: Markup | P3: LF Selling Price | Q3: Freight Per LF | R3: Freight Per LF | S3: Extended Total RCP Price | T3: RCP % of Project | U3: Total RCP Weight | V3: Extended Total HERCP Price | W3: HERCP % of Project | X3: Total HERCP Weight | Y3: Extended Total HDPE Price | Z3: HDPE % of Project | AA3: HDPE % of a Full Load | AB3: HDPE Full Load Fraction | AC3: Extended Total CMP Price | AD3: Freight Cost Per LF (Netsuite) | AE3: Line Item Freight Cost Total | AF3: Product ID | AG3: Eligible for Offloading | AH3: Pipe Weight | AI3: # of Sections | AJ3: Exact Quantity | AK3: Quantity | AM3: INPUT PIPE RUN LENGTHS IN TABLE BELOW
B4: 1 | D4: HERCP | E4: HERCP | F4: =IF(AND(OR(D4="HDPE",D4="CMP"),E4="RCP"),"Alternate","") ->  | G4: 14"x23" HERCP C3 | I4: =IF(AND(AG4="Yes",G4<>""),(U4/45000),"") ->  | J4: =IFERROR(IF(E4="RCP",INDEX(Database!$E$379:$BE$379,MATCH('Pipe Input'!$J$3,Database!$C$379:$BE$379,0),MATCH('Pipe Input'!G4,Database!$E$377:$BE$377,0)),IF(E4="HERCP",INDEX(Database!$E$421:$S$421,MATCH('Pipe Input'!$J$3,Database!$C$421:$S$421,0),MATCH('Pipe Input'!G4,Database!$E$418:$S$418,0)),IF(E4="HDPE",INDEX(Database!$E$443:$S$443,MATCH('Pipe Input'!$J$3,Database!$C$443:$S$443,0),MATCH('Pipe Input'!G4,Database!$E$441:$S$441,0)),IF(E4="CMP",INDEX(Database!$E$460:$AS$460,MATCH('Pipe Input'!$J$3,Database!$C$460:$AS$460,0),MATCH('Pipe Input'!G4,Database!$E$458:$AS$458,0)),"")))),"") -> 14"x23" HERCP CL 3 w/Gaskets | K4: =IFERROR(IF(AK4>0,(ROUNDUP((((L4+Q4))/(1-O4/100)),2)),""), "") -> 51.69 | L4: =IFERROR(IF(E4="RCP",M4,IF(E4="HERCP",N4,IF(E4="HDPE",INDEX(Database!$E$447:$S$447,MATCH('Pipe Input'!$L$3,Database!$C$447:$S$447,0),MATCH('Pipe Input'!G4,Database!$E$441:$S$441,0)),IF(E4="CMP",INDEX(Database!$E$465:$AS$465,MATCH('Pipe Input'!$L$3,Database!$C$465:$AS$465,0),MATCH('Pipe Input'!G4,Database!$E$458:$AS$458,0)),"")))),"") -> 53.75 | M4: =IF(E4="RCP",INDEX(Database!$E$384:$BE$388,MATCH('Pipe Input'!$E$2,Database!$C$384:$C$388,0),MATCH('Pipe Input'!G4,Database!$E$377:$BE$377,0)),"") ->  | N4: =IF(E4="HERCP",INDEX(Database!$E$425:$S$429,MATCH('Pipe Input'!$E$2,Database!$C$425:$C$429,0),MATCH('Pipe Input'!G4,Database!$E$418:$S$418,0)),"") -> 53.75 | O4: =IF(E4="RCP",Summary!$AV$5,IF(E4="HERCP",Summary!$AV$34,IF(E4="HDPE",Summary!$AV$51,IF(E4="CMP",Summary!$AV$73, "")))) -> -4 | P4: =IFERROR(K4,"") -> 51.69 | Q4: =IF(AK4>0,R4, 0) -> 0 | R4: =IFERROR(IF(E4="RCP",((T4*S37)/(AI4*8)),IF(E4="HERCP",((W4*V37)/(AI4*8)),IF(E4="HDPE",((Z4*Y37)/(AI4*20)),0))), "") -> 0 | S4: =IFERROR(IF(E4="RCP",(K4*AK4), ""), "") ->  | T4: =IFERROR(IF(E4="RCP",(U4/U37), ""), "") ->  | U4: =IFERROR(IF(E4="RCP",AI4*8*AH4, 0), 0) -> 0 | V4: =IFERROR(IF(E4="HERCP",(K4*AK4), ""), "") -> 6616.32 | W4: =IFERROR(IF(E4="HERCP",(X4/X37), ""), "") -> 0.6774291806 | X4: =IFERROR(IF(E4="HERCP",AI4*8*AH4, 0), 0) -> 35584 | Y4: =IFERROR(IF(E4="HDPE",(K4*AK4), ""), "") ->  | Z4: =IFERROR(IF(E4="HDPE",(AA4/AA37), ""), "") ->  | AA4: =IFERROR(IF(E4="HDPE",(AB4*AI4), ""), "") ->  | AB4: =IFERROR(IF(E4="HDPE",INDEX(Database!$E$450:$S$450,MATCH('Pipe Input'!$AB$3,Database!$C$450:$S$450,0),MATCH('Pipe Input'!G4,Database!$E$441:$S$441,0)),""), "") ->  | AC4: =IFERROR(IF(E4="CMP",(K4*AK4), ""), "") ->  | AD4: =IF(AE4<>0,ROUND((AE4/AK4),2),"") -> 8.08 | AE4: =IF(E4="RCP",(T4*$AE$35),IF(E4="HERCP",(W4*$AE$36),0)) -> 1033.75693 | AF4: =IF(E4="RCP",INDEX(Database!$E$393:$BE$393,MATCH('Pipe Input'!$AF$3,Database!$C$393:$BE$393,0),MATCH('Pipe Input'!G4,Database!$E$377:$BE$377,0)),IF(E4="HERCP",INDEX(Database!$E$434:$S$434,MATCH('Pipe Input'!$AF$3,Database!$C$434:$S$434,0),MATCH('Pipe Input'!G4,Database!$E$418:$S$418,0)),"")) -> PIPRCP1423ELL3 | AG4: =IF(AND(E4="RCP",J4<>""),INDEX(Database!$E$395:$BE$395,MATCH('Pipe Input'!$AG$3,Database!$C$395:$BE$395,0),MATCH('Pipe Input'!G4,Database!$E$377:$BE$377,0)),"No") -> No | AH4: =IFERROR(IF(E4="RCP",INDEX(Database!$E$390:$BE$390,MATCH('Pipe Input'!$AH$3,Database!$C$390:$BE$390,0),MATCH('Pipe Input'!G4,Database!$E$377:$BE$377,0)),IF(E4="HERCP",INDEX(Database!$E$431:$S$431,MATCH('Pipe Input'!$AH$3,Database!$C$431:$S$431,0),MATCH('Pipe Input'!G4,Database!$E$418:$S$418,0)),IF(E4="HDPE",INDEX(Database!$E$448:$S$448,MATCH('Pipe Input'!$AH$3,Database!$C$448:$S$448,0),MATCH('Pipe Input'!G4,Database!$E$441:$S$441,0)),IF(E4="CMP",INDEX(Database!$E$466:$AS$466,MATCH('Pipe Input'!$AH$3,Database!$C$466:$AS$466,0),MATCH('Pipe Input'!G4,Database!$E$458:$AS$458,0)),"")))),"") -> 278 | AI4: =IF(OR(E4="RCP",E4="HERCP"),(ROUNDUP(AJ4/8,0)),IF(OR(E4="HDPE",E4="CMP"),(ROUNDUP(AJ4/20,0)),0)) -> 16 | AJ4: =SUM(AM4:AAL4) -> 128 | AK4: =IF(OR(E4="RCP",E4="HERCP"),(AI4*8),IF(OR(E4="HDPE",E4="CMP"),(AI4*20),0)) -> 128 | AM4: 64 | AN4: 64
B5: =B4+1 -> 2 | D5: HERCP | E5: HERCP | F5: =IF(AND(OR(D5="HDPE",D5="CMP"),E5="RCP"),"Alternate","") ->  | G5: 19"x30" HERCP C3 | J5: =IFERROR(IF(E5="RCP",INDEX(Database!$E$379:$BE$379,MATCH('Pipe Input'!$J$3,Database!$C$379:$BE$379,0),MATCH('Pipe Input'!G5,Database!$E$377:$BE$377,0)),IF(E5="HERCP",INDEX(Database!$E$421:$S$421,MATCH('Pipe Input'!$J$3,Database!$C$421:$S$421,0),MATCH('Pipe Input'!G5,Database!$E$418:$S$418,0)),IF(E5="HDPE",INDEX(Database!$E$443:$S$443,MATCH('Pipe Input'!$J$3,Database!$C$443:$S$443,0),MATCH('Pipe Input'!G5,Database!$E$441:$S$441,0)),IF(E5="CMP",INDEX(Database!$E$460:$AS$460,MATCH('Pipe Input'!$J$3,Database!$C$460:$AS$460,0),MATCH('Pipe Input'!G5,Database!$E$458:$AS$458,0)),"")))),"") -> 19"x30" HERCP CL 3 w/Gaskets | K5: =IFERROR(IF(AK5>0,(ROUNDUP((((L5+Q5))/(1-O5/100)),2)),""), "") -> 69.96 | L5: =IFERROR(IF(E5="RCP",M5,IF(E5="HERCP",N5,IF(E5="HDPE",INDEX(Database!$E$447:$S$447,MATCH('Pipe Input'!$L$3,Database!$C$447:$S$447,0),MATCH('Pipe Input'!G5,Database!$E$441:$S$441,0)),IF(E5="CMP",INDEX(Database!$E$465:$AS$465,MATCH('Pipe Input'!$L$3,Database!$C$465:$AS$465,0),MATCH('Pipe Input'!G5,Database!$E$458:$AS$458,0)),"")))),"") -> 72.75 | M5: =IF(E5="RCP",INDEX(Database!$E$384:$BE$388,MATCH('Pipe Input'!$E$2,Database!$C$384:$C$388,0),MATCH('Pipe Input'!G5,Database!$E$377:$BE$377,0)),"") ->  | N5: =IF(E5="HERCP",INDEX(Database!$E$425:$S$429,MATCH('Pipe Input'!$E$2,Database!$C$425:$C$429,0),MATCH('Pipe Input'!G5,Database!$E$418:$S$418,0)),"") -> 72.75 | O5: =IF(E5="RCP",Summary!$AV$5,IF(E5="HERCP",Summary!$AV$34,IF(E5="HDPE",Summary!$AV$51,IF(E5="CMP",Summary!$AV$73, "")))) -> -4 | P5: =IFERROR(K5,"") -> 69.96 | Q5: =IF(AK5>0,R5, 0) -> 0 | R5: =IFERROR(IF(E5="RCP",((T5*S38)/(AI5*8)),IF(E5="HERCP",((W5*V38)/(AI5*8)),IF(E5="HDPE",((Z5*Y38)/(AI5*20)),0))), "") -> 0 | U5: =IFERROR(IF(E5="RCP",AI5*8*AH5, 0), 0) -> 0 | V5: 3358.08 | W5: 0.3225708194 | X5: =IFERROR(IF(E5="HERCP",AI5*8*AH5, 0), 0) -> 16944 | Y5: =IFERROR(IF(E5="HDPE",(K5*AK5), ""), "") ->  | Z5: =IFERROR(IF(E5="HDPE",(AA5/AA38), ""), "") ->  | AA5: =IFERROR(IF(E5="HDPE",(AB5*AI5), ""), "") ->  | AB5: =IFERROR(IF(E5="HDPE",INDEX(Database!$E$450:$S$450,MATCH('Pipe Input'!$AB$3,Database!$C$450:$S$450,0),MATCH('Pipe Input'!G5,Database!$E$441:$S$441,0)),""), "") ->  | AC5: =IFERROR(IF(E5="CMP",(K5*AK5), ""), "") ->  | AD5: =IF(AE5<>0,ROUND((AE5/AK5),2),"") -> 10.26 | AE5: =IF(E5="RCP",(T5*$AE$35),IF(E5="HERCP",(W5*$AE$36),0)) -> 492.2430704 | AF5: =IF(E5="RCP",INDEX(Database!$E$393:$BE$393,MATCH('Pipe Input'!$AF$3,Database!$C$393:$BE$393,0),MATCH('Pipe Input'!G5,Database!$E$377:$BE$377,0)),IF(E5="HERCP",INDEX(Database!$E$434:$S$434,MATCH('Pipe Input'!$AF$3,Database!$C$434:$S$434,0),MATCH('Pipe Input'!G5,Database!$E$418:$S$418,0)),"")) -> PIPRCP1930ELLCP3 | AG5: =IF(AND(E5="RCP",J5<>""),INDEX(Database!$E$395:$BE$395,MATCH('Pipe Input'!$AG$3,Database!$C$395:$BE$395,0),MATCH('Pipe Input'!G5,Database!$E$377:$BE$377,0)),"No") -> No | AH5: =IFERROR(IF(E5="RCP",INDEX(Database!$E$390:$BE$390,MATCH('Pipe Input'!$AH$3,Database!$C$390:$BE$390,0),MATCH('Pipe Input'!G5,Database!$E$377:$BE$377,0)),IF(E5="HERCP",INDEX(Database!$E$431:$S$431,MATCH('Pipe Input'!$AH$3,Database!$C$431:$S$431,0),MATCH('Pipe Input'!G5,Database!$E$418:$S$418,0)),IF(E5="HDPE",INDEX(Database!$E$448:$S$448,MATCH('Pipe Input'!$AH$3,Database!$C$448:$S$448,0),MATCH('Pipe Input'!G5,Database!$E$441:$S$441,0)),IF(E5="CMP",INDEX(Database!$E$466:$AS$466,MATCH('Pipe Input'!$AH$3,Database!$C$466:$AS$466,0),MATCH('Pipe Input'!G5,Database!$E$458:$AS$458,0)),"")))),"") -> 353 | AI5: =IF(OR(E5="RCP",E5="HERCP"),(ROUNDUP(AJ5/8,0)),IF(OR(E5="HDPE",E5="CMP"),(ROUNDUP(AJ5/20,0)),0)) -> 6 | AJ5: 48 | AK5: 48 | AM5: 48
B6: =B5+1 -> 3 | D6: RCP | E6: RCP | G6: 30" RCP C3 (B Wall) | I6: 4.098666667 | J6: =IFERROR(IF(E6="RCP",INDEX(Database!$E$379:$BE$379,MATCH('Pipe Input'!$J$3,Database!$C$379:$BE$379,0),MATCH('Pipe Input'!G6,Database!$E$377:$BE$377,0)),IF(E6="HERCP",INDEX(Database!$E$421:$S$421,MATCH('Pipe Input'!$J$3,Database!$C$421:$S$421,0),MATCH('Pipe Input'!G6,Database!$E$418:$S$418,0)),IF(E6="HDPE",INDEX(Database!$E$443:$S$443,MATCH('Pipe Input'!$J$3,Database!$C$443:$S$443,0),MATCH('Pipe Input'!G6,Database!$E$441:$S$441,0)),IF(E6="CMP",INDEX(Database!$E$460:$AS$460,MATCH('Pipe Input'!$J$3,Database!$C$460:$AS$460,0),MATCH('Pipe Input'!G6,Database!$E$458:$AS$458,0)),"")))),"") -> 30" RCP CL 3 w/Gaskets | K6: =IFERROR(IF(AK6>0,(ROUNDUP((((L6+Q6))/(1-O6/100)),2)),""), "")-5 -> 51.25 | L6: =IFERROR(IF(E6="RCP",M6,IF(E6="HERCP",N6,IF(E6="HDPE",INDEX(Database!$E$447:$S$447,MATCH('Pipe Input'!$L$3,Database!$C$447:$S$447,0),MATCH('Pipe Input'!G6,Database!$E$441:$S$441,0)),IF(E6="CMP",INDEX(Database!$E$465:$AS$465,MATCH('Pipe Input'!$L$3,Database!$C$465:$AS$465,0),MATCH('Pipe Input'!G6,Database!$E$458:$AS$458,0)),"")))),"") -> 58.5 | M6: =IF(E6="RCP",INDEX(Database!$E$384:$BE$388,MATCH('Pipe Input'!$E$2,Database!$C$384:$C$388,0),MATCH('Pipe Input'!G6,Database!$E$377:$BE$377,0)),"") -> 58.5 | N6: =IF(E6="HERCP",INDEX(Database!$E$425:$S$429,MATCH('Pipe Input'!$E$2,Database!$C$425:$C$429,0),MATCH('Pipe Input'!G6,Database!$E$418:$S$418,0)),"") ->  | O6: =IF(E6="RCP",Summary!$AV$5,IF(E6="HERCP",Summary!$AV$34,IF(E6="HDPE",Summary!$AV$51,IF(E6="CMP",Summary!$AV$73, "")))) -> -4 | P6: =IFERROR(K6,"") -> 51.25 | Q6: 0 | R6: 0 | S6: 21730 | T6: 0.2372841234 | U6: 184440 | X6: 0 | AB6: =IFERROR(IF(E6="HDPE",INDEX(Database!$E$450:$S$450,MATCH('Pipe Input'!$AB$3,Database!$C$450:$S$450,0),MATCH('Pipe Input'!G6,Database!$E$441:$S$441,0)),""), "") ->  | AD6: 7.69 | AE6: 3258.860151 | AF6: =IF(E6="RCP",INDEX(Database!$E$393:$BE$393,MATCH('Pipe Input'!$AF$3,Database!$C$393:$BE$393,0),MATCH('Pipe Input'!G6,Database!$E$377:$BE$377,0)),IF(E6="HERCP",INDEX(Database!$E$434:$S$434,MATCH('Pipe Input'!$AF$3,Database!$C$434:$S$434,0),MATCH('Pipe Input'!G6,Database!$E$418:$S$418,0)),"")) -> PIPRCP303 | AG6: =IF(AND(E6="RCP",J6<>""),INDEX(Database!$E$395:$BE$395,MATCH('Pipe Input'!$AG$3,Database!$C$395:$BE$395,0),MATCH('Pipe Input'!G6,Database!$E$377:$BE$377,0)),"No") -> Yes | AH6: =IFERROR(IF(E6="RCP",INDEX(Database!$E$390:$BE$390,MATCH('Pipe Input'!$AH$3,Database!$C$390:$BE$390,0),MATCH('Pipe Input'!G6,Database!$E$377:$BE$377,0)),IF(E6="HERCP",INDEX(Database!$E$431:$S$431,MATCH('Pipe Input'!$AH$3,Database!$C$431:$S$431,0),MATCH('Pipe Input'!G6,Database!$E$418:$S$418,0)),IF(E6="HDPE",INDEX(Database!$E$448:$S$448,MATCH('Pipe Input'!$AH$3,Database!$C$448:$S$448,0),MATCH('Pipe Input'!G6,Database!$E$441:$S$441,0)),IF(E6="CMP",INDEX(Database!$E$466:$AS$466,MATCH('Pipe Input'!$AH$3,Database!$C$466:$AS$466,0),MATCH('Pipe Input'!G6,Database!$E$458:$AS$458,0)),"")))),"") -> 435 | AI6: 53 | AJ6: =SUM(AM6:AAL6) -> 420 | AK6: 424 | AM6: 114 | AN6: 95 | AO6: 94 | AP6: 16 | AQ6: 101
B7: 4 | D7: RCP | E7: RCP | G7: 24" RCP C3 (B Wall) | I7: 8.930133333 | J7: =IFERROR(IF(E7="RCP",INDEX(Database!$E$379:$BE$379,MATCH('Pipe Input'!$J$3,Database!$C$379:$BE$379,0),MATCH('Pipe Input'!G7,Database!$E$377:$BE$377,0)),IF(E7="HERCP",INDEX(Database!$E$421:$S$421,MATCH('Pipe Input'!$J$3,Database!$C$421:$S$421,0),MATCH('Pipe Input'!G7,Database!$E$418:$S$418,0)),IF(E7="HDPE",INDEX(Database!$E$443:$S$443,MATCH('Pipe Input'!$J$3,Database!$C$443:$S$443,0),MATCH('Pipe Input'!G7,Database!$E$441:$S$441,0)),IF(E7="CMP",INDEX(Database!$E$460:$AS$460,MATCH('Pipe Input'!$J$3,Database!$C$460:$AS$460,0),MATCH('Pipe Input'!G7,Database!$E$458:$AS$458,0)),"")))),"") -> 24" RCP CL 3 w/Gaskets | K7: =IFERROR(IF(AK7>0,(ROUNDUP((((L7+Q7))/(1-O7/100)),2)),""), "")-3 -> 35.71 | L7: =IFERROR(IF(E7="RCP",M7,IF(E7="HERCP",N7,IF(E7="HDPE",INDEX(Database!$E$447:$S$447,MATCH('Pipe Input'!$L$3,Database!$C$447:$S$447,0),MATCH('Pipe Input'!G7,Database!$E$441:$S$441,0)),IF(E7="CMP",INDEX(Database!$E$465:$AS$465,MATCH('Pipe Input'!$L$3,Database!$C$465:$AS$465,0),MATCH('Pipe Input'!G7,Database!$E$458:$AS$458,0)),"")))),"") -> 40.25 | M7: =IF(E7="RCP",INDEX(Database!$E$384:$BE$388,MATCH('Pipe Input'!$E$2,Database!$C$384:$C$388,0),MATCH('Pipe Input'!G7,Database!$E$377:$BE$377,0)),"") -> 40.25 | N7: =IF(E7="HERCP",INDEX(Database!$E$425:$S$429,MATCH('Pipe Input'!$E$2,Database!$C$425:$C$429,0),MATCH('Pipe Input'!G7,Database!$E$418:$S$418,0)),"") ->  | O7: =IF(E7="RCP",Summary!$AV$5,IF(E7="HERCP",Summary!$AV$34,IF(E7="HDPE",Summary!$AV$51,IF(E7="CMP",Summary!$AV$73, "")))) -> -4 | P7: =IFERROR(K7,"") -> 35.71 | Q7: 0 | R7: 0 | S7: 47994.24 | T7: 0.5169922398 | U7: 401856 | X7: 0 | AB7: =IFERROR(IF(E7="HDPE",INDEX(Database!$E$450:$S$450,MATCH('Pipe Input'!$AB$3,Database!$C$450:$S$450,0),MATCH('Pipe Input'!G7,Database!$E$441:$S$441,0)),""), "") ->  | AD7: 5.28 | AE7: 7100.371421 | AF7: =IF(E7="RCP",INDEX(Database!$E$393:$BE$393,MATCH('Pipe Input'!$AF$3,Database!$C$393:$BE$393,0),MATCH('Pipe Input'!G7,Database!$E$377:$BE$377,0)),IF(E7="HERCP",INDEX(Database!$E$434:$S$434,MATCH('Pipe Input'!$AF$3,Database!$C$434:$S$434,0),MATCH('Pipe Input'!G7,Database!$E$418:$S$418,0)),"")) -> PIPRCP243 | AG7: =IF(AND(E7="RCP",J7<>""),INDEX(Database!$E$395:$BE$395,MATCH('Pipe Input'!$AG$3,Database!$C$395:$BE$395,0),MATCH('Pipe Input'!G7,Database!$E$377:$BE$377,0)),"No") -> Yes | AH7: =IFERROR(IF(E7="RCP",INDEX(Database!$E$390:$BE$390,MATCH('Pipe Input'!$AH$3,Database!$C$390:$BE$390,0),MATCH('Pipe Input'!G7,Database!$E$377:$BE$377,0)),IF(E7="HERCP",INDEX(Database!$E$431:$S$431,MATCH('Pipe Input'!$AH$3,Database!$C$431:$S$431,0),MATCH('Pipe Input'!G7,Database!$E$418:$S$418,0)),IF(E7="HDPE",INDEX(Database!$E$448:$S$448,MATCH('Pipe Input'!$AH$3,Database!$C$448:$S$448,0),MATCH('Pipe Input'!G7,Database!$E$441:$S$441,0)),IF(E7="CMP",INDEX(Database!$E$466:$AS$466,MATCH('Pipe Input'!$AH$3,Database!$C$466:$AS$466,0),MATCH('Pipe Input'!G7,Database!$E$458:$AS$458,0)),"")))),"") -> 299 | AI7: 168 | AJ7: 1344 | AK7: 1344 | AM7: 26 | AN7: 94 | AO7: 95 | AP7: 95 | AQ7: 19 | AR7: 11 | AS7: 31 | AT7: 83 | AU7: 162 | AV7: 200 | AW7: 200 | AX7: 200 | AY7: 42 | AZ7: 86
B8: 5 | D8: RCP | E8: RCP | G8: 18" RCP C3 (B Wall) | I8: 4.244444444 | J8: =IFERROR(IF(E8="RCP",INDEX(Database!$E$379:$BE$379,MATCH('Pipe Input'!$J$3,Database!$C$379:$BE$379,0),MATCH('Pipe Input'!G8,Database!$E$377:$BE$377,0)),IF(E8="HERCP",INDEX(Database!$E$421:$S$421,MATCH('Pipe Input'!$J$3,Database!$C$421:$S$421,0),MATCH('Pipe Input'!G8,Database!$E$418:$S$418,0)),IF(E8="HDPE",INDEX(Database!$E$443:$S$443,MATCH('Pipe Input'!$J$3,Database!$C$443:$S$443,0),MATCH('Pipe Input'!G8,Database!$E$441:$S$441,0)),IF(E8="CMP",INDEX(Database!$E$460:$AS$460,MATCH('Pipe Input'!$J$3,Database!$C$460:$AS$460,0),MATCH('Pipe Input'!G8,Database!$E$458:$AS$458,0)),"")))),"") -> 18" RCP CL 3 w/Gaskets | K8: 24.28 | L8: =IFERROR(IF(E8="RCP",M8,IF(E8="HERCP",N8,IF(E8="HDPE",INDEX(Database!$E$447:$S$447,MATCH('Pipe Input'!$L$3,Database!$C$447:$S$447,0),MATCH('Pipe Input'!G8,Database!$E$441:$S$441,0)),IF(E8="CMP",INDEX(Database!$E$465:$AS$465,MATCH('Pipe Input'!$L$3,Database!$C$465:$AS$465,0),MATCH('Pipe Input'!G8,Database!$E$458:$AS$458,0)),"")))),"") -> 25.25 | M8: =IF(E8="RCP",INDEX(Database!$E$384:$BE$388,MATCH('Pipe Input'!$E$2,Database!$C$384:$C$388,0),MATCH('Pipe Input'!G8,Database!$E$377:$BE$377,0)),"") -> 25.25 | N8: =IF(E8="HERCP",INDEX(Database!$E$425:$S$429,MATCH('Pipe Input'!$E$2,Database!$C$425:$C$429,0),MATCH('Pipe Input'!G8,Database!$E$418:$S$418,0)),"") ->  | O8: =IF(E8="RCP",Summary!$AV$5,IF(E8="HERCP",Summary!$AV$34,IF(E8="HDPE",Summary!$AV$51,IF(E8="CMP",Summary!$AV$73, "")))) -> -4 | P8: 24.28 | Q8: 0 | R8: 0 | S8: 24280 | T8: 0.2457236368 | U8: 191000 | X8: 0 | AB8: =IFERROR(IF(E8="HDPE",INDEX(Database!$E$450:$S$450,MATCH('Pipe Input'!$AB$3,Database!$C$450:$S$450,0),MATCH('Pipe Input'!G8,Database!$E$441:$S$441,0)),""), "") ->  | AD8: 3.37 | AE8: 3374.768428 | AF8: =IF(E8="RCP",INDEX(Database!$E$393:$BE$393,MATCH('Pipe Input'!$AF$3,Database!$C$393:$BE$393,0),MATCH('Pipe Input'!G8,Database!$E$377:$BE$377,0)),IF(E8="HERCP",INDEX(Database!$E$434:$S$434,MATCH('Pipe Input'!$AF$3,Database!$C$434:$S$434,0),MATCH('Pipe Input'!G8,Database!$E$418:$S$418,0)),"")) -> PIPRCP183 | AG8: =IF(AND(E8="RCP",J8<>""),INDEX(Database!$E$395:$BE$395,MATCH('Pipe Input'!$AG$3,Database!$C$395:$BE$395,0),MATCH('Pipe Input'!G8,Database!$E$377:$BE$377,0)),"No") -> Yes | AH8: =IFERROR(IF(E8="RCP",INDEX(Database!$E$390:$BE$390,MATCH('Pipe Input'!$AH$3,Database!$C$390:$BE$390,0),MATCH('Pipe Input'!G8,Database!$E$377:$BE$377,0)),IF(E8="HERCP",INDEX(Database!$E$431:$S$431,MATCH('Pipe Input'!$AH$3,Database!$C$431:$S$431,0),MATCH('Pipe Input'!G8,Database!$E$418:$S$418,0)),IF(E8="HDPE",INDEX(Database!$E$448:$S$448,MATCH('Pipe Input'!$AH$3,Database!$C$448:$S$448,0),MATCH('Pipe Input'!G8,Database!$E$441:$S$441,0)),IF(E8="CMP",INDEX(Database!$E$466:$AS$466,MATCH('Pipe Input'!$AH$3,Database!$C$466:$AS$466,0),MATCH('Pipe Input'!G8,Database!$E$458:$AS$458,0)),"")))),"") -> 191 | AI8: 125 | AJ8: 999 | AK8: 1000 | AM8: 26 | AN8: 126 | AO8: 38 | AP8: 126 | AQ8: 38 | AR8: 132 | AS8: 85 | AT8: 69 | AU8: 123 | AV8: 52 | AW8: 38 | AX8: 63 | AY8: 83
B9: 6 | J9: =IFERROR(IF(E9="RCP",INDEX(Database!$E$379:$BE$379,MATCH('Pipe Input'!$J$3,Database!$C$379:$BE$379,0),MATCH('Pipe Input'!G9,Database!$E$377:$BE$377,0)),IF(E9="HERCP",INDEX(Database!$E$421:$S$421,MATCH('Pipe Input'!$J$3,Database!$C$421:$S$421,0),MATCH('Pipe Input'!G9,Database!$E$418:$S$418,0)),IF(E9="HDPE",INDEX(Database!$E$443:$S$443,MATCH('Pipe Input'!$J$3,Database!$C$443:$S$443,0),MATCH('Pipe Input'!G9,Database!$E$441:$S$441,0)),IF(E9="CMP",INDEX(Database!$E$460:$AS$460,MATCH('Pipe Input'!$J$3,Database!$C$460:$AS$460,0),MATCH('Pipe Input'!G9,Database!$E$458:$AS$458,0)),"")))),"") ->  | L9: =IFERROR(IF(E9="RCP",M9,IF(E9="HERCP",N9,IF(E9="HDPE",INDEX(Database!$E$447:$S$447,MATCH('Pipe Input'!$L$3,Database!$C$447:$S$447,0),MATCH('Pipe Input'!G9,Database!$E$441:$S$441,0)),IF(E9="CMP",INDEX(Database!$E$465:$AS$465,MATCH('Pipe Input'!$L$3,Database!$C$465:$AS$465,0),MATCH('Pipe Input'!G9,Database!$E$458:$AS$458,0)),"")))),"") ->  | M9: =IF(E9="RCP",INDEX(Database!$E$384:$BE$388,MATCH('Pipe Input'!$E$2,Database!$C$384:$C$388,0),MATCH('Pipe Input'!G9,Database!$E$377:$BE$377,0)),"") ->  | N9: =IF(E9="HERCP",INDEX(Database!$E$425:$S$429,MATCH('Pipe Input'!$E$2,Database!$C$425:$C$429,0),MATCH('Pipe Input'!G9,Database!$E$418:$S$418,0)),"") ->  | O9: =IF(E9="RCP",Summary!$AV$5,IF(E9="HERCP",Summary!$AV$34,IF(E9="HDPE",Summary!$AV$51,IF(E9="CMP",Summary!$AV$73, "")))) ->  | Q9: 0 | R9: 0 | U9: 0 | X9: 0 | AB9: =IFERROR(IF(E9="HDPE",INDEX(Database!$E$450:$S$450,MATCH('Pipe Input'!$AB$3,Database!$C$450:$S$450,0),MATCH('Pipe Input'!G9,Database!$E$441:$S$441,0)),""), "") ->  | AE9: 0 | AF9: =IF(E9="RCP",INDEX(Database!$E$393:$BE$393,MATCH('Pipe Input'!$AF$3,Database!$C$393:$BE$393,0),MATCH('Pipe Input'!G9,Database!$E$377:$BE$377,0)),IF(E9="HERCP",INDEX(Database!$E$434:$S$434,MATCH('Pipe Input'!$AF$3,Database!$C$434:$S$434,0),MATCH('Pipe Input'!G9,Database!$E$418:$S$418,0)),"")) ->  | AG9: =IF(AND(E9="RCP",J9<>""),INDEX(Database!$E$395:$BE$395,MATCH('Pipe Input'!$AG$3,Database!$C$395:$BE$395,0),MATCH('Pipe Input'!G9,Database!$E$377:$BE$377,0)),"No") -> No | AH9: =IFERROR(IF(E9="RCP",INDEX(Database!$E$390:$BE$390,MATCH('Pipe Input'!$AH$3,Database!$C$390:$BE$390,0),MATCH('Pipe Input'!G9,Database!$E$377:$BE$377,0)),IF(E9="HERCP",INDEX(Database!$E$431:$S$431,MATCH('Pipe Input'!$AH$3,Database!$C$431:$S$431,0),MATCH('Pipe Input'!G9,Database!$E$418:$S$418,0)),IF(E9="HDPE",INDEX(Database!$E$448:$S$448,MATCH('Pipe Input'!$AH$3,Database!$C$448:$S$448,0),MATCH('Pipe Input'!G9,Database!$E$441:$S$441,0)),IF(E9="CMP",INDEX(Database!$E$466:$AS$466,MATCH('Pipe Input'!$AH$3,Database!$C$466:$AS$466,0),MATCH('Pipe Input'!G9,Database!$E$458:$AS$458,0)),"")))),"") ->  | AI9: 0 | AJ9: 0 | AK9: 0
B10: 7 | J10: =IFERROR(IF(E10="RCP",INDEX(Database!$E$379:$BE$379,MATCH('Pipe Input'!$J$3,Database!$C$379:$BE$379,0),MATCH('Pipe Input'!G10,Database!$E$377:$BE$377,0)),IF(E10="HERCP",INDEX(Database!$E$421:$S$421,MATCH('Pipe Input'!$J$3,Database!$C$421:$S$421,0),MATCH('Pipe Input'!G10,Database!$E$418:$S$418,0)),IF(E10="HDPE",INDEX(Database!$E$443:$S$443,MATCH('Pipe Input'!$J$3,Database!$C$443:$S$443,0),MATCH('Pipe Input'!G10,Database!$E$441:$S$441,0)),IF(E10="CMP",INDEX(Database!$E$460:$AS$460,MATCH('Pipe Input'!$J$3,Database!$C$460:$AS$460,0),MATCH('Pipe Input'!G10,Database!$E$458:$AS$458,0)),"")))),"") ->  | L10: =IFERROR(IF(E10="RCP",M10,IF(E10="HERCP",N10,IF(E10="HDPE",INDEX(Database!$E$447:$S$447,MATCH('Pipe Input'!$L$3,Database!$C$447:$S$447,0),MATCH('Pipe Input'!G10,Database!$E$441:$S$441,0)),IF(E10="CMP",INDEX(Database!$E$465:$AS$465,MATCH('Pipe Input'!$L$3,Database!$C$465:$AS$465,0),MATCH('Pipe Input'!G10,Database!$E$458:$AS$458,0)),"")))),"") ->  | M10: =IF(E10="RCP",INDEX(Database!$E$384:$BE$388,MATCH('Pipe Input'!$E$2,Database!$C$384:$C$388,0),MATCH('Pipe Input'!G10,Database!$E$377:$BE$377,0)),"") ->  | N10: =IF(E10="HERCP",INDEX(Database!$E$425:$S$429,MATCH('Pipe Input'!$E$2,Database!$C$425:$C$429,0),MATCH('Pipe Input'!G10,Database!$E$418:$S$418,0)),"") ->  | O10: =IF(E10="RCP",Summary!$AV$5,IF(E10="HERCP",Summary!$AV$34,IF(E10="HDPE",Summary!$AV$51,IF(E10="CMP",Summary!$AV$73, "")))) ->  | Q10: 0 | R10: 0 | U10: 0 | X10: 0 | AB10: =IFERROR(IF(E10="HDPE",INDEX(Database!$E$450:$S$450,MATCH('Pipe Input'!$AB$3,Database!$C$450:$S$450,0),MATCH('Pipe Input'!G10,Database!$E$441:$S$441,0)),""), "") ->  | AE10: 0 | AF10: =IF(E10="RCP",INDEX(Database!$E$393:$BE$393,MATCH('Pipe Input'!$AF$3,Database!$C$393:$BE$393,0),MATCH('Pipe Input'!G10,Database!$E$377:$BE$377,0)),IF(E10="HERCP",INDEX(Database!$E$434:$S$434,MATCH('Pipe Input'!$AF$3,Database!$C$434:$S$434,0),MATCH('Pipe Input'!G10,Database!$E$418:$S$418,0)),"")) ->  | AG10: =IF(AND(E10="RCP",J10<>""),INDEX(Database!$E$395:$BE$395,MATCH('Pipe Input'!$AG$3,Database!$C$395:$BE$395,0),MATCH('Pipe Input'!G10,Database!$E$377:$BE$377,0)),"No") -> No | AH10: =IFERROR(IF(E10="RCP",INDEX(Database!$E$390:$BE$390,MATCH('Pipe Input'!$AH$3,Database!$C$390:$BE$390,0),MATCH('Pipe Input'!G10,Database!$E$377:$BE$377,0)),IF(E10="HERCP",INDEX(Database!$E$431:$S$431,MATCH('Pipe Input'!$AH$3,Database!$C$431:$S$431,0),MATCH('Pipe Input'!G10,Database!$E$418:$S$418,0)),IF(E10="HDPE",INDEX(Database!$E$448:$S$448,MATCH('Pipe Input'!$AH$3,Database!$C$448:$S$448,0),MATCH('Pipe Input'!G10,Database!$E$441:$S$441,0)),IF(E10="CMP",INDEX(Database!$E$466:$AS$466,MATCH('Pipe Input'!$AH$3,Database!$C$466:$AS$466,0),MATCH('Pipe Input'!G10,Database!$E$458:$AS$458,0)),"")))),"") ->  | AI10: 0 | AJ10: 0 | AK10: 0
B11: 8 | I11: =IF(AND(AG11="Yes",G11<>""),(U11/45000),"") ->  | J11: =IFERROR(IF(E11="RCP",INDEX(Database!$E$379:$BE$379,MATCH('Pipe Input'!$J$3,Database!$C$379:$BE$379,0),MATCH('Pipe Input'!G11,Database!$E$377:$BE$377,0)),IF(E11="HERCP",INDEX(Database!$E$421:$S$421,MATCH('Pipe Input'!$J$3,Database!$C$421:$S$421,0),MATCH('Pipe Input'!G11,Database!$E$418:$S$418,0)),IF(E11="HDPE",INDEX(Database!$E$443:$S$443,MATCH('Pipe Input'!$J$3,Database!$C$443:$S$443,0),MATCH('Pipe Input'!G11,Database!$E$441:$S$441,0)),IF(E11="CMP",INDEX(Database!$E$460:$AS$460,MATCH('Pipe Input'!$J$3,Database!$C$460:$AS$460,0),MATCH('Pipe Input'!G11,Database!$E$458:$AS$458,0)),"")))),"") ->  | L11: =IFERROR(IF(E11="RCP",M11,IF(E11="HERCP",N11,IF(E11="HDPE",INDEX(Database!$E$447:$S$447,MATCH('Pipe Input'!$L$3,Database!$C$447:$S$447,0),MATCH('Pipe Input'!G11,Database!$E$441:$S$441,0)),IF(E11="CMP",INDEX(Database!$E$465:$AS$465,MATCH('Pipe Input'!$L$3,Database!$C$465:$AS$465,0),MATCH('Pipe Input'!G11,Database!$E$458:$AS$458,0)),"")))),"") ->  | M11: =IF(E11="RCP",INDEX(Database!$E$384:$BE$388,MATCH('Pipe Input'!$E$2,Database!$C$384:$C$388,0),MATCH('Pipe Input'!G11,Database!$E$377:$BE$377,0)),"") ->  | N11: =IF(E11="HERCP",INDEX(Database!$E$425:$S$429,MATCH('Pipe Input'!$E$2,Database!$C$425:$C$429,0),MATCH('Pipe Input'!G11,Database!$E$418:$S$418,0)),"") ->  | O11: =IF(E11="RCP",Summary!$AV$5,IF(E11="HERCP",Summary!$AV$34,IF(E11="HDPE",Summary!$AV$51,IF(E11="CMP",Summary!$AV$73, "")))) ->  | Q11: 0 | R11: 0 | U11: 0 | X11: 0 | AB11: =IFERROR(IF(E11="HDPE",INDEX(Database!$E$450:$S$450,MATCH('Pipe Input'!$AB$3,Database!$C$450:$S$450,0),MATCH('Pipe Input'!G11,Database!$E$441:$S$441,0)),""), "") ->  | AE11: 0 | AF11: =IF(E11="RCP",INDEX(Database!$E$393:$BE$393,MATCH('Pipe Input'!$AF$3,Database!$C$393:$BE$393,0),MATCH('Pipe Input'!G11,Database!$E$377:$BE$377,0)),IF(E11="HERCP",INDEX(Database!$E$434:$S$434,MATCH('Pipe Input'!$AF$3,Database!$C$434:$S$434,0),MATCH('Pipe Input'!G11,Database!$E$418:$S$418,0)),"")) ->  | AG11: =IF(AND(E11="RCP",J11<>""),INDEX(Database!$E$395:$BE$395,MATCH('Pipe Input'!$AG$3,Database!$C$395:$BE$395,0),MATCH('Pipe Input'!G11,Database!$E$377:$BE$377,0)),"No") -> No | AH11: =IFERROR(IF(E11="RCP",INDEX(Database!$E$390:$BE$390,MATCH('Pipe Input'!$AH$3,Database!$C$390:$BE$390,0),MATCH('Pipe Input'!G11,Database!$E$377:$BE$377,0)),IF(E11="HERCP",INDEX(Database!$E$431:$S$431,MATCH('Pipe Input'!$AH$3,Database!$C$431:$S$431,0),MATCH('Pipe Input'!G11,Database!$E$418:$S$418,0)),IF(E11="HDPE",INDEX(Database!$E$448:$S$448,MATCH('Pipe Input'!$AH$3,Database!$C$448:$S$448,0),MATCH('Pipe Input'!G11,Database!$E$441:$S$441,0)),IF(E11="CMP",INDEX(Database!$E$466:$AS$466,MATCH('Pipe Input'!$AH$3,Database!$C$466:$AS$466,0),MATCH('Pipe Input'!G11,Database!$E$458:$AS$458,0)),"")))),"") ->  | AI11: 0 | AJ11: 0 | AK11: 0
